Workbook

Sheet USER GUIDE
F4: TATA STEEL / BCSA / ATKINS Carbon Footprint for Steel / Concrete Composite Bridges
W6: To start from default assumptions, ensure that all reset buttons are used before entering any quantities or data. The buttons will clear all previously entered data.
B11: User Guide The Tata Steel / BCSA carbon footprint tool for steel / concrete composite bridges calculates the total carbon (CO2) emissions for steel/concrete composite bridges. The tool determines the CO2 associated with site set-up and close down, materials, transportation of materials and plant used during construction and maintenance and the traffic delay during bridge construction and maintenance. The carbon footprinting tool has been designed to mirror the phases of bridge design, construction and maintenance; 1 - Site set up and close down 2 - Design / Construction; sub-divided to foundations, substructure and superstructure 3 - Inspection and Maintenance. The following describes each of the worksheets in the carbon footprinting tool. 1. SUMMARY The SUMMARY worksheet allows users to quickly determine the CO2 emissions for a bridge project when inputting dimensions and material quantities for a particular bridge project. Percentage contribution of the phases of the project is graphically shown in pie charts for the default values and user values. A secondary pie chart shows the split of CO2 emissions for foundations, substructure and superstructure for the bridge design and construction phase. The pie charts allow users to identify where potential savings in CO2 can be made in the design, construction method or traffic management arrangement to obtain a more CO2 efficient project. 2. User LOCKED The User LOCKED worksheet takes the values entered into the SUMMARY sheet and uses them together with material details, construction durations, type of plant and transportation used and traffic management, based on a series of default assumptions, to calculate the quantities of CO2. 3. User VALUES The User VALUES worksheet is similar to the User LOCKED sheet, using data from the SUMMARY sheet and assumptions to obtain quantities of CO2, but allows the defaults to be amended where better project specific data is available to refine the calculation. There is a button in the User VALUES sheet to return all values to default settings. 4. Traffic Data The Traffic Data worksheet details the road traffic speeds, road diversion lengths and road traffic volumes which are referred to in both 'User LOCKED' and 'User VALUES' sheets. Options are given to override the default data values. NOTE: Overriding the default data values will change values in 'User VALUES' sheet only. 5. Construction Materials The Construction Materials worksheet details the data values used for the construction materials, transportation for vehicle and plant emissions and maintenance activity frequencies and durations. Options are given to override the default data values. NOTE: Overriding the default data values will change values in 'User VALUES' sheet only. 6. Information The Information worksheet details the assumptions supporting the default values used for quantities, material details, construction durations, type of plant and transportation used and traffic management in the 'User LOCKED' sheet. This sheet also provides references for publicly available data and information used in this carbon footprint tool. How to use the carbon footprinting tool The flow chart opposite describes the process of using the carbon footprinting tool to quantify the CO2 emissions associated with the design and construction of a Steel Concrete Composite Bridge.
W22: The upper chart shows the proportion of CO2 emissions for each phase of a bridge project due to the assumptions made in the 'User LOCKED' sheet. The lower chart shows the proportion of CO2 emissions for each phase of a bridge project due to values entered in the 'User VALUES' sheet.
W32: Assumptions supporting the default values are stated in the 'Information' sheet.
W75: Update and refine quantities, changes to materials details, plant used, transportation of plant and materials and traffic management arrangements as project progresses through design, construction and maintenance stages when further details are known.
B93: Revision: 24 February 2012 correction to User_VALUES and User_LOCKED sheets Cells P212:P244

Sheet SUMMARY
X1: Look up values
B2: TATA STEEL / BCSA / ATKINS Carbon Footprint for Steel / Concrete Composite Bridges | X2: Bridge details
X3: Road over
B4: Bridge Details | C4: Bridge Details | X4: Rail over
C5: Project Title | X5: Foot/Cycle over
C6: Job number | X6: Road under
C7: Bridge Type | X7: Rail under
C8: Specify road classification | X8: Watercourse
C9: Obstacles crossed | X9: Road classification
C10: Specify road classification | X10: Motorway
C11: Construction duration (weeks) | X11: Rural_A
C12: Bridge length (m) | X12: Urban_A
C13: Bridge width (m) | J13: Drop down menu | X13: Rural_Minor
J14: Text entry | X14: Urban_Minor
X15: None
B16: Site set up/close | C16: Site set up/close down | X16: Not applicable
I17: Total tCO2eq Default values | K17: Total tCO2eq User values
C18: Transportation of accomodation units | I18: =IF($F$11="","",('User LOCKED'!$M$26)) ->  | K18: =IF($F$11="","",('User VALUES'!$M$26)) -> 
B21: Design/Construction | C21: Bridge Element | E21: Design/Construction | AA21: Site setup/close down | AB21: =I18 ->  | AD21: =K18 ->  | AE21: =IF(AB21="",#N/A,AB21) ->  | AG21: =IF(AD21="",#N/A,AD21) -> 
E22: Type | F22: Material | G22: Volume (m3) / Tonnage (t) / Quantity (No.) | I22: Total tCO2 Default values | K22: Total tCO2 User values | AA22: Design/Construction | AB22: =SUM(I23:I41) -> 0 | AD22: =SUM(K23:K41) -> 0 | AE22: =IF(AB22=0,#N/A,AB22) ->  | AG22: =IF(AD22=0,#N/A,AD22) -> 
C23: Foundations | G23: Volume (m3) | AA23: Maintenance | AB23: =SUM(I45:I49) -> 0 | AD23: =SUM(K45:K49) -> 0 | AE23: =IF(AB23=0,#N/A,AB23) ->  | AG23: =IF(AD23=0,#N/A,AD23) -> 
E24: Foundations | F24: Reinforced Concrete | I24: =IF(OR($G$24="",$G$24=0),"",(SUM('User LOCKED'!$AI$33:$AI$45,'User LOCKED'!$AI$56))) ->  | K24: =IF(OR($G$24="",$G$24=0),"",(SUM('User VALUES'!$AI$33:$AI$45,'User VALUES'!$AI$56))) ->  | AA24: Traffic delay | AB24: =I53 ->  | AD24: =K53 ->  | AE24: =IF(AB24="",#N/A,AB24) ->  | AG24: =IF(AD24="",#N/A,AD24) -> 
AA25: Foundations | AB25: =SUM(I23:I27) -> 0 | AD25: =SUM(K23:K27) -> 0 | AE25: =IF(AB25=0,#N/A,AB25) -> 
F26: Structural Steel | I26: =IF(OR($G$26="",$G$26=0),"",(SUM('User LOCKED'!$AI$48:$AI$52))) ->  | K26: =IF(OR($G$26="",$G$26=0),"",(SUM('User VALUES'!$AI$48:$AI$52))) ->  | AA26: Substructure | AB26: =SUM(I28:I30) -> 0 | AD26: =SUM(K28:K30) -> 0
AA27: Superstructure | AB27: =SUM(I31:I41) -> 0 | AD27: =SUM(K31:K41) -> 0
C28: Sub- structure | G28: Volume (m3)
E29: Sub-structure | F29: Reinforced Concrete | I29: =IF(OR($G$29="",$G$29=0,),"",(SUM('User LOCKED'!$AI$63:$AI$90))) ->  | K29: =IF(OR($G$29="",$G$29=0,),"",(SUM('User VALUES'!$AI$63:$AI$90))) -> 
C31: Super-structure | G31: Quantity (No.)
E32: Articulation | F32: Bearings | I32: =IF(OR($G$32="",$G$32=0,),"",(SUM('User LOCKED'!$AI$96:$AI$107))) ->  | K32: =IF(OR($G$32="",$G$32=0,),"",(SUM('User VALUES'!$AI$96:$AI$107))) -> 
G34: Tonnage
E35: Deck | F35: Painted Structural Steel | I35: =IF(OR($G$35="",$G$35=0,),"",(SUM('User LOCKED'!$AI$110:$AI$114))) ->  | K35: =IF(OR($G$35="",$G$35=0,),"",(SUM('User VALUES'!$AI$110:$AI$114))) -> 
F36: Weathering Structural Steel | I36: =IF(OR($G$36="",$G$36=0,),"",(SUM('User LOCKED'!$AI$117:$AI$121))) ->  | K36: =IF(OR($G$36="",$G$36=0,),"",(SUM('User VALUES'!$AI$117:$AI$121))) -> 
G37: Volume (m3)
F38: Reinforced Concrete | I38: =IF(OR($G$38="",$G$38=0),"",(SUM('User LOCKED'!$AI$124:$AI$146))) ->  | K38: =IF(OR($G$38="",$G$38=0),"",(SUM('User VALUES'!$AI$124:$AI$146))) -> 
F40: Miscelleanous | I40: =IF(OR($G$38="",$G$38=0),"",(SUM('User LOCKED'!$AI$147:$AI$159))) ->  | K40: =IF(OR($G$38="",$G$38=0),"",(SUM('User VALUES'!$AI$147:$AI$159))) -> 
B43: Maintenance | C43: Maintenance Activity | E43: Maintenance
E44: Activity | I44: Total tCO2 Default values | K44: Total tCO2 User values
G45: Number
C46: Inspection of Structure | E46: Principal inspections | G46: =IF(F12="","",(SUM('User LOCKED'!$L$217:$L$219)/2)) ->  | I46: =IF(OR($G$46="",$G$46=0,),"",(SUM('User LOCKED'!$AI$167))) ->  | K46: =IF(OR($G$46="",$G$46=0,),"",(SUM('User VALUES'!$AI$167))) -> 
E47: Interim inspections | G47: =IF(F12="","",(SUM('User LOCKED'!$L$221:$L$223)/2)) ->  | I47: =IF(OR($G$47="",$G$47=0,),"",(SUM('User LOCKED'!$AI$168))) ->  | K47: =IF(OR($G$47="",$G$47=0,),"",(SUM('User VALUES'!$AI$168))) -> 
C48: Routine Maintenance
E49: Maintenance | G49: =IF(F12="","",(SUM('User LOCKED'!$L$226:$L$245))/2) ->  | I49: =IF(OR($F$12="",$F$13="",$G$49=""),"",(SUM('User LOCKED'!$AI$172:$AI$205))) ->  | K49: =IF(OR($F$12="",$F$13="",$G$49=""),"",(SUM('User VALUES'!$AI$172:$AI$205))) -> 
B51: Traffic Delay | C51: Effects of traffic delay | E51: Traffic Delay
G52: Total tCO2 emitted traffic management / road closure | I52: Total tCO2eq Default values | K52: Total tCO2eq User values
C53: Full duration for construction and maintenance | G53: =IF(OR($F$8="",$F$10="",$F$12="",$F$13=""),"",'User LOCKED'!Q245) ->  | I53: =IF(G53="","",('User LOCKED'!$Q$245)) ->  | K53: =IF($G$53="","",('User VALUES'!$Q$245)) -> 
G54: Total CO2 | I54: =IF(AND(I18="",I24="",I26="",I29="",I32="",I35="",I36="",I38="",I40="",I46="",I47="",I49="",I53=""),"",((SUM(I18,I24:I40,I46:I49,I53)))) ->  | K54: =IF(AND(K18="",K24="",K26="",K29="",K32="",K35="",K36="",K38="",K40="",K46="",K47="",K49="",K53=""),"",((SUM(K18,K24:K40,K46:K49,K53)))) -> 
Q58: `

Sheet User LOCKED
B2: TATA STEEL / BCSA / ATKINS Carbon Footprint for Steel / Concrete Composite Bridges | AQ2: Look up values
AQ3: Bridge details
AQ4: Road over
C5: Bridge Details | AQ5: Rail over
B6: Bridge Details | C6: Project Title | E6: =IF(SUMMARY!E5="","",SUMMARY!E5) ->  | AQ6: Foot/Cycle over
C7: Job number | E7: =IF(SUMMARY!E6="","",SUMMARY!E6) ->  | AQ7: Road under
C8: Bridge Type | F8: =IF(SUMMARY!F7="","",SUMMARY!F7) ->  | AQ8: Rail under
C9: If road specify classification | F9: =IF(SUMMARY!F8="","",SUMMARY!F8) ->  | AQ9: Watercourse
C10: Obstacles crossed | F10: =IF(SUMMARY!F9="","",SUMMARY!F9) ->  | AQ10: Road classification
C11: If road specify classification | F11: =IF(SUMMARY!F10="","",SUMMARY!F10) ->  | AQ11: Motorway
C12: Construction duration (weeks) | F12: =IF(SUMMARY!F11="","",SUMMARY!F11) ->  | AQ12: Rural_A
C13: Bridge length (m) | F13: =IF(SUMMARY!F12="","",SUMMARY!F12) ->  | G13: =MAX(1,ROUND(F13/26.58,0)) ->  | H13: =G63/F14 ->  | AQ13: Urban_A
C14: Bridge width (m) | F14: =IF(SUMMARY!F13="","",SUMMARY!F13) ->  | H14: =(G80/4)^0.5 ->  | AQ14: Rural_Minor
AQ15: Urban_Minor
AQ16: Not applicable
C17: Site set up/close down | AQ17: Freight transportation
B18: Site set up/close down | C18: Site equipment | E18: Plant / tools | F18: Frequency of delivery (Default 4 if unknown) | G18: Mode of transport | I18: Local or national supplier | J18: Transport distance if known (km). Default distance (50km local, 250km national) if unknown. | L18: tCO2eq/ vkm | M18: tCO2eq | AQ18: ='Construction Materials'!A136 -> Freight - Petrol Van/LCV [≤1.25t]
C19: Site accommodation | E19: Delivery vehicle | F19: =IF($F$12="","",4) ->  | G19: Freight - Diesel HGV (All Rigids) 53% (UK Average) | I19: Local supplier | J19: =IF(I19="Local supplier","50","250") -> 50 | L19: =IF((OR(F19="",G19="")),"",(VLOOKUP(G19,'HIDDEN_Construction Materials'!$B$136:$E$165,3,FALSE))) ->  | M19: =IF(F19="","",(F19*J19*L19)) ->  | AQ19: ='Construction Materials'!A140 -> Freight - Diesel (Average) Van/LCV [≤3.5t]
C20: Generators | E20: Delivery vehicle | G20: Freight - Diesel HGV (All Rigids) 53% (UK Average) | I20: Local supplier | J20: =IF(I20="Local supplier","50","250") -> 50 | L20: =IF((OR(F20="",G20="")),"",(VLOOKUP(G20,'HIDDEN_Construction Materials'!$B$136:$E$165,3,FALSE))) ->  | AP20: Emission factors per vehicle km with average load factor 40% | AQ20: ='Construction Materials'!A146 -> Freight - Diesel HGV (Rigid, >3.5-7.5t) 40% (UK Average)
C21: Drying cabin | E21: Delivery vehicle | G21: Freight - Diesel HGV (All Rigids) 53% (UK Average) | I21: Local supplier | J21: 50 | L21: =IF((OR(F21="",G21="")),"",(VLOOKUP(G21,'HIDDEN_Construction Materials'!$B$136:$E$165,3,FALSE))) ->  | AQ21: ='Construction Materials'!A150 -> Freight - Diesel HGV (Rigid, >7.5-17t) 37% (UK Average)
C22: Storage cabins | E22: Delivery vehicle | G22: Freight - Diesel HGV (All Rigids) 53% (UK Average) | I22: Local supplier | J22: 50 | L22: =IF((OR(F22="",G22="")),"",(VLOOKUP(G22,'HIDDEN_Construction Materials'!$B$136:$E$165,3,FALSE))) ->  | AQ22: ='Construction Materials'!A154 -> Freight - Diesel HGV (Rigid, >17t) 55% (UK Average)
C23: Fuel bund | E23: Delivery vehicle | G23: Freight - Diesel HGV (All Rigids) 53% (UK Average) | I23: Local supplier | J23: 50 | L23: =IF((OR(F23="",G23="")),"",(VLOOKUP(G23,'HIDDEN_Construction Materials'!$B$136:$E$165,3,FALSE))) ->  | Y23: =SUMMARY!$F$11*40 -> 0 | AQ23: ='Construction Materials'!A155 -> Freight - Diesel HGV (All Rigids) 53% (UK Average)
C24: Water bund | E24: Delivery vehicle | G24: Freight - Diesel HGV (All Rigids) 53% (UK Average) | I24: Local supplier | J24: 50 | L24: =IF((OR(F24="",G24="")),"",(VLOOKUP(G24,'HIDDEN_Construction Materials'!$B$136:$E$165,3,FALSE))) ->  | X24: Foundation duration = 30% of total construction duration | Y24: =Y23*0.3 -> 0 | AQ24: ='Construction Materials'!A159 -> Freight - Diesel HGV (Articulated, >3.5-33t) 43% (UK Average)
C25: Fencing | E25: Delivery vehicle | G25: Freight - Diesel HGV (All Rigids) 53% (UK Average) | I25: Local supplier | J25: 50 | L25: =IF((OR(F25="",G25="")),"",(VLOOKUP(G25,'HIDDEN_Construction Materials'!$B$136:$E$165,3,FALSE))) ->  | X25: Substucture duration = 20% of total construction duration | Y25: =Y23*0.2 -> 0 | AQ25: ='Construction Materials'!A163 -> Freight - Diesel HGV (Articulated, >33t) 60% (UK Average)
L26: Sum | M26: =IF(AND(M19="",M20="",M21="",M22="",M23="",M24="",M25=""),"",(SUM(M19:M25))) ->  | X26: Superstucture duration = 50% of total construction duration | Y26: =Y23*0.5 -> 0 | AQ26: ='Construction Materials'!A164 -> Freight - Diesel HGV (All Artics) 59% (UK Average)
AQ27: ='Construction Materials'!A165 -> Freight - Diesel HGV (All HGVs) 56% (UK Average)
AQ28: ='Construction Materials'!A182 -> Freight - Rail Diesel
C29: Bridge Element | E29: Design/Construction | AG29: Design / Construction | AQ29: ='Construction Materials'!A184 -> Freight - Shipping (Small Tanker)
B30: Design/Construction | E30: Type | F30: Material | G30: Material details | T30: Construction Material CO2 Emissions | W30: Plant and Equipment CO2 Emissions | AA30: Transport of plant and materials | AG30: CO2 Footprint | AQ30: ='Construction Materials'!A185 -> Freight - Shipping (Large Tanker)
C31: Foundations | AQ31: ='Construction Materials'!A192 -> Freight - Air (Domestic)
G32: Volume (m3) | H32: Concrete Grade | I32: Exposure class | J32: Min Grade for exposure class | K32: Min Cement for exposure class (kg/m3) | L32: Cement for concrete grade (kg/m3) | M32: Cement type (default OPC): | N32: Aggregate source % recycled (Default 0%) | O32: Concrete Density (tonnes/m3) | T32: Embodied tCO2/t concrete | V32: Total tCO2/t Concrete | W32: Plant / tools | X32: No. on site | Y32: No. of hours in use | Z32: tCO2/hr | AA32: Transport of plant and materials | AB32: No of deliveries (Concrete based on 6m3 per wagon, other materials on 20tonnes per truck, discrete materials default 2 deliveries) | AC32: Local or national supplier (Default local) | AD32: Distance (Default of 50km local, 250km national) | AE32: CO2/t per km | AG32: Embodied | AH32: Transport | AI32: Sum | AQ32: ='Construction Materials'!A193 -> Freight - Air (Short-haul International)
E33: Mass concrete | F33: Concrete | J33: =IF(I33="","",VLOOKUP($I33,'HIDDEN_Construction Materials'!$H$7:$K$24,3,FALSE)) ->  | K33: =IF(I33="","",VLOOKUP($I33,'HIDDEN_Construction Materials'!$H$7:$K$24,4,FALSE)) ->  | L33: =IF(H33="","",VLOOKUP($H33,'HIDDEN_Construction Materials'!$B$38:$F$45,2,FALSE)) ->  | M33: CEM I Portland Cement | N33: 0 | O33: =IF(H33=0,"",VLOOKUP(H33,'HIDDEN_Construction Materials'!$B$24:$F$45,5,FALSE)) ->  | T33: =IF(OR(G33="",K33="",L33="",N33=""),"",((MAX(K33,L33)/1000/O33*VLOOKUP(M33,'HIDDEN_Construction Materials'!$B$6:$F$34,5,FALSE))+(((VLOOKUP(N33,'HIDDEN_Construction Materials'!$H$28:$O$32,8,FALSE)/O33*VLOOKUP(N33,'HIDDEN_Construction Materials'!$H$28:$M$32,5,FALSE)))))) ->  | V33: =IF(OR(G33="",T33="",U33="",),"",T33) ->  | W33: Dumper - Articulated Dump Truck 10-20t | X33: =IF(OR(G33=0,G33=""),"",2) ->  | Y33: =IF(OR(G33=0,G33=""),"",Y25) ->  | Z33: =IF(OR(W33="",X33="",Y33=""),"",VLOOKUP(W33,'HIDDEN_Construction Materials'!$B$196:$E$221,3,FALSE)) ->  | AA33: Freight - Diesel (Average) Van/LCV [≤3.5t] | AB33: =IF(OR(G33="",AA33=""),"",G33/6) ->  | AC33: Local supplier | AD33: =IF(AC33="National supplier","250","50") -> 50 | AE33: =IF(AA33="","",VLOOKUP(AA33,'HIDDEN_Construction Materials'!$B$136:$E$194,3,FALSE)) -> 0.00027347 | AG33: =IF(OR(G33="",V33="",Z33=""),"",((G33*O33*V33)+(X33*Y33*Z33))) ->  | AH33: =IF(OR(AA33="",AB33="",AD33=""),"",(AB33*AD33*AE33)) ->  | AI33: =IF(OR(AG33=0,AG33="",AH33=0,AH33=""),"",SUM(AG33:AH33)) ->  | AQ33: ='Construction Materials'!A194 -> Freight - Air (Long-haul International)
M34: =(IF(OR(M33=$AQ$73,M33=$AQ$86,M33=$AQ$87,M33=$AQ$88,M33=$AQ$89,M33=$AQ$90,M33=$AQ$91,M33=$AQ$92,M33=$AQ$93,M33=$AQ$94,M33=$AQ$95,M33=$AQ$96,M33=$AQ$97),"DOUBLE COUNTING - see 'Information' worksheet","")) ->  | W34: Assumed one no. type of plant per construction of one selected material | AQ34: Supplier distance
G35: Volume (m3) | H35: Concrete Grade | I35: Exposure class | J35: Min Grade for exposure class | K35: Min Cement for exposure class (kg/m3) | L35: Cement for concrete grade (kg/m3) | M35: Cement type (default OPC): | N35: Aggregate source % recycled (Default 0%) | O35: Concrete Density (tonnes/m3) | P35: Steel Source (Default WSA): | Q35: Steel Density (tonnes/m3) | R35: Reinforcement % by steel volume | S35: Density of aggregate (t/m3 of concrete) | T35: Embodied tCO2/t cement | U35: Embodied tCO2/t aggregate | V35: Embodied tCO2/t steel | AQ35: Local supplier
E36: Spread footing | F36: Reinforced concrete | G36: =IF(OR(SUMMARY!$G$24="",SUMMARY!$G$24=0),"",(SUMMARY!$G$24*0.5)) ->  | H36: C32/40 | I36: XD2 | J36: =IF(I36="","",VLOOKUP($I36,'HIDDEN_Construction Materials'!$H$7:$K$24,3,FALSE)) -> C30/37 | K36: =IF(I36="","",VLOOKUP($I36,'HIDDEN_Construction Materials'!$H$7:$K$24,4,FALSE)) -> 300 | L36: =IF(H36="","",VLOOKUP($H36,'HIDDEN_Construction Materials'!$B$38:$F$45,2,FALSE)) -> 280 | M36: CEM I Portland Cement | N36: 0 | O36: =IF(H36=0,"",VLOOKUP(H36,'HIDDEN_Construction Materials'!$B$24:$F$45,5,FALSE)) -> 2.4 | P36: WSA - Bar & Rod | Q36: =IF(P36="","",(VLOOKUP(P36,'HIDDEN_Construction Materials'!$D$49:$J$58,7,FALSE))) -> 7.85 | R36: 2.5 | S36: =IF(OR(G36="",K36="",L36="",N36=""),"",(VLOOKUP(N36,'HIDDEN_Construction Materials'!$H$28:$O$32,8,FALSE))) ->  | T36: =IF(OR(G36="",K36="",L36="",N36=""),"",(VLOOKUP(M36,'HIDDEN_Construction Materials'!$B$6:$F$34,5,FALSE))) ->  | U36: =IF(OR(G36="",K36="",L36="",N36=""),"",(VLOOKUP(N36,'HIDDEN_Construction Materials'!$H$28:$M$32,5,FALSE))) ->  | V36: =IF(OR(G36="",P36="",Q36=""),"",(VLOOKUP(P36,'HIDDEN_Construction Materials'!$D$49:$J$58,4,FALSE))) ->  | W36: Dumper - Articulated Dump Truck 10-20t | X36: =IF(OR(G36=0,G36=""),"",1) ->  | Y36: =IF(OR(G36=0,G36=""),"",(Y25*0.4)) ->  | Z36: =IF(OR(W36="",X36="",Y36=""),"",VLOOKUP(W36,'HIDDEN_Construction Materials'!$B$196:$E$221,3,FALSE)) ->  | AA36: Freight - Diesel HGV (All Rigids) 53% (UK Average) | AB36: =IF(OR(G36="",AA36=""),"",G36/6) ->  | AC36: Local supplier | AD36: =IF(AC36="National supplier","250","50") -> 50 | AE36: =IF(AA36="","",VLOOKUP(AA36,'HIDDEN_Construction Materials'!$B$136:$E$194,3,FALSE)) -> 0.0008021 | AG36: =IF(OR(G36="",V36="",Z36=""),"",((MAX(K36,L36)/1000*G36*(1-(R36/100))*T36)+(S36*G36*(1-(R36/100))*U36)+(Q36*G36*(R36/100)*V36)+(X36*Y36*Z36))) ->  | AH36: =IF(OR(AA36="",AB36="",AD36=""),"",(AB36*AD36*AE36)) ->  | AI36: =IF(OR(AG36=0,AG36="",AH36=0,AH36=""),"",SUM(AG36:AH36)) ->  | AQ36: National supplier
M37: =(IF(OR(M36=$AQ$73,M36=$AQ$86,M36=$AQ$87,M36=$AQ$88,M36=$AQ$89,M36=$AQ$90,M36=$AQ$91,M36=$AQ$92,M36=$AQ$93,M36=$AQ$94,M36=$AQ$95,M36=$AQ$96,M36=$AQ$97),"DOUBLE COUNTING - see 'Information' worksheet","")) ->  | AQ37: Concrete strength class
F38: Formwork | G38: Area (m2) based on 49% concrete volume | H38: Type | J38: Reuse (state no. of times) BLANK if none | K38: Density (kg/m2*20mm timber, 8mm others) | L38: Tonnage (t) | T38: User value input tCO2/t formwork | U38: Embodied tCO2/t formwork | V38: Total tCO2/t Formwork | AQ38: C12/15
F39: Timber | G39: =IF($G$36="","",($G$36*0.49)) ->  | H39: Timber - General | K39: =IF(H39="","",VLOOKUP(H39,'HIDDEN_Construction Materials'!$D$67:$J$73,7,FALSE)) -> 25 | L39: =IF(OR(G39="",H39=""),"",(IF(J39="",((G39*K39)/1000),((G39*K39/(J39+1))/1000)))) ->  | U39: =IF(H39="","",VLOOKUP(H39,'HIDDEN_Construction Materials'!$D$67:$E$73,2,FALSE)) -> 0.00046 | V39: =IF(OR(G39="",H39=""),"",(IF(T39="",U39,T39))) ->  | W39: Telehandler - General | X39: =IF(OR(G39=0,G39=""),"",1) ->  | Y39: =IF(OR(G39=0,G39=""),"",($Y$36*0.2)) ->  | Z39: =IF(OR(W39="",X39="",Y39=""),"",VLOOKUP(W39,'HIDDEN_Construction Materials'!$B$196:$E$221,3,FALSE)) ->  | AA39: Cradle to site | AG39: =IF(OR(G39="",V39="",Z39=""),"",((L39*V39)+(X39*Y39*Z39))) ->  | AI39: =IF(AG39="","",AG39) ->  | AQ39: C20/25
F40: Other | K40: =IF(H40="","",VLOOKUP(H40,'HIDDEN_Construction Materials'!$D$72:$J$73,7,FALSE)) ->  | L40: =IF(OR(G40="",H40=""),"",(IF(J40="",((G40*K40)/1000),((G40*K40/(J40+1))/1000)))) ->  | U40: =IF(H40="","",VLOOKUP(H40,'HIDDEN_Construction Materials'!$D$72:$E$73,2,FALSE)) ->  | V40: =IF(OR(G40="",H40=""),"",(IF(T40="",U40,T40))) ->  | W40: Telehandler - General | X40: =IF(OR(G40=0,G40=""),"",1) ->  | Y40: =IF(OR(G40=0,G40=""),"",($Y$36*0.2)) ->  | Z40: =IF(OR(W40="",X40="",Y40=""),"",VLOOKUP(W40,'HIDDEN_Construction Materials'!$B$196:$E$221,3,FALSE)) ->  | AA40: Freight - Diesel (Average) Van/LCV [≤3.5t] | AB40: =IF(OR(G40="",AA40=""),"",MAX(2,ROUND(L40/20,2))) ->  | AC40: Local supplier | AD40: =IF(AC40="National supplier","250","50") -> 50 | AE40: =IF(AA40="","",VLOOKUP(AA40,'HIDDEN_Construction Materials'!$B$136:$E$194,3,FALSE)) -> 0.00027347 | AG40: =IF(OR(G40="",V40="",Z40=""),"",((L40*V40)+(X40*Y40*Z40))) ->  | AH40: =IF(OR(AA40="",AB40="",AD40=""),"",(AB40*AD40*AE40)) ->  | AI40: =IF(OR(AG40=0,AG40="",AH40=0,AH40=""),"",SUM(AG40:AH40)) ->  | AQ40: C25/30
AQ41: C30/37
E42: Piles | G42: Volume (m3) | H42: Concrete Grade | I42: Exposure class | J42: Min Grade for exposure class | K42: Min Cement for exposure class (kg/m3) | L42: Cement for concrete grade (kg/m3) | M42: Cement type (default OPC): | N42: Aggregate source % recycled (Default 0%) | O42: Concrete Density (tonnes/m3) | P42: Steel Source (Default WSA): | Q42: Steel Density (tonnes/m3) | R42: Reinforcement % by steel volume | S42: Density of aggregate (t/m3 of concrete) | T42: Embodied tCO2/t cement | U42: Embodied tCO2/t aggregate | V42: Embodied tCO2/t steel | AQ42: C32/40
E43: Bored | F43: Reinforced concrete | G43: =IF(OR(SUMMARY!$G$24="",SUMMARY!$G$24=0),"",(SUMMARY!$G$24*0.5)) ->  | H43: C32/40 | I43: XD2 | J43: =IF(I43="","",VLOOKUP($I43,'HIDDEN_Construction Materials'!$H$7:$K$24,3,FALSE)) -> C30/37 | K43: =IF(I43="","",VLOOKUP($I43,'HIDDEN_Construction Materials'!$H$7:$K$24,4,FALSE)) -> 300 | L43: =IF(H43="","",VLOOKUP($H43,'HIDDEN_Construction Materials'!$B$38:$F$45,2,FALSE)) -> 280 | M43: CEM I Portland Cement | N43: 0 | O43: =IF(H43=0,"",VLOOKUP(H43,'HIDDEN_Construction Materials'!$B$24:$F$45,5,FALSE)) -> 2.4 | P43: WSA - Bar & Rod | Q43: =IF(P43="","",(VLOOKUP(P43,'HIDDEN_Construction Materials'!$D$49:$J$58,7,FALSE))) -> 7.85 | R43: 2.5 | S43: =IF(OR(G43="",K43="",L43="",N43=""),"",(VLOOKUP(N43,'HIDDEN_Construction Materials'!$H$28:$O$32,8,FALSE))) ->  | T43: =IF(OR(G43="",K43="",L43="",N43=""),"",(VLOOKUP(M43,'HIDDEN_Construction Materials'!$B$6:$F$34,5,FALSE))) ->  | U43: =IF(OR(G43="",K43="",L43="",N43=""),"",(VLOOKUP(N43,'HIDDEN_Construction Materials'!$H$28:$M$32,5,FALSE))) ->  | V43: =IF(OR(G43="",P43="",Q43=""),"",(VLOOKUP(P43,'HIDDEN_Construction Materials'!$D$49:$J$58,4,FALSE))) ->  | W43: Piling rigg | X43: =IF(OR(G43=0,G43=""),"",1) ->  | Y43: =IF(OR(G43=0,G43=""),"",($Y$25*0.6)) ->  | Z43: =IF(OR(W43="",X43="",Y43=""),"",VLOOKUP(W43,'HIDDEN_Construction Materials'!$B$196:$E$221,3,FALSE)) ->  | AA43: Freight - Diesel HGV (All Rigids) 53% (UK Average) | AB43: =IF(OR(G43="",AA43=""),"",G43/6) ->  | AC43: Local supplier | AD43: =IF(AC43="National supplier","250","50") -> 50 | AE43: =IF(AA43="","",VLOOKUP(AA43,'HIDDEN_Construction Materials'!$B$136:$E$194,3,FALSE)) -> 0.0008021 | AG43: =IF(OR(G43="",V43="",Z43=""),"",((MAX(K43,L43)/1000*G43*(1-(R43/100))*T43)+(S43*G43*(1-(R43/100))*U43)+(Q43*G43*(R43/100)*V43)+(X43*Y43*Z43))) ->  | AH43: =IF(OR(AA43="",AB43="",AD43=""),"",(AB43*AD43*AE43)) ->  | AI43: =IF(OR(AG43=0,AG43="",AH43=0,AH43=""),"",SUM(AG43:AH43)) ->  | AQ43: C35/45
M44: =(IF(OR(M43=$AQ$73,M43=$AQ$86,M43=$AQ$87,M43=$AQ$88,M43=$AQ$89,M43=$AQ$90,M43=$AQ$91,M43=$AQ$92,M43=$AQ$93,M43=$AQ$94,M43=$AQ$95,M43=$AQ$96,M43=$AQ$97),"DOUBLE COUNTING - see 'Information' worksheet","")) ->  | AQ44: C40/50
E45: Driven | F45: Reinforced concrete | H45: C32/40 | I45: XD2 | J45: =IF(I45="","",VLOOKUP($I45,'HIDDEN_Construction Materials'!$H$7:$K$24,3,FALSE)) -> C30/37 | K45: =IF(I45="","",VLOOKUP($I45,'HIDDEN_Construction Materials'!$H$7:$K$24,4,FALSE)) -> 300 | L45: =IF(H45="","",VLOOKUP($H45,'HIDDEN_Construction Materials'!$B$38:$F$45,2,FALSE)) -> 280 | M45: CEM I Portland Cement | N45: 0 | O45: =IF(H45=0,"",VLOOKUP(H45,'HIDDEN_Construction Materials'!$B$24:$F$45,5,FALSE)) -> 2.4 | P45: WSA - Bar & Rod | Q45: =IF(P45="","",(VLOOKUP(P45,'HIDDEN_Construction Materials'!$D$49:$J$58,7,FALSE))) -> 7.85 | R45: 2.5 | S45: =IF(OR(G45="",K45="",L45="",N45=""),"",(VLOOKUP(N45,'HIDDEN_Construction Materials'!$H$28:$O$32,8,FALSE))) ->  | T45: =IF(OR(G45="",K45="",L45="",N45=""),"",(VLOOKUP(M45,'HIDDEN_Construction Materials'!$B$6:$F$34,5,FALSE))) ->  | U45: =IF(OR(G45="",K45="",L45="",N45=""),"",(VLOOKUP(N45,'HIDDEN_Construction Materials'!$H$28:$M$32,5,FALSE))) ->  | V45: =IF(OR(G45="",P45="",Q45=""),"",(VLOOKUP(P45,'HIDDEN_Construction Materials'!$D$49:$J$58,4,FALSE))) ->  | W45: Piling rigg | X45: =IF(OR(G45=0,G45=""),"",1) ->  | Y45: =IF(OR(G45=0,G45=""),"",($Y$25*0.6)) ->  | Z45: =IF(OR(W45="",X45="",Y45=""),"",VLOOKUP(W45,'HIDDEN_Construction Materials'!$B$196:$E$221,3,FALSE)) ->  | AA45: Freight - Diesel HGV (All Rigids) 53% (UK Average) | AB45: =IF(OR(G45="",AA45=""),"",G45/6) ->  | AC45: Local supplier | AD45: =IF(AC45="National supplier","250","50") -> 50 | AE45: =IF(AA45="","",VLOOKUP(AA45,'HIDDEN_Construction Materials'!$B$136:$E$194,3,FALSE)) -> 0.0008021 | AG45: =IF(OR(G45="",V45="",Z45=""),"",((MAX(K45,L45)/1000*G45*(1-(R45/100))*T45)+(S45*G45*(1-(R45/100))*U45)+(Q45*G45*(R45/100)*V45)+(X45*Y45*Z45))) ->  | AH45: =IF(OR(AA45="",AB45="",AD45=""),"",(AB45*AD45*AE45)) ->  | AI45: =IF(OR(AG45=0,AG45="",AH45=0,AH45=""),"",SUM(AG45:AH45)) ->  | AQ45: C50/60
M46: =(IF(OR(M45=$AQ$73,M45=$AQ$86,M45=$AQ$87,M45=$AQ$88,M45=$AQ$89,M45=$AQ$90,M45=$AQ$91,M45=$AQ$92,M45=$AQ$93,M45=$AQ$94,M45=$AQ$95,M45=$AQ$96,M45=$AQ$97),"DOUBLE COUNTING - see 'Information' worksheet","")) ->  | AQ46: Exposure class
G47: Tonnage (t) | H47: Steel source (Default WSA Section) | J47: Steel Fabrication CO2 Costs (Default 0.3tCO2/t) | L47: Density | V47: Total tCO2/t Steel | AQ47: ='Construction Materials'!H7 -> X0
F48: Steel | H48: WSA - Section | J48: 0.3 | L48: =IF(H48="","",VLOOKUP(H48,'HIDDEN_Construction Materials'!$D$49:$J$58,7,FALSE)) -> 7.85 | V48: =IF(AND($H$48="",$J$48=""),"",(VLOOKUP($H$48,'HIDDEN_Construction Materials'!$D$49:$J$60,4,FALSE))+(J48)) -> 1.062 | W48: Piling rigg | X48: =IF(OR(G48=0,G48=""),"",1) ->  | Y48: =IF(OR(G48=0,G48=""),"",($Y$25*0.6)) ->  | Z48: =IF(OR(W48="",X48="",Y48=""),"",VLOOKUP(W48,'HIDDEN_Construction Materials'!$B$196:$E$221,3,FALSE)) ->  | AA48: Freight - Diesel (Average) Van/LCV [≤3.5t] | AB48: =IF(OR(G48="",AA48=""),"",MAX(2,ROUND(G48/20,2))) ->  | AC48: Local supplier | AD48: =IF(AC48="National supplier","250","50") -> 50 | AE48: =IF(AA48="","",VLOOKUP(AA48,'HIDDEN_Construction Materials'!$B$136:$E$194,3,FALSE)) -> 0.00027347 | AG48: =IF(OR(G48="",V48="",Z48=""),"",((G48*V48)+(X48*Y48*Z48))) ->  | AH48: =IF(OR(AA48="",AB48="",AD48=""),"",(AB48*AD48*AE48)) ->  | AI48: =IF(OR(AG48=0,AG48="",AH48=0,AH48=""),"",SUM(AG48:AH48)) ->  | AQ48: ='Construction Materials'!H8 -> XC1
J49: The percent fabrication cost will be added to the CO2 cost for steel parts | AQ49: ='Construction Materials'!H9 -> XC2
AQ50: ='Construction Materials'!H10 -> XC3
G51: Tonnage (t) | H51: Steel source (Default WSA Plate) | J51: Steel Fabrication CO2 Costs (Default 0.3tCO2/t) | L51: Density | V51: Total tCO2/t Steel | AQ51: ='Construction Materials'!H11 -> XC4
E52: Sheet | F52: Steel | G52: =IF(SUMMARY!G26="","",SUMMARY!G26) ->  | H52: WSA - Plate | J52: 0.3 | L52: =IF(H52="","",VLOOKUP(H52,'HIDDEN_Construction Materials'!$D$49:$J$58,7,FALSE)) -> 7.85 | V52: =IF(AND($H$52="",$J$52=""),"",(VLOOKUP($H$52,'HIDDEN_Construction Materials'!$D$51:$J$60,4,FALSE))+(J52)) -> 1.219 | W52: Piling rigg | X52: =IF(OR(G52=0,G52=""),"",1) ->  | Y52: =IF(OR(G52=0,G52=""),"",($Y$25*0.6)) ->  | Z52: =IF(OR(W52="",X52="",Y52=""),"",VLOOKUP(W52,'HIDDEN_Construction Materials'!$B$196:$E$221,3,FALSE)) ->  | AA52: Freight - Diesel HGV (All Rigids) 53% (UK Average) | AB52: =IF(OR(G52="",AA52=""),"",MAX(2,ROUND(G52/20,2))) ->  | AC52: Local supplier | AD52: =IF(AC52="National supplier","250","50") -> 50 | AE52: =IF(AA52="","",VLOOKUP(AA52,'HIDDEN_Construction Materials'!$B$136:$E$194,3,FALSE)) -> 0.0008021 | AG52: =IF(OR(G52="",V52="",Z52=""),"",((G52*V52)+(X52*Y52*Z52))) ->  | AH52: =IF(OR(AA52="",AB52="",AD52=""),"",(AB52*AD52*AE52)) ->  | AI52: =IF(OR(AG52=0,AG52="",AH52=0,AH52=""),"",SUM(AG52:AH52)) ->  | AQ52: ='Construction Materials'!H12 -> XS1
J53: The percent fabrication cost will be added to the CO2 cost for steel parts | AQ53: ='Construction Materials'!H13 -> XS2
AQ54: ='Construction Materials'!H14 -> XS3
E55: Waste material | G55: Volume (m3) Default 5% of foundation volume | H55: Density (t/m3) | I55: Tonnage (t) | V55: Total tCO2/t Waste | AQ55: ='Construction Materials'!H15 -> XD1
F56: Inert waste | G56: =IF(OR(AND(SUMMARY!$G$24=0,SUMMARY!$G$26=0),(AND(SUMMARY!$G$24="",SUMMARY!$G$26=""))),"",(SUM(SUMMARY!$G$24:$G$26)*0.05)) ->  | H56: =IF(G56="","",'HIDDEN_Construction Materials'!$H$106) ->  | I56: =IF(G56="","",(G56*H56)) ->  | J56: ='Construction Materials'!B107 -> Waste Disposal Includes for transport, sorting , EfW, landfill impacts etc | V56: =IF(G56="","",'HIDDEN_Construction Materials'!$E$106) ->  | W56: Excavator - Small 6 - 10 tonnes | X56: =IF(OR(G56=0,G56=""),"",1) ->  | Y56: =IF(OR(G56=0,G56=""),"",(Y25*0.1)) ->  | Z56: =IF(OR(W56="",X56="",Y56=""),"",VLOOKUP(W56,'HIDDEN_Construction Materials'!$B$196:$E$221,3,FALSE)) ->  | AA56: =J56 -> Waste Disposal Includes for transport, sorting , EfW, landfill impacts etc | AG56: =IF(OR(G56="",V56="",Z56=""),"",((V56*I56)+(X56*Y56*Z56))) ->  | AI56: =IF(AG56="","",AG56) ->  | AQ56: ='Construction Materials'!H16 -> XD2
F57: Note: cannot be used as aggregate | AH57: SUM | AI57: =IF(AND(AI33="",AI36="",AI39="",AI40="",AI43="",AI45="",AI48="",AI52=""),"",SUM(AI33:AI56)) ->  | AQ57: ='Construction Materials'!H17 -> XD3
AQ58: ='Construction Materials'!H18 -> XF1
C59: Bridge Element | AQ59: ='Construction Materials'!H19 -> XF2
E60: Type | F60: Material | G60: Material details | T60: Construction Material CO2 Emissions | W60: Plant & equipment | AA60: Transport of Materials | AG60: CO2 Footprint | AQ60: ='Construction Materials'!H20 -> XF3
C61: Sub-structure | AQ61: ='Construction Materials'!H21 -> XF4
G62: Volume (m3) | H62: Concrete Grade | I62: Exposure class | J62: Min Grade for exposure class | K62: Min Cement for exposure class (kg/m3) | L62: Cement for concrete grade (kg/m3) | M62: Cement type (default OPC): | N62: Aggregate source % recycled (Default 0%) | O62: Concrete Density (tonnes/m3) | P62: Steel Source (Default WSA): | Q62: Steel Density (tonnes/m3) | R62: Reinforcement % by steel volume | S62: Density of aggregate (t/m3 of concrete) | T62: Embodied tCO2/t cement | U62: Embodied tCO2/t aggregate | V62: Embodied tCO2/t steel | W62: Plant / tools | X62: No. on site | Y62: No. of hours in use | Z62: tCO2/hr | AA62: Transport of Materials | AB62: No of deliveries (Concrete based on 6m3 per wagon, other materials on 20tonnes per truck, discrete materials default 2 deliveries) | AC62: Local or national supplier | AD62: Distance (50km local, 250km national) | AE62: CO2/t per km | AG62: Embodied | AH62: Transport | AI62: Sum | AQ62: ='Construction Materials'!H22 -> XA1
E63: Abutments | F63: Reinforced concrete | G63: =IF(SUMMARY!$G$29="","",((0.0043*(G13^2))-(0.0794*G13)+0.5282)*SUMMARY!G29) ->  | H63: C40/50 | I63: XD3 | J63: =IF(I63="","",VLOOKUP($I63,'HIDDEN_Construction Materials'!$H$7:$K$24,3,FALSE)) -> C35/45 | K63: =IF(I63="","",VLOOKUP($I63,'HIDDEN_Construction Materials'!$H$7:$K$24,4,FALSE)) -> 320 | L63: =IF(H63="","",VLOOKUP($H63,'HIDDEN_Construction Materials'!$B$38:$F$45,2,FALSE)) -> 380 | M63: CEM I Portland Cement | N63: 0 | O63: =IF(H63=0,"",VLOOKUP(H63,'HIDDEN_Construction Materials'!$B$24:$F$45,5,FALSE)) -> 2.4 | P63: WSA - Bar & Rod | Q63: =IF(P63="","",(VLOOKUP(P63,'HIDDEN_Construction Materials'!$D$49:$J$58,7,FALSE))) -> 7.85 | R63: 2.5 | S63: =IF(OR(G63="",K63="",L63="",N63=""),"",(VLOOKUP(N63,'HIDDEN_Construction Materials'!$H$28:$O$32,8,FALSE))) ->  | T63: =IF(OR(G63="",K63="",L63="",N63=""),"",(VLOOKUP(M63,'HIDDEN_Construction Materials'!$B$6:$F$34,5,FALSE))) ->  | U63: =IF(OR(G63="",K63="",L63="",N63=""),"",(VLOOKUP(N63,'HIDDEN_Construction Materials'!$H$28:$M$32,5,FALSE))) ->  | V63: =IF(OR(G63="",P63="",Q63=""),"",(VLOOKUP(P63,'HIDDEN_Construction Materials'!$D$49:$J$58,4,FALSE))) ->  | W63: Dumper - Articulated Dump Truck 10-20t | X63: =IF(OR(G63=0,G63=""),"",1) ->  | Y63: =IF(OR(G63=0,G63=""),"",($Y$26*0.3)) ->  | Z63: =IF(OR(W63="",X63="",Y63=""),"",VLOOKUP(W63,'HIDDEN_Construction Materials'!$B$196:$E$221,3,FALSE)) ->  | AA63: Freight - Diesel HGV (All Rigids) 53% (UK Average) | AB63: =IF(OR(G63="",AA63=""),"",G63/6) ->  | AC63: Local supplier | AD63: =IF(AC63="National supplier","250","50") -> 50 | AE63: =IF(AA63="","",VLOOKUP(AA63,'HIDDEN_Construction Materials'!$B$136:$E$194,3,FALSE)) -> 0.0008021 | AG63: =IF(OR(G63="",V63="",Z63=""),"",((MAX(K63,L63)/1000*G63*(1-(R63/100))*T63)+(S63*G63*(1-(R63/100))*U63)+(Q63*G63*(R63/100)*V63)+(X63*Y63*Z63))) ->  | AH63: =IF(OR(AA63="",AB63="",AD63=""),"",(AB63*AD63*AE63)) ->  | AI63: =IF(OR(AG63=0,AG63="",AH63=0,AH63=""),"",SUM(AG63:AH63)) ->  | AQ63: ='Construction Materials'!H23 -> XA2
M64: =(IF(OR(M63=$AQ$73,M63=$AQ$86,M63=$AQ$87,M63=$AQ$88,M63=$AQ$89,M63=$AQ$90,M63=$AQ$91,M63=$AQ$92,M63=$AQ$93,M63=$AQ$94,M63=$AQ$95,M63=$AQ$96,M63=$AQ$97),"DOUBLE COUNTING - see 'Information' worksheet","")) ->  | AQ64: ='Construction Materials'!H24 -> XA3
F65: Formwork | G65: Area (m2) based on 210% abutment volume | H65: Type | J65: Reuse (state no. of times) BLANK if none | K65: Density (kg/m2*20mm timber, 8mm others) | L65: Tonnage (t) | T65: User value input tCO2/t formwork | U65: Embodied tCO2/t formwork | V65: Total tCO2/t Formwork | AQ65: Recycled aggregate
F66: Timber | G66: =IF($G$63="","",($G$63*2.1)) ->  | H66: Timber - General | K66: =IF(H66="","",VLOOKUP(H66,'HIDDEN_Construction Materials'!$D$67:$J$73,7,FALSE)) -> 25 | L66: =IF(OR(G66="",H66=""),"",(IF(J66="",((G66*K66)/1000),((G66*K66/(J66+1))/1000)))) ->  | U66: =IF(H66="","",VLOOKUP(H66,'HIDDEN_Construction Materials'!$D$67:$E$73,2,FALSE)) -> 0.00046 | V66: =IF(OR(G66="",H66=""),"",(IF(T66="",U66,T66))) ->  | W66: Telehandler - General | X66: =IF(OR(G66=0,G66=""),"",1) ->  | Y66: =IF(OR(G66=0,G66=""),"",($Y$63*0.2)) ->  | Z66: =IF(OR(W66="",X66="",Y66=""),"",VLOOKUP(W66,'HIDDEN_Construction Materials'!$B$196:$E$221,3,FALSE)) ->  | AA66: Cradle to site | AG66: =IF(OR(G66="",V66="",Z66=""),"",((L66*V66)+(X66*Y66*Z66))) ->  | AI66: =IF(AG66="","",AG66) ->  | AQ66: ='Construction Materials'!H28 -> 0
F67: Other | K67: =IF(H67="","",VLOOKUP(H67,'HIDDEN_Construction Materials'!$D$72:$J$73,7,FALSE)) ->  | L67: =IF(OR(G67="",H67=""),"",(IF(J67="",((G67*K67)/1000),((G67*K67/(J67+1))/1000)))) ->  | U67: =IF(H67="","",VLOOKUP(H67,'HIDDEN_Construction Materials'!$D$72:$E$73,2,FALSE)) ->  | V67: =IF(OR(G67="",H67=""),"",(IF(T67="",U67,T67))) ->  | W67: Telehandler - General | X67: =IF(OR(G67=0,G67=""),"",1) ->  | Y67: =IF(OR(G67=0,G67=""),"",($Y$63*0.2)) ->  | Z67: =IF(OR(W67="",X67="",Y67=""),"",VLOOKUP(W67,'HIDDEN_Construction Materials'!$B$196:$E$221,3,FALSE)) ->  | AA67: Freight - Diesel (Average) Van/LCV [≤3.5t] | AB67: =IF(OR(G67="",AA67=""),"",MAX(2,ROUND(L67/20,2))) ->  | AC67: Local supplier | AD67: =IF(AC67="National supplier","250","50") -> 50 | AE67: =IF(AA67="","",VLOOKUP(AA67,'HIDDEN_Construction Materials'!$B$136:$E$194,3,FALSE)) -> 0.00027347 | AG67: =IF(OR(G67="",V67="",Z67=""),"",((L67*V67)+(X67*Y67*Z67))) ->  | AH67: =IF(OR(AA67="",AB67="",AD67=""),"",(AB67*AD67*AE67)) ->  | AI67: =IF(OR(AG67=0,AG67="",AH67=0,AH67=""),"",SUM(AG67:AH67)) ->  | AQ67: ='Construction Materials'!H29 -> 0.25
AQ68: ='Construction Materials'!H30 -> 0.5
G69: Volume (m3) | H69: Soil Type | J69: Density (t/m3) | K69: Tonnage (t) | U69: Embodied tCO2/t Fill material | V69: Total tCO2/t Backfill | AQ69: ='Construction Materials'!H31 -> 0.75
F70: Backfill | G70: =IF($G$63="","",(H13^2)*F14) ->  | H70: Stone: Gravel /Chippings | J70: =IF(H70="","",VLOOKUP(H70,'HIDDEN_Construction Materials'!$B$78:$H$81,7,FALSE)) -> 2 | K70: =IF(OR(G70="",H70=""),"",(G70*J70)) ->  | U70: =IF(H70="","",VLOOKUP(H70,'HIDDEN_Construction Materials'!$B$78:$H$81,4,FALSE)) -> 0.017 | V70: =U70 -> 0.017 | W70: Dumper - Articulated Dump Truck 10-20t | X70: =IF(OR(G70=0,G70=""),"",1) ->  | Y70: =IF(OR(G70=0,G70=""),"",($Y$63*0.1)) ->  | Z70: =IF(OR(W70="",X70="",Y70=""),"",VLOOKUP(W70,'HIDDEN_Construction Materials'!$B$196:$E$221,3,FALSE)) ->  | AA70: Cradle to site | AG70: =IF(OR(G70="",V70="",Z70=""),"",((K70*V70)+(X70*Y70*Z70))) ->  | AI70: =IF(AG70="","",AG70) ->  | AQ70: ='Construction Materials'!H32 -> 1
AQ71: Cement
G72: Volume (m3) | H72: Concrete Grade | I72: Exposure class | J72: Min Grade for exposure class | K72: Min Cement for exposure class (kg/m3) | L72: Cement for concrete grade (kg/m3) | M72: Cement type (default OPC): | N72: Aggregate source % recycled (Default 0%) | O72: Concrete Density (tonnes/m3) | P72: Steel Source (Default WSA): | Q72: Steel Density (tonnes/m3) | R72: Reinforcement % by steel volume | S72: Density of aggregate (t/m3 of concrete) | T72: Embodied tCO2/t cement | U72: Embodied tCO2/t aggregate | V72: Embodied tCO2/t steel | AQ72: ='Construction Materials'!B6 -> CEM I Portland Cement
E73: Piers | F73: Reinforced concrete | G73: =IF(SUMMARY!$G$29="","",((-0.0084*(G13^2))+(0.1601*G13)-0.1178)*SUMMARY!G29) ->  | H73: C40/50 | I73: XD3 | J73: =IF(I73="","",VLOOKUP($I73,'HIDDEN_Construction Materials'!$H$7:$K$24,3,FALSE)) -> C35/45 | K73: =IF(I73="","",VLOOKUP($I73,'HIDDEN_Construction Materials'!$H$7:$K$24,4,FALSE)) -> 320 | L73: =IF(H73="","",VLOOKUP($H73,'HIDDEN_Construction Materials'!$B$38:$F$45,2,FALSE)) -> 380 | M73: CEM I Portland Cement | N73: 0 | O73: =IF(H73=0,"",VLOOKUP(H73,'HIDDEN_Construction Materials'!$B$24:$F$45,5,FALSE)) -> 2.4 | P73: WSA - Bar & Rod | Q73: =IF(P73="","",(VLOOKUP(P73,'HIDDEN_Construction Materials'!$D$49:$J$58,7,FALSE))) -> 7.85 | R73: 2.5 | S73: =IF(OR(G73="",K73="",L73="",N73=""),"",(VLOOKUP(N73,'HIDDEN_Construction Materials'!$H$28:$O$32,8,FALSE))) ->  | T73: =IF(OR(G73="",K73="",L73="",N73=""),"",(VLOOKUP(M73,'HIDDEN_Construction Materials'!$B$6:$F$34,5,FALSE))) ->  | U73: =IF(OR(G73="",K73="",L73="",N73=""),"",(VLOOKUP(N73,'HIDDEN_Construction Materials'!$H$28:$M$32,5,FALSE))) ->  | V73: =IF(OR(G73="",P73="",Q73=""),"",(VLOOKUP(P73,'HIDDEN_Construction Materials'!$D$49:$J$58,4,FALSE))) ->  | W73: Dumper - Articulated Dump Truck 10-20t | X73: =IF(OR(G73=0,G73=""),"",1) ->  | Y73: =IF(OR(G73=0,G73=""),"",($Y$26*0.3)) ->  | Z73: =IF(OR(W73="",X73="",Y73=""),"",VLOOKUP(W73,'HIDDEN_Construction Materials'!$B$196:$E$221,3,FALSE)) ->  | AA73: Freight - Diesel HGV (All Rigids) 53% (UK Average) | AB73: =IF(OR(G73="",AA73=""),"",G73/6) ->  | AC73: Local supplier | AD73: =IF(AC73="National supplier","250","50") -> 50 | AE73: =IF(AA73="","",VLOOKUP(AA73,'HIDDEN_Construction Materials'!$B$136:$E$194,3,FALSE)) -> 0.0008021 | AG73: =IF(OR(G73="",V73="",Z73=""),"",((MAX(K73,L73)/1000*G73*(1-(R73/100))*T73)+(S73*G73*(1-(R73/100))*U73)+(Q73*G73*(R73/100)*V73)+(X73*Y73*Z73))) ->  | AH73: =IF(OR(AA73="",AB73="",AD73=""),"",(AB73*AD73*AE73)) ->  | AI73: =IF(OR(AG73=0,AG73="",AH73=0,AH73=""),"",SUM(AG73:AH73)) ->  | AQ73: ='Construction Materials'!B7 -> Ground Granulated Blastfurnace Slag (GGBS)
M74: =(IF(OR(M73=$AQ$73,M73=$AQ$86,M73=$AQ$87,M73=$AQ$88,M73=$AQ$89,M73=$AQ$90,M73=$AQ$91,M73=$AQ$92,M73=$AQ$93,M73=$AQ$94,M73=$AQ$95,M73=$AQ$96,M73=$AQ$97),"DOUBLE COUNTING - see 'Information' worksheet","")) ->  | AQ74: ='Construction Materials'!B8 -> Fly Ash
F75: Formwork | G75: Area (m2) based on 210% concrete volume | H75: Type | J75: Reuse (state no. of times) BLANK if none | K75: Density (kg/m2*20mm timber, 8mm others) | L75: Tonnage (t) | T75: User value input tCO2/t formwork | U75: Embodied tCO2/t formwork | V75: Total tCO2/t Formwork | AQ75: ='Construction Materials'!B9 -> Limestone
F76: Timber | G76: =IF($G$73="","",($G$73*2.1)) ->  | H76: Timber - General | K76: =IF(H76="","",VLOOKUP(H76,'HIDDEN_Construction Materials'!$D$67:$J$73,7,FALSE)) -> 25 | L76: =IF(OR(G76="",H76=""),"",(IF(J76="",((G76*K76)/1000),((G76*K76/(J76+1))/1000)))) ->  | U76: =IF(H76="","",VLOOKUP(H76,'HIDDEN_Construction Materials'!$D$67:$E$73,2,FALSE)) -> 0.00046 | V76: =IF(OR(G76="",H76=""),"",(IF(T76="",U76,T76))) ->  | W76: Telehandler - General | X76: =IF(OR(G76=0,G76=""),"",1) ->  | Y76: =IF(OR(G76=0,G76=""),"",($Y$73*0.2)) ->  | Z76: =IF(OR(W76="",X76="",Y76=""),"",VLOOKUP(W76,'HIDDEN_Construction Materials'!$B$196:$E$221,3,FALSE)) ->  | AA76: Cradle to site | AG76: =IF(OR(G76="",V76="",Z76=""),"",((L76*V76)+(X76*Y76*Z76))) ->  | AI76: =IF(AG76="","",AG76) ->  | AQ76: ='Construction Materials'!B10 -> Cement: Unknown Type
F77: Other | K77: =IF(H77="","",VLOOKUP(H77,'HIDDEN_Construction Materials'!$D$72:$J$73,7,FALSE)) ->  | L77: =IF(OR(G77="",H77=""),"",(IF(J77="",((G77*K77)/1000),((G77*K77/(J77+1))/1000)))) ->  | U77: =IF(H77="","",VLOOKUP(H77,'HIDDEN_Construction Materials'!$D$72:$E$73,2,FALSE)) ->  | V77: =IF(OR(G77="",H77=""),"",(IF(T77="",U77,T77))) ->  | W77: Telehandler - General | X77: =IF(OR(G77=0,G77=""),"",1) ->  | Y77: =IF(OR(G77=0,G77=""),"",($Y$73*0.2)) ->  | Z77: =IF(OR(W77="",X77="",Y77=""),"",VLOOKUP(W77,'HIDDEN_Construction Materials'!$B$196:$E$221,3,FALSE)) ->  | AA77: Freight - Diesel (Average) Van/LCV [≤3.5t] | AB77: =IF(OR(G77="",AA77=""),"",MAX(2,ROUND(L77/20,2))) ->  | AC77: Local supplier | AD77: =IF(AC77="National supplier","250","50") -> 50 | AE77: =IF(AA77="","",VLOOKUP(AA77,'HIDDEN_Construction Materials'!$B$136:$E$194,3,FALSE)) -> 0.00027347 | AG77: =IF(OR(G77="",V77="",Z77=""),"",((L77*V77)+(X77*Y77*Z77))) ->  | AH77: =IF(OR(AA77="",AB77="",AD77=""),"",(AB77*AD77*AE77)) ->  | AI77: =IF(OR(AG77=0,AG77="",AH77=0,AH77=""),"",SUM(AG77:AH77)) ->  | AQ77: ='Construction Materials'!B11 -> Portland Limestone Cement, CEM II/A-LL or L (20% limestone)
AQ78: ='Construction Materials'!B12 -> Portland Limestone Cement, CEM II/A-LL or L (13% limestone)
G79: Volume (m3) | H79: Concrete Grade | I79: Exposure class | J79: Min Grade for exposure class | K79: Min Cement for exposure class (kg/m3) | L79: Cement for concrete grade (kg/m3) | M79: Cement type (default OPC): | N79: Aggregate source % recycled (Default 0%) | O79: Concrete Density (tonnes/m3) | P79: Steel Source (Default WSA): | Q79: Steel Density (tonnes/m3) | R79: Reinforcement % by steel volume | S79: Density of aggregate (t/m3 of concrete) | T79: Embodied tCO2/t cement | U79: Embodied tCO2/t aggregate | V79: Embodied tCO2/t steel | AQ79: ='Construction Materials'!B13 -> Portland Limestone Cement, CEM II/A-LL or L (6% limestone)
E80: Wingwalls | F80: Reinforced concrete | G80: =IF(SUMMARY!$G$29="","",((0.0041*(G13^2))-(0.0807*G13)+0.5896)*SUMMARY!G29) ->  | H80: C40/50 | I80: XD3 | J80: =IF(I80="","",VLOOKUP($I80,'HIDDEN_Construction Materials'!$H$7:$K$24,3,FALSE)) -> C35/45 | K80: =IF(I80="","",VLOOKUP($I80,'HIDDEN_Construction Materials'!$H$7:$K$24,4,FALSE)) -> 320 | L80: =IF(H80="","",VLOOKUP($H80,'HIDDEN_Construction Materials'!$B$38:$F$45,2,FALSE)) -> 380 | M80: CEM I Portland Cement | N80: 0 | O80: =IF(H80=0,"",VLOOKUP(H80,'HIDDEN_Construction Materials'!$B$24:$F$45,5,FALSE)) -> 2.4 | P80: WSA - Bar & Rod | Q80: =IF(P80="","",(VLOOKUP(P80,'HIDDEN_Construction Materials'!$D$49:$J$58,7,FALSE))) -> 7.85 | R80: 2.5 | S80: =IF(OR(G80="",K80="",L80="",N80=""),"",(VLOOKUP(N80,'HIDDEN_Construction Materials'!$H$28:$O$32,8,FALSE))) ->  | T80: =IF(OR(G80="",K80="",L80="",N80=""),"",(VLOOKUP(M80,'HIDDEN_Construction Materials'!$B$6:$F$34,5,FALSE))) ->  | U80: =IF(OR(G80="",K80="",L80="",N80=""),"",(VLOOKUP(N80,'HIDDEN_Construction Materials'!$H$28:$M$32,5,FALSE))) ->  | V80: =IF(OR(G80="",P80="",Q80=""),"",(VLOOKUP(P80,'HIDDEN_Construction Materials'!$D$49:$J$58,4,FALSE))) ->  | W80: Dumper - Articulated Dump Truck 10-20t | X80: =IF(OR(G80=0,G80=""),"",1) ->  | Y80: =IF(OR(G80=0,G80=""),"",($Y$26*0.3)) ->  | Z80: =IF(OR(W80="",X80="",Y80=""),"",VLOOKUP(W80,'HIDDEN_Construction Materials'!$B$196:$E$221,3,FALSE)) ->  | AA80: Freight - Diesel HGV (All Rigids) 53% (UK Average) | AB80: =IF(OR(G80="",AA80=""),"",G80/6) ->  | AC80: Local supplier | AD80: =IF(AC80="National supplier","250","50") -> 50 | AE80: =IF(AA80="","",VLOOKUP(AA80,'HIDDEN_Construction Materials'!$B$136:$E$194,3,FALSE)) -> 0.0008021 | AG80: =IF(OR(G80="",V80="",Z80=""),"",((MAX(K80,L80)/1000*G80*(1-(R80/100))*T80)+(S80*G80*(1-(R80/100))*U80)+(Q80*G80*(R80/100)*V80)+(X80*Y80*Z80))) ->  | AH80: =IF(OR(AA80="",AB80="",AD80=""),"",(AB80*AD80*AE80)) ->  | AI80: =IF(OR(AG80=0,AG80="",AH80=0,AH80=""),"",SUM(AG80:AH80)) ->  | AQ80: ='Construction Materials'!B14 -> Portland Fly Ash Cement, CEM II/A-V (20% Fly Ash)
M81: =(IF(OR(M80=$AQ$73,M80=$AQ$86,M80=$AQ$87,M80=$AQ$88,M80=$AQ$89,M80=$AQ$90,M80=$AQ$91,M80=$AQ$92,M80=$AQ$93,M80=$AQ$94,M80=$AQ$95,M80=$AQ$96,M80=$AQ$97),"DOUBLE COUNTING - see 'Information' worksheet","")) ->  | AQ81: ='Construction Materials'!B15 -> Portland Fly Ash Cement, CEM II/A-V (13% Fly Ash)
F82: Formwork | G82: Area (m2) based on 210% concrete volume | H82: Type | J82: Reuse (state no. of times) BLANK if none | K82: Density (kg/m2*20mm timber, 8mm others) | L82: Tonnage (t) | T82: User value input tCO2/t formwork | U82: Embodied tCO2/t formwork | V82: Total tCO2/t Formwork | AQ82: ='Construction Materials'!B16 -> Portland Fly Ash Cement, CEM II/A-V (6% Fly Ash)
F83: Timber | G83: =IF($G$80="","",($G$80*2.1)) ->  | H83: Timber - General | K83: =IF(H83="","",VLOOKUP(H83,'HIDDEN_Construction Materials'!$D$67:$J$73,7,FALSE)) -> 25 | L83: =IF(OR(G83="",H83=""),"",(IF(J83="",((G83*K83)/1000),((G83*K83/(J83+1))/1000)))) ->  | U83: =IF(H83="","",VLOOKUP(H83,'HIDDEN_Construction Materials'!$D$67:$E$73,2,FALSE)) -> 0.00046 | V83: =IF(OR(G83="",H83=""),"",(IF(T83="",U83,T83))) ->  | W83: Telehandler - General | X83: =IF(OR(G83=0,G83=""),"",1) ->  | Y83: =IF(OR(G83=0,G83=""),"",($Y$80*0.2)) ->  | Z83: =IF(OR(W83="",X83="",Y83=""),"",VLOOKUP(W83,'HIDDEN_Construction Materials'!$B$196:$E$221,3,FALSE)) ->  | AA83: Cradle to site | AG83: =IF(OR(G83="",V83="",Z83=""),"",((L83*V83)+(X83*Y83*Z83))) ->  | AI83: =IF(AG83="","",AG83) ->  | AQ83: ='Construction Materials'!B17 -> Portland Fly Ash Cement, CEM II/B-V (35% Fly Ash)
F84: Other | K84: =IF(H84="","",VLOOKUP(H84,'HIDDEN_Construction Materials'!$D$72:$J$73,7,FALSE)) ->  | L84: =IF(OR(G84="",H84=""),"",(IF(J84="",((G84*K84)/1000),((G84*K84/(J84+1))/1000)))) ->  | U84: =IF(H84="","",VLOOKUP(H84,'HIDDEN_Construction Materials'!$D$72:$E$73,2,FALSE)) ->  | V84: =IF(OR(G84="",H84=""),"",(IF(T84="",U84,T84))) ->  | W84: Telehandler - General | X84: =IF(OR(G84=0,G84=""),"",1) ->  | Y84: =IF(OR(G84=0,G84=""),"",($Y$80*0.2)) ->  | Z84: =IF(OR(W84="",X84="",Y84=""),"",VLOOKUP(W84,'HIDDEN_Construction Materials'!$B$196:$E$221,3,FALSE)) ->  | AA84: Freight - Diesel (Average) Van/LCV [≤3.5t] | AB84: =IF(OR(G84="",AA84=""),"",MAX(2,ROUND(L84/20,2))) ->  | AC84: Local supplier | AD84: =IF(AC84="National supplier","250","50") -> 50 | AE84: =IF(AA84="","",VLOOKUP(AA84,'HIDDEN_Construction Materials'!$B$136:$E$194,3,FALSE)) -> 0.00027347 | AG84: =IF(OR(G84="",V84="",Z84=""),"",((L84*V84)+(X84*Y84*Z84))) ->  | AH84: =IF(OR(AA84="",AB84="",AD84=""),"",(AB84*AD84*AE84)) ->  | AI84: =IF(OR(AG84=0,AG84="",AH84=0,AH84=""),"",SUM(AG84:AH84)) ->  | AQ84: ='Construction Materials'!B18 -> Portland Fly Ash Cement, CEM II/B-V (28% Fly Ash)
AQ85: ='Construction Materials'!B19 -> Portland Fly Ash Cement, CEM II/B-V (21% Fly Ash)
G86: Volume (m3) | H86: Soil Type | J86: Density (t/m3) | K86: Tonnage (t) | U86: Embodied tCO2/t Fill material | V86: Total tCO2/t Backfill | AQ86: ='Construction Materials'!B20 -> Portland Slag Cement, CEM II/B-S (35% GGBS)
F87: Backfill | G87: =IF($G$80="","",2*(H14^3)) ->  | H87: Stone: Gravel /Chippings | J87: =IF(H87="","",VLOOKUP(H87,'HIDDEN_Construction Materials'!$B$78:$H$81,7,FALSE)) -> 2 | K87: =IF(OR(G87="",H87=""),"",G87*J87) ->  | U87: =IF(H87="","",VLOOKUP(H87,'HIDDEN_Construction Materials'!$B$78:$H$81,4,FALSE)) -> 0.017 | V87: =U87 -> 0.017 | W87: Dumper - Articulated Dump Truck 10-20t | X87: =IF(OR(G87=0,G87=""),"",1) ->  | Y87: =IF(OR(G87=0,G87=""),"",($Y$80*0.1)) ->  | Z87: =IF(OR(W87="",X87="",Y87=""),"",VLOOKUP(W87,'HIDDEN_Construction Materials'!$B$196:$E$221,3,FALSE)) ->  | AA87: Cradle to site | AG87: =IF(OR(G87="",V87="",Z87=""),"",((K87*V87)+(X87*Y87*Z87))) ->  | AI87: =IF(AG87="","",AG87) ->  | AQ87: ='Construction Materials'!B21 -> Portland Slag Cement, CEM II/B-S (28% GGBS)
AQ88: ='Construction Materials'!B22 -> Portland Slag Cement, CEM II/B-S (21% GGBS)
E89: Waste material | G89: Volume (m3) Default 5% of substructure volume | H89: Density (t/m3) | I89: Tonnage (t) | V89: Total tCO2/t Waste | AQ89: ='Construction Materials'!B23 -> Blastfurnace Cement, CEM III/A (65% GGBS)
F90: Inert waste | G90: =IF(OR(G63="",G73="",G80=""),"",((SUM(G63,G73,G80,G66,G67,G70,G76,G77,G83,G84,G87))*0.05)) ->  | H90: =IF(G90="","",'HIDDEN_Construction Materials'!$H$106) ->  | I90: =IF(G90="","",(G90*H90)) ->  | J90: ='Construction Materials'!$B$107 -> Waste Disposal Includes for transport, sorting , EfW, landfill impacts etc | V90: =IF(G90="","",'HIDDEN_Construction Materials'!$E$106) ->  | W90: Excavator - Small 6 - 10 tonnes | X90: =IF(OR(G90=0,G90=""),"",1) ->  | Y90: =IF(OR(G90=0,G90=""),"",($Y$26*0.1)) ->  | Z90: =IF(OR(W90="",X90="",Y90=""),"",VLOOKUP(W90,'HIDDEN_Construction Materials'!$B$196:$E$221,3,FALSE)) ->  | AA90: =J90 -> Waste Disposal Includes for transport, sorting , EfW, landfill impacts etc | AG90: =IF(OR(G90="",V90="",Z90=""),"",((I90*V90)+(X90*Y90*Z90))) ->  | AI90: =IF(AG90="","",AG90) ->  | AQ90: ='Construction Materials'!B24 -> Blastfurnace Cement, CEM III/A (50.5% GGBS)
F91: Note: cannot be used as aggregate | AH91: SUM | AI91: =IF(AND(AI63="",AI66="",AI67="",AI70="",AI73="",AI76="",AI77="",AI80="",AI83="",AI84="",AI87="",AI90=""),"",SUM(AI63:AI90)) ->  | AQ91: ='Construction Materials'!B25 -> Blastfurnace Cement, CEM III/A (36% GGBS)
C92: Bridge Element | AQ92: ='Construction Materials'!B26 -> Blastfurnace Cement, CEM III/B (80% GGBS)
E93: Type | F93: Material | H93: Material details | W93: Plant & equipment | AA93: Transport of Materials | AG93: CO2 Footprint | AQ93: ='Construction Materials'!B27 -> Blastfurnace Cement, CEM III/B (73% GGBS)
C94: Super-structure | AQ94: ='Construction Materials'!B28 -> Blastfurnace Cement, CEM III/B (66% GGBS)
E95: Articulation | G95: Number | H95: Volume per bearing (m3) (Default 0.01% of deck area) | J95: Density (t/m3) | K95: Painted area (m2) (default 0.1% of deck area) | L95: Tonnage per bearing (t) | T95: Embodied tCO2 per bearing | U95: Embodied tCO2/m2 Paint Double Coat per bearing | V95: Total tCO2 per Bearing | W95: Plant / tools | X95: No. on site | Y95: No. of hours in use | Z95: tCO2/hr | AA95: Transport of Materials | AB95: No of deliveries (Concrete based on 6m3 per wagon, other materials on 20tonnes per truck, discrete materials default 2 deliveries) | AC95: Local or national supplier | AD95: Distance (50km local, 250km national) | AE95: CO2/t per km | AG95: Embodied | AH95: Transport | AI95: Sum | AQ95: ='Construction Materials'!B29 -> Pozzolanic (Siliceous Fly Ash) Cement, CEM IV/B-V (55% GGBS)
E96: Bearings | F96: Mechanical | G96: =(IF(SUMMARY!$G$32="","",SUMMARY!$G$32)) ->  | H96: =IF(OR($G$96="",$F$13="",$F$14=""),"",($F$13*$F$14*0.01%)) ->  | J96: ='HIDDEN_Construction Materials'!$J$114 -> 8 | K96: =IF(H96="","",(H96*10)) ->  | L96: =IF(OR(G96="",H96=""),"",((H96*J96))) ->  | T96: =IF(G96="","",(VLOOKUP(F96,'HIDDEN_Construction Materials'!$C$114:$J$115,3,FALSE)*L96)) ->  | U96: =IF(K96="","",('HIDDEN_Construction Materials'!$G$119)) ->  | V96: =IF(OR(T96="",U96=""),"",(T96+(U96*K96))) ->  | W96: Telehandler - General | X96: =IF(OR(G96=0,G96=""),"",1) ->  | Y96: =IF(OR(G96=0,G96=""),"",($Y$26*0.1)) ->  | Z96: =IF(OR(W96="",X96="",Y96=""),"",VLOOKUP(W96,'HIDDEN_Construction Materials'!$B$196:$E$221,3,FALSE)) ->  | AA96: Freight - Diesel (Average) Van/LCV [≤3.5t] | AB96: =IF(OR(G96="",AA96=""),"",MAX(2,ROUND((G96*L96)/20,2))) ->  | AC96: National supplier | AD96: =IF(AC96="National supplier","250","50") -> 250 | AE96: =IF(AA96="","",VLOOKUP(AA96,'HIDDEN_Construction Materials'!$B$136:$E$194,3,FALSE)) -> 0.00027347 | AG96: =IF(OR(G96="",V96="",Z96=""),"",((G96*V96)+(X96*Y96*Z96))) ->  | AH96: =IF(OR(AA96="",AB96="",AD96=""),"",(AB96*AD96*AE96)) ->  | AI96: =IF(OR(AG96=0,AG96="",AH96=0,AH96=""),"",SUM(AG96:AH96)) ->  | AQ96: ='Construction Materials'!B30 -> Pozzolanic (Siliceous Fly Ash) Cement, CEM IV/B-V (45.5% GGBS)
F97: Elastomeric | H97: =IF(OR($G$97="",$F$13="",$F$14=""),"",($F$13*$F$14*0.01%)) ->  | J97: ='HIDDEN_Construction Materials'!$J$115 -> 1.5 | L97: =IF(OR(G97="",H97=""),"",((H97*J97))) ->  | T97: =IF(G97="","",(VLOOKUP(F97,'HIDDEN_Construction Materials'!$C$114:$J$115,3,FALSE)*L97)) ->  | V97: =IF(OR(T97="",L97=""),"",T97) ->  | W97: Telehandler - General | Y97: =IF(OR(G97=0,G97=""),"",($Y$26*0.1)) ->  | Z97: =IF(OR(W97="",X97="",Y97=""),"",VLOOKUP(W97,'HIDDEN_Construction Materials'!$B$196:$E$221,3,FALSE)) ->  | AA97: Cradle to site | AG97: =IF(OR(G97="",V97="",Z97=""),"",((G97*V97)+(X97*Y97*Z97))) ->  | AI97: =IF(AG97="","",AG97) ->  | AQ97: ='Construction Materials'!B31 -> Pozzolanic (Siliceous Fly Ash) Cement, CEM IV/B-V (36% GGBS)
AQ98: ='Construction Materials'!B32 -> Fibre Cement
G99: Length (m) | H99: Volume (m3) (600x125mm area) | I99: Density (t/m3) | J99: Tonnage (t) | U99: Embodied tCO2/t Rubber | V99: Total tCO2/t Rubber expansion joints | AQ99: ='Construction Materials'!B33 -> Soil Cement
E100: Expansion Joints | F100: Rubber | G100: =IF(F14="","",(F14*2)) ->  | H100: =IF(G100="","",G100*0.075) ->  | I100: =VLOOKUP(F100,'HIDDEN_Construction Materials'!$C$112:$J$120,6,FALSE) -> 1.5 | J100: =IF(OR(H100="",I100=""),"",(H100*I100)) ->  | U100: =IF(F100="","",('HIDDEN_Construction Materials'!E116)) -> 1.63 | V100: =IF(J100="","",U100) ->  | W100: Telehandler - General | X100: =IF(OR(G100=0,G100=""),"",1) ->  | Y100: =IF(OR(G100=0,G100=""),"",($Y$26*0.1)) ->  | Z100: =IF(OR(W100="",X100="",Y100=""),"",VLOOKUP(W100,'HIDDEN_Construction Materials'!$B$196:$E$221,3,FALSE)) ->  | AA100: Cradle to site | AG100: =IF(OR(G100="",V100="",Z100=""),"",((V100*J100)+(X100*Y100*Z100))) ->  | AI100: =IF(AG100="","",AG100) ->  | AQ100: ='Construction Materials'!B34 -> Other
AQ101: Steel source/details
G102: Volume (m3) (Default 5% substructure volume) | H102: Concrete Grade | I102: Exposure class | J102: Min Grade for exposure class | K102: Min Cement for exposure class (kg/m3) | L102: Cement for concrete grade (kg/m3) | M102: Cement type (default OPC): | N102: Aggregate source % recycled (Default 0%) | O102: Concrete Density (tonnes/m3) | P102: Steel Source (Default WSA): | Q102: Steel Density (tonnes/m3) | R102: Reinforcement % by steel volume | S102: Density of aggregate (t/m3 of concrete) | T102: Embodied tCO2/t cement | U102: Embodied tCO2/t aggregate | V102: Embodied tCO2/t steel | AQ102: Reinforcement
E103: Bearing Plinth | F103: Reinforced concrete | G103: =IF(SUMMARY!$G$29="","",(SUMMARY!$G$29*0.05)) ->  | H103: C40/50 | I103: XD1 | J103: =IF(I103="","",VLOOKUP($I103,'HIDDEN_Construction Materials'!$H$7:$K$24,3,FALSE)) -> C30/37 | K103: =IF(I103="","",VLOOKUP($I103,'HIDDEN_Construction Materials'!$H$7:$K$24,4,FALSE)) -> 300 | L103: =IF(H103="","",VLOOKUP($H103,'HIDDEN_Construction Materials'!$B$38:$F$45,2,FALSE)) -> 380 | M103: CEM I Portland Cement | N103: 0 | O103: =IF(H103=0,"",VLOOKUP(H103,'HIDDEN_Construction Materials'!$B$24:$F$45,5,FALSE)) -> 2.4 | P103: WSA - Bar & Rod | Q103: =IF(P103="","",(VLOOKUP(P103,'HIDDEN_Construction Materials'!$D$49:$J$58,7,FALSE))) -> 7.85 | R103: 2.5 | S103: =IF(OR(G103="",K103="",L103="",N103=""),"",(VLOOKUP(N103,'HIDDEN_Construction Materials'!$H$28:$O$32,8,FALSE))) ->  | T103: =IF(OR(G103="",K103="",L103="",N103=""),"",(VLOOKUP(M103,'HIDDEN_Construction Materials'!$B$6:$F$34,5,FALSE))) ->  | U103: =IF(OR(G103="",K103="",L103="",N103=""),"",(VLOOKUP(N103,'HIDDEN_Construction Materials'!$H$28:$M$32,5,FALSE))) ->  | V103: =IF(OR(G103="",P103="",Q103=""),"",(VLOOKUP(P103,'HIDDEN_Construction Materials'!$D$49:$J$58,4,FALSE))) ->  | W103: Dumper - Articulated Dump Truck 10-20t | X103: =IF(OR(G103=0,G103=""),"",1) ->  | Y103: =IF(OR(G103=0,G103=""),"",($Y$26*0.1)) ->  | Z103: =IF(OR(W103="",X103="",Y103=""),"",VLOOKUP(W103,'HIDDEN_Construction Materials'!$B$196:$E$221,3,FALSE)) ->  | AA103: Freight - Diesel HGV (All Rigids) 53% (UK Average) | AB103: =IF(OR(G103="",AA103=""),"",G103/6) ->  | AC103: Local supplier | AD103: =IF(AC103="National supplier","250","50") -> 50 | AE103: =IF(AA103="","",VLOOKUP(AA103,'HIDDEN_Construction Materials'!$B$136:$E$194,3,FALSE)) -> 0.0008021 | AG103: =IF(OR(G103="",V103="",Z103=""),"",((MAX(K103,L103)/1000*G103*(1-(R103/100))*T103)+(S103*G103*(1-(R103/100))*U103)+(Q103*G103*(R103/100)*V103)+(X103*Y103*Z103))) ->  | AH103: =IF(OR(AA103="",AB103="",AD103=""),"",(AB103*AD103*AE103)) ->  | AI103: =IF(OR(AG103=0,AG103="",AH103=0,AH103=""),"",SUM(AG103:AH103)) ->  | AQ103: ='Construction Materials'!D49 -> WSA - Bar & Rod
M104: =(IF(OR(M103=$AQ$73,M103=$AQ$86,M103=$AQ$87,M103=$AQ$88,M103=$AQ$89,M103=$AQ$90,M103=$AQ$91,M103=$AQ$92,M103=$AQ$93,M103=$AQ$94,M103=$AQ$95,M103=$AQ$96,M103=$AQ$97),"DOUBLE COUNTING - see 'Information' worksheet","")) ->  | AQ104: ='Construction Materials'!D54 -> ICE Bath Database - Bar & Rod - 50:50 method
F105: Formwork | G105: Area (m2) based on 30% concrete volume | H105: Type | J105: Reuse (state no. of times) BLANK if none | K105: Density (kg/m2*20mm timber, 8mm others) | L105: Tonnage (t) | T105: User value input tCO2/t formwork | U105: Embodied tCO2/t formwork | V105: Total tCO2/t Formwork | AQ105: - Foundations
F106: Timber | G106: =IF($G$103="","",($G$103*0.3)) ->  | H106: Timber - General | K106: =IF(H106="","",VLOOKUP(H106,'HIDDEN_Construction Materials'!$D$67:$J$73,7,FALSE)) -> 25 | L106: =IF(OR(G106="",H106=""),"",(IF(J106="",((G106*K106)/1000),((G106*K106/(J106+1))/1000)))) ->  | U106: =IF(H106="","",VLOOKUP(H106,'HIDDEN_Construction Materials'!$D$67:$E$73,2,FALSE)) -> 0.00046 | V106: =IF(OR(G106="",H106=""),"",(IF(T106="",U106,T106))) ->  | W106: Telehandler - General | X106: =IF(OR(G106=0,G106=""),"",1) ->  | Y106: =IF(OR(G106=0,G106=""),"",($Y$103*0.2)) ->  | Z106: =IF(OR(W106="",X106="",Y106=""),"",VLOOKUP(W106,'HIDDEN_Construction Materials'!$B$196:$E$221,3,FALSE)) ->  | AA106: Cradle to site | AG106: =IF(OR(G106="",V106="",Z106=""),"",((L106*V106)+(X106*Y106*Z106))) ->  | AI106: =IF(AG106="","",AG106) ->  | AQ106: ='Construction Materials'!D52 -> WSA - Section
F107: Other | K107: =IF(H107="","",VLOOKUP(H107,'HIDDEN_Construction Materials'!$D$72:$J$73,7,FALSE)) ->  | L107: =IF(OR(G107="",H107=""),"",(IF(J107="",((G107*K107)/1000),((G107*K107/(J107+1))/1000)))) ->  | U107: =IF(H107="","",VLOOKUP(H107,'HIDDEN_Construction Materials'!$D$72:$E$73,2,FALSE)) ->  | V107: =IF(OR(G107="",H107=""),"",(IF(T107="",U107,T107))) ->  | W107: Telehandler - General | X107: =IF(OR(G107=0,G107=""),"",1) ->  | Y107: =IF(OR(G107=0,G107=""),"",($Y$103*0.2)) ->  | Z107: =IF(OR(W107="",X107="",Y107=""),"",VLOOKUP(W107,'HIDDEN_Construction Materials'!$B$196:$E$221,3,FALSE)) ->  | AB107: =IF(OR(G107="",AA107=""),"",MAX(2,ROUND(L107/20,2))) ->  | AC107: Local supplier | AD107: =IF(AC107="National supplier","250","50") -> 50 | AE107: =IF(AA107="","",VLOOKUP(AA107,'HIDDEN_Construction Materials'!$B$136:$E$194,3,FALSE)) ->  | AG107: =IF(OR(G107="",V107="",Z107=""),"",((L107*V107)+(X107*Y107*Z107))) ->  | AH107: =IF(OR(AA107="",AB107="",AD107=""),"",(AB107*AD107*AE107)) ->  | AI107: =IF(OR(AG107=0,AG107="",AH107=0,AH107=""),"",SUM(AG107:AH107)) ->  | AQ107: ='Construction Materials'!D50 -> WSA - Tube
AQ108: ='Construction Materials'!D51 -> WSA - Plate
E109: Deck | F109: Painted steel | G109: Tonnage (t) | H109: Steel source (Default WSA) | J109: Steel Fabrication CO2 Costs (Default 0.3tCO2/t) | L109: Density (t/m3) | M109: Painted area (m2) (9m2/1t steel) | U109: Embodied tCO2/m2 Paint Double Coat | V109: Total tCO2/t Steel | AQ109: ='Construction Materials'!D56 -> ICE Bath Database - Plate - 50:50 method
F110: Beams | G110: =IF((OR(SUMMARY!$G$35="",H110="",)),"",((SUMMARY!$G$35*1))) ->  | H110: WSA - Plate | J110: 0.3 | L110: =IF(H110="","",VLOOKUP(H110,'HIDDEN_Construction Materials'!$D$49:$J$58,7,FALSE)) -> 7.85 | M110: =IF(G110="","",(G110*9)) ->  | U110: =IF(M110="","",('HIDDEN_Construction Materials'!$G$119)) ->  | V110: =IF(OR(G110="",H110="",J110=""),"",(VLOOKUP(H110,'HIDDEN_Construction Materials'!$D$49:$G$58,4,FALSE))+(J110)) ->  | W110: Crane - General | X110: =IF((OR(,G110="",G110=0)),"",1) ->  | Y110: =IF((OR(,G110="",G110=0)),"",($Y$26*0.1)/5) ->  | Z110: =IF(OR(W110="",X110="",Y110=""),"",VLOOKUP(W110,'HIDDEN_Construction Materials'!$B$196:$E$221,3,FALSE)) ->  | AA110: Freight - Diesel HGV (All Rigids) 53% (UK Average) | AB110: =IF(OR(G110="",AA110=""),"",MAX(2,ROUND(G110/20,2))) ->  | AC110: National supplier | AD110: =IF(AC110="National supplier","250","50") -> 250 | AE110: =IF(AA110="","",VLOOKUP(AA110,'HIDDEN_Construction Materials'!$B$136:$E$194,3,FALSE)) -> 0.0008021 | AG110: =IF(OR(G110="",U110="",V110="",Z110=""),"",((G110*V110)+(M110*U110))+(X110*Y110*Z110)) ->  | AH110: =IF(OR(AA110="",AB110="",AD110=""),"",(AB110*AD110*AE110)) ->  | AI110: =IF(OR(AG110=0,AG110="",AH110=0,AH110=""),"",SUM(AG110:AH110)) ->  | AQ110: ='Construction Materials'!D57 -> ICE Bath Database - Section - 50:50 method
F111: Bracing | H111: WSA - Section | J111: 0.3 | L111: =IF(H111="","",VLOOKUP(H111,'HIDDEN_Construction Materials'!$D$49:$J$58,7,FALSE)) -> 7.85 | M111: =IF(G111="","",(G111*9)) ->  | U111: =IF(M111="","",('HIDDEN_Construction Materials'!$G$119)) ->  | V111: =IF(OR(G111="",H111="",J111=""),"",(VLOOKUP(H111,'HIDDEN_Construction Materials'!$D$49:$G$58,4,FALSE))+(J111)) ->  | W111: Crane - General | X111: =IF((OR(,G111="",G111=0)),"",1) ->  | Y111: =IF((OR(,G111="",G111=0)),"",($Y$26*0.1)/5) ->  | Z111: =IF(OR(W111="",X111="",Y111=""),"",VLOOKUP(W111,'HIDDEN_Construction Materials'!$B$196:$E$221,3,FALSE)) ->  | AA111: Freight - Diesel HGV (All Rigids) 53% (UK Average) | AB111: =IF(OR(G111="",AA111=""),"",MAX(2,ROUND(G111/20,2))) ->  | AC111: National supplier | AD111: =IF(AC111="National supplier","250","50") -> 250 | AE111: =IF(AA111="","",VLOOKUP(AA111,'HIDDEN_Construction Materials'!$B$136:$E$194,3,FALSE)) -> 0.0008021 | AG111: =IF(OR(G111="",U111="",V111="",Z111=""),"",((G111*V111)+(M111*U111))+(X111*Y111*Z111)) ->  | AH111: =IF(OR(AA111="",AB111="",AD111=""),"",(AB111*AD111*AE111)) ->  | AI111: =IF(OR(AG111=0,AG111="",AH111=0,AH111=""),"",SUM(AG111:AH111)) ->  | AQ111: ='Construction Materials'!D58 -> ICE Bath Database - Tube- 50:50 method
F112: Cross Beams | H112: WSA - Plate | J112: 0.3 | L112: =IF(H112="","",VLOOKUP(H112,'HIDDEN_Construction Materials'!$D$49:$J$58,7,FALSE)) -> 7.85 | M112: =IF(G112="","",(G112*9)) ->  | U112: =IF(M112="","",('HIDDEN_Construction Materials'!$G$119)) ->  | V112: =IF(OR(G112="",H112="",J112=""),"",(VLOOKUP(H112,'HIDDEN_Construction Materials'!$D$49:$G$58,4,FALSE))+(J112)) ->  | W112: Crane - General | X112: =IF((OR(,G112="",G112=0)),"",1) ->  | Z112: =IF(OR(W112="",X112="",Y112=""),"",VLOOKUP(W112,'HIDDEN_Construction Materials'!$B$196:$E$221,3,FALSE)) ->  | AA112: Freight - Diesel HGV (All Rigids) 53% (UK Average) | AB112: =IF(OR(G112="",AA112=""),"",MAX(2,ROUND(G112/20,2))) ->  | AC112: National supplier | AD112: =IF(AC112="National supplier","250","50") -> 250 | AE112: =IF(AA112="","",VLOOKUP(AA112,'HIDDEN_Construction Materials'!$B$136:$E$194,3,FALSE)) -> 0.0008021 | AG112: =IF(OR(G112="",U112="",V112="",Z112=""),"",((G112*V112)+(M112*U112))+(X112*Y112*Z112)) ->  | AH112: =IF(OR(AA112="",AB112="",AD112=""),"",(AB112*AD112*AE112)) ->  | AI112: =IF(OR(AG112=0,AG112="",AH112=0,AH112=""),"",SUM(AG112:AH112)) ->  | AQ112: - Steel sheet piles
F113: Diaphragms | H113: WSA - Plate | J113: 0.3 | L113: =IF(H113="","",VLOOKUP(H113,'HIDDEN_Construction Materials'!$D$49:$J$58,7,FALSE)) -> 7.85 | M113: =IF(G113="","",(G113*9)) ->  | U113: =IF(M113="","",('HIDDEN_Construction Materials'!$G$119)) ->  | V113: =IF(OR(G113="",H113="",J113=""),"",(VLOOKUP(H113,'HIDDEN_Construction Materials'!$D$49:$G$58,4,FALSE))+(J113)) ->  | W113: Crane - General | Z113: =IF(OR(W113="",X113="",Y113=""),"",VLOOKUP(W113,'HIDDEN_Construction Materials'!$B$196:$E$221,3,FALSE)) ->  | AA113: Freight - Diesel HGV (All Rigids) 53% (UK Average) | AB113: =IF(OR(G113="",AA113=""),"",MAX(2,ROUND(G113/20,2))) ->  | AC113: National supplier | AD113: =IF(AC113="National supplier","250","50") -> 250 | AE113: =IF(AA113="","",VLOOKUP(AA113,'HIDDEN_Construction Materials'!$B$136:$E$194,3,FALSE)) -> 0.0008021 | AG113: =IF(OR(G113="",U113="",V113="",Z113=""),"",((G113*V113)+(M113*U113))+(X113*Y113*Z113)) ->  | AH113: =IF(OR(AA113="",AB113="",AD113=""),"",(AB113*AD113*AE113)) ->  | AI113: =IF(OR(AG113=0,AG113="",AH113=0,AH113=""),"",SUM(AG113:AH113)) ->  | AQ113: ='Construction Materials'!D51 -> WSA - Plate
F114: Other | H114: WSA - Plate | J114: 0.3 | L114: =IF(H114="","",VLOOKUP(H114,'HIDDEN_Construction Materials'!$D$49:$J$58,7,FALSE)) -> 7.85 | M114: =IF(G114="","",(G114*9)) ->  | U114: =IF(M114="","",('HIDDEN_Construction Materials'!$G$119)) ->  | V114: =IF(OR(G114="",H114="",J114=""),"",(VLOOKUP(H114,'HIDDEN_Construction Materials'!$D$49:$G$58,4,FALSE))+(J114)) ->  | W114: Crane - General | Z114: =IF(OR(W114="",X114="",Y114=""),"",VLOOKUP(W114,'HIDDEN_Construction Materials'!$B$196:$E$221,3,FALSE)) ->  | AA114: Freight - Diesel HGV (All Rigids) 53% (UK Average) | AB114: =IF(OR(G114="",AA114=""),"",MAX(2,ROUND(G114/20,2))) ->  | AC114: National supplier | AD114: =IF(AC114="National supplier","250","50") -> 250 | AE114: =IF(AA114="","",VLOOKUP(AA114,'HIDDEN_Construction Materials'!$B$136:$E$194,3,FALSE)) -> 0.0008021 | AG114: =IF(OR(G114="",U114="",V114="",Z114=""),"",((G114*V114)+(M114*U114))+(X114*Y114*Z114)) ->  | AH114: =IF(OR(AA114="",AB114="",AD114=""),"",(AB114*AD114*AE114)) ->  | AI114: =IF(OR(AG114=0,AG114="",AH114=0,AH114=""),"",SUM(AG114:AH114)) ->  | AQ114: ='Construction Materials'!D56 -> ICE Bath Database - Plate - 50:50 method
AQ115: - Deck steel - painted
F116: Weathering Steel | G116: Tonnage (t) | H116: Steel source (Default WSA) | J116: Steel Fabrication CO2 Costs (Default 0.3tCO2/t) | L116: Density (t/m3) | V116: Total tCO2/t Steel | AQ116: ='Construction Materials'!D51 -> WSA - Plate
F117: Beams | G117: =IF((OR(SUMMARY!$G$36="",H117="",)),"",((SUMMARY!$G$36*1))) ->  | H117: WSA - Plate | J117: 0.3 | L117: =IF(H117="","",VLOOKUP(H117,'HIDDEN_Construction Materials'!$D$49:$J$58,7,FALSE)) -> 7.85 | V117: =IF(OR(G117="",H117="",J117=""),"",(VLOOKUP(H117,'HIDDEN_Construction Materials'!$D$49:$G$58,4,FALSE))+(J117)) ->  | W117: Crane - General | X117: =IF((OR(,G117="",G117=0)),"",1) ->  | Y117: =IF((OR(,G117="",G117=0)),"",($Y$26*0.1)/5) ->  | Z117: =IF(OR(W117="",X117="",Y117=""),"",VLOOKUP(W117,'HIDDEN_Construction Materials'!$B$196:$E$221,3,FALSE)) ->  | AA117: Freight - Diesel HGV (All Rigids) 53% (UK Average) | AB117: =IF(OR(G117="",AA117=""),"",MAX(2,ROUND(G117/20,2))) ->  | AC117: National supplier | AD117: =IF(AC117="National supplier","250","50") -> 250 | AE117: =IF(AA117="","",VLOOKUP(AA117,'HIDDEN_Construction Materials'!$B$136:$E$194,3,FALSE)) -> 0.0008021 | AG117: =IF(OR(G117="",V117="",Z117=""),"",((G117*V117)+(X117*Y117*Z117))) ->  | AH117: =IF(OR(AA117="",AB117="",AD117=""),"",(AB117*AD117*AE117)) ->  | AI117: =IF(OR(AG117=0,AG117="",AH117=0,AH117=""),"",SUM(AG117:AH117)) ->  | AQ117: ='Construction Materials'!D52 -> WSA - Section
F118: Bracing | H118: WSA - Plate | J118: 0.3 | L118: =IF(H118="","",VLOOKUP(H118,'HIDDEN_Construction Materials'!$D$49:$J$58,7,FALSE)) -> 7.85 | V118: =IF(OR(G118="",H118="",J118=""),"",(VLOOKUP(H118,'HIDDEN_Construction Materials'!$D$49:$G$58,4,FALSE))+(J118)) ->  | W118: Crane - General | Z118: =IF(OR(W118="",X118="",Y118=""),"",VLOOKUP(W118,'HIDDEN_Construction Materials'!$B$196:$E$221,3,FALSE)) ->  | AA118: Freight - Diesel HGV (All Rigids) 53% (UK Average) | AB118: =IF(OR(G118="",AA118=""),"",MAX(2,ROUND(G118/20,2))) ->  | AC118: National supplier | AD118: =IF(AC118="National supplier","250","50") -> 250 | AE118: =IF(AA118="","",VLOOKUP(AA118,'HIDDEN_Construction Materials'!$B$136:$E$194,3,FALSE)) -> 0.0008021 | AG118: =IF(OR(G118="",V118="",Z118=""),"",((G118*V118)+(X118*Y118*Z118))) ->  | AH118: =IF(OR(AA118="",AB118="",AD118=""),"",(AB118*AD118*AE118)) ->  | AI118: =IF(OR(AG118=0,AG118="",AH118=0,AH118=""),"",SUM(AG118:AH118)) ->  | AQ118: ='Construction Materials'!D49 -> WSA - Bar & Rod
F119: Cross Beams | H119: WSA - Plate | J119: 0.3 | L119: =IF(H119="","",VLOOKUP(H119,'HIDDEN_Construction Materials'!$D$49:$J$58,7,FALSE)) -> 7.85 | V119: =IF(OR(G119="",H119="",J119=""),"",(VLOOKUP(H119,'HIDDEN_Construction Materials'!$D$49:$G$58,4,FALSE))+(J119)) ->  | W119: Crane - General | Z119: =IF(OR(W119="",X119="",Y119=""),"",VLOOKUP(W119,'HIDDEN_Construction Materials'!$B$196:$E$221,3,FALSE)) ->  | AA119: Freight - Diesel HGV (All Rigids) 53% (UK Average) | AB119: =IF(OR(G119="",AA119=""),"",MAX(2,ROUND(G119/20,2))) ->  | AC119: National supplier | AD119: =IF(AC119="National supplier","250","50") -> 250 | AE119: =IF(AA119="","",VLOOKUP(AA119,'HIDDEN_Construction Materials'!$B$136:$E$194,3,FALSE)) -> 0.0008021 | AG119: =IF(OR(G119="",V119="",Z119=""),"",((G119*V119)+(X119*Y119*Z119))) ->  | AH119: =IF(OR(AA119="",AB119="",AD119=""),"",(AB119*AD119*AE119)) ->  | AI119: =IF(OR(AG119=0,AG119="",AH119=0,AH119=""),"",SUM(AG119:AH119)) ->  | AQ119: ='Construction Materials'!D50 -> WSA - Tube
F120: Diaphragms | H120: WSA - Plate | J120: 0.3 | L120: =IF(H120="","",VLOOKUP(H120,'HIDDEN_Construction Materials'!$D$49:$J$58,7,FALSE)) -> 7.85 | V120: =IF(OR(G120="",H120="",J120=""),"",(VLOOKUP(H120,'HIDDEN_Construction Materials'!$D$49:$G$58,4,FALSE))+(J120)) ->  | W120: Crane - General | Z120: =IF(OR(W120="",X120="",Y120=""),"",VLOOKUP(W120,'HIDDEN_Construction Materials'!$B$196:$E$221,3,FALSE)) ->  | AA120: Freight - Diesel HGV (All Rigids) 53% (UK Average) | AB120: =IF(OR(G120="",AA120=""),"",MAX(2,ROUND(G120/20,2))) ->  | AC120: National supplier | AD120: =IF(AC120="National supplier","250","50") -> 250 | AE120: =IF(AA120="","",VLOOKUP(AA120,'HIDDEN_Construction Materials'!$B$136:$E$194,3,FALSE)) -> 0.0008021 | AG120: =IF(OR(G120="",V120="",Z120=""),"",((G120*V120)+(X120*Y120*Z120))) ->  | AH120: =IF(OR(AA120="",AB120="",AD120=""),"",(AB120*AD120*AE120)) ->  | AI120: =IF(OR(AG120=0,AG120="",AH120=0,AH120=""),"",SUM(AG120:AH120)) ->  | AQ120: ='Construction Materials'!D58 -> ICE Bath Database - Tube- 50:50 method
F121: Other | H121: WSA - Plate | J121: 0.3 | L121: =IF(H121="","",VLOOKUP(H121,'HIDDEN_Construction Materials'!$D$49:$J$58,7,FALSE)) -> 7.85 | V121: =IF(OR(G121="",H121="",J121=""),"",(VLOOKUP(H121,'HIDDEN_Construction Materials'!$D$49:$G$58,4,FALSE))+(J121)) ->  | W121: Crane - General | Z121: =IF(OR(W121="",X121="",Y121=""),"",VLOOKUP(W121,'HIDDEN_Construction Materials'!$B$196:$E$221,3,FALSE)) ->  | AA121: Freight - Diesel HGV (All Rigids) 53% (UK Average) | AB121: =IF(OR(G121="",AA121=""),"",MAX(2,ROUND(G121/20,2))) ->  | AC121: National supplier | AD121: =IF(AC121="National supplier","250","50") -> 250 | AE121: =IF(AA121="","",VLOOKUP(AA121,'HIDDEN_Construction Materials'!$B$136:$E$194,3,FALSE)) -> 0.0008021 | AG121: =IF(OR(G121="",V121="",Z121=""),"",((G121*V121)+(X121*Y121*Z121))) ->  | AH121: =IF(OR(AA121="",AB121="",AD121=""),"",(AB121*AD121*AE121)) ->  | AI121: =IF(OR(AG121=0,AG121="",AH121=0,AH121=""),"",SUM(AG121:AH121)) ->  | AQ121: ='Construction Materials'!D56 -> ICE Bath Database - Plate - 50:50 method
AQ122: ='Construction Materials'!D57 -> ICE Bath Database - Section - 50:50 method
G123: Volume (m3) | H123: Concrete Grade | I123: Exposure class | J123: Min Grade for exposure class | K123: Min Cement for exposure class (kg/m3) | L123: Cement for concrete grade (kg/m3) | M123: Cement type (default OPC): | N123: Aggregate source % recycled (Default 0%) | O123: Concrete Density (tonnes/m3) | P123: Steel Source (Default WSA): | Q123: Steel Density (tonnes/m3) | R123: Reinforcement % by steel volume | S123: Density of aggregate (t/m3 of concrete) | T123: Embodied tCO2/t cement | U123: Embodied tCO2/t aggregate | V123: Embodied tCO2/t steel | AQ123: ='Construction Materials'!D54 -> ICE Bath Database - Bar & Rod - 50:50 method
F124: Reinforced concrete | G124: =IF(SUMMARY!G38="","",SUMMARY!G38) ->  | H124: C40/50 | I124: XC3 | J124: =IF(I124="","",VLOOKUP($I124,'HIDDEN_Construction Materials'!$H$7:$K$24,3,FALSE)) -> C30/37 | K124: =IF(I124="","",VLOOKUP($I124,'HIDDEN_Construction Materials'!$H$7:$K$24,4,FALSE)) -> 280 | L124: =IF(H124="","",VLOOKUP($H124,'HIDDEN_Construction Materials'!$B$38:$F$45,2,FALSE)) -> 380 | M124: CEM I Portland Cement | N124: 0 | O124: =IF(H124=0,"",VLOOKUP(H124,'HIDDEN_Construction Materials'!$B$24:$F$45,5,FALSE)) -> 2.4 | P124: WSA - Bar & Rod | Q124: =IF(P124="","",(VLOOKUP(P124,'HIDDEN_Construction Materials'!$D$49:$J$58,7,FALSE))) -> 7.85 | R124: 2.5 | S124: =IF(OR(G124="",K124="",L124="",N124=""),"",(VLOOKUP(N124,'HIDDEN_Construction Materials'!$H$28:$O$32,8,FALSE))) ->  | T124: =IF(OR(G124="",K124="",L124="",N124=""),"",(VLOOKUP(M124,'HIDDEN_Construction Materials'!$B$6:$F$34,5,FALSE))) ->  | U124: =IF(OR(G124="",K124="",L124="",N124=""),"",(VLOOKUP(N124,'HIDDEN_Construction Materials'!$H$28:$M$32,5,FALSE))) ->  | V124: =IF(OR(G124="",P124="",Q124=""),"",(VLOOKUP(P124,'HIDDEN_Construction Materials'!$D$49:$J$58,4,FALSE))) ->  | W124: Dumper - Articulated Dump Truck 10-20t | X124: =IF(OR(G124=0,G124=""),"",1) ->  | Y124: =IF(OR(G124=0,G124=""),"",($Y$26*0.35)) ->  | Z124: =IF(OR(W124="",X124="",Y124=""),"",VLOOKUP(W124,'HIDDEN_Construction Materials'!$B$196:$E$221,3,FALSE)) ->  | AA124: Freight - Diesel HGV (All Rigids) 53% (UK Average) | AB124: =IF(OR(G124="",AA124=""),"",G124/6) ->  | AC124: Local supplier | AD124: =IF(AC124="National supplier","250","50") -> 50 | AE124: =IF(AA124="","",VLOOKUP(AA124,'HIDDEN_Construction Materials'!$B$136:$E$194,3,FALSE)) -> 0.0008021 | AG124: =IF(OR(G124="",V124="",Z124=""),"",((MAX(K124,L124)/1000*G124*(1-(R124/100))*T124)+(S124*G124*(1-(R124/100))*U124)+(Q124*G124*(R124/100)*V124)+(X124*Y124*Z124))) ->  | AH124: =IF(OR(AA124="",AB124="",AD124=""),"",(AB124*AD124*AE124)) ->  | AI124: =IF(OR(AG124=0,AG124="",AH124=0,AH124=""),"",SUM(AG124:AH124)) ->  | AQ124: - Deck steel - weathering
M125: =(IF(OR(M124=$AQ$73,M124=$AQ$86,M124=$AQ$87,M124=$AQ$88,M124=$AQ$89,M124=$AQ$90,M124=$AQ$91,M124=$AQ$92,M124=$AQ$93,M124=$AQ$94,M124=$AQ$95,M124=$AQ$96,M124=$AQ$97),"DOUBLE COUNTING - see 'Information' worksheet","")) ->  | AQ125: ='Construction Materials'!D51 -> WSA - Plate
G126: Area (m2) | H126: Type | U126: Embodied CO2/m2 | V126: Total tCO2/m2 Permanent Formwork | AQ126: ='Construction Materials'!D56 -> ICE Bath Database - Plate - 50:50 method
F127: Permanent Formwork | G127: =IF(OR($F$13="",$F$14=""),"",($F$13*$F$14)) ->  | H127: Omnia Planks | U127: ='HIDDEN_Construction Materials'!$J$86 -> 0.03192030971 | V127: =IF(G127="","",U127) ->  | W127: Dumper - Articulated Dump Truck 20-30t | X127: =IF(OR(G127=0,G127=""),"",1) ->  | Y127: =IF(OR(G127=0,G127=""),"",($Y$26*0.05)) ->  | Z127: =IF(OR(W127="",X127="",Y127=""),"",VLOOKUP(W127,'HIDDEN_Construction Materials'!$B$196:$E$221,3,FALSE)) ->  | AA127: Freight - Diesel HGV (All Rigids) 53% (UK Average) | AB127: =IF(OR(G127="",AA127=""),"",2) ->  | AC127: Local supplier | AD127: =IF(AC127="National supplier","250","50") -> 50 | AE127: =IF(AA127="","",VLOOKUP(AA127,'HIDDEN_Construction Materials'!$B$136:$E$194,3,FALSE)) -> 0.0008021 | AG127: =IF(OR(G127="",V127="",Z127=""),"",((G127*V127)+(X127*Y127*Z127))) ->  | AH127: =IF(OR(AA127="",AB127="",AD127=""),"",(AB127*AD127*AE127)) ->  | AI127: =IF(OR(AG127=0,AG127="",AH127=0,AH127=""),"",SUM(AG127:AH127)) ->  | AQ127: Formwork (timber only)
AQ128: ='Construction Materials'!B67&'Construction Materials'!C67 -> Timber - General
F129: Formwork | G129: Area (m2) based on 30% deck concrete volume | H129: Type | J129: Reuse (state no. of times) BLANK if none | K129: Density (kg/m2*20mm timber, 8mm others) | L129: Tonnage (t) | T129: User value input tCO2/t formwork | U129: Embodied tCO2/t formwork | V129: Total tCO2/t Formwork | AQ129: ='Construction Materials'!B68&'Construction Materials'!C68 -> Timber - Hardboard
F130: Timber | G130: =IF($G$124="","",($G$124*0.3)) ->  | H130: Timber - General | K130: =IF(H130="","",VLOOKUP(H130,'HIDDEN_Construction Materials'!$D$67:$J$73,7,FALSE)) -> 25 | L130: =IF(OR(G130="",H130=""),"",(IF(J130="",((G130*K130)/1000),((G130*K130/(J130+1))/1000)))) ->  | U130: =IF(H130="","",VLOOKUP(H130,'HIDDEN_Construction Materials'!$D$67:$E$73,2,FALSE)) -> 0.00046 | V130: =IF(OR(G130="",H130=""),"",(IF(T130="",U130,T130))) ->  | W130: Telehandler - General | X130: =IF(OR(G130=0,G130=""),"",1) ->  | Y130: =IF(OR(G130=0,G130=""),"",($Y$124*0.2)) ->  | Z130: =IF(OR(W130="",X130="",Y130=""),"",VLOOKUP(W130,'HIDDEN_Construction Materials'!$B$196:$E$221,3,FALSE)) ->  | AA130: Cradle to site | AG130: =IF(OR(G130="",V130="",Z130=""),"",((L130*V130)+(X130*Y130*Z130))) ->  | AI130: =IF(AG130="","",AG130) ->  | AQ130: ='Construction Materials'!B69&'Construction Materials'!C69 -> Timber - MDF
F131: Other | K131: =IF(H131="","",VLOOKUP(H131,'HIDDEN_Construction Materials'!$D$72:$J$73,7,FALSE)) ->  | L131: =IF(OR(G131="",H131=""),"",(IF(J131="",((G131*K131)/1000),((G131*K131/(J131+1))/1000)))) ->  | U131: =IF(H131="","",VLOOKUP(H131,'HIDDEN_Construction Materials'!$D$72:$E$73,2,FALSE)) ->  | V131: =IF(OR(G131="",H131=""),"",(IF(T131="",U131,T131))) ->  | W131: Telehandler - General | Y131: =IF(OR(G131=0,G131=""),"",($Y$124*0.2)) ->  | Z131: =IF(OR(W131="",X131="",Y131=""),"",VLOOKUP(W131,'HIDDEN_Construction Materials'!$B$196:$E$221,3,FALSE)) ->  | AA131: Freight - Diesel (Average) Van/LCV [≤3.5t] | AB131: =IF(OR(G131="",AA131=""),"",MAX(2,ROUND(L131/20,2))) ->  | AC131: Local supplier | AD131: =IF(AC131="National supplier","250","50") -> 50 | AE131: =IF(AA131="","",VLOOKUP(AA131,'HIDDEN_Construction Materials'!$B$136:$E$194,3,FALSE)) -> 0.00027347 | AG131: =IF(OR(G131="",V131="",Z131=""),"",((L131*V131)+(X131*Y131*Z131))) ->  | AH131: =IF(OR(AA131="",AB131="",AD131=""),"",(AB131*AD131*AE131)) ->  | AI131: =IF(OR(AG131=0,AG131="",AH131=0,AH131=""),"",SUM(AG131:AH131)) ->  | AQ131: ='Construction Materials'!B70&'Construction Materials'!C70 -> Timber - Particle Board
AQ132: ='Construction Materials'!B71&'Construction Materials'!C71 -> Timber - Plywood
E133: Road Restraint System | G133: Length (m) | H133: Type | U133: Embodied tCO2/m | V133: Total tCO2/m length of parapet
F134: Steel | G134: =IF($F$13="","",($F$13*2)) ->  | H134: Steel based parapet system | U134: =IF(H134="","",VLOOKUP(H134,'HIDDEN_Construction Materials'!$D$101:$G$101,4,FALSE)) -> 0.05126 | V134: =IF(G134="","",(U134)) ->  | W134: Telehandler - General | X134: =IF(OR(G134=0,G134=""),"",1) ->  | Y134: =IF(OR(G134=0,G134=""),"",(($Y$26*0.3)/6)) ->  | Z134: =IF(OR(W134="",X134="",Y134=""),"",VLOOKUP(W134,'HIDDEN_Construction Materials'!$B$196:$E$221,3,FALSE)) ->  | AA134: Freight - Diesel (Average) Van/LCV [≤3.5t] | AB134: =IF(OR(G134="",AA134=""),"",2) ->  | AC134: National supplier | AD134: =IF(AC134="National supplier","250","50") -> 250 | AE134: =IF(AA134="","",VLOOKUP(AA134,'HIDDEN_Construction Materials'!$B$136:$E$194,3,FALSE)) -> 0.00027347 | AG134: =IF(OR(G134="",V134="",Z134=""),"",((V134*G134)+(X134*Y134*Z134))) ->  | AH134: =IF(OR(AA134="",AB134="",AD134=""),"",(AB134*AD134*AE134)) ->  | AI134: =IF(OR(AG134=0,AG134="",AH134=0,AH134=""),"",SUM(AG134:AH134)) -> 
AQ135: Formwork (other)
G136: Volume (m3) | H136: Concrete Grade | I136: Exposure class | J136: Min Grade for exposure class | K136: Min Cement for exposure class (kg/m3) | L136: Cement for concrete grade (kg/m3) | M136: Cement type (default OPC): | N136: Aggregate source % recycled (Default 0%) | O136: Concrete Density (tonnes/m3) | P136: Steel Source (Default WSA): | Q136: Steel Density (tonnes/m3) | R136: Reinforcement % by steel volume | S136: Density of aggregate (t/m3 of concrete) | T136: Embodied tCO2/t cement | U136: Embodied tCO2/t aggregate | V136: Embodied tCO2/t steel | AQ136: ='Construction Materials'!D72 -> Plastic
F137: Reinforced concrete | H137: C40/50 | I137: XC3 | J137: =IF(I137="","",VLOOKUP($I137,'HIDDEN_Construction Materials'!$H$7:$K$24,3,FALSE)) -> C30/37 | K137: =IF(I137="","",VLOOKUP($I137,'HIDDEN_Construction Materials'!$H$7:$K$24,4,FALSE)) -> 280 | L137: =IF(H137="","",VLOOKUP($H137,'HIDDEN_Construction Materials'!$B$38:$F$45,2,FALSE)) -> 380 | M137: CEM I Portland Cement | N137: 0 | O137: =IF(H137=0,"",VLOOKUP(H137,'HIDDEN_Construction Materials'!$B$24:$F$45,5,FALSE)) -> 2.4 | P137: WSA - Bar & Rod | Q137: =IF(P137="","",(VLOOKUP(P137,'HIDDEN_Construction Materials'!$D$49:$J$58,7,FALSE))) -> 7.85 | S137: =IF(OR(G137="",K137="",L137="",N137=""),"",(VLOOKUP(N137,'HIDDEN_Construction Materials'!$H$28:$O$32,8,FALSE))) ->  | T137: =IF(OR(G137="",K137="",L137="",N137=""),"",(VLOOKUP(M137,'HIDDEN_Construction Materials'!$B$6:$F$34,5,FALSE))) ->  | U137: =IF(OR(G137="",K137="",L137="",N137=""),"",(VLOOKUP(N137,'HIDDEN_Construction Materials'!$H$28:$M$32,5,FALSE))) ->  | V137: =IF(OR(G137="",P137="",Q137=""),"",(VLOOKUP(P137,'HIDDEN_Construction Materials'!$D$49:$J$58,4,FALSE))) ->  | W137: Dumper - Articulated Dump Truck 10-20t | X137: =IF(OR(G137=0,G137=""),"",1) ->  | Y137: =IF(OR(G137=0,G137=""),"",($Y$26*0.3)/6) ->  | Z137: =IF(OR(W137="",X137="",Y137=""),"",VLOOKUP(W137,'HIDDEN_Construction Materials'!$B$196:$E$221,3,FALSE)) ->  | AA137: Freight - Diesel HGV (All Rigids) 53% (UK Average) | AB137: =IF(OR(G137="",AA137=""),"",G137/6) ->  | AC137: Local supplier | AD137: =IF(AC137="National supplier","250","50") -> 50 | AE137: =IF(AA137="","",VLOOKUP(AA137,'HIDDEN_Construction Materials'!$B$136:$E$194,3,FALSE)) -> 0.0008021 | AG137: =IF(OR(G137="",V137="",Z137=""),"",((MAX(K137,L137)/1000*G137*(1-(R137/100))*T137)+(S137*G137*(1-(R137/100))*U137)+(Q137*G137*(R137/100)*V137)+(X137*Y137*Z137))) ->  | AH137: =IF(OR(AA137="",AB137="",AD137=""),"",(AB137*AD137*AE137)) ->  | AI137: =IF(OR(AG137=0,AG137="",AH137=0,AH137=""),"",SUM(AG137:AH137)) ->  | AQ137: ='Construction Materials'!D59 -> Aluminium - General
M138: =(IF(OR(M137=$AQ$73,M137=$AQ$86,M137=$AQ$87,M137=$AQ$88,M137=$AQ$89,M137=$AQ$90,M137=$AQ$91,M137=$AQ$92,M137=$AQ$93,M137=$AQ$94,M137=$AQ$95,M137=$AQ$96,M137=$AQ$97),"DOUBLE COUNTING - see 'Information' worksheet","")) -> 
F139: Formwork | G139: Area (m2) based on 30% concrete volume | H139: Type | J139: Reuse (state no. of times) BLANK if none | K139: Density (kg/m2*20mm timber, 8mm others) | L139: Tonnage (t) | T139: User value input tCO2/t formwork | U139: Embodied tCO2/t formwork | V139: Total tCO2/t Formwork | AQ139: Backfill
F140: Timber | G140: =IF($G$137="","",($G$137*0.3)) ->  | H140: Timber - General | K140: =IF(H140="","",VLOOKUP(H140,'HIDDEN_Construction Materials'!$D$67:$J$73,7,FALSE)) -> 25 | L140: =IF(OR(G140="",H140=""),"",(IF(J140="",((G140*K140)/1000),((G140*K140/(J140+1))/1000)))) ->  | U140: =IF(H140="","",VLOOKUP(H140,'HIDDEN_Construction Materials'!$D$67:$E$73,2,FALSE)) -> 0.00046 | V140: =IF(OR(G140="",H140=""),"",(IF(T140="",U140,T140))) ->  | W140: Telehandler - General | X140: =IF(OR(G140=0,G140=""),"",1) ->  | Y140: =IF(OR(G140=0,G140=""),"",($Y$137*0.2)) ->  | Z140: =IF(OR(W140="",X140="",Y140=""),"",VLOOKUP(W140,'HIDDEN_Construction Materials'!$B$196:$E$221,3,FALSE)) ->  | AA140: Cradle to site | AG140: =IF(OR(G140="",V140="",Z140=""),"",((L140*V140)+(X140*Y140*Z140))) ->  | AI140: =IF(AG140="","",AG140) ->  | AQ140: Sand
F141: Other | K141: =IF(H141="","",VLOOKUP(H141,'HIDDEN_Construction Materials'!$D$72:$J$73,7,FALSE)) ->  | L141: =IF(OR(G141="",H141=""),"",(IF(J141="",((G141*K141)/1000),((G141*K141/(J141+1))/1000)))) ->  | U141: =IF(H141="","",VLOOKUP(H141,'HIDDEN_Construction Materials'!$D$72:$E$73,2,FALSE)) ->  | V141: =IF(OR(G141="",H141=""),"",(IF(T141="",U141,T141))) ->  | W141: Telehandler - General | Y141: =IF(OR(G141=0,G141=""),"",($Y$137*0.2)) ->  | Z141: =IF(OR(W141="",X141="",Y141=""),"",VLOOKUP(W141,'HIDDEN_Construction Materials'!$B$196:$E$221,3,FALSE)) ->  | AA141: Freight - Diesel (Average) Van/LCV [≤3.5t] | AB141: =IF(OR(G141="",AA141=""),"",MAX(2,ROUND(L141/20,2))) ->  | AC141: Local supplier | AD141: =IF(AC141="National supplier","250","50") -> 50 | AE141: =IF(AA141="","",VLOOKUP(AA141,'HIDDEN_Construction Materials'!$B$136:$E$194,3,FALSE)) -> 0.00027347 | AG141: =IF(OR(G141="",V141="",Z141=""),"",((140*V141)+(X141*Y141*Z141))) ->  | AH141: =IF(OR(AA141="",AB141="",AD141=""),"",(AB141*AD141*AE141)) ->  | AI141: =IF(OR(AG141=0,AG141="",AH141=0,AH141=""),"",SUM(AG141:AH141)) ->  | AQ141: Soil
AQ142: Stone: General
E143: Miscellaneous | G143: Number (assume spaced at 30m) | H143: Type | U143: Embodied tCO2/t per unit | V143: Total tCO2/t per Lighting unit | AQ143: Stone: Gravel /Chippings
F144: Lighting | G144: =IF(OR($F$13="",$F$14=""),"",2*ROUNDUP((F13/30),0)) ->  | H144: Steel column | U144: =IF(H144="","",VLOOKUP(H144,'HIDDEN_Construction Materials'!$C$117:$J$118,3,FALSE)) -> 0.66 | V144: =IF(G144="","",(U144)) ->  | W144: Telehandler - General | X144: =IF(OR(G144=0,G144=""),"",1) ->  | Y144: =IF(OR(G144=0,G144=""),"",($Y$26*0.3)/6) ->  | Z144: =IF(OR(W144="",X144="",Y144=""),"",VLOOKUP(W144,'HIDDEN_Construction Materials'!$B$196:$E$221,3,FALSE)) ->  | AA144: Freight - Diesel HGV (All Rigids) 53% (UK Average) | AB144: =IF(OR(G144="",AA144=""),"",2) ->  | AC144: Local supplier | AD144: =IF(AC144="National supplier","250","50") -> 50 | AE144: =IF(AA144="","",VLOOKUP(AA144,'HIDDEN_Construction Materials'!$B$136:$E$194,3,FALSE)) -> 0.0008021 | AG144: =IF(OR(G144="",V144="",Z144=""),"",((G144*V144)+(X144*Y144*Z144))) ->  | AH144: =IF(OR(AA144="",AB144="",AD144=""),"",(AB144*AD144*AE144)) ->  | AI144: =IF(OR(AG144=0,AG144="",AH144=0,AH144=""),"",SUM(AG144:AH144)) ->  | AQ144: Lighting columns
AQ145: ='Construction Materials'!C117 -> Steel column
G146: Volume (m3) assumes 100mm thick | H146: Type | I146: Density (t/m3) | U146: Embodied tCO2/t Asphalt | V146: Total tCO2/t Asphalt | AQ146: ='Construction Materials'!C118 -> Aluminium column
F147: Surfacing | G147: =IF(OR($F$13="",$F$14=""),"",($F$13*$F$14)*0.1) ->  | H147: ='HIDDEN_Construction Materials'!$C$112 -> Asphalt | I147: ='HIDDEN_Construction Materials'!$H$112 -> 1.7 | U147: ='HIDDEN_Construction Materials'!$E$112 -> 0.045 | V147: =IF(G147="","",(U147)) ->  | W147: Telehandler - General | X147: =IF(OR(G147=0,G147=""),"",1) ->  | Y147: =IF(OR(G147=0,G147=""),"",(($Y$26*0.3)/6)) ->  | Z147: =IF(OR(W147="",X147="",Y147=""),"",VLOOKUP(W147,'HIDDEN_Construction Materials'!$B$196:$E$221,3,FALSE)) ->  | AA147: Freight - Diesel HGV (All Rigids) 53% (UK Average) | AB147: =IF(OR(G147="",AA147=""),"",2) ->  | AC147: Local supplier | AD147: =IF(AC147="National supplier","250","50") -> 50 | AE147: =IF(AA147="","",VLOOKUP(AA147,'HIDDEN_Construction Materials'!$B$136:$E$194,3,FALSE)) -> 0.0008021 | AG147: =IF(OR(G147="",V147="",Z147=""),"",((G147*I147*V147)+(X147*Y147*Z147))) ->  | AH147: =IF(OR(AA147="",AB147="",AD147=""),"",(AB147*AD147*AE147)) ->  | AI147: =IF(OR(AG147=0,AG147="",AH147=0,AH147=""),"",SUM(AG147:AH147)) ->  | AQ147: Kerbs
AQ148: Precast concrete
G149: Area (m2) | H149: Type | I149: Density (t/m2) | U149: Embodied tCO2/t Damp proof course membane | V149: Total tCO2/t Damp Proof Course Membrane | AQ149: Beany blocks
F150: Waterproofing | G150: =IF(OR($F$13="",$F$14=""),"",($F$13*$F$14)) ->  | H150: ='HIDDEN_Construction Materials'!C113 -> Damp proof course membrane | I150: ='HIDDEN_Construction Materials'!H113 -> 0.0033 | U150: ='HIDDEN_Construction Materials'!$E$113 -> 4.2 | V150: =U150 -> 4.2 | W150: Telehandler - General | X150: =IF(OR(G150=0,G150=""),"",1) ->  | Y150: =IF(OR(G150=0,G150=""),"",(($Y$26*0.3)/6)) ->  | Z150: =IF(OR(W150="",X150="",Y150=""),"",VLOOKUP(W150,'HIDDEN_Construction Materials'!$B$196:$E$221,3,FALSE)) ->  | AA150: Freight - Diesel (Average) Van/LCV [≤3.5t] | AB150: =IF(OR(G150="",AA150=""),"",2) ->  | AC150: National supplier | AD150: =IF(AC150="National supplier","250","50") -> 250 | AE150: =IF(AA150="","",VLOOKUP(AA150,'HIDDEN_Construction Materials'!$B$136:$E$194,3,FALSE)) -> 0.00027347 | AG150: =IF(OR(G150="",V150="",Z150=""),"",((G150*I150*V150)+(X150*Y150*Z150))) ->  | AH150: =IF(OR(AA150="",AB150="",AD150=""),"",(AB150*AD150*AE150)) ->  | AI150: =IF(OR(AG150=0,AG150="",AH150=0,AH150=""),"",SUM(AG150:AH150)) ->  | AQ150: Drainage/ducting
AQ151: HDPE Pipe
G152: Volume (m3) (assume 0.016m2) | H152: Type | I152: Density (t/m3) | U152: Embodied tCO2/t Precast concrete | V152: Total tCO2/t Precast Concrete | AQ152: PVC Pipe
F153: Kerbs | G153: =IF(($F$13=""),"",($F$13*2)*0.016) ->  | H153: ='HIDDEN_Construction Materials'!C120 -> Precast Concrete | I153: 2.4 | U153: ='HIDDEN_Construction Materials'!$E$120 -> 0.215 | V153: =IF(G153="","",U153) ->  | W153: Telehandler - General | X153: =IF(OR(G153=0,G153=""),"",1) ->  | Y153: =IF(OR(G153=0,G153=""),"",(($Y$26*0.3)/6)) ->  | Z153: =IF(OR(W153="",X153="",Y153=""),"",VLOOKUP(W153,'HIDDEN_Construction Materials'!$B$196:$E$221,3,FALSE)) ->  | AA153: Freight - Diesel HGV (All Rigids) 53% (UK Average) | AB153: =IF(OR(G153="",AA153=""),"",2) ->  | AC153: Local supplier | AD153: =IF(AC153="National supplier","250","50") -> 50 | AE153: =IF(AA153="","",VLOOKUP(AA153,'HIDDEN_Construction Materials'!$B$136:$E$194,3,FALSE)) -> 0.0008021 | AG153: =IF(OR(G153="",V153="",Z153=""),"",((G153*I153*V153))+(X153*Y153*Z153)) ->  | AH153: =IF(OR(AA153="",AB153="",AD153=""),"",(AB153*AD153*AE153)) ->  | AI153: =IF(OR(AG153=0,AG153="",AH153=0,AH153=""),"",SUM(AG153:AH153)) ->  | AQ153: Plant
AQ154: =Information!D124 -> Dumper - Small Dump Truck Less than 10t
G155: Volume (m3) (Default length, 100mm dia, 3mm thickness) | H155: Type | I155: Density (t/m3) | U155: Embodied tCO2/t Plastic pipe | V155: Total tCO2/t Plastic pipe | AQ155: =Information!D125 -> Dumper - Articulated Dump Truck 10-20t
F156: Drainage / ducting | G156: =IF($F$13="","",(($F$13*2)*(PI()*0.1)*0.003)) ->  | H156: PVC Pipe | I156: =IF(H156="","",(VLOOKUP(H156,'HIDDEN_Construction Materials'!$D$121:$H$122,5,FALSE))) -> 1.4 | U156: =IF(H156="","",(VLOOKUP(H156,'HIDDEN_Construction Materials'!$D$121:$H$122,2,FALSE))) -> 2.5 | V156: =IF(G156="","",U156) ->  | W156: Telehandler - General | X156: =IF(OR(G156=0,G156=""),"",1) ->  | Y156: =IF(OR(G156=0,G156=""),"",(($Y$26*0.3)/6)) ->  | Z156: =IF(OR(W156="",X156="",Y156=""),"",VLOOKUP(W156,'HIDDEN_Construction Materials'!$B$196:$E$221,3,FALSE)) ->  | AA156: Freight - Diesel HGV (All Rigids) 53% (UK Average) | AB156: =IF(OR(G156="",AA156=""),"",2) ->  | AC156: Local supplier | AD156: =IF(AC156="National supplier","250","50") -> 50 | AE156: =IF(AA156="","",VLOOKUP(AA156,'HIDDEN_Construction Materials'!$B$136:$E$194,3,FALSE)) -> 0.0008021 | AG156: =IF(OR(G156="",V156="",Z156=""),"",((G156*I156*V156)+(X156*Y156*Z156))) ->  | AH156: =IF(OR(AA156="",AB156="",AD156=""),"",(AB156*AD156*AE156)) ->  | AI156: =IF(OR(AG156=0,AG156="",AH156=0,AH156=""),"",SUM(AG156:AH156)) ->  | AQ156: =Information!D126 -> Dumper - Articulated Dump Truck 20-30t
AQ157: =Information!D127 -> Dumper - Articulated Dump Truck Above 30t
E158: Waste material | G158: Volume (m3) Default 5% of bridge deck area | H158: Density (t/m3) | I158: Tonnage (t) | V158: Total tCO2/t Waste | AQ158: =Information!D128 -> Dumper - Off Highway less than 20t
F159: Inert waste | G159: =IF(OR($F$13="",$F$14=""),"",($F$13*$F$14*0.05)) ->  | H159: =IF(G159="","",'HIDDEN_Construction Materials'!$H$106) ->  | I159: =IF(G159="","",(G159*H159)) ->  | J159: ='Construction Materials'!$B$107 -> Waste Disposal Includes for transport, sorting , EfW, landfill impacts etc | V159: =IF(G159="","",'HIDDEN_Construction Materials'!$E$106) ->  | W159: Excavator - Small 6 - 10 tonnes | X159: =IF(OR(G159=0,G159=""),"",1) ->  | Y159: =IF(OR(G159=0,G159=""),"",(($Y$26*0.1))) ->  | Z159: =IF(OR(W159="",X159="",Y159=""),"",VLOOKUP(W159,'HIDDEN_Construction Materials'!$B$196:$E$221,3,FALSE)) ->  | AA159: =J159 -> Waste Disposal Includes for transport, sorting , EfW, landfill impacts etc | AG159: =IF(OR(G159="",V159="",Z159=""),"",((I159*V159)+(X159*Y159*Z159))) ->  | AI159: =IF(AG159="","",AG159) ->  | AQ159: =Information!D129 -> Dumper - Off Highway 20-40t
F160: Note: cannot be used as aggregate | AH160: Sum | AI160: =IF(AND(AI96="",AI97="",AI100="",AI103="",AI106="",AI107="",AI110="",AI111="",AI112="",AI113="",AI114="",AI117="",AI118="",AI119="",AI120="",AI121="",AI124="",AI127="",AI130="",AI131="",AI134="",AI137="",AI140="",AI141="",AI144="",AI147="",AI150="",AI153="",AI156="",AI159=""),"",SUM(AI96:AI159)) ->  | AQ160: =Information!D130 -> Dumper - Off Highway Above 40-60t
AQ161: =Information!D131 -> Dumper - Off Highway Above 60-80t
AQ162: =Information!D132 -> Dumper - Off Highway Above 80t
B163: Maintenance | C163: Maintenance Activity | E163: Maintenance | AG163: Maintenance | AQ163: =Information!D133 -> Excavator - Mini <5 tonnes
E164: Activity | G164: Inspection and maintenance of structure | T164: Construction Material CO2 Emissions | W164: Plant & equipment | AA164: Transport of Materials | AG164: CO2 Footprint | AQ164: =Information!D134 -> Excavator - Small 6 - 10 tonnes
AQ165: =Information!D135 -> Excavator - Medium 11-15 tonnes
C166: Inspections | G166: Frequency (in years) | H166: Total number of activities in 120 years | W166: Plant / tools | X166: No. on site | Y166: No. of hours in use | Z166: tCO2/hr | AA166: Transport of Materials and staff for inspection | AB166: Frequency of visit (per week) | AC166: Local or national supplier | AD166: Distance (50km local, 250km national) | AE166: CO2/t per km | AG166: Embodied | AH166: Transport | AI166: Sum | AQ166: =Information!D136 -> Excavator - Large 16-25 tonnes
E167: Principal inspections | G167: 6 | H167: =120/G167-1 -> 19 | W167: =AQ178 -> Telehandler - General | X167: =IF(OR(G167=0,G167=""),"",1) -> 1 | Y167: =IF(OR(G167=0,G167=""),"",15) -> 15 | Z167: =IF(OR(W167="",X167="",Y167=""),"",VLOOKUP(W167,'HIDDEN_Construction Materials'!$B$196:$E$221,3,FALSE)) -> 0.01933424437 | AA167: ='Construction Materials'!$B$226 -> Average Car (unknown fuel) | AB167: =IF(OR(G167="",AA167=""),"",2) -> 2 | AC167: Local supplier | AD167: =IF(AC167="National supplier","250","50") -> 50 | AE167: =IF(AA167="","",VLOOKUP(AA167,'HIDDEN_Construction Materials'!$B$226:$E$226,4,FALSE))/1000 -> 0.00020487 | AG167: =IF(OR(G167="",H167="",Z167=""),"",(H167*(X167*Y167*Z167))) -> 5.510259645 | AH167: =IF(OR(AA167="",AB167="",AD167=""),"",(AB167*AD167*AE167)) -> 0.020487 | AI167: =IF(OR(AG167=0,AG167="",AH167=0,AH167=""),"",SUM(AG167:AH167)) -> 5.530746645 | AQ167: =Information!D137 -> Excavator - Very Large >25 tonnes
E168: Interim inspections | G168: 2 | H168: =120/G168-H167 -> 41 | W168: =AQ178 -> Telehandler - General | X168: 1 | Y168: =IF(OR(G168=0,G168=""),"",15) -> 15 | Z168: =IF(OR(W168="",X168="",Y168=""),"",VLOOKUP(W168,'HIDDEN_Construction Materials'!$B$196:$E$221,3,FALSE)) -> 0.01933424437 | AA168: ='Construction Materials'!$B$226 -> Average Car (unknown fuel) | AB168: =IF(OR(G168="",AA168=""),"",2) -> 2 | AC168: Local supplier | AD168: =IF(AC168="National supplier","250","50") -> 50 | AE168: =IF(AA168="","",VLOOKUP(AA168,'HIDDEN_Construction Materials'!$B$226:$E$226,4,FALSE))/1000 -> 0.00020487 | AG168: =IF(OR(G168="",H168="",Z168=""),"",(H168*(X168*Y168*Z168))) -> 11.89056029 | AH168: =IF(OR(AA168="",AB168="",AD168=""),"",(AB168*AD168*AE168)) -> 0.020487 | AI168: =IF(OR(AG168=0,AG168="",AH168=0,AH168=""),"",SUM(AG168:AH168)) -> 11.91104729 | AQ168: =Information!D138 -> Loader - Backhoe
E169: Note: Principal and Interim inspections are not done at the same time - this is allowed for by reducing the number of interim inspections by the number of principal inspections | AQ169: =Information!D139 -> Loader - Mid Wheeled Loaders (<3 m3)
AQ170: =Information!D140 -> Loader - Large Wheeled Loaders (>3 m3)
AQ171: =Information!D141 -> Compactor - Compactor <10 tonnes
C172: Routine Maintenance | G172: Painted area (m2) | U172: Embodied tCO2/m2 Paint Double Coat | V172: Total tCO2/sqm Paint | W172: Plant / tools | X172: No. on site | Y172: No. of hours in use | Z172: tCO2/hr | AA172: Transport of Materials | AB172: No of deliveries (Concrete based on 6m3 per wagon, other materials on 20tonnes per truck, discrete materials default 2 deliveries) | AC172: Local or national supplier | AD172: Distance (50km local, 250km national) | AE172: CO2/t per km | AQ172: =Information!D142 -> Compactor - Compactor >10 tonnes
E173: Re-painting of steel | G173: =IF(SUMMARY!G35="","",(SUM(M110:M114))) ->  | U173: =IF(G173="","",('HIDDEN_Construction Materials'!$G$119)) ->  | V173: =IF(G173="","",U173) ->  | W173: Telehandler - General | X173: =IF(OR(G173=0,G173=""),"",1) ->  | Y173: =IF(OR(G173=0,G173=""),"",40) ->  | Z173: =IF(OR(W173="",X173="",Y173=""),"",VLOOKUP(W173,'HIDDEN_Construction Materials'!$B$196:$E$221,3,FALSE)) ->  | AA173: Freight - Diesel (Average) Van/LCV [≤3.5t] | AB173: =IF(OR(G173="",AA173=""),"",2) ->  | AC173: Local supplier | AD173: =IF(AC173="National supplier","250","50") -> 50 | AE173: =IF(AA173="","",VLOOKUP(AA173,'HIDDEN_Construction Materials'!$B$136:$E$194,3,FALSE)) -> 0.00027347 | AG173: =IF(OR(G173="",V173="",Z173=""),"",(((G173*V173)+(X173*Y173*Z173))*MAX($L$226:$L$228))) ->  | AH173: =IF(OR(AA173="",AB173="",AD173=""),"",(AB173*AD173*AE173)) ->  | AI173: =IF(OR(AG173=0,AG173="",AH173=0,AH173=""),"",SUM(AG173:AH173)) ->  | AQ173: =Information!D143 -> Tractor - General
AQ174: =Information!D144 -> Crusher -General
G175: Number | H175: Volume per bearing (m3) (Default 0.01% of deck area) | J175: Density (t/m3) | K175: Painted area (m2) (default 0.1% of deck area) | L175: Tonnage per bearing (t) | T175: Embodied tCO2 per bearing | U175: Embodied tCO2/m2 Paint Double Coat | V175: Total tCO2 per Bearing | AQ175: =Information!D145 -> Screener - General
E176: Bearings replacement | F176: Mechanical | G176: =IF(G96="","",G96) ->  | H176: =IF(OR($F$13="",$F$14=""),"",($F$13*$F$14*0.01%)) ->  | J176: ='HIDDEN_Construction Materials'!$J$114 -> 8 | K176: =IF(H176="","",(H176*10)) ->  | L176: =IF(OR(G176="",H176=""),"",((H176*J176))) ->  | T176: =IF(G176="","",(VLOOKUP(F176,'HIDDEN_Construction Materials'!$C$114:$J$115,3,FALSE)*L176)) ->  | U176: =IF(K176="","",('HIDDEN_Construction Materials'!$G$119)) ->  | V176: =IF(OR(T176="",U176=""),"",(T176+(U176*K176))) ->  | W176: Telehandler - General | X176: =IF(OR(G176=0,G176=""),"",1) ->  | Y176: =IF(OR(G176=0,G176=""),"",100) ->  | Z176: =IF(OR(W176="",X176="",Y176=""),"",VLOOKUP(W176,'HIDDEN_Construction Materials'!$B$196:$E$221,3,FALSE)) ->  | AA176: Freight - Diesel HGV (All Rigids) 53% (UK Average) | AB176: =IF(OR(G176="",AA176=""),"",2) ->  | AC176: National supplier | AD176: =IF(AC176="National supplier","250","50") -> 250 | AE176: =IF(AA176="","",VLOOKUP(AA176,'HIDDEN_Construction Materials'!$B$136:$E$194,3,FALSE)) -> 0.0008021 | AG176: =IF(OR(G176="",V176="",Z176=""),"",(((G176*V176)+(X176*Y176*Z176))*MAX($L$230:$L$232))) ->  | AH176: =IF(OR(AA176="",AB176="",AD176=""),"",(AB176*AD176*AE176)) ->  | AI176: =IF(OR(AG176=0,AG176="",AH176=0,AH176=""),"",SUM(AG176:AH176)) ->  | AQ176: =Information!D146 -> Crane - General
F177: Elastomeric | G177: =IF(G97="","",G97) ->  | H177: =IF(OR($F$13="",$F$14=""),"",($F$13*$F$14*0.01%)) ->  | J177: ='HIDDEN_Construction Materials'!$J$115 -> 1.5 | L177: =IF(OR(G177="",H177=""),"",((H177*J177))) ->  | T177: =IF(G177="","",(VLOOKUP(F177,'HIDDEN_Construction Materials'!$C$114:$J$115,3,FALSE)*L177)) ->  | V177: =IF(OR(T177="",L177=""),"",T177) ->  | W177: Telehandler - General | Y177: =IF(OR(G177=0,G177=""),"",100) ->  | Z177: =IF(OR(W177="",X177="",Y177=""),"",VLOOKUP(W177,'HIDDEN_Construction Materials'!$B$196:$E$221,3,FALSE)) ->  | AA177: Cradle to site | AG177: =IF(OR(G177="",V177="",Z177=""),"",(((G177*V177)+(X177*Y177*Z177))*MAX($L$230:$L$232))) ->  | AI177: =IF(AG177="","",AG177) ->  | AQ177: =Information!D147 -> Screener/Crusher Bucket - General
E178: Note: Bearing Replacement assumes no strengthening is required | AQ178: =Information!D148 -> Telehandler - General
G179: Volume (m3) (Default is volume of bearing plinth) | H179: Concrete Grade | I179: Exposure class | J179: Min Grade for exposure class | K179: Min Cement for exposure class (kg/m3) | L179: Cement for concrete grade (kg/m3) | M179: Cement type (default OPC): | N179: Aggregate source % recycled (Default 0%) | O179: Concrete Density (tonnes/m3) | P179: Steel Source (Default WSA): | Q179: Steel Density (tonnes/m3) | R179: Reinforcement % by steel volume | S179: Density of aggregate (t/m3 of concrete) | T179: Embodied tCO2/t cement | U179: Embodied tCO2/t aggregate | V179: Embodied tCO2/t steel | AQ179: =Information!D149 -> Piling rigg
F180: Reinforced concrete | G180: =IF(G103="","",G103) ->  | H180: C40/50 | I180: XC3 | J180: =IF(I180="","",VLOOKUP($I180,'HIDDEN_Construction Materials'!$H$7:$K$24,3,FALSE)) -> C30/37 | K180: =IF(I180="","",VLOOKUP($I180,'HIDDEN_Construction Materials'!$H$7:$K$24,4,FALSE)) -> 280 | L180: =IF(H180="","",VLOOKUP($H180,'HIDDEN_Construction Materials'!$B$38:$F$45,2,FALSE)) -> 380 | M180: CEM I Portland Cement | N180: 0 | O180: =IF(H180=0,"",VLOOKUP(H180,'HIDDEN_Construction Materials'!$B$24:$F$45,5,FALSE)) -> 2.4 | P180: WSA - Bar & Rod | Q180: =IF(P180="","",(VLOOKUP(P180,'HIDDEN_Construction Materials'!$D$49:$J$58,7,FALSE))) -> 7.85 | R180: 2.5 | S180: =IF(OR(G180="",K180="",L180="",N180=""),"",(VLOOKUP(N180,'HIDDEN_Construction Materials'!$H$28:$O$32,8,FALSE))) ->  | T180: =IF(OR(G180="",K180="",L180="",N180=""),"",(VLOOKUP(M180,'HIDDEN_Construction Materials'!$B$6:$F$34,5,FALSE))) ->  | U180: =IF(OR(G180="",K180="",L180="",N180=""),"",(VLOOKUP(N180,'HIDDEN_Construction Materials'!$H$28:$M$32,5,FALSE))) ->  | V180: =IF(OR(G180="",P180="",Q180=""),"",(VLOOKUP(P180,'HIDDEN_Construction Materials'!$D$49:$J$58,4,FALSE))) ->  | W180: Dumper - Articulated Dump Truck 10-20t | X180: =IF(OR(G180=0,G180=""),"",1) ->  | Y180: =IF(OR(G180=0,G180=""),"",40) ->  | Z180: =IF(OR(W180="",X180="",Y180=""),"",VLOOKUP(W180,'HIDDEN_Construction Materials'!$B$196:$E$221,3,FALSE)) ->  | AA180: Freight - Diesel HGV (All Rigids) 53% (UK Average) | AB180: =IF(OR(G180="",AA180=""),"",G180/6) ->  | AC180: Local supplier | AD180: =IF(AC180="National supplier","250","50") -> 50 | AE180: =IF(AA180="","",VLOOKUP(AA180,'HIDDEN_Construction Materials'!$B$136:$E$194,3,FALSE)) -> 0.0008021 | AG180: =IF(OR(G180="",V180="",Z180=""),"",((MAX(K180,L180)/1000*G180*(1-(R180/100))*T180)+(S180*G180*(1-(R180/100))*U180)+(Q180*G180*(R180/100)*V180)+(X180*Y180*Z180))) ->  | AH180: =IF(OR(AA180="",AB180="",AD180=""),"",(AB180*AD180*AE180)) ->  | AI180: =IF(OR(AG180=0,AG180="",AH180=0,AH180=""),"",SUM(AG180:AH180)) ->  | AQ180: Parapets
M181: =(IF(OR(M180=$AQ$73,M180=$AQ$86,M180=$AQ$87,M180=$AQ$88,M180=$AQ$89,M180=$AQ$90,M180=$AQ$91,M180=$AQ$92,M180=$AQ$93,M180=$AQ$94,M180=$AQ$95,M180=$AQ$96,M180=$AQ$97),"DOUBLE COUNTING - see 'Information' worksheet","")) ->  | AQ181: ='Construction Materials'!D101 -> Steel based parapet system
F182: Formwork | G182: Area (m2) based on 30% concrete volume | H182: Type | J182: Reuse (state no. of times) BLANK if none | K182: Density (kg/m2*20mm timber, 8mm others) | L182: Tonnage (t) | T182: User value input tCO2/t formwork | U182: Embodied tCO2/t formwork | V182: Total tCO2/t Formwork | AQ182: Backfill
F183: Timber | G183: =IF($G$180="","",($G$180*0.3)) ->  | H183: Timber - General | K183: =IF(H183="","",VLOOKUP(H183,'HIDDEN_Construction Materials'!$D$67:$J$73,7,FALSE)) -> 25 | L183: =IF(OR(G183="",H183=""),"",(IF(J183="",((G183*K183)/1000),((G183*K183/(J183+1))/1000)))) ->  | U183: =IF(H183="","",VLOOKUP(H183,'HIDDEN_Construction Materials'!$D$67:$E$73,2,FALSE)) -> 0.00046 | V183: =IF(OR(G183="",H183=""),"",(IF(T183="",U183,T183))) ->  | W183: Telehandler - General | X183: =IF(OR(G183=0,G183=""),"",1) ->  | Y183: =IF(OR(G183=0,G183=""),"",10) ->  | Z183: =IF(OR(W183="",X183="",Y183=""),"",VLOOKUP(W183,'HIDDEN_Construction Materials'!$B$196:$E$221,3,FALSE)) ->  | AA183: Cradle to site | AG183: =IF(OR(G183="",V183="",Z183=""),"",((L183*V183)+(X183*Y183*Z183))*MAX($L$230:$L$232)) ->  | AI183: =IF(AG183="","",AG183) ->  | AQ183: Sand
F184: Other | K184: =IF(H184="","",VLOOKUP(H184,'HIDDEN_Construction Materials'!$D$72:$J$73,7,FALSE)) ->  | L184: =IF(OR(G184="",H184=""),"",(IF(J184="",((G184*K184)/1000),((G184*K184/(J184+1))/1000)))) ->  | U184: =IF(H184="","",VLOOKUP(H184,'HIDDEN_Construction Materials'!$D$72:$E$73,2,FALSE)) ->  | V184: =IF(OR(G184="",H184=""),"",(IF(T184="",U184,T184))) ->  | W184: Telehandler - General | Y184: =IF(OR(G184=0,G184=""),"",10) ->  | Z184: =IF(OR(W184="",X184="",Y184=""),"",VLOOKUP(W184,'HIDDEN_Construction Materials'!$B$196:$E$221,3,FALSE)) ->  | AA184: Freight - Diesel (Average) Van/LCV [≤3.5t] | AB184: =IF(OR(G184="",AA184=""),"",2) ->  | AC184: Local supplier | AD184: =IF(AC184="National supplier","250","50") -> 50 | AE184: =IF(AA184="","",VLOOKUP(AA184,'HIDDEN_Construction Materials'!$B$136:$E$194,3,FALSE)) -> 0.00027347 | AG184: =IF(OR(G184="",V184="",Z184=""),"",((L184*V184)+(X184*Y184*Z184))*MAX($L$230:$L$232)) ->  | AH184: =IF(OR(AA184="",AB184="",AD184=""),"",(AB184*AD184*AE184)) ->  | AI184: =IF(OR(AG184=0,AG184="",AH184=0,AH184=""),"",SUM(AG184:AH184)) ->  | AQ184: Soil
AQ185: Stone: General
G186: Length (m) | H186: Volume (m3) (600x125mm area) | I186: Density | J186: Tonnage | U186: Embodied tCO2/t rubber expansion joints | V186: Total tCO2/t Rubber expansion joints | AQ186: Stone: Gravel /Chippings
E187: Expansion Joints | F187: Rubber | G187: =IF(G100="","",G100) ->  | H187: =IF(G187="","",G187*0.075) ->  | I187: =VLOOKUP(F187,'HIDDEN_Construction Materials'!$C$112:$J$120,6,FALSE) -> 1.5 | J187: =IF(OR(H187="",I187=""),"",(H187*I187)) ->  | U187: =IF(F187="","",('HIDDEN_Construction Materials'!E116)) -> 1.63 | V187: =IF(J187="","",(U187)) ->  | W187: Telehandler - General | X187: =IF(OR(G187=0,G187=""),"",1) ->  | Y187: =IF(OR(G187=0,G187=""),"",100) ->  | Z187: =IF(OR(W187="",X187="",Y187=""),"",VLOOKUP(W187,'HIDDEN_Construction Materials'!$B$196:$E$221,3,FALSE)) ->  | AA187: Cradle to site | AG187: =IF(OR(G187="",V187="",Z187=""),"",(((V187*J187)+(X187*Y187*Z187))*MAX($L$234:$L$236))) ->  | AI187: =IF(AG187="","",AG187) ->  | AQ187: Lighting columns
AQ188: Steel Column
E189: Road Restraint System Replacement | AQ189: Aluminium Column
G190: Length (m) | H190: Type | U190: Embodied tCO2/1m | V190: Total tCO2/m length of parapet | AQ190: Closure type
F191: Steel | G191: =IF(G134="","",G134) ->  | H191: Steel based parapet system | U191: =IF(H191="","",VLOOKUP(H191,'HIDDEN_Construction Materials'!$D$101:$G$101,4,FALSE)) -> 0.05126 | V191: =IF(G191="","",(U191)) ->  | W191: Telehandler - General | X191: =IF(OR(G191=0,G191=""),"",1) ->  | Y191: =IF(OR(G191=0,G191=""),"",40) ->  | Z191: =IF(OR(W191="",X191="",Y191=""),"",VLOOKUP(W191,'HIDDEN_Construction Materials'!$B$196:$E$221,3,FALSE)) ->  | AA191: Freight - Diesel (Average) Van/LCV [≤3.5t] | AB191: =IF(OR(G191="",AA191=""),"",2) ->  | AC191: National supplier | AD191: =IF(AC191="National supplier","250","50") -> 250 | AE191: =IF(AA191="","",VLOOKUP(AA191,'HIDDEN_Construction Materials'!$B$136:$E$194,3,FALSE)) -> 0.00027347 | AG191: =IF(OR(G191="",V191="",Z191=""),"",(((G191*V191)+(X191*Y191*Z191))*MAX($M$238:$M$240))) ->  | AH191: =IF(OR(AA191="",AB191="",AD191=""),"",(AB191*AD191*AE191)) ->  | AI191: =IF(OR(AG191=0,AG191="",AH191=0,AH191=""),"",SUM(AG191:AH191)) ->  | AQ191: ='Construction Materials'!B243 -> Lane - Night -
AQ192: ='Construction Materials'!B244 -> Lane - Weekend -
G193: Volume (m3) | H193: Concrete Grade | I193: Exposure class | J193: Min Grade for exposure class | K193: Min Cement for exposure class (kg/m3) | L193: Cement for concrete grade (kg/m3) | M193: Cement type (default OPC): | N193: Aggregate source % recycled (Default 0%) | O193: Concrete Density (tonnes/m3) | P193: Steel Source (Default WSA): | Q193: Steel Density (tonnes/m3) | R193: Reinforcement % by steel volume | S193: Density of aggregate (t/m3 of concrete) | T193: Embodied tCO2/t cement | U193: Embodied tCO2/t aggregate | V193: Embodied tCO2/t steel | AQ193: ='Construction Materials'!B245 -> Lane - 24 hours -
F194: Reinforced concrete | H194: C40/50 | I194: XC3 | J194: =IF(I194="","",VLOOKUP($I194,'HIDDEN_Construction Materials'!$H$7:$K$24,3,FALSE)) -> C30/37 | K194: =IF(I194="","",VLOOKUP($I194,'HIDDEN_Construction Materials'!$H$7:$K$24,4,FALSE)) -> 280 | L194: =IF(H194="","",VLOOKUP($H194,'HIDDEN_Construction Materials'!$B$38:$F$45,2,FALSE)) -> 380 | M194: CEM I Portland Cement | N194: 0 | O194: =IF(H194=0,"",VLOOKUP(H194,'HIDDEN_Construction Materials'!$B$24:$F$45,5,FALSE)) -> 2.4 | P194: WSA - Bar & Rod | Q194: =IF(P194="","",(VLOOKUP(P194,'HIDDEN_Construction Materials'!$D$49:$J$58,7,FALSE))) -> 7.85 | R194: 2.5 | S194: =IF(OR(G194="",K194="",L194="",N194=""),"",(VLOOKUP(N194,'HIDDEN_Construction Materials'!$H$28:$O$32,8,FALSE))) ->  | T194: =IF(OR(G194="",K194="",L194="",N194=""),"",(VLOOKUP(M194,'HIDDEN_Construction Materials'!$B$6:$F$34,5,FALSE))) ->  | U194: =IF(OR(G194="",K194="",L194="",N194=""),"",(VLOOKUP(N194,'HIDDEN_Construction Materials'!$H$28:$M$32,5,FALSE))) ->  | V194: =IF(OR(G194="",P194="",Q194=""),"",(VLOOKUP(P194,'HIDDEN_Construction Materials'!$D$49:$J$58,4,FALSE))) ->  | W194: Dumper - Articulated Dump Truck 10-20t | X194: =IF(OR(G194=0,G194=""),"",1) ->  | Y194: =IF(OR(G194=0,G194=""),"",40) ->  | Z194: =IF(OR(W194="",X194="",Y194=""),"",VLOOKUP(W194,'HIDDEN_Construction Materials'!$B$196:$E$221,3,FALSE)) ->  | AA194: Freight - Diesel HGV (All Rigids) 53% (UK Average) | AB194: =IF(OR(G194="",AA194=""),"",G194/6) ->  | AC194: Local supplier | AD194: =IF(AC194="National supplier","250","50") -> 50 | AE194: =IF(AA194="","",VLOOKUP(AA194,'HIDDEN_Construction Materials'!$B$136:$E$194,3,FALSE)) -> 0.0008021 | AG194: =IF(OR(G194="",V194="",Z194=""),"",((MAX(K194,L194)/1000*G194*(1-(R194/100))*T194)+(S194*G194*(1-(R194/100))*U194)+(Q194*G194*(R194/100)*V194)+(X194*Y194*Z194))) ->  | AH194: =IF(OR(AA194="",AB194="",AD194=""),"",(AB194*AD194*AE194)) ->  | AI194: =IF(OR(AG194=0,AG194="",AH194=0,AH194=""),"",SUM(AG194:AH194)) ->  | AQ194: ='Construction Materials'!B246 -> Road - Night -
M195: =(IF(OR(M194=$AQ$73,M194=$AQ$86,M194=$AQ$87,M194=$AQ$88,M194=$AQ$89,M194=$AQ$90,M194=$AQ$91,M194=$AQ$92,M194=$AQ$93,M194=$AQ$94,M194=$AQ$95,M194=$AQ$96,M194=$AQ$97),"DOUBLE COUNTING - see 'Information' worksheet","")) ->  | AQ195: ='Construction Materials'!B247 -> Road - Weekend -
F196: Formwork | G196: Area (m2) based on 30% concrete volume | H196: Type | J196: Reuse (state no. of times) BLANK if none | K196: Density (kg/m2*20mm timber, 8mm others) | L196: Tonnage (t) | T196: User value input tCO2/t formwork | U196: Embodied tCO2/t formwork | V196: Total tCO2/t formwork | AQ196: ='Construction Materials'!B248 -> Road - 24 hours -
F197: Timber | G197: =IF($G$194="","",($G$194*0.3)) ->  | H197: Timber - General | K197: =IF(H197="","",VLOOKUP(H197,'HIDDEN_Construction Materials'!$D$67:$J$73,7,FALSE)) -> 25 | L197: =IF(OR(G197="",H197=""),"",(IF(J197="",((G197*K197)/1000),((G197*K197/(J197+1))/1000)))) ->  | U197: =IF(H197="","",VLOOKUP(H197,'HIDDEN_Construction Materials'!$D$67:$E$73,2,FALSE)) -> 0.00046 | V197: =IF(OR(G197="",H197=""),"",(IF(T197="",U197,T197))) ->  | W197: Telehandler - General | X197: =IF(OR(G197=0,G197=""),"",1) ->  | Y197: =IF(OR(G197=0,G197=""),"",10) ->  | Z197: =IF(OR(W197="",X197="",Y197=""),"",VLOOKUP(W197,'HIDDEN_Construction Materials'!$B$196:$E$221,3,FALSE)) ->  | AA197: Cradle to site | AG197: =IF(OR(G197="",V197="",Z197=""),"",(((L197*V197)+(X197*Y197*Z197))*MAX($M$238:$M$240))) ->  | AI197: =IF(AG197="","",AG197) ->  | AQ197: ='Construction Materials'!B249 -> None -
F198: Other | K198: =IF(H198="","",VLOOKUP(H198,'HIDDEN_Construction Materials'!$D$72:$J$73,7,FALSE)) ->  | L198: =IF(OR(G198="",H198=""),"",(IF(J198="",((G198*K198)/1000),((G198*K198/(J198+1))/1000)))) ->  | U198: =IF(H198="","",VLOOKUP(H198,'HIDDEN_Construction Materials'!$D$72:$E$73,2,FALSE)) ->  | V198: =IF(OR(G198="",H198=""),"",(IF(T198="",U198,T198))) ->  | W198: Telehandler - General | Y198: =IF(OR(G198=0,G198=""),"",10) ->  | Z198: =IF(OR(W198="",X198="",Y198=""),"",VLOOKUP(W198,'HIDDEN_Construction Materials'!$B$196:$E$221,3,FALSE)) ->  | AA198: Freight - Diesel (Average) Van/LCV [≤3.5t] | AB198: =IF(OR(G198="",AA198=""),"",2) ->  | AC198: Local supplier | AD198: =IF(AC198="National supplier","250","50") -> 50 | AE198: =IF(AA198="","",VLOOKUP(AA198,'HIDDEN_Construction Materials'!$B$136:$E$194,3,FALSE)) -> 0.00027347 | AG198: =IF(OR(G198="",V198="",Z198=""),"",(((L198*V198)+(X198*Y198*Z198))*MAX($M$238:$M$240))) ->  | AH198: =IF(OR(AA198="",AB198="",AD198=""),"",(AB198*AD198*AE198)) ->  | AI198: =IF(OR(AG198=0,AG198="",AH198=0,AH198=""),"",SUM(AG198:AH198)) ->  | AQ198: Question
M199: =(IF(OR(M198=$AQ$73,M198=$AQ$86,M198=$AQ$87,M198=$AQ$88,M198=$AQ$89,M198=$AQ$90,M198=$AQ$91,M198=$AQ$92,M198=$AQ$93,M198=$AQ$94,M198=$AQ$95,M198=$AQ$96,M198=$AQ$97),"DOUBLE COUNTING - see 'Information' worksheet","")) ->  | AQ199: Yes
AQ200: No
G201: Volume (m3) (Default 10% deck concrete volume) | H201: Concrete Grade | I201: Exposure class | J201: Min Grade for exposure class | K201: Min Cement for exposure class (kg/m3) | L201: Cement for concrete grade (kg/m3) | M201: Cement type (default OPC): | N201: Aggregate source % recycled (Default 0%) | O201: Concrete Density (tonnes/m3) | P201: Steel Source (Default WSA): | Q201: Steel Density (tonnes/m3) | R201: Reinforcement % by steel volume | S201: Density of aggregate (t/m3 of concrete) | T201: Embodied tCO2/t cement | U201: Embodied tCO2/t aggregate | V201: Embodied tCO2/t steel
... 28 more rows

Sheet HIDDEN_Construction Materials (hidden)
B2: Construction Material Details, Transport Details and Maintenance Duration and Frequencies
B4: Concrete
B5: Cement | C5: Material unit conversion | D5: tCO2/t | E5: Override value | F5: tCO2/t to use | H5: Concrete | I5: Based on table F.1 in BS EN 206-1
B6: CEM I Portland Cement | C6: 1.5 tonnes/m3 | D6: 0.93 | F6: =IF(E6="",D6,E6) -> 0.93 | H6: Exposure Class | I6: Minimum w/c | J6: Minimum Strength Class | K6: Minimum Cement Content | L6: Density (tonnes/m3) | M6: Override value | N6: To use | AA6: =D54 -> ICE Bath Database - Bar & Rod - 50:50 method
B7: Ground Granulated Blastfurnace Slag (GGBS) | C7: 1.5 tonnes/m3 | D7: 0.005 | F7: 0.005 | H7: X0 | I7: 0.725 | J7: C12/15 | K7: 200 | L7: 2.4 | N7: =IF(M7="",L7,M7) -> 2.4
B8: Fly Ash | C8: 1.5 tonnes/m3 | D8: 0 | F8: 0 | H8: XC1 | I8: 0.65 | J8: C20/25 | K8: 260 | L8: 2.4 | N8: 2.4
B9: Limestone | C9: 1.5 tonnes/m3 | D9: 0.03 | F9: 0.03 | H9: XC2 | I9: 0.6 | J9: C25/30 | K9: 280 | L9: 2.4 | N9: 2.4
B10: Cement: Unknown Type | C10: 1.5 tonnes/m3 | D10: 0.88 | F10: 0.88 | H10: XC3 | I10: 0.55 | J10: C30/37 | K10: 280 | L10: 2.4 | N10: 2.4
B11: Portland Limestone Cement, CEM II/A-LL or L (20% limestone) | C11: 1.5 tonnes/m3 | D11: 0.75 | F11: 0.75 | H11: XC4 | I11: 0.5 | J11: C30/37 | K11: 300 | L11: 2.4 | N11: 2.4
B12: Portland Limestone Cement, CEM II/A-LL or L (13% limestone) | C12: 1.5 tonnes/m3 | D12: 0.82 | F12: 0.82 | H12: XS1 | I12: 0.5 | J12: C30/37 | K12: 300 | L12: 2.4 | N12: 2.4
B13: Portland Limestone Cement, CEM II/A-LL or L (6% limestone) | C13: 1.5 tonnes/m3 | D13: 0.88 | F13: 0.88 | H13: XS2 | I13: 0.45 | J13: C35/45 | K13: 320 | L13: 2.4 | N13: 2.4
B14: Portland Fly Ash Cement, CEM II/A-V (20% Fly Ash) | C14: 1.5 tonnes/m3 | D14: 0.75 | F14: 0.75 | H14: XS3 | I14: 0.45 | J14: C35/45 | K14: 340 | L14: 2.4 | N14: 2.4
B15: Portland Fly Ash Cement, CEM II/A-V (13% Fly Ash) | C15: 1.5 tonnes/m3 | D15: 0.81 | F15: 0.81 | H15: XD1 | I15: 0.55 | J15: C30/37 | K15: 300 | L15: 2.4 | N15: 2.4
B16: Portland Fly Ash Cement, CEM II/A-V (6% Fly Ash) | C16: 1.5 tonnes/m3 | D16: 0.87 | F16: 0.87 | H16: XD2 | I16: 0.55 | J16: C30/37 | K16: 300 | L16: 2.4 | N16: 2.4
B17: Portland Fly Ash Cement, CEM II/B-V (35% Fly Ash) | C17: 1.5 tonnes/m3 | D17: 0.61 | F17: 0.61 | H17: XD3 | I17: 0.45 | J17: C35/45 | K17: 320 | L17: 2.4 | N17: 2.4
B18: Portland Fly Ash Cement, CEM II/B-V (28% Fly Ash) | C18: 1.5 tonnes/m3 | D18: 0.67 | F18: 0.67 | H18: XF1 | I18: 0.55 | J18: C30/37 | K18: 300 | L18: 2.4 | N18: 2.4
B19: Portland Fly Ash Cement, CEM II/B-V (21% Fly Ash) | C19: 1.5 tonnes/m3 | D19: 0.73 | F19: 0.73 | H19: XF2 | I19: 0.55 | J19: C25/30 | K19: 300 | L19: 2.4 | N19: 2.4
B20: Portland Slag Cement, CEM II/B-S (35% GGBS) | C20: 1.5 tonnes/m3 | D20: 0.62 | F20: 0.62 | H20: XF3 | I20: 0.5 | J20: C30/37 | K20: 320 | L20: 2.4 | N20: 2.4
B21: Portland Slag Cement, CEM II/B-S (28% GGBS) | C21: 1.5 tonnes/m3 | D21: 0.68 | F21: 0.68 | H21: XF4 | I21: 0.45 | J21: C30/37 | K21: 340 | L21: 2.4 | N21: 2.4
B22: Portland Slag Cement, CEM II/B-S (21% GGBS) | C22: 1.5 tonnes/m3 | D22: 0.74 | F22: 0.74 | H22: XA1 | I22: 0.55 | J22: C30/37 | K22: 300 | L22: 2.4 | N22: 2.4
B23: Blastfurnace Cement, CEM III/A (65% GGBS) | C23: 1.5 tonnes/m3 | D23: 0.36 | F23: 0.36 | H23: XA2 | I23: 0.5 | J23: C30/37 | K23: 320 | L23: 2.4 | N23: 2.4
B24: Blastfurnace Cement, CEM III/A (50.5% GGBS) | C24: 1.5 tonnes/m3 | D24: 0.48 | F24: 0.48 | H24: XA3 | I24: 0.45 | J24: C35/45 | K24: 360 | L24: 2.4 | N24: 2.4
B25: Blastfurnace Cement, CEM III/A (36% GGBS) | C25: 1.5 tonnes/m3 | D25: 0.61 | F25: 0.61
B26: Blastfurnace Cement, CEM III/B (80% GGBS) | C26: 1.5 tonnes/m3 | D26: 0.23 | F26: 0.23
B27: Blastfurnace Cement, CEM III/B (73% GGBS) | C27: 1.5 tonnes/m3 | D27: 0.29 | F27: 0.29 | I27: Aggregate | J27: tCO2/t | K27: Override value | L27: To use | M27: Density (tonnes/m3) | N27: Override value | O27: To use
B28: Blastfurnace Cement, CEM III/B (66% GGBS) | C28: 1.5 tonnes/m3 | D28: 0.34 | F28: 0.34 | H28: 0 | I28: Recycled | J28: 0.005 | L28: =IF(K28="",J28,K28) -> 0.005 | M28: 2 | O28: =IF(N28="",M28,N28) -> 2
B29: Pozzolanic (Siliceous Fly Ash) Cement, CEM IV/B-V (55% GGBS) | C29: 1.5 tonnes/m3 | D29: 0.42 | F29: 0.42 | H29: 0.25 | I29: Recycled | J29: =0.25*J32+0.75*J28 -> 0.0046725 | L29: =IF(K29="",J29,K29) -> 0.0046725 | M29: 2 | O29: =IF(N29="",M29,N29) -> 2
B30: Pozzolanic (Siliceous Fly Ash) Cement, CEM IV/B-V (45.5% GGBS) | C30: 1.5 tonnes/m3 | D30: 0.51 | F30: 0.51 | H30: 0.5 | I30: Recycled | J30: =0.5*J32+0.5*J28 -> 0.004345 | L30: =IF(K30="",J30,K30) -> 0.004345 | M30: 2 | O30: =IF(N30="",M30,N30) -> 2
B31: Pozzolanic (Siliceous Fly Ash) Cement, CEM IV/B-V (36% GGBS) | C31: 1.5 tonnes/m3 | D31: 0.59 | F31: 0.59 | H31: 0.75 | I31: Recycled | J31: =0.75*J32+0.25*J28 -> 0.0040175 | L31: =IF(K31="",J31,K31) -> 0.0040175 | M31: 2 | O31: =IF(N31="",M31,N31) -> 2
B32: Fibre Cement | C32: 1.5 tonnes/m3 | D32: 2.11 | F32: 2.11 | H32: 1 | I32: Recycled | J32: 0.00369 | L32: =IF(K32="",J32,K32) -> 0.00369 | M32: 2 | O32: =IF(N32="",M32,N32) -> 2
B33: Soil Cement | C33: 1.5 tonnes/m3 | D33: 0.14 | F33: 0.14
B34: Other | C34: 1.5 tonnes/m3 | F34: 0
B36: Concrete
B37: Strength Class | C37: Minimum Cement Content | D37: Density (tonnes/m3) | E37: Override value | F37: To use
B38: C12/15 | C38: 200 | D38: 2.4 | F38: =IF(E38="",D38,E38) -> 2.4
B39: C20/25 | C39: 260 | D39: 2.4 | F39: 2.4
B40: C25/30 | C40: 280 | D40: 2.4 | F40: 2.4
B41: C30/37 | C41: 280 | D41: 2.4 | F41: 2.4
B42: C32/40 | C42: 280 | D42: 2.4 | F42: 2.4
B43: C35/45 | C43: 320 | D43: 2.4 | F43: 2.4
B44: C40/50 | C44: 380 | D44: 2.4 | F44: 2.4
B45: C50/60 | C45: 380 | D45: 2.4 | F45: 2.4
B47: Steel
E48: tCO2/t | F48: Override value | G48: tCO2/t to use | H48: Density (t/m3) | I48: Override value | J48: To use
B49: WSA - Bar & Rod | D49: =B49&C49 -> WSA - Bar & Rod | E49: 1.231 | G49: =IF(F49="",E49,F49) -> 1.231 | H49: 7.85 | J49: =IF(I49="",H49,I49) -> 7.85
B50: WSA - Tube | D50: WSA - Tube | E50: 0.857 | G50: 0.857 | H50: 7.85 | J50: 7.85
B51: WSA - Plate | D51: WSA - Plate | E51: 0.919 | G51: 0.919 | H51: 7.85 | J51: 7.85
B52: WSA - Section | D52: WSA - Section | E52: 0.762 | G52: 0.762 | H52: 7.85 | J52: 7.85
B53: ICE Bath Database - General - | C53: 50:50 method | D53: ICE Bath Database - General - 50:50 method | E53: 1.03 | G53: 1.03 | H53: 7.85 | J53: 7.85
B54: ICE Bath Database - Bar & Rod - | C54: 50:50 method | D54: ICE Bath Database - Bar & Rod - 50:50 method | E54: 0.98 | G54: 0.98 | H54: 7.85 | J54: 7.85
B55: ICE Bath Database - Coil (galvanised) - | C55: 50:50 method | D55: ICE Bath Database - Coil (galvanised) - 50:50 method | E55: 1.09 | G55: 1.09 | H55: 7.85 | J55: 7.85
B56: ICE Bath Database - Plate - | C56: 50:50 method | D56: ICE Bath Database - Plate - 50:50 method | E56: 1.17 | G56: 1.17 | H56: 7.85 | J56: 7.85
B57: ICE Bath Database - Section - | C57: 50:50 method | D57: ICE Bath Database - Section - 50:50 method | E57: 1.06 | G57: 1.06 | H57: 7.85 | J57: 7.85
B58: ICE Bath Database - Tube- | C58: 50:50 method | D58: ICE Bath Database - Tube- 50:50 method | E58: 1.03 | G58: 1.03 | H58: 7.85 | J58: 7.85
B59: Aluminium - | C59: General | D59: Aluminium - General | E59: 8.24 | G59: 8.24 | H59: 2.7 | J59: 2.7
B60: Aluminium - | C60: Recycled | D60: Aluminium - Recycled | E60: 1.69 | G60: 1.69 | H60: 2.7 | J60: 2.7
B61: Note: WSA - World Steel Association using the system expansion method of life cycle assessment
B62: Note: the data in this table makes allowance for recycling at the end of the structures life, which has the effect of reducing the carbon content in the material
B65: Formwork
E66: tCO2/t | F66: Override value | G66: tCO2/t to use | H66: Density | I66: Override value | J66: To use
B67: Timber - | C67: General | D67: =B67&C67 -> Timber - General | E67: 0.00046 | G67: =IF(F67="",E67,F67) -> 0.00046 | H67: 25 | J67: =IF(I67="",H67,I67) -> 25 | K67: kg/m2*20mm
B68: Timber - | C68: Hardboard | D68: =B68&C68 -> Timber - Hardboard | E68: 0.00086 | G68: 0.00086 | H68: 26 | J68: 26 | K68: kg/m2*20mm
B69: Timber - | C69: MDF | D69: =B69&C69 -> Timber - MDF | E69: 0.00089 | G69: 0.00089 | H69: 14 | J69: 14 | K69: kg/m2*20mm
B70: Timber - | C70: Particle Board | D70: =B70&C70 -> Timber - Particle Board | E70: 0.00081 | G70: 0.00081 | H70: 6 | J70: 6 | K70: kg/m2*20mm
B71: Timber - | C71: Plywood | D71: =B71&C71 -> Timber - Plywood | E71: 0.00081 | G71: 0.00081 | H71: 11 | J71: 11 | K71: kg/m2*20mm
B72: Plastic | C72: General | D72: =B72 -> Plastic | E72: 0.00253 | G72: 0.00253 | H72: =(0.96*1000)*0.008 -> 7.68 | J72: 7.68 | K72: Type of plastic used in the European construction industry. Average density 0.960t/m3
B73: Aluminium - | C73: General | D73: =B73&C73 -> Aluminium - General | E73: =E59 -> 8.24 | G73: 8.24 | H73: =(2700*(1^2))*0.008 -> 21.6 | J73: 21.6 | K73: kg/m2*8mm
B76: Backfill
B77: Quarried Material | C77: tCO2/t | D77: Override value | E77: tCO2/t to use | F77: Density (t/m3) | G77: Override value | H77: To use
B78: Sand | C78: 0.005 | E78: =IF(D78="",C78,D78) -> 0.005 | F78: 1.85 | H78: =IF(G78="",F78,G78) -> 1.85
B79: Soil | C79: 0.023 | E79: =IF(D79="",C79,D79) -> 0.023 | F79: 1.7 | H79: =IF(G79="",F79,G79) -> 1.7
B80: Stone: General | C80: 0.056 | E80: =IF(D80="",C80,D80) -> 0.056 | F80: 2 | H80: =IF(G80="",F80,G80) -> 2
B81: Stone: Gravel /Chippings | C81: 0.017 | E81: =IF(D81="",C81,D81) -> 0.017 | F81: 2 | H81: =IF(G81="",F81,G81) -> 2
B84: Omnia Planks - Permanent Formwork
B85: Width (m) | C85: Volume /m length | D85: Override value | E85: final | F85: Steel volume/m | G85: Override value | H85: final | I85: t/m2 | J85: tCO2/m2
B86: 0.3 | C86: =16070/1000000 -> 0.01607 | E86: =IF(D86="",C86,D86) -> 0.01607 | F86: =547.2/1000000 -> 0.0005472 | H86: =IF(G86="",F86,G86) -> 0.0005472 | I86: =IF(E92="","",(1/B86*E86*E92)) -> 0.1358584583 | J86: =IF(I86="","",(I86*J98)) -> 0.03192030971
B88: Concrete Details for Omnia Planks | D88: BS EN 206-1 minimum requirements | G88: Composition | J88: tCO2/t
B89: Concrete Grade | D89: Typical Cement for grade (kg/m2) | E89: =IF(C91="",VLOOKUP(C90,'HIDDEN_Construction Materials'!$B$38:$F$45,2,FALSE),VLOOKUP(C91,'HIDDEN_Construction Materials'!$B$38:$F$45,2,FALSE)) -> 380 | G89: Cement Type default OPC: | H89: CEM I Portland Cement | J89: =IF(H90="",VLOOKUP(H89,'HIDDEN_Construction Materials'!$B$6:$F$34,5,FALSE),VLOOKUP(H90,'HIDDEN_Construction Materials'!$B$6:$F$34,5,FALSE)) -> 0.93
B90: Default (C50/60) | C90: C50/60 | D90: Override Cement (kg/m2) | G90: Override Cement Type default: | I90: =(IF(OR(H90=$B$7,H90=$B$20,H90=$B$22,H90=$B$23,H90=$B$24,H90=$B$25,H90=$B$26,H90=$B$27,H90=$B$28,H90=$B$29,H90=$B$30,H90=$B$31),"DOUBLE COUNTING - see 'Information' worksheet","")) -> 
B91: Override | D91: Concrete Density | E91: =VLOOKUP('User LOCKED'!$I$124,'HIDDEN_Construction Materials'!$H$7:$N$24,7,FALSE) -> 2.4 | F91: tonnes/m3 | G91: Steel Source (Default WSA): | H91: WSA - Bar & Rod | J91: =IF(H92="",VLOOKUP(H91,'HIDDEN_Construction Materials'!$D$49:$J$58,4,FALSE),VLOOKUP(H92,'HIDDEN_Construction Materials'!$D$49:$J$58,4,FALSE)) -> 1.231
D92: Concrete Density (incl steel) | E92: =IF(H94="",(((H93/100)*E93+(100-H93)/100*E91)),(((H94/100*E93+(100-H94)/100*E91)))) -> 2.53625 | F92: tonnes/m3 | G92: Steel Source:
D93: Steel Density | E93: 7.85 | F93: tonnes/m3 | G93: Reinforcement (default 2.5%): | H93: =IF(H94="",2.5,"") -> 2.5 | I93: % steel by volume
G94: Override Reinforcement:
G95: Aggregate Source | I95: % recycled | J95: =VLOOKUP(H95,'HIDDEN_Construction Materials'!$H$28:$M$32,5,FALSE) -> 0.005
G96: Aggregate Density | H96: =VLOOKUP(H95,'HIDDEN_Construction Materials'!$H$28:$O$32,8,FALSE) -> 2
G97: Embodied tCO2/t concrete | J97: =IF(OR(E91="",J89=""),"",(MAX(E89,E90)/1000)/E91*J89+H96/E91*J95) -> 0.1514166667
G98: Embodied tCO2/t concrete (incl Steel) | J98: =IF(H93="",(((H94/100)*E93*J91+(100-H94)/100*E91*J97)/E92),(((H93/100)*E93*J91+(100-H93)/100*E91*J97)/E92)) -> 0.2349526861
B99: Parapets
E100: tCO2/100m | F100: Override value | G100: tCO2/m to use
B101: Steel based parapet systems | C101: =A101&B101 -> Steel based parapet systems | D101: Steel based parapet system | E101: =5.126 -> 5.126 | G101: =IF(F101="",E101/100,F101/100) -> 0.05126 | H101: Value is for 30yr life and includes 1% replacement figure for traffic/accidents over 30 years
B102: Note: GWP for steel is 5126 kg CO2 equiv. per 100m of parapet for life of 30 years and includes a 1% replacement figure to account for accidents /damage over the 30 years.
B104: Waste
B105: Waste | C105: tCO2/t | D105: Override value | E105: to Use | F105: Density (t/m3) | G105: Override value | H105: Density (t/m3)
B106: Inert Waste Disposal (could not be used as aggregate) | C106: 0.076 | E106: =IF(D106="",C106,D106) -> 0.076 | F106: 2 | H106: =IF(G106="",F106,G106) -> 2
B107: Waste Disposal Includes for transport, sorting , EfW, landfill impacts etc
B110: Other Materials
E111: tCO2/t | F111: Override value | G111: to Use | H111: Density (t/m3) | I111: Override value | J111: To use
B112: Surfacing - | C112: Asphalt | D112: =B112&C112 -> Surfacing - Asphalt | E112: 0.045 | G112: =IF(F112="",E112,F112) -> 0.045 | H112: 1.7 | J112: =IF(I112="",H112,I112) -> 1.7 | K112: 40 years lifetime
B113: Waterproofing - | C113: Damp proof course membrane | D113: Waterproofing - Damp proof course membrane | E113: 4.2 | G113: 4.2 | H113: 0.0033 | J113: =IF(I113="",H113,I113) -> 0.0033 | K113: Density value quoted by Jonthan Harding from Stirling Lloyd for density of waterproofing material for 2/3mm thick spray applied membrane. CO2 value is for damp proof course membrane from Bath Inventory V1.6 (2009) and assumption is a similar value for bridge deck waterproofing material.
B114: Bearings - | C114: Mechanical | D114: Bearings -Mechanical | E114: 6.15 | G114: 6.15 | H114: 8 | J114: =IF(I114="",H114,I114) -> 8
B115: Bearings - | C115: Elastomeric | D115: Bearings - Elastomeric | E115: 1.63 | G115: 1.63 | H115: 1.5 | J115: 1.5 | K115: Cradle to site
B116: Expansion Joint - | C116: Rubber | D116: Expansion Joint - Rubber | E116: 1.63 | G116: 1.63 | H116: 1.5 | J116: =IF(I116="",H116,I116) -> 1.5
B117: Lighting - | C117: Steel column | D117: Lighting - Steel column | E117: 0.66 | G117: 0.66 | H117: 0.361 | J117: =IF(I117="",H117,I117) -> 0.361 | K117: Capita Symonds (2008) Carbon Footprint of Motorway Electrical Equipment
B118: Lighting - | C118: Aluminium column | D118: Lighting - Aluminium column | E118: 0.17 | G118: 0.17 | H118: 0.201 | J118: =IF(I118="",H118,I118) -> 0.201 | K118: Capita Symonds (2008) Carbon Footprint of Motorway Electrical Equipment
B119: Paint - | C119: General | D119: Paint - General | E119: =1.06/1000 -> 0.00106 | G119: =IF(F119="",E119,F119) -> 0.00106 | H119: tCO2/sqm double coat From Bath inventory V1.6a
B120: Kerbs - | C120: Precast Concrete | D120: Kerbs - Precast Concrete | E120: 0.215 | G120: =IF(F120="",E120,F120) -> 0.215
B121: Drainage ducting - | D121: HDPE Pipe | E121: 2 | G121: =IF(F121="",E121,F121) -> 2 | H121: 1.1 | J121: =IF(I121="",H121,I121) -> 1.1 | K121: Bath inventory V1.6a (2008)
B122: Drainage ducting - | D122: PVC Pipe | E122: 2.5 | G122: =IF(F122="",E122,F122) -> 2.5 | H122: 1.4 | J122: =IF(I122="",H122,I122) -> 1.4
B125: Transportation details
B126: Note:
B127: vkm = vehicle kilometres
B128: tkm = tonne kilometres
B129: If ship or rail transport is used, the transport must be considered in tonnes/km
B130: All per tonne CO2 emissions are based on UK average vehicles for each form of transportation
B131: If type of vehicle is unknown, it is recommended to select "Freight - Diesel HGV (Rigid, >17t) 55% (UK Average)" for the per vehicle category or "Freight - Diesel HGV (All Rigids) 53% (UK Average)" for the per tonne category
B132: The percentages given in the per vehicle indicate the percentage load the vehicle is carrying
A135: per vehicle with material | B135: Vehicle option chosen as default | C135: Type of transport considered (per tonne or per vehicle) | D135: tCO2 | E135: Unit
A136: =Information!D179 -> Freight - Petrol Van/LCV [≤1.25t] | B136: Freight - Petrol Van/LCV [≤1.25t] | C136: Per Vehicle | D136: =IF(B136="","",VLOOKUP(B136,Information!$D$179:$F$208,3,FALSE)/1000) -> 0.00022824 | E136: tCO2eq/vkm
A137: =Information!D180 -> Freight - Diesel (Class I) Van/LCV [≤1.305 t] | B137: Freight - Diesel (Class I) Van/LCV [≤1.305 t] | C137: Per Vehicle | D137: =IF(B137="","",VLOOKUP(B137,Information!$D$179:$F$208,3,FALSE)/1000) -> 0.00016197 | E137: tCO2eq/vkm
A138: =Information!D181 -> Freight - Diesel (Class II) Van/LCV [1.305-1.74t] | B138: Freight - Diesel (Class II) Van/LCV [1.305-1.74t] | C138: Per Vehicle | D138: =IF(B138="","",VLOOKUP(B138,Information!$D$179:$F$208,3,FALSE)/1000) -> 0.00022645 | E138: tCO2eq/vkm
A139: =Information!D182 -> Freight - Diesel (Class III) Van/LCV [1.74-3.5t] | B139: Freight - Diesel (Class III) Van/LCV [1.74-3.5t] | C139: Per Vehicle | D139: =IF(B139="","",VLOOKUP(B139,Information!$D$179:$F$208,3,FALSE)/1000) -> 0.00030136 | E139: tCO2eq/vkm
A140: =Information!D183 -> Freight - Diesel (Average) Van/LCV [≤3.5t] | B140: Freight - Diesel (Average) Van/LCV [≤3.5t] | C140: Per Vehicle | D140: =IF(B140="","",VLOOKUP(B140,Information!$D$179:$F$208,3,FALSE)/1000) -> 0.00027347 | E140: tCO2eq/vkm
A141: =Information!D184 -> Freight - LPG or CNG Van/LCV [≤3.5t] | B141: Freight - LPG or CNG Van/LCV [≤3.5t] | C141: Per Vehicle | D141: =IF(B141="","",VLOOKUP(B141,Information!$D$179:$F$208,3,FALSE)/1000) -> 0.0002757 | E141: tCO2eq/vkm
A142: =Information!D185 -> Freight - Average Van/LCV [≤3.5t] | B142: Freight - Average Van/LCV [≤3.5t] | C142: Per Vehicle | D142: =IF(B142="","",VLOOKUP(B142,Information!$D$179:$F$208,3,FALSE)/1000) -> 0.00026866 | E142: tCO2eq/vkm
A143: =Information!D186 -> Freight - Diesel HGV (Rigid, >3.5-7.5t) 0% | B143: Freight - Diesel HGV (Rigid, >3.5-7.5t) 0% | C143: Per Vehicle | D143: =IF(B143="","",VLOOKUP(B143,Information!$D$179:$F$208,3,FALSE)/1000) -> 0.00051499 | E143: tCO2eq/vkm
A144: =Information!D187 -> Freight - Diesel HGV (Rigid, >3.5-7.5t) 50% | B144: Freight - Diesel HGV (Rigid, >3.5-7.5t) 50% | C144: Per Vehicle | D144: =IF(B144="","",VLOOKUP(B144,Information!$D$179:$F$208,3,FALSE)/1000) -> 0.00055923 | E144: tCO2eq/vkm
A145: =Information!D188 -> Freight - Diesel HGV (Rigid, >3.5-7.5t) 100% | B145: Freight - Diesel HGV (Rigid, >3.5-7.5t) 100% | C145: Per Vehicle | D145: =IF(B145="","",VLOOKUP(B145,Information!$D$179:$F$208,3,FALSE)/1000) -> 0.00060347 | E145: tCO2eq/vkm
A146: =Information!D189 -> Freight - Diesel HGV (Rigid, >3.5-7.5t) 40% (UK Average) | B146: Freight - Diesel HGV (Rigid, >3.5-7.5t) 40% (UK Average) | C146: Per Vehicle | D146: =IF(B146="","",VLOOKUP(B146,Information!$D$179:$F$208,3,FALSE)/1000) -> 0.00055038 | E146: tCO2eq/vkm
A147: =Information!D190 -> Freight - Diesel HGV (Rigid, >7.5-17t) 0% | B147: Freight - Diesel HGV (Rigid, >7.5-17t) 0% | C147: Per Vehicle | D147: =IF(B147="","",VLOOKUP(B147,Information!$D$179:$F$208,3,FALSE)/1000) -> 0.00066599 | E147: tCO2eq/vkm
A148: =Information!D191 -> Freight - Diesel HGV (Rigid, >7.5-17t) 50% | B148: Freight - Diesel HGV (Rigid, >7.5-17t) 50% | C148: Per Vehicle | D148: =IF(B148="","",VLOOKUP(B148,Information!$D$179:$F$208,3,FALSE)/1000) -> 0.00075996 | E148: tCO2eq/vkm
A149: =Information!D192 -> Freight - Diesel HGV (Rigid, >7.5-17t) 100% | B149: Freight - Diesel HGV (Rigid, >7.5-17t) 100% | C149: Per Vehicle | D149: =IF(B149="","",VLOOKUP(B149,Information!$D$179:$F$208,3,FALSE)/1000) -> 0.00085393 | E149: tCO2eq/vkm
A150: =Information!D193 -> Freight - Diesel HGV (Rigid, >7.5-17t) 37% (UK Average) | B150: Freight - Diesel HGV (Rigid, >7.5-17t) 37% (UK Average) | C150: Per Vehicle | D150: =IF(B150="","",VLOOKUP(B150,Information!$D$179:$F$208,3,FALSE)/1000) -> 0.00073553 | E150: tCO2eq/vkm
A151: =Information!D194 -> Freight - Diesel HGV (Rigid, >17t) 0% | B151: Freight - Diesel HGV (Rigid, >17t) 0% | C151: Per Vehicle | D151: =IF(B151="","",VLOOKUP(B151,Information!$D$179:$F$208,3,FALSE)/1000) -> 0.00076172 | E151: tCO2eq/vkm
A152: =Information!D195 -> Freight - Diesel HGV (Rigid, >17t) 50% | B152: Freight - Diesel HGV (Rigid, >17t) 50% | C152: Per Vehicle | D152: =IF(B152="","",VLOOKUP(B152,Information!$D$179:$F$208,3,FALSE)/1000) -> 0.00092664 | E152: tCO2eq/vkm
A153: =Information!D196 -> Freight - Diesel HGV (Rigid, >17t) 100% | B153: Freight - Diesel HGV (Rigid, >17t) 100% | C153: Per Vehicle | D153: =IF(B153="","",VLOOKUP(B153,Information!$D$179:$F$208,3,FALSE)/1000) -> 0.00109156 | E153: tCO2eq/vkm
A154: =Information!D197 -> Freight - Diesel HGV (Rigid, >17t) 55% (UK Average) | B154: Freight - Diesel HGV (Rigid, >17t) 55% (UK Average) | C154: Per Vehicle | D154: =IF(B154="","",VLOOKUP(B154,Information!$D$179:$F$208,3,FALSE)/1000) -> 0.00094405 | E154: tCO2eq/vkm
A155: =Information!D198 -> Freight - Diesel HGV (All Rigids) 53% (UK Average) | B155: Freight - Diesel HGV (All Rigids) 53% (UK Average) | C155: Per Vehicle | D155: =IF(B155="","",VLOOKUP(B155,Information!$D$179:$F$208,3,FALSE)/1000) -> 0.0008021 | E155: tCO2eq/vkm
A156: =Information!D199 -> Freight - Diesel HGV (Articulated, >3.5-33t) 0% | B156: Freight - Diesel HGV (Articulated, >3.5-33t) 0% | C156: Per Vehicle | D156: =IF(B156="","",VLOOKUP(B156,Information!$D$179:$F$208,3,FALSE)/1000) -> 0.00070004 | E156: tCO2eq/vkm
A157: =Information!D200 -> Freight - Diesel HGV (Articulated, >3.5-33t) 50% | B157: Freight - Diesel HGV (Articulated, >3.5-33t) 50% | C157: Per Vehicle | D157: =IF(B157="","",VLOOKUP(B157,Information!$D$179:$F$208,3,FALSE)/1000) -> 0.0008724 | E157: tCO2eq/vkm
A158: =Information!D201 -> Freight - Diesel HGV (Articulated, >3.5-33t) 100% | B158: Freight - Diesel HGV (Articulated, >3.5-33t) 100% | C158: Per Vehicle | D158: =IF(B158="","",VLOOKUP(B158,Information!$D$179:$F$208,3,FALSE)/1000) -> 0.00104476 | E158: tCO2eq/vkm
A159: =Information!D202 -> Freight - Diesel HGV (Articulated, >3.5-33t) 43% (UK Average) | B159: Freight - Diesel HGV (Articulated, >3.5-33t) 43% (UK Average) | C159: Per Vehicle | D159: =IF(B159="","",VLOOKUP(B159,Information!$D$179:$F$208,3,FALSE)/1000) -> 0.00084827 | E159: tCO2eq/vkm
A160: =Information!D203 -> Freight - Diesel HGV (Articulated, >33t) 0% | B160: Freight - Diesel HGV (Articulated, >33t) 0% | C160: Per Vehicle | D160: =IF(B160="","",VLOOKUP(B160,Information!$D$179:$F$208,3,FALSE)/1000) -> 0.00068583 | E160: tCO2eq/vkm
A161: =Information!D204 -> Freight - Diesel HGV (Articulated, >33t) 50% | B161: Freight - Diesel HGV (Articulated, >33t) 50% | C161: Per Vehicle | D161: =IF(B161="","",VLOOKUP(B161,Information!$D$179:$F$208,3,FALSE)/1000) -> 0.00091052 | E161: tCO2eq/vkm
A162: =Information!D205 -> Freight - Diesel HGV (Articulated, >33t) 100% | B162: Freight - Diesel HGV (Articulated, >33t) 100% | C162: Per Vehicle | D162: =IF(B162="","",VLOOKUP(B162,Information!$D$179:$F$208,3,FALSE)/1000) -> 0.00113521 | E162: tCO2eq/vkm
A163: =Information!D206 -> Freight - Diesel HGV (Articulated, >33t) 60% (UK Average) | B163: Freight - Diesel HGV (Articulated, >33t) 60% (UK Average) | C163: Per Vehicle | D163: =IF(B163="","",VLOOKUP(B163,Information!$D$179:$F$208,3,FALSE)/1000) -> 0.00095546 | E163: tCO2eq/vkm
A164: =Information!D207 -> Freight - Diesel HGV (All Artics) 59% (UK Average) | B164: Freight - Diesel HGV (All Artics) 59% (UK Average) | C164: Per Vehicle | D164: =IF(B164="","",VLOOKUP(B164,Information!$D$179:$F$208,3,FALSE)/1000) -> 0.00094353 | E164: tCO2eq/vkm
A165: =Information!D208 -> Freight - Diesel HGV (All HGVs) 56% (UK Average) | B165: Freight - Diesel HGV (All HGVs) 56% (UK Average) | C165: Per Vehicle | D165: =IF(B165="","",VLOOKUP(B165,Information!$D$179:$F$208,3,FALSE)/1000) -> 0.00086776 | E165: tCO2eq/vkm
A166: Per tonne of material transported
A167: =Information!D151 -> Freight - Petrol Van/LCV [≤1.25t] | B167: Freight - Petrol Van/LCV [≤1.25t] | C167: Per Tonne | D167: =IF(B167="","",VLOOKUP(B167,Information!$D$151:$F$178,3,FALSE)/1000) -> 0.0009445 | E167: tCO2eq/tkm
A168: =Information!D152 -> Freight - Diesel (Class I) Van/LCV [≤1.305 t] | B168: Freight - Diesel (Class I) Van/LCV [≤1.305 t] | C168: Per Tonne | D168: =IF(B168="","",VLOOKUP(B168,Information!$D$151:$F$178,3,FALSE)/1000) -> 0.00067027 | E168: tCO2eq/tkm
A169: =Information!D153 -> Freight - Diesel (Class II) Van/LCV [1.305-1.74t] | B169: Freight - Diesel (Class II) Van/LCV [1.305-1.74t] | C169: Per Tonne | D169: =IF(B169="","",VLOOKUP(B169,Information!$D$151:$F$178,3,FALSE)/1000) -> 0.00056226 | E169: tCO2eq/tkm
A170: =Information!D154 -> Freight - Diesel (Class III) Van/LCV [1.74-3.5t] | B170: Freight - Diesel (Class III) Van/LCV [1.74-3.5t] | C170: Per Tonne | D170: =IF(B170="","",VLOOKUP(B170,Information!$D$151:$F$178,3,FALSE)/1000) -> 0.00037412 | E170: tCO2eq/tkm
A171: =Information!D155 -> Freight - Diesel (Average) Van/LCV [≤3.5t] | B171: Freight - Diesel (Average) Van/LCV [≤3.5t] | C171: Per Tonne | D171: =IF(B171="","",VLOOKUP(B171,Information!$D$151:$F$178,3,FALSE)/1000) -> 0.0003395 | E171: tCO2eq/tkm
A172: =Information!D156 -> Freight - LPG or CNG Van/LCV [≤3.5t] | B172: Freight - LPG or CNG Van/LCV [≤3.5t] | C172: Per Tonne | D172: =IF(B172="","",VLOOKUP(B172,Information!$D$151:$F$178,3,FALSE)/1000) -> 0.00034227 | E172: tCO2eq/tkm
A173: =Information!D157 -> Freight - Average Van/LCV [≤3.5t] | B173: Freight - Average Van/LCV [≤3.5t] | C173: Per Tonne | D173: =IF(B173="","",VLOOKUP(B173,Information!$D$151:$F$178,3,FALSE)/1000) -> 0.0004038 | E173: tCO2eq/tkm
A174: =Information!D158 -> Freight - Diesel HGV (Rigid, >3.5-7.5t) 40% (UK Average) | B174: Freight - Diesel HGV (Rigid, >3.5-7.5t) 40% (UK Average) | C174: Per Tonne | D174: =IF(B174="","",VLOOKUP(B174,Information!$D$151:$F$178,3,FALSE)/1000) -> 0.0006788 | E174: tCO2eq/tkm
A175: =Information!D159 -> Freight - Diesel HGV (Rigid, >7.5-17t) 37% (UK Average) | B175: Freight - Diesel HGV (Rigid, >7.5-17t) 37% (UK Average) | C175: Per Tonne | D175: =IF(B175="","",VLOOKUP(B175,Information!$D$151:$F$178,3,FALSE)/1000) -> 0.00031873 | E175: tCO2eq/tkm
A176: =Information!D160 -> Freight - Diesel HGV (Rigid, >17t) 55% (UK Average) | B176: Freight - Diesel HGV (Rigid, >17t) 55% (UK Average) | C176: Per Tonne | D176: =IF(B176="","",VLOOKUP(B176,Information!$D$151:$F$178,3,FALSE)/1000) -> 0.00017996 | E176: tCO2eq/tkm
A177: =Information!D161 -> Freight - Diesel HGV (All Rigids) 53% (UK Average) | B177: Freight - Diesel HGV (All Rigids) 53% (UK Average) | C177: Per Tonne | D177: =IF(B177="","",VLOOKUP(B177,Information!$D$151:$F$178,3,FALSE)/1000) -> 0.00023427 | E177: tCO2eq/tkm
A178: =Information!D162 -> Freight - Diesel HGV (Articulated, >3.5-33t) 43% (UK Average) | B178: Freight - Diesel HGV (Articulated, >3.5-33t) 43% (UK Average) | C178: Per Tonne | D178: =IF(B178="","",VLOOKUP(B178,Information!$D$151:$F$178,3,FALSE)/1000) -> 0.00014138 | E178: tCO2eq/tkm
A179: =Information!D163 -> Freight - Diesel HGV (Articulated, >33t) 60% (UK Average) | B179: Freight - Diesel HGV (Articulated, >33t) 60% (UK Average) | C179: Per Tonne | D179: =IF(B179="","",VLOOKUP(B179,Information!$D$151:$F$178,3,FALSE)/1000) -> 8.34e-05 | E179: tCO2eq/tkm
A180: =Information!D164 -> Freight - Diesel HGV (All Artics) 59% (UK Average) | B180: Freight - Diesel HGV (All Artics) 59% (UK Average) | C180: Per Tonne | D180: =IF(B180="","",VLOOKUP(B180,Information!$D$151:$F$178,3,FALSE)/1000) -> 8.598e-05 | E180: tCO2eq/tkm
A181: =Information!D165 -> Freight - Diesel HGV (All HGVs) 56% (UK Average) | B181: Freight - Diesel HGV (All HGVs) 56% (UK Average) | C181: Per Tonne | D181: =IF(B181="","",VLOOKUP(B181,Information!$D$151:$F$178,3,FALSE)/1000) -> 0.00012036 | E181: tCO2eq/tkm
A182: =Information!D166 -> Freight - Rail Diesel | B182: Freight - Rail Diesel | C182: Per Tonne | D182: =IF(B182="","",VLOOKUP(B182,Information!$D$151:$F$178,3,FALSE)/1000) -> 3.19e-05 | E182: tCO2eq/tkm
A183: =Information!D167 -> Freight - Shipping (Large RoPax Ferry) | B183: Freight - Shipping (Large RoPax Ferry) | C183: Per Tonne | D183: =IF(B183="","",VLOOKUP(B183,Information!$D$151:$F$178,3,FALSE)/1000) -> 0.00038746 | E183: tCO2eq/tkm
A184: =Information!D168 -> Freight - Shipping (Small Tanker) | B184: Freight - Shipping (Small Tanker) | C184: Per Tonne | D184: =IF(B184="","",VLOOKUP(B184,Information!$D$151:$F$178,3,FALSE)/1000) -> 2.016e-05 | E184: tCO2eq/tkm
A185: =Information!D169 -> Freight - Shipping (Large Tanker) | B185: Freight - Shipping (Large Tanker) | C185: Per Tonne | D185: =IF(B185="","",VLOOKUP(B185,Information!$D$151:$F$178,3,FALSE)/1000) -> 5.04e-06 | E185: tCO2eq/tkm
A186: =Information!D170 -> Freight - Shipping (Very Large Tanker) | B186: Freight - Shipping (Very Large Tanker) | C186: Per Tonne | D186: =IF(B186="","",VLOOKUP(B186,Information!$D$151:$F$178,3,FALSE)/1000) -> 4.03e-06 | E186: tCO2eq/tkm
A187: =Information!D171 -> Freight - Shipping (Small Bulk Carrier) | B187: Freight - Shipping (Small Bulk Carrier) | C187: Per Tonne | D187: =IF(B187="","",VLOOKUP(B187,Information!$D$151:$F$178,3,FALSE)/1000) -> 1.109e-05 | E187: tCO2eq/tkm
A188: =Information!D172 -> Freight - Shipping (Large Bulk Carrier) | B188: Freight - Shipping (Large Bulk Carrier) | C188: Per Tonne | D188: =IF(B188="","",VLOOKUP(B188,Information!$D$151:$F$178,3,FALSE)/1000) -> 7.06e-06 | E188: tCO2eq/tkm
A189: =Information!D173 -> Freight - Shipping (Very Large Bulk Carrier) | B189: Freight - Shipping (Very Large Bulk Carrier) | C189: Per Tonne | D189: =IF(B189="","",VLOOKUP(B189,Information!$D$151:$F$178,3,FALSE)/1000) -> 6.05e-06 | E189: tCO2eq/tkm
A190: =Information!D174 -> Freight - Shipping (Small Container Vessel) | B190: Freight - Shipping (Small Container Vessel) | C190: Per Tonne | D190: =IF(B190="","",VLOOKUP(B190,Information!$D$151:$F$178,3,FALSE)/1000) -> 1.512e-05 | E190: tCO2eq/tkm
A191: =Information!D175 -> Freight - Shipping (Large Container Vessel) | B191: Freight - Shipping (Large Container Vessel) | C191: Per Tonne | D191: =IF(B191="","",VLOOKUP(B191,Information!$D$151:$F$178,3,FALSE)/1000) -> 1.311e-05 | E191: tCO2eq/tkm
A192: =Information!D176 -> Freight - Air (Domestic) | B192: Freight - Air (Domestic) | C192: Per Tonne | D192: =IF(B192="","",VLOOKUP(B192,Information!$D$151:$F$178,3,FALSE)/1000) -> 0.00193623 | E192: tCO2eq/tkm
A193: =Information!D177 -> Freight - Air (Short-haul International) | B193: Freight - Air (Short-haul International) | C193: Per Tonne | D193: =IF(B193="","",VLOOKUP(B193,Information!$D$151:$F$178,3,FALSE)/1000) -> 0.00141831 | E193: tCO2eq/tkm
A194: =Information!D178 -> Freight - Air (Long-haul International) | B194: Freight - Air (Long-haul International) | C194: Per Tonne | D194: =IF(B194="","",VLOOKUP(B194,Information!$D$151:$F$178,3,FALSE)/1000) -> 0.00060076 | E194: tCO2eq/tkm
B196: =Information!D124 -> Dumper - Small Dump Truck Less than 10t | C196: Per Tonne | D196: =IF(B196="","",VLOOKUP(B196,Information!$D$124:$F$149,3,FALSE)/1000) -> 0.004612534772 | E196: tCO2e/hr
B197: =Information!D125 -> Dumper - Articulated Dump Truck 10-20t | C197: Per Tonne | D197: =IF(B197="","",VLOOKUP(B197,Information!$D$124:$F$149,3,FALSE)/1000) -> 0.02126224207 | E197: tCO2e/hr
B198: =Information!D126 -> Dumper - Articulated Dump Truck 20-30t | C198: Per Tonne | D198: =IF(B198="","",VLOOKUP(B198,Information!$D$124:$F$149,3,FALSE)/1000) -> 0.03283248943 | E198: tCO2e/hr
B199: =Information!D127 -> Dumper - Articulated Dump Truck Above 30t | C199: Per Tonne | D199: =IF(B199="","",VLOOKUP(B199,Information!$D$124:$F$149,3,FALSE)/1000) -> 0.04589848012 | E199: tCO2e/hr
B200: =Information!D128 -> Dumper - Off Highway less than 20t | C200: Per Tonne | D200: =IF(B200="","",VLOOKUP(B200,Information!$D$124:$F$149,3,FALSE)/1000) -> 0.03316751483 | E200: tCO2e/hr
B201: =Information!D129 -> Dumper - Off Highway 20-40t | C201: Per Tonne | D201: =IF(B201="","",VLOOKUP(B201,Information!$D$124:$F$149,3,FALSE)/1000) -> 0.05477665328 | E201: tCO2e/hr
B202: =Information!D130 -> Dumper - Off Highway Above 40-60t | C202: Per Tonne | D202: =IF(B202="","",VLOOKUP(B202,Information!$D$124:$F$149,3,FALSE)/1000) -> 0.08241624898 | E202: tCO2e/hr
B203: =Information!D131 -> Dumper - Off Highway Above 60-80t | C203: Per Tonne | D203: =IF(B203="","",VLOOKUP(B203,Information!$D$124:$F$149,3,FALSE)/1000) -> 0.1058680271 | E203: tCO2e/hr
B204: =Information!D132 -> Dumper - Off Highway Above 80t | C204: Per Tonne | D204: =IF(B204="","",VLOOKUP(B204,Information!$D$124:$F$149,3,FALSE)/1000) -> 0.1792385903 | E204: tCO2e/hr
B205: =Information!D133 -> Excavator - Mini <5 tonnes | C205: Per Tonne | D205: =IF(B205="","",VLOOKUP(B205,Information!$D$124:$F$149,3,FALSE)/1000) -> 0.006127686212 | E205: tCO2e/hr
B206: =Information!D134 -> Excavator - Small 6 - 10 tonnes | C206: Per Tonne | D206: =IF(B206="","",VLOOKUP(B206,Information!$D$124:$F$149,3,FALSE)/1000) -> 0.01531293459 | E206: tCO2e/hr
B207: =Information!D135 -> Excavator - Medium 11-15 tonnes | C207: Per Tonne | D207: =IF(B207="","",VLOOKUP(B207,Information!$D$124:$F$149,3,FALSE)/1000) -> 0.02163784235 | E207: tCO2e/hr
B208: =Information!D136 -> Excavator - Large 16-25 tonnes | C208: Per Tonne | D208: =IF(B208="","",VLOOKUP(B208,Information!$D$124:$F$149,3,FALSE)/1000) -> 0.03070124047 | E208: tCO2e/hr
B209: =Information!D137 -> Excavator - Very Large >25 tonnes | C209: Per Tonne | D209: =IF(B209="","",VLOOKUP(B209,Information!$D$124:$F$149,3,FALSE)/1000) -> 0.06030457242 | E209: tCO2e/hr
B210: =Information!D138 -> Loader - Backhoe | C210: Per Tonne | D210: =IF(B210="","",VLOOKUP(B210,Information!$D$124:$F$149,3,FALSE)/1000) -> 0.01096539272 | E210: tCO2e/hr
B211: =Information!D139 -> Loader - Mid Wheeled Loaders (<3 m3) | C211: Per Tonne | D211: =IF(B211="","",VLOOKUP(B211,Information!$D$124:$F$149,3,FALSE)/1000) -> 0.03096252762 | E211: tCO2e/hr
B212: =Information!D140 -> Loader - Large Wheeled Loaders (>3 m3) | C212: Per Tonne | D212: =IF(B212="","",VLOOKUP(B212,Information!$D$124:$F$149,3,FALSE)/1000) -> 0.0961044297 | E212: tCO2e/hr
B213: =Information!D141 -> Compactor - Compactor <10 tonnes | C213: Per Tonne | D213: =IF(B213="","",VLOOKUP(B213,Information!$D$124:$F$149,3,FALSE)/1000) -> 0.01085913077 | E213: tCO2e/hr
B214: =Information!D142 -> Compactor - Compactor >10 tonnes | C214: Per Tonne | D214: =IF(B214="","",VLOOKUP(B214,Information!$D$124:$F$149,3,FALSE)/1000) -> 0.03312834079 | E214: tCO2e/hr
B215: =Information!D143 -> Tractor - General | C215: Per Tonne | D215: =IF(B215="","",VLOOKUP(B215,Information!$D$124:$F$149,3,FALSE)/1000) -> 0.02130495247 | E215: tCO2e/hr
B216: =Information!D144 -> Crusher -General | C216: Per Tonne | D216: =IF(B216="","",VLOOKUP(B216,Information!$D$124:$F$149,3,FALSE)/1000) -> 0.054242208 | E216: tCO2e/hr
B217: =Information!D145 -> Screener - General | C217: Per Tonne | D217: =IF(B217="","",VLOOKUP(B217,Information!$D$124:$F$149,3,FALSE)/1000) -> 0.01675268333 | E217: tCO2e/hr
B218: =Information!D146 -> Crane - General | C218: Per Tonne | D218: =IF(B218="","",VLOOKUP(B218,Information!$D$124:$F$149,3,FALSE)/1000) -> 0.08040609656 | E218: tCO2e/hr
B219: =Information!D147 -> Screener/Crusher Bucket - General | C219: Per Tonne | D219: =IF(B219="","",VLOOKUP(B219,Information!$D$124:$F$149,3,FALSE)/1000) -> 0.06140248094 | E219: tCO2e/hr
... 25 more rows

Sheet HIDDEN_Traffic Data (hidden)
B2: Effects of traffic management
B5: Traffic Delay carbon costs will be calculated based on additional CO2 caused by the traffic due to the delay
C6: =D104 -> Motorway | G6: =H104 -> Rural_A | K6: =L104 -> Urban_A | O6: =P104 -> Rural_Minor | S6: =T104 -> Urban_Minor
B7: Speed
B8: Default speed limit | C8: 70 | D8: MPh | E8: =C8*1.609344 -> 112.65408 | F8: km/hr | G8: 50 | H8: MPh | I8: =G8*1.609344 -> 80.4672 | J8: km/hr | K8: 40 | L8: MPh | M8: =K8*1.609344 -> 64.37376 | N8: km/hr | O8: 50 | P8: MPh | Q8: =O8*1.609344 -> 80.4672 | R8: km/hr | S8: 30 | T8: MPh | U8: =S8*1.609344 -> 48.28032 | V8: km/hr
B9: Override Speed | D9: MPh | E9: =C9*1.609344 -> 0 | F9: km/hr | H9: MPh | I9: =G9*1.609344 -> 0 | J9: km/hr | L9: MPh | M9: =K9*1.609344 -> 0 | N9: km/hr | P9: MPh | Q9: =O9*1.609344 -> 0 | R9: km/hr | T9: MPh | U9: =S9*1.609344 -> 0 | V9: km/hr
B10: Speed Used for Spreadsheet | C10: =IF(C9="",C8,C9) -> 70 | D10: MPh | E10: =C10*1.609344 -> 112.65408 | F10: km/hr | G10: =IF(G9="",G8,G9) -> 50 | H10: MPh | I10: =G10*1.609344 -> 80.4672 | J10: km/hr | K10: =IF(K9="",K8,K9) -> 40 | L10: MPh | M10: =K10*1.609344 -> 64.37376 | N10: km/hr | O10: =IF(O9="",O8,O9) -> 50 | P10: MPh | Q10: =O10*1.609344 -> 80.4672 | R10: km/hr | S10: =IF(S9="",S8,S9) -> 30 | T10: MPh | U10: =S10*1.609344 -> 48.28032 | V10: km/hr
B11: Percentage Slowdown of Speed due to lane closures
B12: Default percentage | C12: 30 | D12: % | G12: 30 | H12: % | K12: 30 | L12: % | O12: 30 | P12: % | S12: 50 | T12: %
B13: Override percentage | D13: % | H13: % | L13: % | P13: % | T13: %
B14: Percentage Used for Spreadsheet | C14: =IF(C13="",C12,C13) -> 30 | D14: % | G14: =IF(G13="",G12,G13) -> 30 | H14: % | K14: =IF(K13="",K12,K13) -> 30 | L14: % | O14: =IF(O13="",O12,O13) -> 30 | P14: % | S14: =IF(S13="",S12,S13) -> 50 | T14: %
B15: Distance over which traffic is affected
B16: Default length | C16: 5 | D16: miles | E16: =C16*1.609344 -> 8.04672 | F16: km | G16: 5 | H16: miles | I16: =G16*1.609344 -> 8.04672 | J16: km | K16: 5 | L16: miles | M16: =K16*1.609344 -> 8.04672 | N16: km | O16: 2 | P16: miles | Q16: =O16*1.609344 -> 3.218688 | R16: km | S16: 2 | T16: miles | U16: =S16*1.609344 -> 3.218688 | V16: km
B17: Override Length | D17: miles | E17: =C17*1.609344 -> 0 | F17: km | H17: miles | I17: =G17*1.609344 -> 0 | J17: km | L17: miles | M17: =K17*1.609344 -> 0 | N17: km | P17: miles | Q17: =O17*1.609344 -> 0 | R17: km | T17: miles | U17: =S17*1.609344 -> 0 | V17: km
B18: Length Used | C18: =IF(C17="",C16,C17) -> 5 | D18: miles | E18: =C18*1.609344 -> 8.04672 | F18: km | G18: =IF(G17="",G16,G17) -> 5 | H18: miles | I18: =G18*1.609344 -> 8.04672 | J18: km | K18: =IF(K17="",K16,K17) -> 5 | L18: miles | M18: =K18*1.609344 -> 8.04672 | N18: km | O18: =IF(O17="",O16,O17) -> 2 | P18: miles | Q18: =O18*1.609344 -> 3.218688 | R18: km | S18: =IF(S17="",S16,S17) -> 2 | T18: miles | U18: =S18*1.609344 -> 3.218688 | V18: km
B19: Speed due to closure | C19: =(100-C14)*(C10)/100 -> 49 | D19: MPh | E19: =C19*1.609344 -> 78.857856 | F19: km/hr | G19: =(100-G14)*(G10)/100 -> 35 | H19: MPh | I19: =G19*1.609344 -> 56.32704 | J19: km/hr | K19: =(100-K14)*(K10)/100 -> 28 | L19: MPh | M19: =K19*1.609344 -> 45.061632 | N19: km/hr | O19: =(100-O14)*(O10)/100 -> 35 | P19: MPh | Q19: =O19*1.609344 -> 56.32704 | R19: km/hr | S19: =(100-S14)*(S10)/100 -> 15 | T19: MPh | U19: =S19*1.609344 -> 24.14016 | V19: km/hr
B20: Allow for traffic build-up/stoppage (cannot input a value less than 6.2MPh)
B21: Default length | C21: 1 | D21: miles | E21: =C21*1.609344 -> 1.609344 | F21: km | G21: 1 | H21: miles | I21: =G21*1.609344 -> 1.609344 | J21: km | K21: 1 | L21: miles | M21: =K21*1.609344 -> 1.609344 | N21: km | O21: 1 | P21: miles | Q21: =O21*1.609344 -> 1.609344 | R21: km | S21: 1 | T21: miles | U21: =S21*1.609344 -> 1.609344 | V21: km
B22: Override Length | D22: miles | E22: =C22*1.609344 -> 0 | F22: km | H22: miles | I22: =G22*1.609344 -> 0 | J22: km | L22: miles | M22: =K22*1.609344 -> 0 | N22: km | P22: miles | Q22: =O22*1.609344 -> 0 | R22: km | T22: miles | U22: =S22*1.609344 -> 0 | V22: km
B23: Length Used | C23: =IF(C22="",C21,C22) -> 1 | D23: miles | E23: =C23*1.609344 -> 1.609344 | F23: km/hr | G23: =IF(G22="",G21,G22) -> 1 | H23: miles | I23: =G23*1.609344 -> 1.609344 | J23: km/hr | K23: =IF(K22="",K21,K22) -> 1 | L23: miles | M23: =K23*1.609344 -> 1.609344 | N23: km/hr | O23: =IF(O22="",O21,O22) -> 1 | P23: miles | Q23: =O23*1.609344 -> 1.609344 | R23: km/hr | S23: =IF(S22="",S21,S22) -> 1 | T23: miles | U23: =S23*1.609344 -> 1.609344 | V23: km/hr
B24: Speed
B25: Default speed limit | C25: =10/1.609344 -> 6.213711922 | D25: MPh | E25: =C25*1.609344 -> 10 | F25: km/hr | G25: 10 | H25: MPh | I25: =G25*1.609344 -> 16.09344 | J25: km/hr | K25: 10 | L25: MPh | M25: =K25*1.609344 -> 16.09344 | N25: km/hr | O25: 10 | P25: MPh | Q25: =O25*1.609344 -> 16.09344 | R25: km/hr | S25: 10 | T25: MPh | U25: =S25*1.609344 -> 16.09344 | V25: km/hr
B26: Override Speed | D26: MPh | E26: =C26*1.609344 -> 0 | F26: km/hr | H26: MPh | I26: =G26*1.609344 -> 0 | J26: km/hr | L26: MPh | M26: =K26*1.609344 -> 0 | N26: km/hr | P26: MPh | Q26: =O26*1.609344 -> 0 | R26: km/hr | T26: MPh | U26: =S26*1.609344 -> 0 | V26: km/hr
B27: Speed Used for Spreadsheet | C27: =IF(C26="",C25,C26) -> 6.213711922 | D27: MPh | E27: =C27*1.609344 -> 10 | F27: km/hr | G27: =IF(G26="",G25,G26) -> 10 | H27: MPh | I27: =G27*1.609344 -> 16.09344 | J27: km/hr | K27: =IF(K26="",K25,K26) -> 10 | L27: MPh | M27: =K27*1.609344 -> 16.09344 | N27: km/hr | O27: =IF(O26="",O25,O26) -> 10 | P27: MPh | Q27: =O27*1.609344 -> 16.09344 | R27: km/hr | S27: =IF(S26="",S25,S26) -> 10 | T27: MPh | U27: =S27*1.609344 -> 16.09344 | V27: km/hr
B28: Note: Override speed cannot be greater than default speed limit.
B30: Road Closure - Length of Diversion - Additional distance travelled
C31: =C6 -> Motorway | G31: =G6 -> Rural_A | K31: =K6 -> Urban_A | O31: =O6 -> Rural_Minor | S31: =S6 -> Urban_Minor | Y31: Length of diversion used
B32: Default length | C32: 20 | D32: miles | E32: =C32*1.609344 -> 32.18688 | F32: km | G32: 15 | H32: miles | I32: =G32*1.609344 -> 24.14016 | J32: km | K32: 10 | L32: miles | M32: =K32*1.609344 -> 16.09344 | N32: km | O32: 5 | P32: miles | Q32: =O32*1.609344 -> 8.04672 | R32: km | S32: 5 | T32: miles | U32: =S32*1.609344 -> 8.04672 | V32: km | Y32: =C46 -> Motorway | Z32: =E34 -> 32.18688
B33: Override Length | D33: miles | E33: =C33*1.609344 -> 0 | F33: km | H33: miles | I33: =G33*1.609344 -> 0 | J33: km | L33: miles | M33: =K33*1.609344 -> 0 | N33: km | P33: miles | Q33: =O33*1.609344 -> 0 | R33: km | T33: miles | U33: =S33*1.609344 -> 0 | V33: km | Y33: =G46 -> Rural_A | Z33: =I34 -> 24.14016
B34: Length Used | C34: =IF(C33="",C32,C33) -> 20 | D34: miles | E34: =C34*1.609344 -> 32.18688 | F34: km | G34: =IF(G33="",G32,G33) -> 15 | H34: miles | I34: =G34*1.609344 -> 24.14016 | J34: km | K34: =IF(K33="",K32,K33) -> 10 | L34: miles | M34: =K34*1.609344 -> 16.09344 | N34: km | O34: =IF(O33="",O32,O33) -> 5 | P34: miles | Q34: =O34*1.609344 -> 8.04672 | R34: km | S34: =IF(S33="",S32,S33) -> 5 | T34: miles | U34: =S34*1.609344 -> 8.04672 | V34: km | Y34: =K46 -> Urban_A | Z34: =M34 -> 16.09344
B35: Percent of vehicles using diversion | Y35: =O46 -> Rural_Minor | Z35: =Q34 -> 8.04672
B36: Default percentage of vehicles | C36: 90 | D36: % | G36: 90 | H36: % | K36: 80 | L36: % | O36: 50 | P36: % | S36: 50 | T36: % | Y36: =S46 -> Urban_Minor | Z36: =U34 -> 8.04672
B37: Override Percentage of vehicles | D37: % | H37: % | L37: % | P37: % | T37: %
B38: Percentage Vehicles Used for Spreadsheet | C38: =IF(C37="",C36,C37) -> 90 | D38: % | G38: =IF(G37="",G36,G37) -> 90 | H38: % | K38: =IF(K37="",K36,K37) -> 80 | L38: % | O38: =IF(O37="",O36,O37) -> 50 | P38: % | S38: =IF(S37="",S36,S37) -> 50 | T38: %
B39: Slowdown if Speed due to diversion
B40: Default speed limit | C40: 30 | D40: MPh | G40: 30 | H40: MPh | K40: 30 | L40: MPh | O40: 30 | P40: MPh | S40: 30 | T40: MPh
B41: Override Speed | D41: MPh | H41: MPh | L41: MPh | P41: MPh | T41: MPh
B42: Speed Used for Spreadsheet | C42: =IF(C41="",C40,C41) -> 30 | D42: MPh | G42: =IF(G41="",G40,G41) -> 30 | H42: MPh | K42: =IF(K41="",K40,K41) -> 30 | L42: MPh | O42: =IF(O41="",O40,O41) -> 30 | P42: MPh | S42: =IF(S41="",S40,S41) -> 30 | T42: MPh
B43: Speed on diversion | C43: =(100-C42)*(C10)/100 -> 49 | D43: MPh | E43: =C43*1.609344 -> 78.857856 | F43: km/hr | G43: =(100-G42)*(G10)/100 -> 35 | H43: MPh | I43: =G43*1.609344 -> 56.32704 | J43: km/hr | K43: =(100-K42)*(K10)/100 -> 28 | L43: MPh | M43: =K43*1.609344 -> 45.061632 | N43: km/hr | O43: =(100-O42)*(O10)/100 -> 35 | P43: MPh | Q43: =O43*1.609344 -> 56.32704 | R43: km/hr | S43: =(100-S42)*(S10)/100 -> 21 | T43: MPh | U43: =S43*1.609344 -> 33.796224 | V43: km/hr
C46: =C6 -> Motorway | G46: =G6 -> Rural_A | K46: =K6 -> Urban_A | O46: =O6 -> Rural_Minor | S46: =S6 -> Urban_Minor | Z46: tCO2
C47: Car | D47: LGV | E47: HGV | F47: Bus | G47: =C47 -> Car | H47: LGV | I47: HGV | J47: Bus | K47: Car | L47: LGV | M47: HGV | N47: Bus | O47: Car | P47: LGV | Q47: HGV | R47: Bus | S47: Car | T47: LGV | U47: HGV | V47: Bus | Y47: =B70&C$69 -> Lane - Night -Motorway | Z47: =C70 -> 10.64847935
B48: gCO2 emitted per km | Y48: Lane - Weekend -Motorway | Z48: 155.9172476
B49: Normal operating | C49: =VLOOKUP(E$10,$B$126:$F$158,2) -> 159.8666874 | D49: =VLOOKUP(E$10,$B$126:$F$158,3) -> 288.2610936 | E49: =VLOOKUP(E$10,$B$126:$F$158,4) -> 772.6425986 | F49: =VLOOKUP(E$10,$B$126:$F$158,5) -> 823.3626045 | G49: =VLOOKUP(I$10,$B$126:$F$158,2) -> 143.3328945 | H49: =VLOOKUP(I$10,$B$126:$F$158,3) -> 216.2291344 | I49: =VLOOKUP(I$10,$B$126:$F$158,4) -> 621.2432062 | J49: =VLOOKUP(I$10,$B$126:$F$158,5) -> 650.1581417 | K49: =VLOOKUP(M$10,$B$126:$F$158,2) -> 142.9249446 | L49: =VLOOKUP(M$10,$B$126:$F$158,3) -> 193.5836548 | M49: =VLOOKUP(M$10,$B$126:$F$158,4) -> 619.8563979 | N49: =VLOOKUP(M$10,$B$126:$F$158,5) -> 647.618563 | O49: =VLOOKUP(Q$10,$B$126:$F$158,2) -> 143.3328945 | P49: =VLOOKUP(Q$10,$B$126:$F$158,3) -> 216.2291344 | Q49: =VLOOKUP(Q$10,$B$126:$F$158,4) -> 621.2432062 | R49: =VLOOKUP(Q$10,$B$126:$F$158,5) -> 650.1581417 | S49: =VLOOKUP(U$10,$B$126:$F$158,2) -> 151.6502924 | T49: =VLOOKUP(U$10,$B$126:$F$158,3) -> 195.0551675 | U49: =VLOOKUP(U$10,$B$126:$F$158,4) -> 684.3707552 | V49: =VLOOKUP(U$10,$B$126:$F$158,5) -> 725.3030311 | Y49: Lane - 24 hours -Motorway | Z49: 110.6522499
B50: Lane Closure | C50: =VLOOKUP(E$19,$B$126:$F$158,2) -> 142.5964998 | D50: =VLOOKUP(E$19,$B$126:$F$158,3) -> 209.1529045 | E50: =VLOOKUP(E$19,$B$126:$F$158,4) -> 615.5684157 | F50: =VLOOKUP(E$19,$B$126:$F$158,5) -> 643.3092888 | G50: =VLOOKUP(I$19,$B$126:$F$158,2) -> 145.0683173 | H50: =VLOOKUP(I$19,$B$126:$F$158,3) -> 192.6488921 | I50: =VLOOKUP(I$19,$B$126:$F$158,4) -> 636.6515429 | J50: =VLOOKUP(I$19,$B$126:$F$158,5) -> 667.498145 | K50: =VLOOKUP(M$19,$B$126:$F$158,2) -> 151.6502924 | L50: =VLOOKUP(M$19,$B$126:$F$158,3) -> 195.0551675 | M50: =VLOOKUP(M$19,$B$126:$F$158,4) -> 684.3707552 | N50: =VLOOKUP(M$19,$B$126:$F$158,5) -> 725.3030311 | O50: =VLOOKUP(Q$19,$B$126:$F$158,2) -> 145.0683173 | P50: =VLOOKUP(Q$19,$B$126:$F$158,3) -> 192.6488921 | Q50: =VLOOKUP(Q$19,$B$126:$F$158,4) -> 636.6515429 | R50: =VLOOKUP(Q$19,$B$126:$F$158,5) -> 667.498145 | S50: =VLOOKUP(U$19,$B$126:$F$158,2) -> 206.7744345 | T50: =VLOOKUP(U$19,$B$126:$F$158,3) -> 264.4086706 | U50: =VLOOKUP(U$19,$B$126:$F$158,4) -> 988.5892111 | V50: =VLOOKUP(U$19,$B$126:$F$158,5) -> 1128.069589 | Y50: Road - Night -Motorway | Z50: 61.72819523
B51: Lane Closure 2 | C51: =VLOOKUP(E$25,$B$126:$F$158,2) -> 306.0620239 | D51: =VLOOKUP(E$25,$B$126:$F$158,3) -> 404.7195803 | E51: =VLOOKUP(E$25,$B$126:$F$158,4) -> 1394.509219 | F51: =VLOOKUP(E$25,$B$126:$F$158,5) -> 1731.65735 | G51: =VLOOKUP(I$25,$B$126:$F$158,2) -> 256.4182292 | H51: =VLOOKUP(I$25,$B$126:$F$158,3) -> 334.5641255 | I51: =VLOOKUP(I$25,$B$126:$F$158,4) -> 1191.549215 | J51: =VLOOKUP(I$25,$B$126:$F$158,5) -> 1429.86347 | K51: =VLOOKUP(M$25,$B$126:$F$158,2) -> 256.4182292 | L51: =VLOOKUP(M$25,$B$126:$F$158,3) -> 334.5641255 | M51: =VLOOKUP(M$25,$B$126:$F$158,4) -> 1191.549215 | N51: =VLOOKUP(M$25,$B$126:$F$158,5) -> 1429.86347 | O51: =VLOOKUP(Q$25,$B$126:$F$158,2) -> 256.4182292 | P51: =VLOOKUP(Q$25,$B$126:$F$158,3) -> 334.5641255 | Q51: =VLOOKUP(Q$25,$B$126:$F$158,4) -> 1191.549215 | R51: =VLOOKUP(Q$25,$B$126:$F$158,5) -> 1429.86347 | S51: =VLOOKUP(U$25,$B$126:$F$158,2) -> 256.4182292 | T51: =VLOOKUP(U$25,$B$126:$F$158,3) -> 334.5641255 | U51: =VLOOKUP(U$25,$B$126:$F$158,4) -> 1191.549215 | V51: =VLOOKUP(U$25,$B$126:$F$158,5) -> 1429.86347 | Y51: Road - Weekend -Motorway | Z51: 826.4118926
B52: Road Closure | C52: =VLOOKUP(E$43,$B$126:$F$158,2) -> 142.5964998 | D52: =VLOOKUP(E$43,$B$126:$F$158,3) -> 209.1529045 | E52: =VLOOKUP(E$43,$B$126:$F$158,4) -> 615.5684157 | F52: =VLOOKUP(E$43,$B$126:$F$158,5) -> 643.3092888 | G52: =VLOOKUP(I$43,$B$126:$F$158,2) -> 145.0683173 | H52: =VLOOKUP(I$43,$B$126:$F$158,3) -> 192.6488921 | I52: =VLOOKUP(I$43,$B$126:$F$158,4) -> 636.6515429 | J52: =VLOOKUP(I$43,$B$126:$F$158,5) -> 667.498145 | K52: =VLOOKUP(M$43,$B$126:$F$158,2) -> 151.6502924 | L52: =VLOOKUP(M$43,$B$126:$F$158,3) -> 195.0551675 | M52: =VLOOKUP(M$43,$B$126:$F$158,4) -> 684.3707552 | N52: =VLOOKUP(M$43,$B$126:$F$158,5) -> 725.3030311 | O52: =VLOOKUP(Q$43,$B$126:$F$158,2) -> 145.0683173 | P52: =VLOOKUP(Q$43,$B$126:$F$158,3) -> 192.6488921 | Q52: =VLOOKUP(Q$43,$B$126:$F$158,4) -> 636.6515429 | R52: =VLOOKUP(Q$43,$B$126:$F$158,5) -> 667.498145 | S52: =VLOOKUP(U$43,$B$126:$F$158,2) -> 172.7498511 | T52: =VLOOKUP(U$43,$B$126:$F$158,3) -> 218.1288016 | U52: =VLOOKUP(U$43,$B$126:$F$158,4) -> 816.2048995 | V52: =VLOOKUP(U$43,$B$126:$F$158,5) -> 892.6480053 | Y52: Road - 24 hours -Motorway | Z52: 636.1899897
B53: Number of Vehicles affected - assume vehicles in both directions are affected) | Y53: None -Motorway | Z53: None
B54: Night Closure (22:00-06:00) | C54: =6*D106+2*D116 -> 4073.93816 | D54: 737.7859779 | E54: 1601.299438 | F54: 36.07345164 | G54: 527.0131041 | H54: 70.42354844 | I54: 67.6019517 | J54: 3.549476671 | K54: 1253.075236 | L54: 133.629237 | M54: 41.35858141 | N54: 15.76786014 | O54: 45.46554179 | P54: 6.493364722 | Q54: 0.7114680143 | R54: 0.04574688797 | S54: 164.5366608 | T54: 21.27523656 | U54: 1.832044965 | V54: 2.1352616 | Y54: =B70&D$69 -> Lane - Night -Rural_A | Z54: =D70 -> 0.881997247
B55: Weekend Closure (Fri 22:00 to Mon 06:00) | C55: =2*D116+9*D117+5*D118+6*D119+4*D120+10*D121+5*D122+5*D123+4*D124+6*D106 -> 111786.2102 | D55: 12015.57953 | E55: 8449.680572 | F55: 807.8506449 | G55: 17062.0084 | H55: 1817.116834 | I55: 675.3710805 | J55: 91.99197874 | K55: 30178.64828 | L55: 3050.498656 | M55: 537.3023844 | N55: 353.9918732 | O55: 1395.477025 | P55: 216.6985066 | Q55: 28.78443262 | R55: 8.943821577 | S55: 3669.285343 | T55: 456.0310397 | U55: 39.11424761 | V55: 42.02379066 | Y55: Lane - Weekend -Rural_A | Z55: 20.92267487
B56: 24 hour closure (Weekday) | C56: =D106*6+D107*1+D108+D109+D110+D111*6+D112+D113+D114+D115*3+D116*2 -> 59336.98614 | D56: 10973.39234 | E56: 11644.16993 | F56: 383.4067991 | G56: 8868.491137 | H56: 1678.112323 | I56: 978.4461742 | J56: 79.37032311 | K56: 17106.28539 | L56: 2760.701116 | M56: 866.1112394 | N56: 311.5801974 | O56: 730.3296535 | P56: 170.5730795 | Q56: 29.24017886 | R56: 10.41955519 | S56: 2103.971178 | T56: 358.8836373 | U56: 42.73688109 | V56: 51.0732608 | Y56: Lane - 24 hours -Rural_A | Z56: 14.59391512
B57: gCo2 emitted per unit of each road closure type | Y57: Road - Night -Rural_A | Z57: 2.934570061
B58: Lane Closure | C58: =(-C49+C51)*E18+(-C49+C50)*E18 -> 1037.424574 | D58: =(-D49+D51)*E18+(-D49+D50)*E18 -> 300.5473871 | E58: =(-E49+E51)*E18+(-E49+E50)*E18 -> 3740.054606 | F58: =(-F49+F51)*E18+(-F49+F50)*E18 -> 5859.954876 | G58: =(-G49+G51)*I18+(-G49+G50)*I18 -> 923.9304859 | H58: =(-H49+H51)*I18+(-H49+H50)*I18 -> 762.4649311 | I58: =(-I49+I51)*I18+(-I49+I50)*I18 -> 4713.07934 | J58: =(-J49+J51)*I18+(-J49+J50)*I18 -> 6413.600607 | K58: =(-K49+K51)*M18+(-K49+K50)*M18 -> 983.4591138 | L58: =(-L49+L51)*M18+(-L49+L50)*M18 -> 1146.271223 | M58: =(-M49+M51)*M18+(-M49+M50)*M18 -> 5119.380996 | N58: =(-N49+N51)*M18+(-N49+N50)*M18 -> 6919.610898 | O58: =(-O49+O51)*Q18+(-O49+O50)*Q18 -> 369.5721944 | P58: =(-P49+P51)*Q18+(-P49+P50)*Q18 -> 304.9859724 | Q58: =(-Q49+Q51)*Q18+(-Q49+Q50)*Q18 -> 1885.231736 | R58: =(-R49+R51)*Q18+(-R49+R50)*Q18 -> 2565.440243 | S58: =(-S49+S51)*U18+(-S49+S50)*U18 -> 514.6427159 | T58: =(-T49+T51)*U18+(-T49+T50)*U18 -> 672.2630973 | U58: =(-U49+U51)*U18+(-U49+U50)*U18 -> 2611.633517 | V58: =(-V49+V51)*U18+(-V49+V50)*U18 -> 3564.140117 | Y58: Road - Weekend -Rural_A | Z58: 72.08386263
B59: Road Closure | C59: =(C49)*E34 -> 5145.609883 | D59: =(D49)*E34 -> 9278.225227 | E59: =(E49)*E34 -> 24868.9546 | F59: =(F49)*E34 -> 26501.47335 | G59: =(G49)*I34 -> 3460.079006 | H59: =(H49)*I34 -> 5219.805902 | I59: =(I49)*I34 -> 14996.9104 | J59: =(J49)*I34 -> 15694.92157 | K59: =(K49)*M34 -> 2300.15402 | L59: =(L49)*M34 -> 3115.426934 | M59: =(M49)*M34 -> 9975.621749 | N59: =(N49)*M34 -> 10422.41049 | O59: =(O49)*Q34 -> 1153.359669 | P59: =(P49)*Q34 -> 1739.935301 | Q59: =(Q49)*Q34 -> 4998.970132 | R59: =(R49)*Q34 -> 5231.640522 | S59: =(S49)*U34 -> 1220.287441 | T59: =(T49)*U34 -> 1569.554317 | U59: =(U49)*U34 -> 5506.939843 | V59: =(V49)*U34 -> 5836.310406 | Y59: Road - 24 hours -Rural_A | Z59: 49.82803309
B60: tCo2 emitted per unit of each road closure type for each time period | Y60: None -Rural_A | Z60: None
B61: Lane - Night | C61: =C$58*C54/1000000 -> 4.226403561 | D61: 0.2217396479 | E61: 5.98894734 | F61: 0.2113887989 | G61: 0.4869234733 | H61: 0.05369548601 | I61: 0.3186133619 | J61: 0.02276492573 | K61: 1.232348261 | L61: 0.1531753489 | M61: 0.2117303357 | N61: 0.1091074569 | O61: 0.01680280005 | P61: 0.001980385154 | Q61: 0.00134128208 | R61: 0.0001173609074 | S61: 0.08467759399 | T61: 0.01430255642 | U61: 0.004784630035 | V61: 0.007610371528 | Y61: =B70&E$69 -> Lane - Night -Urban_A | Z61: =E70 -> 1.706361403
B62: Lane - Weekend | C62: 115.9697616 | D62: 3.61125103 | E62: 31.60226674 | F62: 4.733968326 | G62: 15.76410971 | H62: 1.385487862 | I62: 3.183077486 | J62: 0.5899998107 | K62: 29.67946669 | L62: 3.496698825 | M62: 2.750655616 | N62: 2.449486023 | O62: 0.5157295064 | P62: 0.06609000475 | Q62: 0.05426532588 | R62: 0.0229448398 | S62: 1.888370974 | T62: 0.3065728392 | U62: 0.10215208 | V62: 0.1497786781 | Y62: Lane - Weekend -Urban_A | Z62: 38.37630715
B63: Lane - 24 hours | C63: 61.55764757 | D63: 3.298024395 | E63: 43.54983137 | F63: 2.246746542 | G63: 8.193869326 | H63: 1.279501797 | I63: 4.611494449 | J63: 0.5090495525 | K63: 16.82333227 | L63: 3.164512245 | M63: 4.433953419 | N63: 2.15601373 | O63: 0.2699095327 | P63: 0.05202239652 | Q63: 0.05512451316 | R63: 0.02673074619 | S63: 1.082793441 | T63: 0.2412642256 | U63: 0.111613071 | V63: 0.1820322577 | Y63: Lane - 24 hours -Urban_A | Z63: 26.57781167
B64: Road - Night | C64: =C$59*C54/1000000*$C$38/100 -> 18.86660682 | D64: 6.160810025 | E64: 35.84037874 | F64: 0.8603996555 | G64: =G$59*G54/1000000*$G$38/100 -> 1.64115628 | H64: 0.3308375284 | I64: 0.9124383711 | J64: 0.05013788216 | K64: =K$59*K54/1000000*$K$38/100 -> 2.305812833 | L64: 0.3330496993 | M64: 0.3300620513 | N64: 0.1314712887 | O64: =O$59*O54/1000000*$O$38/100 -> 0.02621906111 | P64: 0.00564901725 | Q64: 0.001778303677 | R64: 0.0001196656364 | S64: =S$59*S54/1000000*$S$38/100 -> 0.1003910104 | T64: 0.01669631969 | U64: 0.005044480706 | V64: 0.006231024748 | Y64: Road - Night -Urban_A | Z64: 3.100395873
B65: Road - Weekend | C65: 517.6874054 | D65: 100.3349278 | E65: 189.1212503 | F65: 19.2683091 | G65: 53.13230735 | H65: 8.536497457 | I65: 9.115631621 | J65: 1.299426202 | K65: 55.53243132 | L65: 7.602884539 | M65: 4.287940281 | N65: 2.951558889 | O65: 0.8047434598 | P65: 0.1885206906 | Q65: 0.07194625947 | R65: 0.02339542969 | S65: 2.23879141 | T65: 0.3578827436 | U65: 0.1076999043 | V65: 0.1226319434 | Y65: Road - Weekend -Urban_A | Z65: 70.37481503
B66: Road - 24 hours | C66: 274.7924841 | D66: 91.63224507 | E66: 260.6205 | F66: 9.144760561 | G66: 27.617112 | H66: 7.883478549 | I66: 13.20630264 | J66: 1.121139896 | K66: 31.47767289 | L66: 6.880610091 | M66: 6.911998493 | N66: 2.597933373 | O66: 0.4211663836 | P66: 0.1483930612 | Q66: 0.0730853904 | R66: 0.02725568357 | S66: 1.283724802 | T66: 0.2816436811 | U66: 0.1176747166 | V66: 0.1490397017 | Y66: Road - 24 hours -Urban_A | Z66: 47.86821485
Y67: None -Urban_A | Z67: None
Y68: =B70&F$69 -> Lane - Night -Rural_Minor | Z68: =F70 -> 0.02024182819
B69: Total | C69: =C6 -> Motorway | D69: =G6 -> Rural_A | E69: =K6 -> Urban_A | F69: =O6 -> Rural_Minor | G69: =S6 -> Urban_Minor | H69: None | I69: Not applicable | Y69: Lane - Weekend -Rural_Minor | Z69: 0.6590296769
B70: Lane - Night - | C70: =SUM(C61:F61) -> 10.64847935 | D70: =SUM(G61:J61) -> 0.881997247 | E70: =SUM(K61:N61) -> 1.706361403 | F70: =SUM(O61:R61) -> 0.02024182819 | G70: =SUM(S61:V61) -> 0.111375152 | H70: 0 | I70: 0 | Y70: Lane - 24 hours -Rural_Minor | Z70: 0.4037871885
B71: Lane - Weekend - | C71: 155.9172476 | D71: 20.92267487 | E71: 38.37630715 | F71: 0.6590296769 | G71: 2.446874572 | H71: 0 | I71: 0 | Y71: Road - Night -Rural_Minor | Z71: 0.03376604767
B72: Lane - 24 hours - | C72: 110.6522499 | D72: 14.59391512 | E72: 26.57781167 | F72: 0.4037871885 | G72: 1.617702995 | H72: 0 | I72: 0 | Y72: Road - Weekend -Rural_Minor | Z72: 1.08860584
B73: Road - Night - | C73: 61.72819523 | D73: 2.934570061 | E73: 3.100395873 | F73: 0.03376604767 | G73: 0.1283628355 | H73: 0 | I73: 0 | Y73: Road - 24 hours -Rural_Minor | Z73: 0.6699005188
B74: Road - Weekend - | C74: 826.4118926 | D74: 72.08386263 | E74: 70.37481503 | F74: 1.08860584 | G74: 2.827006001 | H74: 0 | I74: 0 | Y74: None -Rural_Minor | Z74: None
B75: Road - 24 hours - | C75: 636.1899897 | D75: 49.82803309 | E75: 47.86821485 | F75: 0.6699005188 | G75: 1.832082901 | H75: 0 | I75: 0 | Y75: =B70&G$69 -> Lane - Night -Urban_Minor | Z75: =G70 -> 0.111375152
B76: None - | C76: 0 | D76: 0 | E76: 0 | F76: 0 | G76: 0 | H76: 0 | I76: 0 | Y76: Lane - Weekend -Urban_Minor | Z76: 2.446874572
Y77: Lane - 24 hours -Urban_Minor | Z77: 1.617702995
B78: Basic traffic data for number of vehicles and fuel consumption | Y78: Road - Night -Urban_Minor | Z78: 0.1283628355
Y79: Road - Weekend -Urban_Minor | Z79: 2.827006001
B80: Estimated Emissions per km by Vehicle Type, using emissions functions and fleet composition forecasts from DfT's WebTAG appraisal guidance (unit 3.5.6d) | Y80: Road - 24 hours -Urban_Minor | Z80: 1.832082901
B81: Speed | C81: gCO2 Emitted per km - Average Vehicles* | Y81: None -Urban_Minor | Z81: None
B82: (kph) | C82: Car | D82: LGV | E82: HGV | F82: Bus | Y82: =B70&H$69 -> Lane - Night -None | Z82: None
B83: 10 | C83: 306.0620239 | D83: 404.7195803 | E83: 1394.509219 | F83: 1731.65735 | Y83: Lane - Weekend -None | Z83: None
B84: 20 | C84: 206.7744345 | D84: 264.4086706 | E84: 988.5892111 | F84: 1128.069589 | Y84: Lane - 24 hours -None | Z84: None
B85: 30 | C85: 172.7498511 | D85: 218.1288016 | E85: 816.2048995 | F85: 892.6480053 | Y85: Road - Night -None | Z85: None
B86: 40 | C86: 156.0888948 | D86: 198.3962056 | E86: 715.2948226 | F86: 763.2283352 | Y86: Road - Weekend -None | Z86: None
B87: 50 | C87: 147.2116899 | D87: 191.7141293 | E87: 653.4466879 | F87: 687.377727 | Y87: Road - 24 hours -None | Z87: None
B88: 60 | C88: 142.9249446 | D88: 193.5836548 | E88: 619.8563979 | F88: 647.618563 | Y88: None -None | Z88: None
B89: 70 | C89: 141.860105 | D89: 202.0766745 | E89: 609.8936253 | F89: 636.4604358 | Y89: =B70&I$69 -> Lane - Night -Not applicable | Z89: Not applicable
B90: 80 | C90: 143.3328945 | D90: 216.2291344 | E90: 621.2432062 | F90: 650.1581417 | Y90: Lane - Weekend -Not applicable | Z90: Not applicable
B91: 90 | C91: 146.9631591 | D91: 235.5054493 | E91: 652.6189386 | F91: 686.631012 | Y91: Lane - 24 hours -Not applicable | Z91: Not applicable
B92: 100 | C92: 152.5228066 | D92: 259.5842678 | E92: 703.2491012 | F92: 744.6306453 | Y92: Road - Night -Not applicable | Z92: Not applicable
B93: 110 | C93: 159.8666874 | D93: 288.2610936 | E93: 772.6425986 | F93: 823.3626045 | Y93: Road - Weekend -Not applicable | Z93: Not applicable
B94: 120 | C94: 168.898035 | D94: 321.3995958 | E94: 860.4720341 | F94: 922.2972648 | Y94: Road - 24 hours -Not applicable | Z94: Not applicable
B95: 130 | C95: 179.5498573 | D95: 358.9053917 | E95: 966.5107481 | F95: 1041.067963 | Y95: None -Not applicable | Z95: Not applicable
B96: 140 | C96: 191.7743029 | D96: 400.7110649 | E96: 1090.596841 | F96: 1179.412797
B97: 150 | C97: 205.5362804 | D97: 446.7671766 | E97: 1232.611587 | F97: 1337.139704
B98: 160 | C98: 220.8094717 | D98: 497.036648 | E98: 1392.465941 | F98: 1514.104639
B99: 170 | C99: 237.5737509 | D99: 551.4911244 | E99: 1570.091809 | F99: 1710.197448
B100: http://www.dft.gov.uk/pgr/statistics/datatablespublications/roadstraffic/speedscongestion/roadstatstsc/roadstats08tsc
B102: Hourly 2 Way Flows in Each Time Period, Average Vehicles per Hour - Both Directions Combined
D103: Road Type
D104: Motorway | H104: Rural_A | L104: Urban_A | P104: Rural_Minor | T104: Urban_Minor
B105: Time Period | D105: Car | E105: LGV | F105: HGV | G105: Bus | H105: Car | I105: LGV | J105: HGV | K105: Bus | L105: Car | M105: LGV | N105: HGV | O105: Bus | P105: Car | Q105: LGV | R105: HGV | S105: Bus | T105: Car | U105: LGV | V105: HGV | W105: Bus
B106: 1 | C106: Mon-Fri: 00.00-06.00 | D106: 173.8925361 | E106: 54.34948405 | F106: 152.7847231 | G106: 2.830450216 | H106: 15.76314307 | I106: 4.187500017 | J106: 6.527965327 | K106: 0.1858695058 | L106: 35.63427933 | M106: 7.028130958 | N106: 3.657757764 | O106: 0.6585742452 | P106: 0.8419544776 | Q106: 0.2069485373 | R106: 0.02519233314 | S106: 0.001138589212 | T106: 3.473427065 | U106: 0.7252246046 | V106: 0.09248402757 | W106: 0.1204627673
B107: 2 | C107: Mon-Fri: 06.00-07.00 | D107: 663.2180448 | E107: 196.5841784 | F107: 397.5060581 | G107: 7.501858235 | H107: 66.14805438 | I107: 16.22761402 | J107: 19.21722009 | K107: 0.6988305177 | L107: 122.926818 | M107: 23.44196575 | N107: 14.7443352 | O107: 3.625318494 | P107: 3.281121608 | Q107: 1.260826876 | R107: 0.2767841693 | S107: 0.05404232365 | T107: 11.19163445 | U107: 3.004926538 | V107: 0.4077755003 | W107: 0.09861412809
B108: 3 | C108: Mon-Fri: 07.00-08.00 | D108: 1977.522097 | E108: 515.5373778 | F108: 628.8921618 | G108: 12.76660319 | H108: 182.8363334 | I108: 45.16611852 | J108: 36.6951948 | K108: 1.743517435 | L108: 317.04589 | M108: 61.69818375 | N108: 30.14289422 | O108: 9.415968431 | P108: 13.7747087 | Q108: 2.774669601 | R108: 0.6329427955 | S108: 0.08454024896 | T108: 28.66629174 | U108: 7.075398243 | V108: 0.6584979119 | W108: 0.467088475
B109: 4 | C109: Mon-Fri: 08.00-09.00 | D109: 4454.075332 | E109: 864.5205963 | F109: 719.1966366 | G109: 17.99370441 | H109: 531.0450674 | I109: 121.3063648 | J109: 59.97592905 | K109: 5.070403645 | L109: 1004.703546 | M109: 174.3266297 | N109: 57.72634865 | O109: 24.00067024 | P109: 43.64491944 | Q109: 10.16103144 | R109: 1.484784065 | S109: 1.06486556 | T109: 95.17096661 | U109: 22.1624478 | V109: 2.640537432 | W109: 3.379453024
B110: 5 | C110: Mon-Fri: 09.00-10.00 | D110: 5026.707498 | E110: 796.1262354 | F110: 673.5460455 | G110: 20.81698439 | H110: 757.8383967 | I110: 147.0072405 | J110: 74.15356604 | K110: 10.39995694 | L110: 1414.459606 | M110: 224.6883993 | N110: 71.5815792 | O110: 30.73557154 | P110: 69.61379655 | Q110: 16.91166437 | R110: 3.020064329 | S110: 2.895839004 | T110: 202.0945518 | U110: 35.68015888 | V110: 3.667451619 | W110: 6.543372176
B111: 6 | C111: Mon-Fri: 10.00-16.00 | D111: 3315.011821 | E111: 722.5504835 | F111: 772.2494458 | G111: 27.6600773 | H111: 547.1504714 | I111: 120.8619125 | J111: 77.22270218 | K111: 4.945789654 | L111: 1033.241491 | M111: 208.7706022 | N111: 73.02783765 | O111: 20.73181611 | P111: 42.97135585 | Q111: 12.3789953 | R111: 2.398644403 | S111: 0.518586722 | T111: 116.9558524 | U111: 22.63874798 | V111: 3.420989538 | W111: 3.055856963
B112: 7 | C112: Mon-Fri: 16.00-17.00 | D112: 3858.796697 | E112: 807.1063746 | F112: 748.8620009 | G112: 25.78595716 | H112: 629.1589441 | I112: 133.7025727 | J112: 74.26313198 | K112: 7.311514292 | L112: 1217.364652 | M112: 223.38421 | N112: 68.49663728 | O112: 28.48302009 | P112: 58.30993248 | Q112: 13.77129119 | R112: 2.537204025 | S112: 1.265175934 | T112: 171.3806678 | U112: 30.53076696 | V112: 4.059575116 | W112: 9.108520514
B113: 8 | C113: Mon-Fri: 17.00-18.00 | D113: 4708.039315 | E113: 847.9842421 | F113: 648.2271288 | G113: 25.60849385 | H113: 770.3247899 | I113: 144.8353051 | J113: 66.37740396 | K113: 9.180885927 | L113: 1408.507842 | M113: 222.9160395 | N113: 56.76221344 | O113: 25.2824251 | P113: 60.05052748 | Q113: 13.50126588 | R113: 2.162229521 | S113: 1.301041494 | T113: 166.3879086 | U113: 29.02384534 | V113: 3.243988327 | W113: 4.402205539
B114: 9 | C114: Mon-Fri: 18.00-19.00 | D114: 5367.213348 | E114: 733.4203804 | F114: 518.2288929 | G114: 24.2210534 | H114: 844.3732796 | I114: 119.739638 | J114: 46.74656369 | K114: 5.050991686 | L114: 1545.856242 | M114: 182.6199357 | N114: 37.2649308 | O114: 20.72423177 | P114: 67.60310923 | Q114: 12.44667881 | R114: 1.611994917 | S114: 0.2369078838 | T114: 184.0869596 | U114: 26.3532949 | V114: 2.132596096 | W114: 3.3599664
B115: 10 | C115: Mon-Fri: 19.00-22.00 | D115: 3105.801575 | E115: 379.6746919 | F115: 358.304963 | G115: 15.55940967 | H115: 425.6167798 | I115: 51.51081551 | J115: 23.35966661 | K115: 2.230002692 | L115: 874.2988707 | M115: 87.12430067 | N115: 16.62223109 | O115: 9.718078305 | P115: 36.91928704 | Q115: 6.326104945 | R115: 0.803613536 | S115: 0.1199585062 | T115: 126.2401406 | U115: 15.98169139 | V115: 1.189492299 | W115: 1.081212386
B116: 11 | C116: Mon-Fri: 22.00-00.00 | D116: 1515.291472 | E116: 205.8445368 | F116: 342.29555 | G116: 9.545375174 | H116: 216.2171228 | I116: 22.64927417 | J116: 14.21707987 | K116: 1.217129818 | L116: 519.63478 | M116: 45.73022562 | N116: 9.706017411 | O116: 5.908207336 | P116: 20.20690746 | Q116: 2.625836749 | R116: 0.2801570077 | S116: 0.01945767635 | T116: 71.84804921 | U116: 8.461944464 | V116: 0.6385703998 | W116: 0.7062424982
B117: 12 | C117: Saturday: 00.00-09.00 | D117: 507.7482321 | E117: 113.7701167 | F117: 170.3107233 | G117: 5.781001866 | H117: 63.59961694 | I117: 13.58004806 | J117: 10.2764679 | K117: 0.6039276079 | L117: 125.5211767 | M117: 23.46425958 | N117: 7.67911141 | O117: 2.58078519 | P117: 4.390389685 | Q117: 1.031199047 | R117: 0.1744725494 | S117: 0.02039972337 | T117: 12.3884007 | U117: 3.130751025 | V117: 0.2648237487 | W117: 0.1089151381
B118: 13 | C118: Saturday: 09.00-14.00 | D118: 3664.684099 | E118: 435.898296 | F118: 273.4881829 | G118: 30.35698189 | H118: 623.7664209 | I118: 77.67958118 | J118: 31.81848491 | K118: 4.327249155 | L118: 1073.835574 | M118: 137.2742787 | N118: 30.58302581 | O118: 16.29497235 | P118: 48.78667708 | Q118: 9.550816742 | R118: 1.429548474 | S118: 0.1817676349 | T118: 127.4836555 | U118: 17.71301652 | V118: 2.061221101 | W118: 1.909689163
B119: 14 | C119: Saturday: 14.00-20.00 | D119: 3578.277032 | E119: 359.5003398 | F119: 153.0465131 | G119: 24.34294739 | H119: 642.3166662 | I119: 63.77858372 | J119: 17.18556251 | K119: 3.52488819 | L119: 1147.812948 | M119: 106.4809215 | N119: 15.04366701 | O119: 15.8323271 | P119: 52.97644263 | Q119: 7.636542772 | R119: 1.041082052 | S119: 1.010091286 | T119: 139.2876977 | U119: 15.51133568 | V119: 1.529857362 | W119: 2.161735852
B120: 15 | C120: Saturday: 20.00-00.00 | D120: 1685.342196 | E120: 162.7177251 | F120: 82.24920835 | G120: 15.48098523 | H120: 263.9541046 | I120: 22.96492734 | J120: 6.839476528 | K120: 1.860717137 | L120: 596.32097 | M120: 51.37335219 | N120: 5.621261247 | O120: 7.475323306 | P120: 23.82064277 | Q120: 3.234456805 | R120: 0.3132419888 | S120: 0.02668568465 | T120: 79.83506151 | U120: 8.604611599 | V120: 0.6942395545 | W120: 0.8134189308
B121: 16 | C121: Sunday: 00.00-10.00 | D121: 489.7299099 | E121: 81.55729879 | F121: 55.12088649 | G121: 5.767557676 | H121: 59.71634647 | I121: 10.40016261 | J121: 4.191891907 | K121: 0.5705498231 | L121: 117.318425 | M121: 18.69337925 | N121: 2.806192178 | O121: 1.611674017 | P121: 5.16676619 | Q121: 1.014189578 | R121: 0.1584547467 | S121: 0.024093361 | T121: 13.1971529 | U121: 2.612591916 | V121: 0.1786875064 | W121: 0.4644312081
B122: 17 | C122: Sunday: 10.00-15.00 | D122: 3595.127084 | E122: 318.1594543 | F122: 140.0107792 | G122: 23.78546163 | H122: 588.3360025 | I122: 54.62794897 | J122: 14.96621818 | K122: 2.03372622 | L122: 968.764048 | M122: 86.277135 | N122: 11.57751781 | O122: 6.928302184 | P122: 50.49726182 | Q122: 7.180122026 | R122: 0.9075678424 | S122: 0.1374846473 | T122: 116.7969069 | U122: 13.27250193 | V122: 0.8217951829 | W122: 0.4700409938
B123: 18 | C123: Sunday: 15.00-20.00 | D123: 4517.161927 | E123: 382.1882177 | F123: 162.0494913 | G123: 22.97881021 | H123: 659.8485406 | I123: 58.6759016 | J123: 14.41011144 | K123: 2.329111526 | L123: 1011.113138 | M123: 79.42178125 | N123: 10.37709011 | O123: 6.856250875 | P123: 53.81839711 | Q123: 7.705289375 | R123: 0.8960495323 | S123: 0.1125983402 | T123: 118.6481547 | U123: 13.05404288 | V123: 0.917334675 | W123: 0.5869607385
B124: 19 | C124: Sunday: 20.00-00.00 | D124: 2787.335594 | E124: 237.2966824 | F124: 159.8393952 | G124: 17.12117646 | H124: 273.9910102 | I124: 22.7557141 | J124: 9.22916121 | K124: 1.314755795 | L124: 520.4932075 | M124: 39.87809437 | N124: 5.833665692 | O124: 5.896830813 | P124: 20.0443519 | Q124: 2.46105752 | R124: 0.3132186712 | S124: 0.03675 | T124: 72.89288225 | U124: 8.192214411 | V124: 0.5385141642 | W124: 0.8016088556
B125: Speed | C125: CO2 Emissions
B126: 10 | C126: =C83 -> 306.0620239 | D126: =D83 -> 404.7195803 | E126: =E83 -> 1394.509219 | F126: =F83 -> 1731.65735
B127: 15 | C127: =AVERAGE(C83,C84) -> 256.4182292 | D127: =AVERAGE(D83,D84) -> 334.5641255 | E127: =AVERAGE(E83,E84) -> 1191.549215 | F127: =AVERAGE(F83,F84) -> 1429.86347
B128: 20 | C128: =C84 -> 206.7744345 | D128: =D84 -> 264.4086706 | E128: =E84 -> 988.5892111 | F128: =F84 -> 1128.069589
B129: 25 | C129: =AVERAGE(C84,C85) -> 189.7621428 | D129: =AVERAGE(D84,D85) -> 241.2687361 | E129: =AVERAGE(E84,E85) -> 902.3970553 | F129: =AVERAGE(F84,F85) -> 1010.358797
B130: 30 | C130: =C85 -> 172.7498511 | D130: =D85 -> 218.1288016 | E130: =E85 -> 816.2048995 | F130: =F85 -> 892.6480053
B131: 35 | C131: =AVERAGE(C85,C86) -> 164.4193729 | D131: =AVERAGE(D85,D86) -> 208.2625036 | E131: =AVERAGE(E85,E86) -> 765.749861 | F131: =AVERAGE(F85,F86) -> 827.9381702
B132: 40 | C132: =C86 -> 156.0888948 | D132: =D86 -> 198.3962056 | E132: =E86 -> 715.2948226 | F132: =F86 -> 763.2283352
B133: 45 | C133: =AVERAGE(C86,C87) -> 151.6502924 | D133: =AVERAGE(D86,D87) -> 195.0551675 | E133: =AVERAGE(E86,E87) -> 684.3707552 | F133: =AVERAGE(F86,F87) -> 725.3030311
B134: 50 | C134: =C87 -> 147.2116899 | D134: =D87 -> 191.7141293 | E134: =E87 -> 653.4466879 | F134: =F87 -> 687.377727
B135: 55 | C135: =AVERAGE(C87,C88) -> 145.0683173 | D135: =AVERAGE(D87,D88) -> 192.6488921 | E135: =AVERAGE(E87,E88) -> 636.6515429 | F135: =AVERAGE(F87,F88) -> 667.498145
B136: 60 | C136: =C88 -> 142.9249446 | D136: =D88 -> 193.5836548 | E136: =E88 -> 619.8563979 | F136: =F88 -> 647.618563
B137: 65 | C137: =AVERAGE(C88,C89) -> 142.3925248 | D137: =AVERAGE(D88,D89) -> 197.8301646 | E137: =AVERAGE(E88,E89) -> 614.8750116 | F137: =AVERAGE(F88,F89) -> 642.0394994
B138: 70 | C138: =C89 -> 141.860105 | D138: =D89 -> 202.0766745 | E138: =E89 -> 609.8936253 | F138: =F89 -> 636.4604358
B139: 75 | C139: =AVERAGE(C89,C90) -> 142.5964998 | D139: =AVERAGE(D89,D90) -> 209.1529045 | E139: =AVERAGE(E89,E90) -> 615.5684157 | F139: =AVERAGE(F89,F90) -> 643.3092888
B140: 80 | C140: =C90 -> 143.3328945 | D140: =D90 -> 216.2291344 | E140: =E90 -> 621.2432062 | F140: =F90 -> 650.1581417
B141: 85 | C141: =AVERAGE(C90,C91) -> 145.1480268 | D141: =AVERAGE(D90,D91) -> 225.8672919 | E141: =AVERAGE(E90,E91) -> 636.9310724 | F141: =AVERAGE(F90,F91) -> 668.3945768
B142: 90 | C142: =C91 -> 146.9631591 | D142: =D91 -> 235.5054493 | E142: =E91 -> 652.6189386 | F142: =F91 -> 686.631012
B143: 95 | C143: =AVERAGE(C91,C92) -> 149.7429829 | D143: =AVERAGE(D91,D92) -> 247.5448585 | E143: =AVERAGE(E91,E92) -> 677.9340199 | F143: =AVERAGE(F91,F92) -> 715.6308286
B144: 100 | C144: =C92 -> 152.5228066 | D144: =D92 -> 259.5842678 | E144: =E92 -> 703.2491012 | F144: =F92 -> 744.6306453
B145: 105 | C145: =AVERAGE(C92,C93) -> 156.194747 | D145: =AVERAGE(D92,D93) -> 273.9226807 | E145: =AVERAGE(E92,E93) -> 737.9458499 | F145: =AVERAGE(F92,F93) -> 783.9966249
B146: 110 | C146: =C93 -> 159.8666874 | D146: =D93 -> 288.2610936 | E146: =E93 -> 772.6425986 | F146: =F93 -> 823.3626045
B147: 115 | C147: =AVERAGE(C93,C94) -> 164.3823612 | D147: =AVERAGE(D93,D94) -> 304.8303447 | E147: =AVERAGE(E93,E94) -> 816.5573163 | F147: =AVERAGE(F93,F94) -> 872.8299347
B148: 120 | C148: =C94 -> 168.898035 | D148: =D94 -> 321.3995958 | E148: =E94 -> 860.4720341 | F148: =F94 -> 922.2972648
B149: 125 | C149: =AVERAGE(C94,C95) -> 174.2239462 | D149: =AVERAGE(D94,D95) -> 340.1524938 | E149: =AVERAGE(E94,E95) -> 913.4913911 | F149: =AVERAGE(F94,F95) -> 981.6826139
B150: 130 | C150: =C95 -> 179.5498573 | D150: =D95 -> 358.9053917 | E150: =E95 -> 966.5107481 | F150: =F95 -> 1041.067963
B151: 135 | C151: =AVERAGE(C95,C96) -> 185.6620801 | D151: =AVERAGE(D95,D96) -> 379.8082283 | E151: =AVERAGE(E95,E96) -> 1028.553795 | F151: =AVERAGE(F95,F96) -> 1110.24038
B152: 140 | C152: =C96 -> 191.7743029 | D152: =D96 -> 400.7110649 | E152: =E96 -> 1090.596841 | F152: =F96 -> 1179.412797
B153: 145 | C153: =AVERAGE(C96,C97) -> 198.6552916 | D153: =AVERAGE(D96,D97) -> 423.7391208 | E153: =AVERAGE(E96,E97) -> 1161.604214 | F153: =AVERAGE(F96,F97) -> 1258.27625
B154: 150 | C154: =C97 -> 205.5362804 | D154: =D97 -> 446.7671766 | E154: =E97 -> 1232.611587 | F154: =F97 -> 1337.139704
B155: 155 | C155: =AVERAGE(C97,C98) -> 213.1728761 | D155: =AVERAGE(D97,D98) -> 471.9019123 | E155: =AVERAGE(E97,E98) -> 1312.538764 | F155: =AVERAGE(F97,F98) -> 1425.622172
B156: 160 | C156: =C98 -> 220.8094717 | D156: =D98 -> 497.036648 | E156: =E98 -> 1392.465941 | F156: =F98 -> 1514.104639
B157: 165 | C157: =AVERAGE(C98,C99) -> 229.1916113 | D157: =AVERAGE(D98,D99) -> 524.2638862 | E157: =AVERAGE(E98,E99) -> 1481.278875 | F157: =AVERAGE(F98,F99) -> 1612.151044
B158: 170 | C158: =C99 -> 237.5737509 | D158: =D99 -> 551.4911244 | E158: =E99 -> 1570.091809 | F158: =F99 -> 1710.197448

Sheet User VALUES
B2: TATA STEEL / BCSA / ATKINS Carbon Footprint for Steel / Concrete Composite Bridges | AQ2: Look up values
AQ3: Bridge details
AQ4: Road over
C5: Bridge Details | AQ5: Rail over
B6: Bridge Details | C6: Project Title | E6: =IF(SUMMARY!E5="","",SUMMARY!E5) ->  | AQ6: Foot/Cycle over
C7: Job number | E7: =IF(SUMMARY!E6="","",SUMMARY!E6) ->  | AQ7: Road under
C8: Bridge Type | F8: =IF(SUMMARY!F7="","",SUMMARY!F7) ->  | AQ8: Rail under
C9: If road specify classification | F9: =IF(SUMMARY!F8="","",SUMMARY!F8) ->  | AQ9: Watercourse
C10: Obstacles crossed | F10: =IF(SUMMARY!F9="","",SUMMARY!F9) ->  | AQ10: Road classification
C11: If road specify classification | F11: =IF(SUMMARY!F10="","",SUMMARY!F10) ->  | AQ11: Motorway
C12: Construction duration (weeks) | F12: =IF(SUMMARY!F11="","",SUMMARY!F11) ->  | AQ12: Rural_A
C13: Bridge length (m) | F13: =IF(SUMMARY!F12="","",SUMMARY!F12) ->  | G13: =MAX(1,ROUND(F13/26.58,0)) ->  | H13: =G63/F14 ->  | AQ13: Urban_A
C14: Bridge width (m) | F14: =IF(SUMMARY!F13="","",SUMMARY!F13) ->  | H14: =(G80/4)^0.5 ->  | AQ14: Rural_Minor
AQ15: Urban_Minor
AQ16: Not applicable
C17: Site set up/close down | AQ17: Freight transportation
B18: Site set up/close down | C18: Site equipment | E18: Plant / tools | F18: Frequency of delivery (Default 4 if unknown) | G18: Mode of transport | I18: Local or national supplier | J18: Transport distance if known (km). Default distance (50km local, 250km national) if unknown. | L18: tCO2eq/ vkm | M18: tCO2eq | AQ18: ='Construction Materials'!A136 -> Freight - Petrol Van/LCV [≤1.25t]
C19: Site accommodation | E19: Delivery vehicle | F19: =IF($F$12="","",4) ->  | G19: Freight - Diesel HGV (All Rigids) 53% (UK Average) | I19: Local supplier | J19: =IF(I19="Local supplier","50","250") -> 50 | L19: =IF((OR(F19="",G19="")),"",(VLOOKUP(G19,'Construction Materials'!$B$136:$E$165,3,FALSE))) ->  | M19: =IF(F19="","",(F19*J19*L19)) ->  | AQ19: ='Construction Materials'!A140 -> Freight - Diesel (Average) Van/LCV [≤3.5t]
C20: Generators | E20: Delivery vehicle | G20: Freight - Diesel HGV (All Rigids) 53% (UK Average) | I20: Local supplier | J20: 50 | L20: =IF((OR(F20="",G20="")),"",(VLOOKUP(G20,'Construction Materials'!$B$136:$E$165,3,FALSE))) ->  | AP20: Emission factors per vehicle km with average load factor 40% | AQ20: ='Construction Materials'!A146 -> Freight - Diesel HGV (Rigid, >3.5-7.5t) 40% (UK Average)
C21: Drying cabin | E21: Delivery vehicle | G21: Freight - Diesel HGV (All Rigids) 53% (UK Average) | I21: Local supplier | J21: 50 | L21: =IF((OR(F21="",G21="")),"",(VLOOKUP(G21,'Construction Materials'!$B$136:$E$165,3,FALSE))) ->  | AQ21: ='Construction Materials'!A150 -> Freight - Diesel HGV (Rigid, >7.5-17t) 37% (UK Average)
C22: Storage cabins | E22: Delivery vehicle | G22: Freight - Diesel HGV (All Rigids) 53% (UK Average) | I22: Local supplier | J22: 50 | L22: =IF((OR(F22="",G22="")),"",(VLOOKUP(G22,'Construction Materials'!$B$136:$E$165,3,FALSE))) ->  | AQ22: ='Construction Materials'!A154 -> Freight - Diesel HGV (Rigid, >17t) 55% (UK Average)
C23: Fuel bund | E23: Delivery vehicle | G23: Freight - Diesel HGV (All Rigids) 53% (UK Average) | I23: Local supplier | J23: 50 | L23: =IF((OR(F23="",G23="")),"",(VLOOKUP(G23,'Construction Materials'!$B$136:$E$165,3,FALSE))) ->  | Y23: =SUMMARY!$F$11*40 -> 0 | AQ23: ='Construction Materials'!A155 -> Freight - Diesel HGV (All Rigids) 53% (UK Average)
C24: Water bund | E24: Delivery vehicle | G24: Freight - Diesel HGV (All Rigids) 53% (UK Average) | I24: Local supplier | J24: 50 | L24: =IF((OR(F24="",G24="")),"",(VLOOKUP(G24,'Construction Materials'!$B$136:$E$165,3,FALSE))) ->  | X24: Foundation duration = 30% of total construction duration | Y24: =Y23*0.3 -> 0 | AQ24: ='Construction Materials'!A159 -> Freight - Diesel HGV (Articulated, >3.5-33t) 43% (UK Average)
C25: Fencing | E25: Delivery vehicle | G25: Freight - Diesel HGV (All Rigids) 53% (UK Average) | I25: Local supplier | J25: 50 | L25: =IF((OR(F25="",G25="")),"",(VLOOKUP(G25,'Construction Materials'!$B$136:$E$165,3,FALSE))) ->  | X25: Substucture duration = 20% of total construction duration | Y25: =Y23*0.2 -> 0 | AQ25: ='Construction Materials'!A163 -> Freight - Diesel HGV (Articulated, >33t) 60% (UK Average)
L26: Sum | M26: =IF(AND(M19="",M20="",M21="",M22="",M23="",M24="",M25=""),"",(SUM(M19:M25))) ->  | X26: Superstucture duration = 50% of total construction duration | Y26: =Y23*0.5 -> 0 | AQ26: ='Construction Materials'!A164 -> Freight - Diesel HGV (All Artics) 59% (UK Average)
AQ27: ='Construction Materials'!A165 -> Freight - Diesel HGV (All HGVs) 56% (UK Average)
AQ28: ='Construction Materials'!A182 -> Freight - Rail Diesel
C29: Bridge Element | E29: Design/Construction | AG29: Design / Construction | AQ29: ='Construction Materials'!A184 -> Freight - Shipping (Small Tanker)
B30: Design/Construction | E30: Type | F30: Material | G30: Material details | T30: Construction Material CO2 Emissions | W30: Plant and Equipment CO2 Emissions | AA30: Transport of plant and materials | AG30: CO2 Footprint | AQ30: ='Construction Materials'!A185 -> Freight - Shipping (Large Tanker)
C31: Foundations | AQ31: ='Construction Materials'!A192 -> Freight - Air (Domestic)
G32: Volume (m3) | H32: Concrete Grade | I32: Exposure class | J32: Min Grade for exposure class | K32: Min Cement for exposure class (kg/m3) | L32: Cement for concrete grade (kg/m3) | M32: Cement type (default OPC): | N32: Aggregate source % recycled (Default 0%) | O32: Concrete Density (tonnes/m3) | T32: Embodied tCO2/t concrete | V32: Total tCO2/t Concrete | W32: Plant / tools | X32: No. on site | Y32: No. of hours in use | Z32: tCO2/hr | AA32: Transport of plant and materials | AB32: No of deliveries (Concrete based on 6m3 per wagon, other materials on 20tonnes per truck, discrete materials default 2 deliveries) | AC32: Local or national supplier (Default local) | AD32: Distance (Default of 50km local, 250km national) | AE32: CO2/t per km | AG32: Embodied | AH32: Transport | AI32: Sum | AQ32: ='Construction Materials'!A193 -> Freight - Air (Short-haul International)
E33: Mass concrete | F33: Concrete | J33: =IF(I33="","",VLOOKUP($I33,'Construction Materials'!$H$7:$K$24,3,FALSE)) ->  | K33: =IF(I33="","",VLOOKUP($I33,'Construction Materials'!$H$7:$K$24,4,FALSE)) ->  | L33: =IF(H33="","",VLOOKUP($H33,'Construction Materials'!$B$38:$F$45,2,FALSE)) ->  | M33: CEM I Portland Cement | N33: 0 | O33: =IF(H33=0,"",VLOOKUP(H33,'Construction Materials'!$B$24:$F$45,5,FALSE)) ->  | T33: =IF(OR(G33="",K33="",L33="",N33=""),"",((MAX(K33,L33)/1000/O33*VLOOKUP(M33,'Construction Materials'!$B$6:$F$34,5,FALSE))+(((VLOOKUP(N33,'Construction Materials'!$H$28:$O$32,8,FALSE)/O33*VLOOKUP(N33,'Construction Materials'!$H$28:$M$32,5,FALSE)))))) ->  | V33: =IF(OR(G33="",T33="",U33="",),"",T33) ->  | W33: Dumper - Articulated Dump Truck 10-20t | X33: =IF(OR(G33=0,G33=""),"",2) ->  | Y33: =IF(OR(G33=0,G33=""),"",Y25) ->  | Z33: =IF(OR(W33="",X33="",Y33=""),"",VLOOKUP(W33,'Construction Materials'!$B$196:$E$221,3,FALSE)) ->  | AA33: Freight - Diesel (Average) Van/LCV [≤3.5t] | AB33: =IF(OR(G33="",AA33=""),"",G33/6) ->  | AC33: Local supplier | AD33: =IF(AC33="National supplier","250","50") -> 50 | AE33: =IF(AA33="","",VLOOKUP(AA33,'Construction Materials'!$B$136:$E$194,3,FALSE)) -> 0.00027347 | AG33: =IF(OR(G33="",V33="",Z33=""),"",((G33*O33*V33)+(X33*Y33*Z33))) ->  | AH33: =IF(OR(AA33="",AB33="",AD33=""),"",(AB33*AD33*AE33)) ->  | AI33: =IF(OR(AG33=0,AG33="",AH33=0,AH33=""),"",SUM(AG33:AH33)) ->  | AQ33: ='Construction Materials'!A194 -> Freight - Air (Long-haul International)
M34: =(IF(OR(M33=$AQ$73,M33=$AQ$86,M33=$AQ$87,M33=$AQ$88,M33=$AQ$89,M33=$AQ$90,M33=$AQ$91,M33=$AQ$92,M33=$AQ$93,M33=$AQ$94,M33=$AQ$95,M33=$AQ$96,M33=$AQ$97),"DOUBLE COUNTING - see 'Information' worksheet","")) ->  | W34: Assumed one no. type of plant per construction of one selected material | AQ34: Supplier distance
G35: Volume (m3) | H35: Concrete Grade | I35: Exposure class | J35: Min Grade for exposure class | K35: Min Cement for exposure class (kg/m3) | L35: Cement for concrete grade (kg/m3) | M35: Cement type (default OPC): | N35: Aggregate source % recycled (Default 0%) | O35: Concrete Density (tonnes/m3) | P35: Steel Source (Default WSA): | Q35: Steel Density (tonnes/m3) | R35: Reinforcement % by steel volume | S35: Density of aggregate (t/m3 of concrete) | T35: Embodied tCO2/t cement | U35: Embodied tCO2/t aggregate | V35: Embodied tCO2/t steel | AQ35: Local supplier
E36: Spread footing | F36: Reinforced concrete | G36: =IF(OR(SUMMARY!$G$24="",SUMMARY!$G$24=0),"",(SUMMARY!$G$24*0.5)) ->  | H36: C32/40 | I36: XD2 | J36: =IF(I36="","",VLOOKUP($I36,'Construction Materials'!$H$7:$K$24,3,FALSE)) -> C30/37 | K36: =IF(I36="","",VLOOKUP($I36,'Construction Materials'!$H$7:$K$24,4,FALSE)) -> 300 | L36: =IF(H36="","",VLOOKUP($H36,'Construction Materials'!$B$38:$F$45,2,FALSE)) -> 280 | M36: CEM I Portland Cement | N36: 0 | O36: =IF(H36=0,"",VLOOKUP(H36,'Construction Materials'!$B$24:$F$45,5,FALSE)) -> 2.4 | P36: WSA - Bar & Rod | Q36: =IF(P36="","",(VLOOKUP(P36,'Construction Materials'!$D$49:$J$58,7,FALSE))) -> 7.85 | R36: 2.5 | S36: =IF(OR(G36="",K36="",L36="",N36=""),"",(VLOOKUP(N36,'Construction Materials'!$H$28:$O$32,8,FALSE))) ->  | T36: =IF(OR(G36="",K36="",L36="",N36=""),"",(VLOOKUP(M36,'Construction Materials'!$B$6:$F$34,5,FALSE))) ->  | U36: =IF(OR(G36="",K36="",L36="",N36=""),"",(VLOOKUP(N36,'Construction Materials'!$H$28:$M$32,5,FALSE))) ->  | V36: =IF(OR(G36="",P36="",Q36=""),"",(VLOOKUP(P36,'Construction Materials'!$D$49:$J$58,4,FALSE))) ->  | W36: Dumper - Articulated Dump Truck 10-20t | X36: =IF(OR(G36=0,G36=""),"",1) ->  | Y36: =IF(OR(G36=0,G36=""),"",(Y25*0.4)) ->  | Z36: =IF(OR(W36="",X36="",Y36=""),"",VLOOKUP(W36,'Construction Materials'!$B$196:$E$221,3,FALSE)) ->  | AA36: Freight - Diesel HGV (All Rigids) 53% (UK Average) | AB36: =IF(OR(G36="",AA36=""),"",G36/6) ->  | AC36: Local supplier | AD36: =IF(AC36="National supplier","250","50") -> 50 | AE36: =IF(AA36="","",VLOOKUP(AA36,'Construction Materials'!$B$136:$E$194,3,FALSE)) -> 0.0008021 | AG36: =IF(OR(G36="",V36="",Z36=""),"",((MAX(K36,L36)/1000*G36*(1-(R36/100))*T36)+(S36*G36*(1-(R36/100))*U36)+(Q36*G36*(R36/100)*V36)+(X36*Y36*Z36))) ->  | AH36: =IF(OR(AA36="",AB36="",AD36=""),"",(AB36*AD36*AE36)) ->  | AI36: =IF(OR(AG36=0,AG36="",AH36=0,AH36=""),"",SUM(AG36:AH36)) ->  | AQ36: National supplier
M37: =(IF(OR(M36=$AQ$73,M36=$AQ$86,M36=$AQ$87,M36=$AQ$88,M36=$AQ$89,M36=$AQ$90,M36=$AQ$91,M36=$AQ$92,M36=$AQ$93,M36=$AQ$94,M36=$AQ$95,M36=$AQ$96,M36=$AQ$97),"DOUBLE COUNTING - see 'Information' worksheet","")) ->  | AQ37: Concrete strength class
F38: Formwork | G38: Area (m2) based on 49% concrete volume | H38: Type | J38: Reuse (state no. of times) BLANK if none | K38: Density (kg/m2*20mm timber, 8mm others) | L38: Tonnage (t) | T38: User value input tCO2/t formwork | U38: Embodied tCO2/t formwork | V38: Total tCO2/t Formwork | AQ38: C12/15
F39: Timber | G39: =IF($G$36="","",($G$36*0.49)) ->  | H39: Timber - General | K39: =IF(H39="","",VLOOKUP(H39,'Construction Materials'!$D$67:$J$73,7,FALSE)) -> 25 | L39: =IF(OR(G39="",H39=""),"",(IF(J39="",((G39*K39)/1000),((G39*K39/(J39+1))/1000)))) ->  | U39: =IF(H39="","",VLOOKUP(H39,'Construction Materials'!$D$67:$E$73,2,FALSE)) -> 0.00046 | V39: =IF(OR(G39="",H39=""),"",(IF(T39="",U39,T39))) ->  | W39: Telehandler - General | X39: =IF(OR(G39=0,G39=""),"",1) ->  | Y39: =IF(OR(G39=0,G39=""),"",($Y$36*0.2)) ->  | Z39: =IF(OR(W39="",X39="",Y39=""),"",VLOOKUP(W39,'Construction Materials'!$B$196:$E$221,3,FALSE)) ->  | AA39: Cradle to site | AG39: =IF(OR(G39="",V39="",Z39=""),"",((L39*V39)+(X39*Y39*Z39))) ->  | AI39: =IF(AG39="","",AG39) ->  | AQ39: C20/25
F40: Other | K40: =IF(H40="","",VLOOKUP(H40,'Construction Materials'!$D$72:$J$73,7,FALSE)) ->  | L40: =IF(OR(G40="",H40=""),"",(IF(J40="",((G40*K40)/1000),((G40*K40/(J40+1))/1000)))) ->  | U40: =IF(H40="","",VLOOKUP(H40,'Construction Materials'!$D$72:$E$73,2,FALSE)) ->  | V40: =IF(OR(G40="",H40=""),"",(IF(T40="",U40,T40))) ->  | W40: Telehandler - General | X40: =IF(OR(G40=0,G40=""),"",1) ->  | Y40: =IF(OR(G40=0,G40=""),"",($Y$36*0.2)) ->  | Z40: =IF(OR(W40="",X40="",Y40=""),"",VLOOKUP(W40,'Construction Materials'!$B$196:$E$221,3,FALSE)) ->  | AA40: Freight - Diesel (Average) Van/LCV [≤3.5t] | AB40: =IF(OR(G40="",AA40=""),"",MAX(2,ROUND(L40/20,2))) ->  | AC40: Local supplier | AD40: =IF(AC40="National supplier","250","50") -> 50 | AE40: =IF(AA40="","",VLOOKUP(AA40,'Construction Materials'!$B$136:$E$194,3,FALSE)) -> 0.00027347 | AG40: =IF(OR(G40="",V40="",Z40=""),"",((L40*V40)+(X40*Y40*Z40))) ->  | AH40: =IF(OR(AA40="",AB40="",AD40=""),"",(AB40*AD40*AE40)) ->  | AI40: =IF(OR(AG40=0,AG40="",AH40=0,AH40=""),"",SUM(AG40:AH40)) ->  | AQ40: C25/30
AQ41: C30/37
E42: Piles | G42: Volume (m3) | H42: Concrete Grade | I42: Exposure class | J42: Min Grade for exposure class | K42: Min Cement for exposure class (kg/m3) | L42: Cement for concrete grade (kg/m3) | M42: Cement type (default OPC): | N42: Aggregate source % recycled (Default 0%) | O42: Concrete Density (tonnes/m3) | P42: Steel Source (Default WSA): | Q42: Steel Density (tonnes/m3) | R42: Reinforcement % by steel volume | S42: Density of aggregate (t/m3 of concrete) | T42: Embodied tCO2/t cement | U42: Embodied tCO2/t aggregate | V42: Embodied tCO2/t steel | AQ42: C32/40
E43: Bored | F43: Reinforced concrete | G43: =IF(OR(SUMMARY!$G$24="",SUMMARY!$G$24=0),"",(SUMMARY!$G$24*0.5)) ->  | H43: C32/40 | I43: XD2 | J43: =IF(I43="","",VLOOKUP($I43,'Construction Materials'!$H$7:$K$24,3,FALSE)) -> C30/37 | K43: =IF(I43="","",VLOOKUP($I43,'Construction Materials'!$H$7:$K$24,4,FALSE)) -> 300 | L43: =IF(H43="","",VLOOKUP($H43,'Construction Materials'!$B$38:$F$45,2,FALSE)) -> 280 | M43: CEM I Portland Cement | N43: 0 | O43: =IF(H43=0,"",VLOOKUP(H43,'Construction Materials'!$B$24:$F$45,5,FALSE)) -> 2.4 | P43: WSA - Bar & Rod | Q43: =IF(P43="","",(VLOOKUP(P43,'Construction Materials'!$D$49:$J$58,7,FALSE))) -> 7.85 | R43: 2.5 | S43: =IF(OR(G43="",K43="",L43="",N43=""),"",(VLOOKUP(N43,'Construction Materials'!$H$28:$O$32,8,FALSE))) ->  | T43: =IF(OR(G43="",K43="",L43="",N43=""),"",(VLOOKUP(M43,'Construction Materials'!$B$6:$F$34,5,FALSE))) ->  | U43: =IF(OR(G43="",K43="",L43="",N43=""),"",(VLOOKUP(N43,'Construction Materials'!$H$28:$M$32,5,FALSE))) ->  | V43: =IF(OR(G43="",P43="",Q43=""),"",(VLOOKUP(P43,'Construction Materials'!$D$49:$J$58,4,FALSE))) ->  | W43: Piling rigg | X43: =IF(OR(G43=0,G43=""),"",1) ->  | Y43: =IF(OR(G43=0,G43=""),"",($Y$25*0.6)) ->  | Z43: =IF(OR(W43="",X43="",Y43=""),"",VLOOKUP(W43,'Construction Materials'!$B$196:$E$221,3,FALSE)) ->  | AA43: Freight - Diesel HGV (All Rigids) 53% (UK Average) | AB43: =IF(OR(G43="",AA43=""),"",G43/6) ->  | AC43: Local supplier | AD43: =IF(AC43="National supplier","250","50") -> 50 | AE43: =IF(AA43="","",VLOOKUP(AA43,'Construction Materials'!$B$136:$E$194,3,FALSE)) -> 0.0008021 | AG43: =IF(OR(G43="",V43="",Z43=""),"",((MAX(K43,L43)/1000*G43*(1-(R43/100))*T43)+(S43*G43*(1-(R43/100))*U43)+(Q43*G43*(R43/100)*V43)+(X43*Y43*Z43))) ->  | AH43: =IF(OR(AA43="",AB43="",AD43=""),"",(AB43*AD43*AE43)) ->  | AI43: =IF(OR(AG43=0,AG43="",AH43=0,AH43=""),"",SUM(AG43:AH43)) ->  | AQ43: C35/45
M44: =(IF(OR(M43=$AQ$73,M43=$AQ$86,M43=$AQ$87,M43=$AQ$88,M43=$AQ$89,M43=$AQ$90,M43=$AQ$91,M43=$AQ$92,M43=$AQ$93,M43=$AQ$94,M43=$AQ$95,M43=$AQ$96,M43=$AQ$97),"DOUBLE COUNTING - see 'Information' worksheet","")) ->  | AQ44: C40/50
E45: Driven | F45: Reinforced concrete | H45: C32/40 | I45: XD2 | J45: =IF(I45="","",VLOOKUP($I45,'Construction Materials'!$H$7:$K$24,3,FALSE)) -> C30/37 | K45: =IF(I45="","",VLOOKUP($I45,'Construction Materials'!$H$7:$K$24,4,FALSE)) -> 300 | L45: =IF(H45="","",VLOOKUP($H45,'Construction Materials'!$B$38:$F$45,2,FALSE)) -> 280 | M45: CEM I Portland Cement | N45: 0 | O45: =IF(H45=0,"",VLOOKUP(H45,'Construction Materials'!$B$24:$F$45,5,FALSE)) -> 2.4 | P45: WSA - Bar & Rod | Q45: =IF(P45="","",(VLOOKUP(P45,'Construction Materials'!$D$49:$J$58,7,FALSE))) -> 7.85 | R45: 2.5 | S45: =IF(OR(G45="",K45="",L45="",N45=""),"",(VLOOKUP(N45,'Construction Materials'!$H$28:$O$32,8,FALSE))) ->  | T45: =IF(OR(G45="",K45="",L45="",N45=""),"",(VLOOKUP(M45,'Construction Materials'!$B$6:$F$34,5,FALSE))) ->  | U45: =IF(OR(G45="",K45="",L45="",N45=""),"",(VLOOKUP(N45,'Construction Materials'!$H$28:$M$32,5,FALSE))) ->  | V45: =IF(OR(G45="",P45="",Q45=""),"",(VLOOKUP(P45,'Construction Materials'!$D$49:$J$58,4,FALSE))) ->  | W45: Piling rigg | X45: =IF(OR(G45=0,G45=""),"",1) ->  | Y45: =IF(OR(G45=0,G45=""),"",($Y$25*0.6)) ->  | Z45: =IF(OR(W45="",X45="",Y45=""),"",VLOOKUP(W45,'Construction Materials'!$B$196:$E$221,3,FALSE)) ->  | AA45: Freight - Diesel HGV (All Rigids) 53% (UK Average) | AB45: =IF(OR(G45="",AA45=""),"",G45/6) ->  | AC45: Local supplier | AD45: =IF(AC45="National supplier","250","50") -> 50 | AE45: =IF(AA45="","",VLOOKUP(AA45,'Construction Materials'!$B$136:$E$194,3,FALSE)) -> 0.0008021 | AG45: =IF(OR(G45="",V45="",Z45=""),"",((MAX(K45,L45)/1000*G45*(1-(R45/100))*T45)+(S45*G45*(1-(R45/100))*U45)+(Q45*G45*(R45/100)*V45)+(X45*Y45*Z45))) ->  | AH45: =IF(OR(AA45="",AB45="",AD45=""),"",(AB45*AD45*AE45)) ->  | AI45: =IF(OR(AG45=0,AG45="",AH45=0,AH45=""),"",SUM(AG45:AH45)) ->  | AQ45: C50/60
M46: =(IF(OR(M45=$AQ$73,M45=$AQ$86,M45=$AQ$87,M45=$AQ$88,M45=$AQ$89,M45=$AQ$90,M45=$AQ$91,M45=$AQ$92,M45=$AQ$93,M45=$AQ$94,M45=$AQ$95,M45=$AQ$96,M45=$AQ$97),"DOUBLE COUNTING - see 'Information' worksheet","")) ->  | AQ46: Exposure class
G47: Tonnage (t) | H47: Steel source (Default WSA Section) | J47: Steel Fabrication CO2 Costs (Default 0.3tCO2/t) | L47: Density | V47: Total tCO2/t Steel | AQ47: ='Construction Materials'!H7 -> X0
F48: Steel | H48: WSA - Section | J48: 0.3 | L48: =IF(H48="","",VLOOKUP(H48,'Construction Materials'!$D$49:$J$58,7,FALSE)) -> 7.85 | V48: =IF(AND($H$48="",$J$48=""),"",(VLOOKUP($H$48,'Construction Materials'!$D$49:$J$60,4,FALSE))+(J48)) -> 1.062 | W48: Piling rigg | X48: =IF(OR(G48=0,G48=""),"",1) ->  | Y48: =IF(OR(G48=0,G48=""),"",($Y$25*0.6)) ->  | Z48: =IF(OR(W48="",X48="",Y48=""),"",VLOOKUP(W48,'Construction Materials'!$B$196:$E$221,3,FALSE)) ->  | AA48: Freight - Diesel (Average) Van/LCV [≤3.5t] | AB48: =IF(OR(G48="",AA48=""),"",MAX(2,ROUND(G48/20,2))) ->  | AC48: Local supplier | AD48: =IF(AC48="National supplier","250","50") -> 50 | AE48: =IF(AA48="","",VLOOKUP(AA48,'Construction Materials'!$B$136:$E$194,3,FALSE)) -> 0.00027347 | AG48: =IF(OR(G48="",V48="",Z48=""),"",((G48*V48)+(X48*Y48*Z48))) ->  | AH48: =IF(OR(AA48="",AB48="",AD48=""),"",(AB48*AD48*AE48)) ->  | AI48: =IF(OR(AG48=0,AG48="",AH48=0,AH48=""),"",SUM(AG48:AH48)) ->  | AQ48: ='Construction Materials'!H8 -> XC1
J49: The percent fabrication cost will be added to the CO2 cost for steel parts | AQ49: ='Construction Materials'!H9 -> XC2
AQ50: ='Construction Materials'!H10 -> XC3
G51: Tonnage (t) | H51: Steel source (Default WSA Plate) | J51: Steel Fabrication CO2 Costs (Default 0.3tCO2/t) | L51: Density | V51: Total tCO2/t Steel | AQ51: ='Construction Materials'!H11 -> XC4
E52: Sheet | F52: Steel | G52: =IF(SUMMARY!G26="","",SUMMARY!G26) ->  | H52: WSA - Plate | J52: 0.3 | L52: =IF(H52="","",VLOOKUP(H52,'Construction Materials'!$D$49:$J$58,7,FALSE)) -> 7.85 | V52: =IF(AND($H$52="",$J$52=""),"",(VLOOKUP($H$52,'Construction Materials'!$D$51:$J$60,4,FALSE))+(J52)) -> 1.219 | W52: Piling rigg | X52: =IF(OR(G52=0,G52=""),"",1) ->  | Y52: =IF(OR(G52=0,G52=""),"",($Y$25*0.6)) ->  | Z52: =IF(OR(W52="",X52="",Y52=""),"",VLOOKUP(W52,'Construction Materials'!$B$196:$E$221,3,FALSE)) ->  | AA52: Freight - Diesel HGV (All Rigids) 53% (UK Average) | AB52: =IF(OR(G52="",AA52=""),"",MAX(2,ROUND(G52/20,2))) ->  | AC52: Local supplier | AD52: =IF(AC52="National supplier","250","50") -> 50 | AE52: =IF(AA52="","",VLOOKUP(AA52,'Construction Materials'!$B$136:$E$194,3,FALSE)) -> 0.0008021 | AG52: =IF(OR(G52="",V52="",Z52=""),"",((G52*V52)+(X52*Y52*Z52))) ->  | AH52: =IF(OR(AA52="",AB52="",AD52=""),"",(AB52*AD52*AE52)) ->  | AI52: =IF(OR(AG52=0,AG52="",AH52=0,AH52=""),"",SUM(AG52:AH52)) ->  | AQ52: ='Construction Materials'!H12 -> XS1
J53: The percent fabrication cost will be added to the CO2 cost for steel parts | AQ53: ='Construction Materials'!H13 -> XS2
AQ54: ='Construction Materials'!H14 -> XS3
E55: Waste material | G55: Volume (m3) Default 5% of foundation volume | H55: Density (t/m3) | I55: Tonnage (t) | V55: Total tCO2/t Waste | AQ55: ='Construction Materials'!H15 -> XD1
F56: Inert waste | G56: =IF(OR(AND(SUMMARY!$G$24=0,SUMMARY!$G$26=0),(AND(SUMMARY!$G$24="",SUMMARY!$G$26=""))),"",(SUM(SUMMARY!$G$24:$G$26)*0.05)) ->  | H56: =IF(G56="","",'Construction Materials'!$H$106) ->  | I56: =IF(G56="","",($G$56*$H$56)) ->  | J56: ='Construction Materials'!B107 -> Waste Disposal Includes for transport, sorting , EfW, landfill impacts etc | V56: =IF(G56="","",'Construction Materials'!$E$106) ->  | W56: Excavator - Small 6 - 10 tonnes | X56: =IF(OR(G56=0,G56=""),"",1) ->  | Y56: =IF(OR(G56=0,G56=""),"",(Y25*0.1)) ->  | Z56: =IF(OR(W56="",X56="",Y56=""),"",VLOOKUP(W56,'Construction Materials'!$B$196:$E$221,3,FALSE)) ->  | AA56: =J56 -> Waste Disposal Includes for transport, sorting , EfW, landfill impacts etc | AG56: =IF(OR(G56="",V56="",Z56=""),"",((V56*I56)+(X56*Y56*Z56))) ->  | AI56: =IF(AG56="","",AG56) ->  | AQ56: ='Construction Materials'!H16 -> XD2
F57: Note: cannot be used as aggregate | AH57: SUM | AI57: =IF(AND(AI33="",AI36="",AI39="",AI40="",AI43="",AI45="",AI48="",AI52=""),"",SUM(AI33:AI56)) ->  | AQ57: ='Construction Materials'!H17 -> XD3
AQ58: ='Construction Materials'!H18 -> XF1
C59: Bridge Element | AQ59: ='Construction Materials'!H19 -> XF2
E60: Type | F60: Material | G60: Material details | T60: Construction Material CO2 Emissions | W60: Plant & equipment | AA60: Transport of Materials | AG60: CO2 Footprint | AQ60: ='Construction Materials'!H20 -> XF3
C61: Sub-structure | AQ61: ='Construction Materials'!H21 -> XF4
G62: Volume (m3) | H62: Concrete Grade | I62: Exposure class | J62: Min Grade for exposure class | K62: Min Cement for exposure class (kg/m3) | L62: Cement for concrete grade (kg/m3) | M62: Cement type (default OPC): | N62: Aggregate source % recycled (Default 0%) | O62: Concrete Density (tonnes/m3) | P62: Steel Source (Default WSA): | Q62: Steel Density (tonnes/m3) | R62: Reinforcement % by steel volume | S62: Density of aggregate (t/m3 of concrete) | T62: Embodied tCO2/t cement | U62: Embodied tCO2/t aggregate | V62: Embodied tCO2/t steel | W62: Plant / tools | X62: No. on site | Y62: No. of hours in use | Z62: tCO2/hr | AA62: Transport of Materials | AB62: No of deliveries (Concrete based on 6m3 per wagon, other materials on 20tonnes per truck, discrete materials default 2 deliveries) | AC62: Local or national supplier | AD62: Distance (50km local, 250km national) | AE62: CO2/t per km | AG62: Embodied | AH62: Transport | AI62: Sum | AQ62: ='Construction Materials'!H22 -> XA1
E63: Abutments | F63: Reinforced concrete | G63: =IF(SUMMARY!$G$29="","",((0.0043*(G13^2))-(0.0794*G13)+0.5282)*SUMMARY!G29) ->  | H63: C40/50 | I63: XD3 | J63: =IF(I63="","",VLOOKUP($I63,'Construction Materials'!$H$7:$K$24,3,FALSE)) -> C35/45 | K63: =IF(I63="","",VLOOKUP($I63,'Construction Materials'!$H$7:$K$24,4,FALSE)) -> 320 | L63: =IF(H63="","",VLOOKUP($H63,'Construction Materials'!$B$38:$F$45,2,FALSE)) -> 380 | M63: CEM I Portland Cement | N63: 0 | O63: =IF(H63=0,"",VLOOKUP(H63,'Construction Materials'!$B$24:$F$45,5,FALSE)) -> 2.4 | P63: WSA - Bar & Rod | Q63: =IF(P63="","",(VLOOKUP(P63,'Construction Materials'!$D$49:$J$58,7,FALSE))) -> 7.85 | R63: 2.5 | S63: =IF(OR(G63="",K63="",L63="",N63=""),"",(VLOOKUP(N63,'Construction Materials'!$H$28:$O$32,8,FALSE))) ->  | T63: =IF(OR(G63="",K63="",L63="",N63=""),"",(VLOOKUP(M63,'Construction Materials'!$B$6:$F$34,5,FALSE))) ->  | U63: =IF(OR(G63="",K63="",L63="",N63=""),"",(VLOOKUP(N63,'Construction Materials'!$H$28:$M$32,5,FALSE))) ->  | V63: =IF(OR(G63="",P63="",Q63=""),"",(VLOOKUP(P63,'Construction Materials'!$D$49:$J$58,4,FALSE))) ->  | W63: Dumper - Articulated Dump Truck 10-20t | X63: =IF(OR(G63=0,G63=""),"",1) ->  | Y63: =IF(OR(G63=0,G63=""),"",($Y$26*0.3)) ->  | Z63: =IF(OR(W63="",X63="",Y63=""),"",VLOOKUP(W63,'Construction Materials'!$B$196:$E$221,3,FALSE)) ->  | AA63: Freight - Diesel HGV (All Rigids) 53% (UK Average) | AB63: =IF(OR(G63="",AA63=""),"",G63/6) ->  | AC63: Local supplier | AD63: =IF(AC63="National supplier","250","50") -> 50 | AE63: =IF(AA63="","",VLOOKUP(AA63,'Construction Materials'!$B$136:$E$194,3,FALSE)) -> 0.0008021 | AG63: =IF(OR(G63="",V63="",Z63=""),"",((MAX(K63,L63)/1000*G63*(1-(R63/100))*T63)+(S63*G63*(1-(R63/100))*U63)+(Q63*G63*(R63/100)*V63)+(X63*Y63*Z63))) ->  | AH63: =IF(OR(AA63="",AB63="",AD63=""),"",(AB63*AD63*AE63)) ->  | AI63: =IF(OR(AG63=0,AG63="",AH63=0,AH63=""),"",SUM(AG63:AH63)) ->  | AQ63: ='Construction Materials'!H23 -> XA2
M64: =(IF(OR(M63=$AQ$73,M63=$AQ$86,M63=$AQ$87,M63=$AQ$88,M63=$AQ$89,M63=$AQ$90,M63=$AQ$91,M63=$AQ$92,M63=$AQ$93,M63=$AQ$94,M63=$AQ$95,M63=$AQ$96,M63=$AQ$97),"DOUBLE COUNTING - see 'Information' worksheet","")) ->  | AQ64: ='Construction Materials'!H24 -> XA3
F65: Formwork | G65: Area (m2) based on 210% abutment volume | H65: Type | J65: Reuse (state no. of times) BLANK if none | K65: Density (kg/m2*20mm timber, 8mm others) | L65: Tonnage (t) | T65: User value input tCO2/t formwork | U65: Embodied tCO2/t formwork | V65: Total tCO2/t Formwork | AQ65: Recycled aggregate
F66: Timber | G66: =IF($G$63="","",($G$63*2.1)) ->  | H66: Timber - General | K66: =IF(H66="","",VLOOKUP(H66,'Construction Materials'!$D$67:$J$73,7,FALSE)) -> 25 | L66: =IF(OR(G66="",H66=""),"",(IF(J66="",((G66*K66)/1000),((G66*K66/(J66+1))/1000)))) ->  | U66: =IF(H66="","",VLOOKUP(H66,'Construction Materials'!$D$67:$E$73,2,FALSE)) -> 0.00046 | V66: =IF(OR(G66="",H66=""),"",(IF(T66="",U66,T66))) ->  | W66: Telehandler - General | X66: =IF(OR(G66=0,G66=""),"",1) ->  | Y66: =IF(OR(G66=0,G66=""),"",($Y$63*0.2)) ->  | Z66: =IF(OR(W66="",X66="",Y66=""),"",VLOOKUP(W66,'Construction Materials'!$B$196:$E$221,3,FALSE)) ->  | AA66: Cradle to site | AG66: =IF(OR(G66="",V66="",Z66=""),"",((L66*V66)+(X66*Y66*Z66))) ->  | AI66: =IF(AG66="","",AG66) ->  | AQ66: ='Construction Materials'!H28 -> 0
F67: Other | K67: =IF(H67="","",VLOOKUP(H67,'Construction Materials'!$D$72:$J$73,7,FALSE)) ->  | L67: =IF(OR(G67="",H67=""),"",(IF(J67="",((G67*K67)/1000),((G67*K67/(J67+1))/1000)))) ->  | U67: =IF(H67="","",VLOOKUP(H67,'Construction Materials'!$D$72:$E$73,2,FALSE)) ->  | V67: =IF(OR(G67="",H67=""),"",(IF(T67="",U67,T67))) ->  | W67: Telehandler - General | X67: =IF(OR(G67=0,G67=""),"",1) ->  | Y67: =IF(OR(G67=0,G67=""),"",($Y$63*0.2)) ->  | Z67: =IF(OR(W67="",X67="",Y67=""),"",VLOOKUP(W67,'Construction Materials'!$B$196:$E$221,3,FALSE)) ->  | AA67: Freight - Diesel (Average) Van/LCV [≤3.5t] | AB67: =IF(OR(G67="",AA67=""),"",MAX(2,ROUND(L67/20,2))) ->  | AC67: Local supplier | AD67: =IF(AC67="National supplier","250","50") -> 50 | AE67: =IF(AA67="","",VLOOKUP(AA67,'Construction Materials'!$B$136:$E$194,3,FALSE)) -> 0.00027347 | AG67: =IF(OR(G67="",V67="",Z67=""),"",((L67*V67)+(X67*Y67*Z67))) ->  | AH67: =IF(OR(AA67="",AB67="",AD67=""),"",(AB67*AD67*AE67)) ->  | AI67: =IF(OR(AG67=0,AG67="",AH67=0,AH67=""),"",SUM(AG67:AH67)) ->  | AQ67: ='Construction Materials'!H29 -> 0.25
AQ68: ='Construction Materials'!H30 -> 0.5
G69: Volume (m3) | H69: Soil Type | J69: Density (t/m3) | K69: Tonnage (t) | U69: Embodied tCO2/t Fill material | V69: Total tCO2/t Backfill | AQ69: ='Construction Materials'!H31 -> 0.75
F70: Backfill | G70: =IF($G$63="","",(H13^2)*F14) ->  | H70: Stone: Gravel /Chippings | J70: =IF(H70="","",VLOOKUP(H70,'Construction Materials'!$B$78:$H$81,7,FALSE)) -> 2 | K70: =IF(OR(G70="",H70=""),"",(G70*J70)) ->  | U70: =IF(H70="","",VLOOKUP(H70,'Construction Materials'!$B$78:$H$81,4,FALSE)) -> 0.017 | V70: =IF(OR(G70="",J70="",U70=""),"",(U70)) ->  | W70: Dumper - Articulated Dump Truck 10-20t | X70: =IF(OR(G70=0,G70=""),"",1) ->  | Y70: =IF(OR(G70=0,G70=""),"",($Y$63*0.1)) ->  | Z70: =IF(OR(W70="",X70="",Y70=""),"",VLOOKUP(W70,'Construction Materials'!$B$196:$E$221,3,FALSE)) ->  | AA70: Cradle to site | AG70: =IF(OR(G70="",V70="",Z70=""),"",((K70*V70)+(X70*Y70*Z70))) ->  | AI70: =IF(AG70="","",AG70) ->  | AQ70: ='Construction Materials'!H32 -> 1
AQ71: Cement
G72: Volume (m3) | H72: Concrete Grade | I72: Exposure class | J72: Min Grade for exposure class | K72: Min Cement for exposure class (kg/m3) | L72: Cement for concrete grade (kg/m3) | M72: Cement type (default OPC): | N72: Aggregate source % recycled (Default 0%) | O72: Concrete Density (tonnes/m3) | P72: Steel Source (Default WSA): | Q72: Steel Density (tonnes/m3) | R72: Reinforcement % by steel volume | S72: Density of aggregate (t/m3 of concrete) | T72: Embodied tCO2/t cement | U72: Embodied tCO2/t aggregate | V72: Embodied tCO2/t steel | AQ72: ='Construction Materials'!B6 -> CEM I Portland Cement
E73: Piers | F73: Reinforced concrete | G73: =IF(SUMMARY!$G$29="","",((-0.0084*(G13^2))+(0.1601*G13)-0.1178)*SUMMARY!G29) ->  | H73: C40/50 | I73: XD3 | J73: =IF(I73="","",VLOOKUP($I73,'Construction Materials'!$H$7:$K$24,3,FALSE)) -> C35/45 | K73: =IF(I73="","",VLOOKUP($I73,'Construction Materials'!$H$7:$K$24,4,FALSE)) -> 320 | L73: =IF(H73="","",VLOOKUP($H73,'Construction Materials'!$B$38:$F$45,2,FALSE)) -> 380 | M73: CEM I Portland Cement | N73: 0 | O73: =IF(H73=0,"",VLOOKUP(H73,'Construction Materials'!$B$24:$F$45,5,FALSE)) -> 2.4 | P73: WSA - Bar & Rod | Q73: =IF(P73="","",(VLOOKUP(P73,'Construction Materials'!$D$49:$J$58,7,FALSE))) -> 7.85 | R73: 2.5 | S73: =IF(OR(G73="",K73="",L73="",N73=""),"",(VLOOKUP(N73,'Construction Materials'!$H$28:$O$32,8,FALSE))) ->  | T73: =IF(OR(G73="",K73="",L73="",N73=""),"",(VLOOKUP(M73,'Construction Materials'!$B$6:$F$34,5,FALSE))) ->  | U73: =IF(OR(G73="",K73="",L73="",N73=""),"",(VLOOKUP(N73,'Construction Materials'!$H$28:$M$32,5,FALSE))) ->  | V73: =IF(OR(G73="",P73="",Q73=""),"",(VLOOKUP(P73,'Construction Materials'!$D$49:$J$58,4,FALSE))) ->  | W73: Dumper - Articulated Dump Truck 10-20t | X73: =IF(OR(G73=0,G73=""),"",1) ->  | Y73: =IF(OR(G73=0,G73=""),"",($Y$26*0.3)) ->  | Z73: =IF(OR(W73="",X73="",Y73=""),"",VLOOKUP(W73,'Construction Materials'!$B$196:$E$221,3,FALSE)) ->  | AA73: Freight - Diesel HGV (All Rigids) 53% (UK Average) | AB73: =IF(OR(G73="",AA73=""),"",G73/6) ->  | AC73: Local supplier | AD73: =IF(AC73="National supplier","250","50") -> 50 | AE73: =IF(AA73="","",VLOOKUP(AA73,'Construction Materials'!$B$136:$E$194,3,FALSE)) -> 0.0008021 | AG73: =IF(OR(G73="",V73="",Z73=""),"",((MAX(K73,L73)/1000*G73*(1-(R73/100))*T73)+(S73*G73*(1-(R73/100))*U73)+(Q73*G73*(R73/100)*V73)+(X73*Y73*Z73))) ->  | AH73: =IF(OR(AA73="",AB73="",AD73=""),"",(AB73*AD73*AE73)) ->  | AI73: =IF(OR(AG73=0,AG73="",AH73=0,AH73=""),"",SUM(AG73:AH73)) ->  | AQ73: ='Construction Materials'!B7 -> Ground Granulated Blastfurnace Slag (GGBS)
M74: =(IF(OR(M73=$AQ$73,M73=$AQ$86,M73=$AQ$87,M73=$AQ$88,M73=$AQ$89,M73=$AQ$90,M73=$AQ$91,M73=$AQ$92,M73=$AQ$93,M73=$AQ$94,M73=$AQ$95,M73=$AQ$96,M73=$AQ$97),"DOUBLE COUNTING - see 'Information' worksheet","")) ->  | AQ74: ='Construction Materials'!B8 -> Fly Ash
F75: Formwork | G75: Area (m2) based on 210% concrete volume | H75: Type | J75: Reuse (state no. of times) BLANK if none | K75: Density (kg/m2*20mm timber, 8mm others) | L75: Tonnage (t) | T75: User value input tCO2/t formwork | U75: Embodied tCO2/t formwork | V75: Total tCO2/t Formwork | AQ75: ='Construction Materials'!B9 -> Limestone
F76: Timber | G76: =IF($G$73="","",($G$73*2.1)) ->  | H76: Timber - General | K76: =IF(H76="","",VLOOKUP(H76,'Construction Materials'!$D$67:$J$73,7,FALSE)) -> 25 | L76: =IF(OR(G76="",H76=""),"",(IF(J76="",((G76*K76)/1000),((G76*K76/(J76+1))/1000)))) ->  | U76: =IF(H76="","",VLOOKUP(H76,'Construction Materials'!$D$67:$E$73,2,FALSE)) -> 0.00046 | V76: =IF(OR(G76="",H76=""),"",(IF(T76="",U76,T76))) ->  | W76: Telehandler - General | X76: =IF(OR(G76=0,G76=""),"",1) ->  | Y76: =IF(OR(G76=0,G76=""),"",($Y$73*0.2)) ->  | Z76: =IF(OR(W76="",X76="",Y76=""),"",VLOOKUP(W76,'Construction Materials'!$B$196:$E$221,3,FALSE)) ->  | AA76: Cradle to site | AG76: =IF(OR(G76="",V76="",Z76=""),"",((L76*V76)+(X76*Y76*Z76))) ->  | AI76: =IF(AG76="","",AG76) ->  | AQ76: ='Construction Materials'!B10 -> Cement: Unknown Type
F77: Other | K77: =IF(H77="","",VLOOKUP(H77,'Construction Materials'!$D$72:$J$73,7,FALSE)) ->  | L77: =IF(OR(G77="",H77=""),"",(IF(J77="",((G77*K77)/1000),((G77*K77/(J77+1))/1000)))) ->  | U77: =IF(H77="","",VLOOKUP(H77,'Construction Materials'!$D$72:$E$73,2,FALSE)) ->  | V77: =IF(OR(G77="",H77=""),"",(IF(T77="",U77,T77))) ->  | W77: Telehandler - General | X77: =IF(OR(G77=0,G77=""),"",1) ->  | Y77: =IF(OR(G77=0,G77=""),"",($Y$73*0.2)) ->  | Z77: =IF(OR(W77="",X77="",Y77=""),"",VLOOKUP(W77,'Construction Materials'!$B$196:$E$221,3,FALSE)) ->  | AA77: Freight - Diesel (Average) Van/LCV [≤3.5t] | AB77: =IF(OR(G77="",AA77=""),"",MAX(2,ROUND(L77/20,2))) ->  | AC77: Local supplier | AD77: =IF(AC77="National supplier","250","50") -> 50 | AE77: =IF(AA77="","",VLOOKUP(AA77,'Construction Materials'!$B$136:$E$194,3,FALSE)) -> 0.00027347 | AG77: =IF(OR(G77="",V77="",Z77=""),"",((L77*V77)+(X77*Y77*Z77))) ->  | AH77: =IF(OR(AA77="",AB77="",AD77=""),"",(AB77*AD77*AE77)) ->  | AI77: =IF(OR(AG77=0,AG77="",AH77=0,AH77=""),"",SUM(AG77:AH77)) ->  | AQ77: ='Construction Materials'!B11 -> Portland Limestone Cement, CEM II/A-LL or L (20% limestone)
AQ78: ='Construction Materials'!B12 -> Portland Limestone Cement, CEM II/A-LL or L (13% limestone)
G79: Volume (m3) | H79: Concrete Grade | I79: Exposure class | J79: Min Grade for exposure class | K79: Min Cement for exposure class (kg/m3) | L79: Cement for concrete grade (kg/m3) | M79: Cement type (default OPC): | N79: Aggregate source % recycled (Default 0%) | O79: Concrete Density (tonnes/m3) | P79: Steel Source (Default WSA): | Q79: Steel Density (tonnes/m3) | R79: Reinforcement % by steel volume | S79: Density of aggregate (t/m3 of concrete) | T79: Embodied tCO2/t cement | U79: Embodied tCO2/t aggregate | V79: Embodied tCO2/t steel | AQ79: ='Construction Materials'!B13 -> Portland Limestone Cement, CEM II/A-LL or L (6% limestone)
E80: Wingwalls | F80: Reinforced concrete | G80: =IF(SUMMARY!$G$29="","",((0.0041*(G13^2))-(0.0807*G13)+0.5896)*SUMMARY!G29) ->  | H80: C40/50 | I80: XD3 | J80: =IF(I80="","",VLOOKUP($I80,'Construction Materials'!$H$7:$K$24,3,FALSE)) -> C35/45 | K80: =IF(I80="","",VLOOKUP($I80,'Construction Materials'!$H$7:$K$24,4,FALSE)) -> 320 | L80: =IF(H80="","",VLOOKUP($H80,'Construction Materials'!$B$38:$F$45,2,FALSE)) -> 380 | M80: CEM I Portland Cement | N80: 0 | O80: =IF(H80=0,"",VLOOKUP(H80,'Construction Materials'!$B$24:$F$45,5,FALSE)) -> 2.4 | P80: WSA - Bar & Rod | Q80: =IF(P80="","",(VLOOKUP(P80,'Construction Materials'!$D$49:$J$58,7,FALSE))) -> 7.85 | R80: 2.5 | S80: =IF(OR(G80="",K80="",L80="",N80=""),"",(VLOOKUP(N80,'Construction Materials'!$H$28:$O$32,8,FALSE))) ->  | T80: =IF(OR(G80="",K80="",L80="",N80=""),"",(VLOOKUP(M80,'Construction Materials'!$B$6:$F$34,5,FALSE))) ->  | U80: =IF(OR(G80="",K80="",L80="",N80=""),"",(VLOOKUP(N80,'Construction Materials'!$H$28:$M$32,5,FALSE))) ->  | V80: =IF(OR(G80="",P80="",Q80=""),"",(VLOOKUP(P80,'Construction Materials'!$D$49:$J$58,4,FALSE))) ->  | W80: Dumper - Articulated Dump Truck 10-20t | X80: =IF(OR(G80=0,G80=""),"",1) ->  | Y80: =IF(OR(G80=0,G80=""),"",($Y$26*0.3)) ->  | Z80: =IF(OR(W80="",X80="",Y80=""),"",VLOOKUP(W80,'Construction Materials'!$B$196:$E$221,3,FALSE)) ->  | AA80: Freight - Diesel HGV (All Rigids) 53% (UK Average) | AB80: =IF(OR(G80="",AA80=""),"",G80/6) ->  | AC80: Local supplier | AD80: =IF(AC80="National supplier","250","50") -> 50 | AE80: =IF(AA80="","",VLOOKUP(AA80,'Construction Materials'!$B$136:$E$194,3,FALSE)) -> 0.0008021 | AG80: =IF(OR(G80="",V80="",Z80=""),"",((MAX(K80,L80)/1000*G80*(1-(R80/100))*T80)+(S80*G80*(1-(R80/100))*U80)+(Q80*G80*(R80/100)*V80)+(X80*Y80*Z80))) ->  | AH80: =IF(OR(AA80="",AB80="",AD80=""),"",(AB80*AD80*AE80)) ->  | AI80: =IF(OR(AG80=0,AG80="",AH80=0,AH80=""),"",SUM(AG80:AH80)) ->  | AQ80: ='Construction Materials'!B14 -> Portland Fly Ash Cement, CEM II/A-V (20% Fly Ash)
M81: =(IF(OR(M80=$AQ$73,M80=$AQ$86,M80=$AQ$87,M80=$AQ$88,M80=$AQ$89,M80=$AQ$90,M80=$AQ$91,M80=$AQ$92,M80=$AQ$93,M80=$AQ$94,M80=$AQ$95,M80=$AQ$96,M80=$AQ$97),"DOUBLE COUNTING - see 'Information' worksheet","")) ->  | AQ81: ='Construction Materials'!B15 -> Portland Fly Ash Cement, CEM II/A-V (13% Fly Ash)
F82: Formwork | G82: Area (m2) based on 210% concrete volume | H82: Type | J82: Reuse (state no. of times) BLANK if none | K82: Density (kg/m2*20mm timber, 8mm others) | L82: Tonnage (t) | T82: User value input tCO2/t formwork | U82: Embodied tCO2/t formwork | V82: Total tCO2/t Formwork | AQ82: ='Construction Materials'!B16 -> Portland Fly Ash Cement, CEM II/A-V (6% Fly Ash)
F83: Timber | G83: =IF($G$80="","",($G$80*2.1)) ->  | H83: Timber - General | K83: =IF(H83="","",VLOOKUP(H83,'Construction Materials'!$D$67:$J$73,7,FALSE)) -> 25 | L83: =IF(OR(G83="",H83=""),"",(IF(J83="",((G83*K83)/1000),((G83*K83/(J83+1))/1000)))) ->  | U83: =IF(H83="","",VLOOKUP(H83,'Construction Materials'!$D$67:$E$73,2,FALSE)) -> 0.00046 | V83: =IF(OR(G83="",H83=""),"",(IF(T83="",U83,T83))) ->  | W83: Telehandler - General | X83: =IF(OR(G83=0,G83=""),"",1) ->  | Y83: =IF(OR(G83=0,G83=""),"",($Y$80*0.2)) ->  | Z83: =IF(OR(W83="",X83="",Y83=""),"",VLOOKUP(W83,'Construction Materials'!$B$196:$E$221,3,FALSE)) ->  | AA83: Cradle to site | AG83: =IF(OR(G83="",V83="",Z83=""),"",((L83*V83)+(X83*Y83*Z83))) ->  | AI83: =IF(AG83="","",AG83) ->  | AQ83: ='Construction Materials'!B17 -> Portland Fly Ash Cement, CEM II/B-V (35% Fly Ash)
F84: Other | K84: =IF(H84="","",VLOOKUP(H84,'Construction Materials'!$D$72:$J$73,7,FALSE)) ->  | L84: =IF(OR(G84="",H84=""),"",(IF(J84="",((G84*K84)/1000),((G84*K84/(J84+1))/1000)))) ->  | U84: =IF(H84="","",VLOOKUP(H84,'Construction Materials'!$D$72:$E$73,2,FALSE)) ->  | V84: =IF(OR(G84="",H84=""),"",(IF(T84="",U84,T84))) ->  | W84: Telehandler - General | X84: =IF(OR(G84=0,G84=""),"",1) ->  | Y84: =IF(OR(G84=0,G84=""),"",($Y$80*0.2)) ->  | Z84: =IF(OR(W84="",X84="",Y84=""),"",VLOOKUP(W84,'Construction Materials'!$B$196:$E$221,3,FALSE)) ->  | AA84: Freight - Diesel (Average) Van/LCV [≤3.5t] | AB84: =IF(OR(G84="",AA84=""),"",MAX(2,ROUND(L84/20,2))) ->  | AC84: Local supplier | AD84: =IF(AC84="National supplier","250","50") -> 50 | AE84: =IF(AA84="","",VLOOKUP(AA84,'Construction Materials'!$B$136:$E$194,3,FALSE)) -> 0.00027347 | AG84: =IF(OR(G84="",V84="",Z84=""),"",((L84*V84)+(X84*Y84*Z84))) ->  | AH84: =IF(OR(AA84="",AB84="",AD84=""),"",(AB84*AD84*AE84)) ->  | AI84: =IF(OR(AG84=0,AG84="",AH84=0,AH84=""),"",SUM(AG84:AH84)) ->  | AQ84: ='Construction Materials'!B18 -> Portland Fly Ash Cement, CEM II/B-V (28% Fly Ash)
AQ85: ='Construction Materials'!B19 -> Portland Fly Ash Cement, CEM II/B-V (21% Fly Ash)
G86: Volume (m3) | H86: Soil Type | J86: Density (t/m3) | K86: Tonnage (t) | U86: Embodied tCO2/t Fill material | V86: Total tCO2/t Backfill | AQ86: ='Construction Materials'!B20 -> Portland Slag Cement, CEM II/B-S (35% GGBS)
F87: Backfill | G87: =IF($G$80="","",2*(H14^3)) ->  | H87: Stone: Gravel /Chippings | J87: =IF(H87="","",VLOOKUP(H87,'Construction Materials'!$B$78:$H$81,7,FALSE)) -> 2 | K87: =IF(OR(G87="",H87=""),"",G87*J87) ->  | U87: =IF(H87="","",VLOOKUP(H87,'Construction Materials'!$B$78:$H$81,4,FALSE)) -> 0.017 | V87: =IF(OR(G87="",J87="",U87=""),"",(U87)) ->  | W87: Dumper - Articulated Dump Truck 10-20t | X87: =IF(OR(G87=0,G87=""),"",1) ->  | Y87: =IF(OR(G87=0,G87=""),"",($Y$80*0.1)) ->  | Z87: =IF(OR(W87="",X87="",Y87=""),"",VLOOKUP(W87,'Construction Materials'!$B$196:$E$221,3,FALSE)) ->  | AA87: Cradle to site | AG87: =IF(OR(G87="",V87="",Z87=""),"",((K87*V87)+(X87*Y87*Z87))) ->  | AI87: =IF(AG87="","",AG87) ->  | AQ87: ='Construction Materials'!B21 -> Portland Slag Cement, CEM II/B-S (28% GGBS)
AQ88: ='Construction Materials'!B22 -> Portland Slag Cement, CEM II/B-S (21% GGBS)
E89: Waste material | G89: Volume (m3) Default 5% of substructure volume | H89: Density (t/m3) | I89: Tonnage (t) | V89: Total tCO2/t Waste | AQ89: ='Construction Materials'!B23 -> Blastfurnace Cement, CEM III/A (65% GGBS)
F90: Inert waste | G90: =IF(OR(G63="",G73="",G80=""),"",((SUM(G63,G73,G80,G66,G67,G70,G76,G77,G83,G84,G87))*0.05)) ->  | H90: =IF(G90="","",'Construction Materials'!$H$106) ->  | I90: =IF(G90="","",($G$90*$H$90)) ->  | J90: ='Construction Materials'!$B$107 -> Waste Disposal Includes for transport, sorting , EfW, landfill impacts etc | V90: =IF(G90="","",'Construction Materials'!$E$106) ->  | W90: Excavator - Small 6 - 10 tonnes | X90: =IF(OR(G90=0,G90=""),"",1) ->  | Y90: =IF(OR(G90=0,G90=""),"",($Y$26*0.1)) ->  | Z90: =IF(OR(W90="",X90="",Y90=""),"",VLOOKUP(W90,'Construction Materials'!$B$196:$E$221,3,FALSE)) ->  | AA90: =J90 -> Waste Disposal Includes for transport, sorting , EfW, landfill impacts etc | AG90: =IF(OR(G90="",V90="",Z90=""),"",((I90*V90)+(X90*Y90*Z90))) ->  | AI90: =IF(AG90="","",AG90) ->  | AQ90: ='Construction Materials'!B24 -> Blastfurnace Cement, CEM III/A (50.5% GGBS)
F91: Note: cannot be used as aggregate | AH91: SUM | AI91: =IF(AND(AI63="",AI66="",AI67="",AI70="",AI73="",AI76="",AI77="",AI80="",AI83="",AI84="",AI87="",AI90=""),"",SUM(AI63:AI90)) ->  | AQ91: ='Construction Materials'!B25 -> Blastfurnace Cement, CEM III/A (36% GGBS)
C92: Bridge Element | AQ92: ='Construction Materials'!B26 -> Blastfurnace Cement, CEM III/B (80% GGBS)
E93: Type | F93: Material | H93: Material details | W93: Plant & equipment | AA93: Transport of Materials | AG93: CO2 Footprint | AQ93: ='Construction Materials'!B27 -> Blastfurnace Cement, CEM III/B (73% GGBS)
C94: Super-structure | AQ94: ='Construction Materials'!B28 -> Blastfurnace Cement, CEM III/B (66% GGBS)
E95: Articulation | G95: Number | H95: Volume per bearing (m3) (Default 0.01% of deck area) | J95: Density (t/m3) | K95: Painted area (m2) (default 0.1% of deck area) | L95: Tonnage per bearing (t) | T95: Embodied tCO2 per bearing | U95: Embodied tCO2/m2 Paint Double Coat per bearing | V95: Total tCO2 per Bearing | W95: Plant / tools | X95: No. on site | Y95: No. of hours in use | Z95: tCO2/hr | AA95: Transport of Materials | AB95: No of deliveries (Concrete based on 6m3 per wagon, other materials on 20tonnes per truck, discrete materials default 2 deliveries) | AC95: Local or national supplier | AD95: Distance (50km local, 250km national) | AE95: CO2/t per km | AG95: Embodied | AH95: Transport | AI95: Sum | AQ95: ='Construction Materials'!B29 -> Pozzolanic (Siliceous Fly Ash) Cement, CEM IV/B-V (55% GGBS)
E96: Bearings | F96: Mechanical | G96: =(IF(SUMMARY!$G$32="","",SUMMARY!$G$32)) ->  | H96: =IF(OR($G$96="",$F$13="",$F$14=""),"",($F$13*$F$14*0.01%)) ->  | J96: ='Construction Materials'!$J$114 -> 8 | K96: =IF(H96="","",(H96*10)) ->  | L96: =IF(OR(G96="",H96=""),"",((H96*J96))) ->  | T96: =IF(G96="","",(VLOOKUP(F96,'Construction Materials'!$C$114:$J$115,3,FALSE)*L96)) ->  | U96: =IF(K96="","",('Construction Materials'!$G$119)) ->  | V96: =IF(OR(T96="",U96=""),"",(T96+(U96*K96))) ->  | W96: Telehandler - General | X96: =IF(OR(G96=0,G96=""),"",1) ->  | Y96: =IF(OR(G96=0,G96=""),"",($Y$26*0.1)) ->  | Z96: =IF(OR(W96="",X96="",Y96=""),"",VLOOKUP(W96,'Construction Materials'!$B$196:$E$221,3,FALSE)) ->  | AA96: Freight - Diesel (Average) Van/LCV [≤3.5t] | AB96: =IF(OR(G96="",AA96=""),"",MAX(2,ROUND((G96*L96)/20,2))) ->  | AC96: National supplier | AD96: =IF(AC96="National supplier","250","50") -> 250 | AE96: =IF(AA96="","",VLOOKUP(AA96,'Construction Materials'!$B$136:$E$194,3,FALSE)) -> 0.00027347 | AG96: =IF(OR(G96="",V96="",Z96=""),"",((G96*V96)+(X96*Y96*Z96))) ->  | AH96: =IF(OR(AA96="",AB96="",AD96=""),"",(AB96*AD96*AE96)) ->  | AI96: =IF(OR(AG96=0,AG96="",AH96=0,AH96=""),"",SUM(AG96:AH96)) ->  | AQ96: ='Construction Materials'!B30 -> Pozzolanic (Siliceous Fly Ash) Cement, CEM IV/B-V (45.5% GGBS)
F97: Elastomeric | H97: =IF(OR($G$97="",$F$13="",$F$14=""),"",($F$13*$F$14*0.01%)) ->  | J97: ='Construction Materials'!$J$115 -> 1.5 | L97: =IF(OR(G97="",H97=""),"",((H97*J97))) ->  | T97: =IF(G97="","",(VLOOKUP(F97,'Construction Materials'!$C$114:$J$115,3,FALSE)*L97)) ->  | V97: =IF(OR(T97="",L97=""),"",T97) ->  | W97: Telehandler - General | X97: =IF(OR(G97=0,G97=""),"",1) ->  | Y97: =IF(OR(G97=0,G97=""),"",($Y$26*0.1)) ->  | Z97: =IF(OR(W97="",X97="",Y97=""),"",VLOOKUP(W97,'Construction Materials'!$B$196:$E$221,3,FALSE)) ->  | AA97: Cradle to site | AG97: =IF(OR(G97="",V97="",Z97=""),"",((G97*V97)+(X97*Y97*Z97))) ->  | AI97: =IF(AG97="","",AG97) ->  | AQ97: ='Construction Materials'!B31 -> Pozzolanic (Siliceous Fly Ash) Cement, CEM IV/B-V (36% GGBS)
AQ98: ='Construction Materials'!B32 -> Fibre Cement
G99: Length (m) | H99: Volume (m3) (600x125mm area) | I99: Density (t/m3) | J99: Tonnage (t) | U99: Embodied tCO2/t Rubber | V99: Total tCO2/t Rubber expansion joints | AQ99: ='Construction Materials'!B33 -> Soil Cement
E100: Expansion Joints | F100: Rubber | G100: =IF(F14="","",(F14*2)) ->  | H100: =IF(G100="","",G100*0.075) ->  | I100: =VLOOKUP(F100,'Construction Materials'!$C$112:$J$120,6,FALSE) -> 1.5 | J100: =IF(OR(H100="",I100=""),"",(H100*I100)) ->  | U100: =IF(F100="","",('Construction Materials'!E116)) -> 1.63 | V100: =IF(J100="","",(U100)) ->  | W100: Telehandler - General | X100: =IF(OR(G100=0,G100=""),"",1) ->  | Y100: =IF(OR(G100=0,G100=""),"",($Y$26*0.1)) ->  | Z100: =IF(OR(W100="",X100="",Y100=""),"",VLOOKUP(W100,'Construction Materials'!$B$196:$E$221,3,FALSE)) ->  | AA100: Cradle to site | AG100: =IF(OR(G100="",V100="",Z100=""),"",((V100*J100)+(X100*Y100*Z100))) ->  | AI100: =IF(AG100="","",AG100) ->  | AQ100: ='Construction Materials'!B34 -> Other
AQ101: Steel source/details
G102: Volume (m3) (Default 5% substructure volume) | H102: Concrete Grade | I102: Exposure class | J102: Min Grade for exposure class | K102: Min Cement for exposure class (kg/m3) | L102: Cement for concrete grade (kg/m3) | M102: Cement type (default OPC): | N102: Aggregate source % recycled (Default 0%) | O102: Concrete Density (tonnes/m3) | P102: Steel Source (Default WSA): | Q102: Steel Density (tonnes/m3) | R102: Reinforcement % by steel volume | S102: Density of aggregate (t/m3 of concrete) | T102: Embodied tCO2/t cement | U102: Embodied tCO2/t aggregate | V102: Embodied tCO2/t steel | AQ102: Reinforcement
E103: Bearing Plinth | F103: Reinforced concrete | G103: =IF(SUMMARY!$G$29="","",(SUMMARY!$G$29*0.05)) ->  | H103: C40/50 | I103: XD1 | J103: =IF(I103="","",VLOOKUP($I103,'Construction Materials'!$H$7:$K$24,3,FALSE)) -> C30/37 | K103: =IF(I103="","",VLOOKUP($I103,'Construction Materials'!$H$7:$K$24,4,FALSE)) -> 300 | L103: =IF(H103="","",VLOOKUP($H103,'Construction Materials'!$B$38:$F$45,2,FALSE)) -> 380 | M103: CEM I Portland Cement | N103: 0 | O103: =IF(H103=0,"",VLOOKUP(H103,'Construction Materials'!$B$24:$F$45,5,FALSE)) -> 2.4 | P103: WSA - Bar & Rod | Q103: =IF(P103="","",(VLOOKUP(P103,'Construction Materials'!$D$49:$J$58,7,FALSE))) -> 7.85 | R103: 2.5 | S103: =IF(OR(G103="",K103="",L103="",N103=""),"",(VLOOKUP(N103,'Construction Materials'!$H$28:$O$32,8,FALSE))) ->  | T103: =IF(OR(G103="",K103="",L103="",N103=""),"",(VLOOKUP(M103,'Construction Materials'!$B$6:$F$34,5,FALSE))) ->  | U103: =IF(OR(G103="",K103="",L103="",N103=""),"",(VLOOKUP(N103,'Construction Materials'!$H$28:$M$32,5,FALSE))) ->  | V103: =IF(OR(G103="",P103="",Q103=""),"",(VLOOKUP(P103,'Construction Materials'!$D$49:$J$58,4,FALSE))) ->  | W103: Dumper - Articulated Dump Truck 10-20t | X103: =IF(OR(G103=0,G103=""),"",1) ->  | Y103: =IF(OR(G103=0,G103=""),"",($Y$26*0.1)) ->  | Z103: =IF(OR(W103="",X103="",Y103=""),"",VLOOKUP(W103,'Construction Materials'!$B$196:$E$221,3,FALSE)) ->  | AA103: Freight - Diesel HGV (All Rigids) 53% (UK Average) | AB103: =IF(OR(G103="",AA103=""),"",G103/6) ->  | AC103: Local supplier | AD103: =IF(AC103="National supplier","250","50") -> 50 | AE103: =IF(AA103="","",VLOOKUP(AA103,'Construction Materials'!$B$136:$E$194,3,FALSE)) -> 0.0008021 | AG103: =IF(OR(G103="",V103="",Z103=""),"",((MAX(K103,L103)/1000*G103*(1-(R103/100))*T103)+(S103*G103*(1-(R103/100))*U103)+(Q103*G103*(R103/100)*V103)+(X103*Y103*Z103))) ->  | AH103: =IF(OR(AA103="",AB103="",AD103=""),"",(AB103*AD103*AE103)) ->  | AI103: =IF(OR(AG103=0,AG103="",AH103=0,AH103=""),"",SUM(AG103:AH103)) ->  | AQ103: ='Construction Materials'!D49 -> WSA - Bar & Rod
M104: =(IF(OR(M103=$AQ$73,M103=$AQ$86,M103=$AQ$87,M103=$AQ$88,M103=$AQ$89,M103=$AQ$90,M103=$AQ$91,M103=$AQ$92,M103=$AQ$93,M103=$AQ$94,M103=$AQ$95,M103=$AQ$96,M103=$AQ$97),"DOUBLE COUNTING - see 'Information' worksheet","")) ->  | AQ104: ='Construction Materials'!D54 -> ICE Bath Database - Bar & Rod - 50:50 method
F105: Formwork | G105: Area (m2) based on 30% concrete volume | H105: Type | J105: Reuse (state no. of times) BLANK if none | K105: Density (kg/m2*20mm timber, 8mm others) | L105: Tonnage (t) | T105: User value input tCO2/t formwork | U105: Embodied tCO2/t formwork | V105: Total tCO2/t Formwork | AQ105: - Foundations
F106: Timber | G106: =IF($G$103="","",($G$103*0.3)) ->  | H106: Timber - General | K106: =IF(H106="","",VLOOKUP(H106,'Construction Materials'!$D$67:$J$73,7,FALSE)) -> 25 | L106: =IF(OR(G106="",H106=""),"",(IF(J106="",((G106*K106)/1000),((G106*K106/(J106+1))/1000)))) ->  | U106: =IF(H106="","",VLOOKUP(H106,'Construction Materials'!$D$67:$E$73,2,FALSE)) -> 0.00046 | V106: =IF(OR(G106="",H106=""),"",(IF(T106="",U106,T106))) ->  | W106: Telehandler - General | X106: =IF(OR(G106=0,G106=""),"",1) ->  | Y106: =IF(OR(G106=0,G106=""),"",($Y$103*0.2)) ->  | Z106: =IF(OR(W106="",X106="",Y106=""),"",VLOOKUP(W106,'Construction Materials'!$B$196:$E$221,3,FALSE)) ->  | AA106: Cradle to site | AG106: =IF(OR(G106="",V106="",Z106=""),"",((L106*V106)+(X106*Y106*Z106))) ->  | AI106: =IF(AG106="","",AG106) ->  | AQ106: ='Construction Materials'!D52 -> WSA - Section
F107: Other | K107: =IF(H107="","",VLOOKUP(H107,'Construction Materials'!$D$72:$J$73,7,FALSE)) ->  | L107: =IF(OR(G107="",H107=""),"",(IF(J107="",((G107*K107)/1000),((G107*K107/(J107+1))/1000)))) ->  | U107: =IF(H107="","",VLOOKUP(H107,'Construction Materials'!$D$72:$E$73,2,FALSE)) ->  | V107: =IF(OR(G107="",H107=""),"",(IF(T107="",U107,T107))) ->  | W107: Telehandler - General | X107: =IF(OR(G107=0,G107=""),"",1) ->  | Y107: =IF(OR(G107=0,G107=""),"",($Y$103*0.2)) ->  | Z107: =IF(OR(W107="",X107="",Y107=""),"",VLOOKUP(W107,'Construction Materials'!$B$196:$E$221,3,FALSE)) ->  | AB107: =IF(OR(G107="",AA107=""),"",MAX(2,ROUND(L107/20,2))) ->  | AC107: Local supplier | AD107: =IF(AC107="National supplier","250","50") -> 50 | AE107: =IF(AA107="","",VLOOKUP(AA107,'Construction Materials'!$B$136:$E$194,3,FALSE)) ->  | AG107: =IF(OR(G107="",V107="",Z107=""),"",((L107*V107)+(X107*Y107*Z107))) ->  | AH107: =IF(OR(AA107="",AB107="",AD107=""),"",(AB107*AD107*AE107)) ->  | AI107: =IF(OR(AG107=0,AG107="",AH107=0,AH107=""),"",SUM(AG107:AH107)) ->  | AQ107: ='Construction Materials'!D50 -> WSA - Tube
AQ108: ='Construction Materials'!D51 -> WSA - Plate
E109: Deck | F109: Painted steel | G109: Tonnage (t) | H109: Steel source (Default WSA) | J109: Steel Fabrication CO2 Costs (Default 0.3tCO2/t) | L109: Density (t/m3) | M109: Painted area (m2) (9m2/1t steel) | U109: Embodied tCO2/m2 Paint Double Coat | V109: Total tCO2/t Steel | AQ109: ='Construction Materials'!D56 -> ICE Bath Database - Plate - 50:50 method
F110: Beams | G110: =IF((OR(SUMMARY!$G$35="",H110="",)),"",((SUMMARY!$G$35*1))) ->  | H110: WSA - Plate | J110: 0.3 | L110: =IF(H110="","",VLOOKUP(H110,'Construction Materials'!$D$49:$J$58,7,FALSE)) -> 7.85 | M110: =IF(G110="","",(G110*9)) ->  | U110: =IF(M110="","",('Construction Materials'!$G$119)) ->  | V110: =IF(OR(G110="",H110="",J110=""),"",(VLOOKUP(H110,'Construction Materials'!$D$49:$G$58,4,FALSE))+(J110)) ->  | W110: Crane - General | X110: =IF((OR(,G110="",G110=0)),"",1) ->  | Y110: =IF((OR(,G110="",G110=0)),"",($Y$26*0.1)/5) ->  | Z110: =IF(OR(W110="",X110="",Y110=""),"",VLOOKUP(W110,'Construction Materials'!$B$196:$E$221,3,FALSE)) ->  | AA110: Freight - Diesel HGV (All Rigids) 53% (UK Average) | AB110: =IF(OR(G110="",AA110=""),"",MAX(2,ROUND(G110/20,2))) ->  | AC110: National supplier | AD110: =IF(AC110="National supplier","250","50") -> 250 | AE110: =IF(AA110="","",VLOOKUP(AA110,'Construction Materials'!$B$136:$E$194,3,FALSE)) -> 0.0008021 | AG110: =IF(OR(G110="",U110="",V110="",Z110=""),"",((G110*V110)+(M110*U110))+(X110*Y110*Z110)) ->  | AH110: =IF(OR(AA110="",AB110="",AD110=""),"",(AB110*AD110*AE110)) ->  | AI110: =IF(OR(AG110=0,AG110="",AH110=0,AH110=""),"",SUM(AG110:AH110)) ->  | AQ110: ='Construction Materials'!D57 -> ICE Bath Database - Section - 50:50 method
F111: Bracing | H111: WSA - Section | J111: 0.3 | L111: =IF(H111="","",VLOOKUP(H111,'Construction Materials'!$D$49:$J$58,7,FALSE)) -> 7.85 | M111: =IF(G111="","",(G111*9)) ->  | U111: =IF(M111="","",('Construction Materials'!$G$119)) ->  | V111: =IF(OR(G111="",H111="",J111=""),"",(VLOOKUP(H111,'Construction Materials'!$D$49:$G$58,4,FALSE))+(J111)) ->  | W111: Crane - General | X111: =IF((OR(,G111="",G111=0)),"",1) ->  | Y111: =IF((OR(,G111="",G111=0)),"",($Y$26*0.1)/5) ->  | Z111: =IF(OR(W111="",X111="",Y111=""),"",VLOOKUP(W111,'Construction Materials'!$B$196:$E$221,3,FALSE)) ->  | AA111: Freight - Diesel HGV (All Rigids) 53% (UK Average) | AB111: =IF(OR(G111="",AA111=""),"",MAX(2,ROUND(G111/20,2))) ->  | AC111: National supplier | AD111: =IF(AC111="National supplier","250","50") -> 250 | AE111: =IF(AA111="","",VLOOKUP(AA111,'Construction Materials'!$B$136:$E$194,3,FALSE)) -> 0.0008021 | AG111: =IF(OR(G111="",U111="",V111="",Z111=""),"",((G111*V111)+(M111*U111))+(X111*Y111*Z111)) ->  | AH111: =IF(OR(AA111="",AB111="",AD111=""),"",(AB111*AD111*AE111)) ->  | AI111: =IF(OR(AG111=0,AG111="",AH111=0,AH111=""),"",SUM(AG111:AH111)) ->  | AQ111: ='Construction Materials'!D58 -> ICE Bath Database - Tube- 50:50 method
F112: Cross Beams | H112: WSA - Plate | J112: 0.3 | L112: =IF(H112="","",VLOOKUP(H112,'Construction Materials'!$D$49:$J$58,7,FALSE)) -> 7.85 | M112: =IF(G112="","",(G112*9)) ->  | U112: =IF(M112="","",('Construction Materials'!$G$119)) ->  | V112: =IF(OR(G112="",H112="",J112=""),"",(VLOOKUP(H112,'Construction Materials'!$D$49:$G$58,4,FALSE))+(J112)) ->  | W112: Crane - General | X112: =IF((OR(,G112="",G112=0)),"",1) ->  | Y112: =IF((OR(,G112="",G112=0)),"",($Y$26*0.1)/5) ->  | Z112: =IF(OR(W112="",X112="",Y112=""),"",VLOOKUP(W112,'Construction Materials'!$B$196:$E$221,3,FALSE)) ->  | AA112: Freight - Diesel HGV (All Rigids) 53% (UK Average) | AB112: =IF(OR(G112="",AA112=""),"",MAX(2,ROUND(G112/20,2))) ->  | AC112: National supplier | AD112: =IF(AC112="National supplier","250","50") -> 250 | AE112: =IF(AA112="","",VLOOKUP(AA112,'Construction Materials'!$B$136:$E$194,3,FALSE)) -> 0.0008021 | AG112: =IF(OR(G112="",U112="",V112="",Z112=""),"",((G112*V112)+(M112*U112))+(X112*Y112*Z112)) ->  | AH112: =IF(OR(AA112="",AB112="",AD112=""),"",(AB112*AD112*AE112)) ->  | AI112: =IF(OR(AG112=0,AG112="",AH112=0,AH112=""),"",SUM(AG112:AH112)) ->  | AQ112: - Steel sheet piles
F113: Diaphragms | H113: WSA - Plate | J113: 0.3 | L113: =IF(H113="","",VLOOKUP(H113,'Construction Materials'!$D$49:$J$58,7,FALSE)) -> 7.85 | M113: =IF(G113="","",(G113*9)) ->  | U113: =IF(M113="","",('Construction Materials'!$G$119)) ->  | V113: =IF(OR(G113="",H113="",J113=""),"",(VLOOKUP(H113,'Construction Materials'!$D$49:$G$58,4,FALSE))+(J113)) ->  | W113: Crane - General | X113: =IF((OR(,G113="",G113=0)),"",1) ->  | Y113: =IF((OR(,G113="",G113=0)),"",($Y$26*0.1)/5) ->  | Z113: =IF(OR(W113="",X113="",Y113=""),"",VLOOKUP(W113,'Construction Materials'!$B$196:$E$221,3,FALSE)) ->  | AA113: Freight - Diesel HGV (All Rigids) 53% (UK Average) | AB113: =IF(OR(G113="",AA113=""),"",MAX(2,ROUND(G113/20,2))) ->  | AC113: National supplier | AD113: =IF(AC113="National supplier","250","50") -> 250 | AE113: =IF(AA113="","",VLOOKUP(AA113,'Construction Materials'!$B$136:$E$194,3,FALSE)) -> 0.0008021 | AG113: =IF(OR(G113="",U113="",V113="",Z113=""),"",((G113*V113)+(M113*U113))+(X113*Y113*Z113)) ->  | AH113: =IF(OR(AA113="",AB113="",AD113=""),"",(AB113*AD113*AE113)) ->  | AI113: =IF(OR(AG113=0,AG113="",AH113=0,AH113=""),"",SUM(AG113:AH113)) ->  | AQ113: ='Construction Materials'!D51 -> WSA - Plate
F114: Other | H114: WSA - Plate | J114: 0.3 | L114: =IF(H114="","",VLOOKUP(H114,'Construction Materials'!$D$49:$J$58,7,FALSE)) -> 7.85 | M114: =IF(G114="","",(G114*9)) ->  | U114: =IF(M114="","",('Construction Materials'!$G$119)) ->  | V114: =IF(OR(G114="",H114="",J114=""),"",(VLOOKUP(H114,'Construction Materials'!$D$49:$G$58,4,FALSE))+(J114)) ->  | W114: Crane - General | X114: =IF((OR(,G114="",G114=0)),"",1) ->  | Y114: =IF((OR(,G114="",G114=0)),"",($Y$26*0.1)/5) ->  | Z114: =IF(OR(W114="",X114="",Y114=""),"",VLOOKUP(W114,'Construction Materials'!$B$196:$E$221,3,FALSE)) ->  | AA114: Freight - Diesel HGV (All Rigids) 53% (UK Average) | AB114: =IF(OR(G114="",AA114=""),"",MAX(2,ROUND(G114/20,2))) ->  | AC114: National supplier | AD114: =IF(AC114="National supplier","250","50") -> 250 | AE114: =IF(AA114="","",VLOOKUP(AA114,'Construction Materials'!$B$136:$E$194,3,FALSE)) -> 0.0008021 | AG114: =IF(OR(G114="",U114="",V114="",Z114=""),"",((G114*V114)+(M114*U114))+(X114*Y114*Z114)) ->  | AH114: =IF(OR(AA114="",AB114="",AD114=""),"",(AB114*AD114*AE114)) ->  | AI114: =IF(OR(AG114=0,AG114="",AH114=0,AH114=""),"",SUM(AG114:AH114)) ->  | AQ114: ='Construction Materials'!D56 -> ICE Bath Database - Plate - 50:50 method
AQ115: - Deck steel - painted
F116: Weathering Steel | G116: Tonnage (t) | H116: Steel source (Default WSA) | J116: Steel Fabrication CO2 Costs (Default 0.3tCO2/t) | L116: Density (t/m3) | V116: Total tCO2/t Steel | AQ116: ='Construction Materials'!D51 -> WSA - Plate
F117: Beams | G117: =IF((OR(SUMMARY!$G$36="",H117="",)),"",((SUMMARY!$G$36*1))) ->  | H117: WSA - Plate | J117: 0.3 | L117: =IF(H117="","",VLOOKUP(H117,'Construction Materials'!$D$49:$J$58,7,FALSE)) -> 7.85 | V117: =IF(OR(G117="",H117="",J117=""),"",(VLOOKUP(H117,'Construction Materials'!$D$49:$G$58,4,FALSE))+(J117)) ->  | W117: Crane - General | X117: =IF((OR(,G117="",G117=0)),"",1) ->  | Y117: =IF((OR(,G117="",G117=0)),"",($Y$26*0.1)/5) ->  | Z117: =IF(OR(W117="",X117="",Y117=""),"",VLOOKUP(W117,'Construction Materials'!$B$196:$E$221,3,FALSE)) ->  | AA117: Freight - Diesel HGV (All Rigids) 53% (UK Average) | AB117: =IF(OR(G117="",AA117=""),"",MAX(2,ROUND(G117/20,2))) ->  | AC117: National supplier | AD117: =IF(AC117="National supplier","250","50") -> 250 | AE117: =IF(AA117="","",VLOOKUP(AA117,'Construction Materials'!$B$136:$E$194,3,FALSE)) -> 0.0008021 | AG117: =IF(OR(G117="",V117="",Z117=""),"",((G117*V117)+(X117*Y117*Z117))) ->  | AH117: =IF(OR(AA117="",AB117="",AD117=""),"",(AB117*AD117*AE117)) ->  | AI117: =IF(OR(AG117=0,AG117="",AH117=0,AH117=""),"",SUM(AG117:AH117)) ->  | AQ117: ='Construction Materials'!D52 -> WSA - Section
F118: Bracing | H118: WSA - Plate | J118: 0.3 | L118: =IF(H118="","",VLOOKUP(H118,'Construction Materials'!$D$49:$J$58,7,FALSE)) -> 7.85 | V118: =IF(OR(G118="",H118="",J118=""),"",(VLOOKUP(H118,'Construction Materials'!$D$49:$G$58,4,FALSE))+(J118)) ->  | W118: Crane - General | X118: =IF((OR(,G118="",G118=0)),"",1) ->  | Y118: =IF((OR(,G118="",G118=0)),"",($Y$26*0.1)/5) ->  | Z118: =IF(OR(W118="",X118="",Y118=""),"",VLOOKUP(W118,'Construction Materials'!$B$196:$E$221,3,FALSE)) ->  | AA118: Freight - Diesel HGV (All Rigids) 53% (UK Average) | AB118: =IF(OR(G118="",AA118=""),"",MAX(2,ROUND(G118/20,2))) ->  | AC118: National supplier | AD118: =IF(AC118="National supplier","250","50") -> 250 | AE118: =IF(AA118="","",VLOOKUP(AA118,'Construction Materials'!$B$136:$E$194,3,FALSE)) -> 0.0008021 | AG118: =IF(OR(G118="",V118="",Z118=""),"",((G118*V118)+(X118*Y118*Z118))) ->  | AH118: =IF(OR(AA118="",AB118="",AD118=""),"",(AB118*AD118*AE118)) ->  | AI118: =IF(OR(AG118=0,AG118="",AH118=0,AH118=""),"",SUM(AG118:AH118)) ->  | AQ118: ='Construction Materials'!D49 -> WSA - Bar & Rod
F119: Cross Beams | H119: WSA - Plate | J119: 0.3 | L119: =IF(H119="","",VLOOKUP(H119,'Construction Materials'!$D$49:$J$58,7,FALSE)) -> 7.85 | V119: =IF(OR(G119="",H119="",J119=""),"",(VLOOKUP(H119,'Construction Materials'!$D$49:$G$58,4,FALSE))+(J119)) ->  | W119: Crane - General | X119: =IF((OR(,G119="",G119=0)),"",1) ->  | Y119: =IF((OR(,G119="",G119=0)),"",($Y$26*0.1)/5) ->  | Z119: =IF(OR(W119="",X119="",Y119=""),"",VLOOKUP(W119,'Construction Materials'!$B$196:$E$221,3,FALSE)) ->  | AA119: Freight - Diesel HGV (All Rigids) 53% (UK Average) | AB119: =IF(OR(G119="",AA119=""),"",MAX(2,ROUND(G119/20,2))) ->  | AC119: National supplier | AD119: =IF(AC119="National supplier","250","50") -> 250 | AE119: =IF(AA119="","",VLOOKUP(AA119,'Construction Materials'!$B$136:$E$194,3,FALSE)) -> 0.0008021 | AG119: =IF(OR(G119="",V119="",Z119=""),"",((G119*V119)+(X119*Y119*Z119))) ->  | AH119: =IF(OR(AA119="",AB119="",AD119=""),"",(AB119*AD119*AE119)) ->  | AI119: =IF(OR(AG119=0,AG119="",AH119=0,AH119=""),"",SUM(AG119:AH119)) ->  | AQ119: ='Construction Materials'!D50 -> WSA - Tube
F120: Diaphragms | H120: WSA - Plate | J120: 0.3 | L120: =IF(H120="","",VLOOKUP(H120,'Construction Materials'!$D$49:$J$58,7,FALSE)) -> 7.85 | V120: =IF(OR(G120="",H120="",J120=""),"",(VLOOKUP(H120,'Construction Materials'!$D$49:$G$58,4,FALSE))+(J120)) ->  | W120: Crane - General | X120: =IF((OR(,G120="",G120=0)),"",1) ->  | Y120: =IF((OR(,G120="",G120=0)),"",($Y$26*0.1)/5) ->  | Z120: =IF(OR(W120="",X120="",Y120=""),"",VLOOKUP(W120,'Construction Materials'!$B$196:$E$221,3,FALSE)) ->  | AA120: Freight - Diesel HGV (All Rigids) 53% (UK Average) | AB120: =IF(OR(G120="",AA120=""),"",MAX(2,ROUND(G120/20,2))) ->  | AC120: National supplier | AD120: =IF(AC120="National supplier","250","50") -> 250 | AE120: =IF(AA120="","",VLOOKUP(AA120,'Construction Materials'!$B$136:$E$194,3,FALSE)) -> 0.0008021 | AG120: =IF(OR(G120="",V120="",Z120=""),"",((G120*V120)+(X120*Y120*Z120))) ->  | AH120: =IF(OR(AA120="",AB120="",AD120=""),"",(AB120*AD120*AE120)) ->  | AI120: =IF(OR(AG120=0,AG120="",AH120=0,AH120=""),"",SUM(AG120:AH120)) ->  | AQ120: ='Construction Materials'!D58 -> ICE Bath Database - Tube- 50:50 method
F121: Other | H121: WSA - Plate | J121: 0.3 | L121: =IF(H121="","",VLOOKUP(H121,'Construction Materials'!$D$49:$J$58,7,FALSE)) -> 7.85 | V121: =IF(OR(G121="",H121="",J121=""),"",(VLOOKUP(H121,'Construction Materials'!$D$49:$G$58,4,FALSE))+(J121)) ->  | W121: Crane - General | X121: =IF((OR(,G121="",G121=0)),"",1) ->  | Y121: =IF((OR(,G121="",G121=0)),"",($Y$26*0.1)/5) ->  | Z121: =IF(OR(W121="",X121="",Y121=""),"",VLOOKUP(W121,'Construction Materials'!$B$196:$E$221,3,FALSE)) ->  | AA121: Freight - Diesel HGV (All Rigids) 53% (UK Average) | AB121: =IF(OR(G121="",AA121=""),"",MAX(2,ROUND(G121/20,2))) ->  | AC121: National supplier | AD121: =IF(AC121="National supplier","250","50") -> 250 | AE121: =IF(AA121="","",VLOOKUP(AA121,'Construction Materials'!$B$136:$E$194,3,FALSE)) -> 0.0008021 | AG121: =IF(OR(G121="",V121="",Z121=""),"",((G121*V121)+(X121*Y121*Z121))) ->  | AH121: =IF(OR(AA121="",AB121="",AD121=""),"",(AB121*AD121*AE121)) ->  | AI121: =IF(OR(AG121=0,AG121="",AH121=0,AH121=""),"",SUM(AG121:AH121)) ->  | AQ121: ='Construction Materials'!D56 -> ICE Bath Database - Plate - 50:50 method
AQ122: ='Construction Materials'!D57 -> ICE Bath Database - Section - 50:50 method
G123: Volume (m3) | H123: Concrete Grade | I123: Exposure class | J123: Min Grade for exposure class | K123: Min Cement for exposure class (kg/m3) | L123: Cement for concrete grade (kg/m3) | M123: Cement type (default OPC): | N123: Aggregate source % recycled (Default 0%) | O123: Concrete Density (tonnes/m3) | P123: Steel Source (Default WSA): | Q123: Steel Density (tonnes/m3) | R123: Reinforcement % by steel volume | S123: Density of aggregate (t/m3 of concrete) | T123: Embodied tCO2/t cement | U123: Embodied tCO2/t aggregate | V123: Embodied tCO2/t steel | AQ123: ='Construction Materials'!D54 -> ICE Bath Database - Bar & Rod - 50:50 method
F124: Reinforced concrete | G124: =IF(SUMMARY!G38="","",SUMMARY!G38) ->  | H124: C40/50 | I124: XC3 | J124: =IF(I124="","",VLOOKUP($I124,'Construction Materials'!$H$7:$K$24,3,FALSE)) -> C30/37 | K124: =IF(I124="","",VLOOKUP($I124,'Construction Materials'!$H$7:$K$24,4,FALSE)) -> 280 | L124: =IF(H124="","",VLOOKUP($H124,'Construction Materials'!$B$38:$F$45,2,FALSE)) -> 380 | M124: CEM I Portland Cement | N124: 0 | O124: =IF(H124=0,"",VLOOKUP(H124,'Construction Materials'!$B$24:$F$45,5,FALSE)) -> 2.4 | P124: WSA - Bar & Rod | Q124: =IF(P124="","",(VLOOKUP(P124,'Construction Materials'!$D$49:$J$58,7,FALSE))) -> 7.85 | R124: 2.5 | S124: =IF(OR(G124="",K124="",L124="",N124=""),"",(VLOOKUP(N124,'Construction Materials'!$H$28:$O$32,8,FALSE))) ->  | T124: =IF(OR(G124="",K124="",L124="",N124=""),"",(VLOOKUP(M124,'Construction Materials'!$B$6:$F$34,5,FALSE))) ->  | U124: =IF(OR(G124="",K124="",L124="",N124=""),"",(VLOOKUP(N124,'Construction Materials'!$H$28:$M$32,5,FALSE))) ->  | V124: =IF(OR(G124="",P124="",Q124=""),"",(VLOOKUP(P124,'Construction Materials'!$D$49:$J$58,4,FALSE))) ->  | W124: Dumper - Articulated Dump Truck 10-20t | X124: =IF(OR(G124=0,G124=""),"",1) ->  | Y124: =IF(OR(G124=0,G124=""),"",($Y$26*0.35)) ->  | Z124: =IF(OR(W124="",X124="",Y124=""),"",VLOOKUP(W124,'Construction Materials'!$B$196:$E$221,3,FALSE)) ->  | AA124: Freight - Diesel HGV (All Rigids) 53% (UK Average) | AB124: =IF(OR(G124="",AA124=""),"",G124/6) ->  | AC124: Local supplier | AD124: =IF(AC124="National supplier","250","50") -> 50 | AE124: =IF(AA124="","",VLOOKUP(AA124,'Construction Materials'!$B$136:$E$194,3,FALSE)) -> 0.0008021 | AG124: =IF(OR(G124="",V124="",Z124=""),"",((MAX(K124,L124)/1000*G124*(1-(R124/100))*T124)+(S124*G124*(1-(R124/100))*U124)+(Q124*G124*(R124/100)*V124)+(X124*Y124*Z124))) ->  | AH124: =IF(OR(AA124="",AB124="",AD124=""),"",(AB124*AD124*AE124)) ->  | AI124: =IF(OR(AG124=0,AG124="",AH124=0,AH124=""),"",SUM(AG124:AH124)) ->  | AQ124: - Deck steel - weathering
M125: =(IF(OR(M124=$AQ$73,M124=$AQ$86,M124=$AQ$87,M124=$AQ$88,M124=$AQ$89,M124=$AQ$90,M124=$AQ$91,M124=$AQ$92,M124=$AQ$93,M124=$AQ$94,M124=$AQ$95,M124=$AQ$96,M124=$AQ$97),"DOUBLE COUNTING - see 'Information' worksheet","")) ->  | AQ125: ='Construction Materials'!D51 -> WSA - Plate
G126: Area (m2) | H126: Type | U126: Embodied CO2/m2 | V126: Total tCO2/m2 Permanent Formwork | AQ126: ='Construction Materials'!D56 -> ICE Bath Database - Plate - 50:50 method
F127: Permanent Formwork | G127: =IF(OR($F$13="",$F$14=""),"",($F$13*$F$14)) ->  | H127: Omnia Planks | U127: ='Construction Materials'!$J$86 -> 0.03192030971 | V127: =IF(G127="","",U127) ->  | W127: Dumper - Articulated Dump Truck 20-30t | X127: =IF(OR(G127=0,G127=""),"",1) ->  | Y127: =IF(OR(G127=0,G127=""),"",($Y$26*0.05)) ->  | Z127: =IF(OR(W127="",X127="",Y127=""),"",VLOOKUP(W127,'Construction Materials'!$B$196:$E$221,3,FALSE)) ->  | AA127: Freight - Diesel HGV (All Rigids) 53% (UK Average) | AB127: =IF(OR(G127="",AA127=""),"",2) ->  | AC127: Local supplier | AD127: =IF(AC127="National supplier","250","50") -> 50 | AE127: =IF(AA127="","",VLOOKUP(AA127,'Construction Materials'!$B$136:$E$194,3,FALSE)) -> 0.0008021 | AG127: =IF(OR(G127="",V127="",Z127=""),"",((G127*V127)+(X127*Y127*Z127))) ->  | AH127: =IF(OR(AA127="",AB127="",AD127=""),"",(AB127*AD127*AE127)) ->  | AI127: =IF(OR(AG127=0,AG127="",AH127=0,AH127=""),"",SUM(AG127:AH127)) ->  | AQ127: Formwork (timber only)
AQ128: ='Construction Materials'!B67&'Construction Materials'!C67 -> Timber - General
F129: Formwork | G129: Area (m2) based on 30% deck concrete volume | H129: Type | J129: Reuse (state no. of times) BLANK if none | K129: Density (kg/m2*20mm timber, 8mm others) | L129: Tonnage (t) | T129: User value input tCO2/t formwork | U129: Embodied tCO2/t formwork | V129: Total tCO2/t Formwork | AQ129: ='Construction Materials'!B68&'Construction Materials'!C68 -> Timber - Hardboard
F130: Timber | G130: =IF($G$124="","",($G$124*0.3)) ->  | H130: Timber - General | K130: =IF(H130="","",VLOOKUP(H130,'Construction Materials'!$D$67:$J$73,7,FALSE)) -> 25 | L130: =IF(OR(G130="",H130=""),"",(IF(J130="",((G130*K130)/1000),((G130*K130/(J130+1))/1000)))) ->  | U130: =IF(H130="","",VLOOKUP(H130,'Construction Materials'!$D$67:$E$73,2,FALSE)) -> 0.00046 | V130: =IF(OR(G130="",H130=""),"",(IF(T130="",U130,T130))) ->  | W130: Telehandler - General | X130: =IF(OR(G130=0,G130=""),"",1) ->  | Y130: =IF(OR(G130=0,G130=""),"",($Y$124*0.2)) ->  | Z130: =IF(OR(W130="",X130="",Y130=""),"",VLOOKUP(W130,'Construction Materials'!$B$196:$E$221,3,FALSE)) ->  | AA130: Cradle to site | AG130: =IF(OR(G130="",V130="",Z130=""),"",((L130*V130)+(X130*Y130*Z130))) ->  | AI130: =IF(AG130="","",AG130) ->  | AQ130: ='Construction Materials'!B69&'Construction Materials'!C69 -> Timber - MDF
F131: Other | K131: =IF(H131="","",VLOOKUP(H131,'Construction Materials'!$D$72:$J$73,7,FALSE)) ->  | L131: =IF(OR(G131="",H131=""),"",(IF(J131="",((G131*K131)/1000),((G131*K131/(J131+1))/1000)))) ->  | U131: =IF(H131="","",VLOOKUP(H131,'Construction Materials'!$D$72:$E$73,2,FALSE)) ->  | V131: =IF(OR(G131="",H131=""),"",(IF(T131="",U131,T131))) ->  | W131: Telehandler - General | X131: =IF(OR(G131=0,G131=""),"",1) ->  | Y131: =IF(OR(G131=0,G131=""),"",($Y$124*0.2)) ->  | Z131: =IF(OR(W131="",X131="",Y131=""),"",VLOOKUP(W131,'Construction Materials'!$B$196:$E$221,3,FALSE)) ->  | AA131: Freight - Diesel (Average) Van/LCV [≤3.5t] | AB131: =IF(OR(G131="",AA131=""),"",MAX(2,ROUND(L131/20,2))) ->  | AC131: Local supplier | AD131: =IF(AC131="National supplier","250","50") -> 50 | AE131: =IF(AA131="","",VLOOKUP(AA131,'Construction Materials'!$B$136:$E$194,3,FALSE)) -> 0.00027347 | AG131: =IF(OR(G131="",V131="",Z131=""),"",((L131*V131)+(X131*Y131*Z131))) ->  | AH131: =IF(OR(AA131="",AB131="",AD131=""),"",(AB131*AD131*AE131)) ->  | AI131: =IF(OR(AG131=0,AG131="",AH131=0,AH131=""),"",SUM(AG131:AH131)) ->  | AQ131: ='Construction Materials'!B70&'Construction Materials'!C70 -> Timber - Particle Board
AQ132: ='Construction Materials'!B71&'Construction Materials'!C71 -> Timber - Plywood
E133: Road Restraint System | G133: Length (m) | H133: Type | U133: Embodied tCO2/m | V133: Total tCO2/m length of parapet
F134: Steel | G134: =IF($F$13="","",($F$13*2)) ->  | H134: Steel based parapet system | U134: =IF(H134="","",VLOOKUP(H134,'Construction Materials'!$D$101:$G$101,4,FALSE)) -> 0.05126 | V134: =IF(G134="","",(U134)) ->  | W134: Telehandler - General | X134: =IF(OR(G134=0,G134=""),"",1) ->  | Y134: =IF(OR(G134=0,G134=""),"",(($Y$26*0.3)/6)) ->  | Z134: =IF(OR(W134="",X134="",Y134=""),"",VLOOKUP(W134,'Construction Materials'!$B$196:$E$221,3,FALSE)) ->  | AA134: Freight - Diesel (Average) Van/LCV [≤3.5t] | AB134: =IF(OR(G134="",AA134=""),"",2) ->  | AC134: National supplier | AD134: =IF(AC134="National supplier","250","50") -> 250 | AE134: =IF(AA134="","",VLOOKUP(AA134,'Construction Materials'!$B$136:$E$194,3,FALSE)) -> 0.00027347 | AG134: =IF(OR(G134="",V134="",Z134=""),"",((V134*G134)+(X134*Y134*Z134))) ->  | AH134: =IF(OR(AA134="",AB134="",AD134=""),"",(AB134*AD134*AE134)) ->  | AI134: =IF(OR(AG134=0,AG134="",AH134=0,AH134=""),"",SUM(AG134:AH134)) -> 
AQ135: Formwork (other)
G136: Volume (m3) | H136: Concrete Grade | I136: Exposure class | J136: Min Grade for exposure class | K136: Min Cement for exposure class (kg/m3) | L136: Cement for concrete grade (kg/m3) | M136: Cement type (default OPC): | N136: Aggregate source % recycled (Default 0%) | O136: Concrete Density (tonnes/m3) | P136: Steel Source (Default WSA): | Q136: Steel Density (tonnes/m3) | R136: Reinforcement % by steel volume | S136: Density of aggregate (t/m3 of concrete) | T136: Embodied tCO2/t cement | U136: Embodied tCO2/t aggregate | V136: Embodied tCO2/t steel | AQ136: ='Construction Materials'!D72 -> Plastic
F137: Reinforced concrete | H137: C40/50 | I137: XC3 | J137: =IF(I137="","",VLOOKUP($I137,'Construction Materials'!$H$7:$K$24,3,FALSE)) -> C30/37 | K137: =IF(I137="","",VLOOKUP($I137,'Construction Materials'!$H$7:$K$24,4,FALSE)) -> 280 | L137: =IF(H137="","",VLOOKUP($H137,'Construction Materials'!$B$38:$F$45,2,FALSE)) -> 380 | M137: CEM I Portland Cement | N137: 0 | O137: =IF(H137=0,"",VLOOKUP(H137,'Construction Materials'!$B$24:$F$45,5,FALSE)) -> 2.4 | P137: WSA - Bar & Rod | Q137: =IF(P137="","",(VLOOKUP(P137,'Construction Materials'!$D$49:$J$58,7,FALSE))) -> 7.85 | S137: =IF(OR(G137="",K137="",L137="",N137=""),"",(VLOOKUP(N137,'Construction Materials'!$H$28:$O$32,8,FALSE))) ->  | T137: =IF(OR(G137="",K137="",L137="",N137=""),"",(VLOOKUP(M137,'Construction Materials'!$B$6:$F$34,5,FALSE))) ->  | U137: =IF(OR(G137="",K137="",L137="",N137=""),"",(VLOOKUP(N137,'Construction Materials'!$H$28:$M$32,5,FALSE))) ->  | V137: =IF(OR(G137="",P137="",Q137=""),"",(VLOOKUP(P137,'Construction Materials'!$D$49:$J$58,4,FALSE))) ->  | W137: Dumper - Articulated Dump Truck 10-20t | X137: =IF(OR(G137=0,G137=""),"",1) ->  | Y137: =IF(OR(G137=0,G137=""),"",($Y$26*0.3)/6) ->  | Z137: =IF(OR(W137="",X137="",Y137=""),"",VLOOKUP(W137,'Construction Materials'!$B$196:$E$221,3,FALSE)) ->  | AA137: Freight - Diesel HGV (All Rigids) 53% (UK Average) | AB137: =IF(OR(G137="",AA137=""),"",G137/6) ->  | AC137: Local supplier | AD137: =IF(AC137="National supplier","250","50") -> 50 | AE137: =IF(AA137="","",VLOOKUP(AA137,'Construction Materials'!$B$136:$E$194,3,FALSE)) -> 0.0008021 | AG137: =IF(OR(G137="",V137="",Z137=""),"",((MAX(K137,L137)/1000*G137*(1-(R137/100))*T137)+(S137*G137*(1-(R137/100))*U137)+(Q137*G137*(R137/100)*V137)+(X137*Y137*Z137))) ->  | AH137: =IF(OR(AA137="",AB137="",AD137=""),"",(AB137*AD137*AE137)) ->  | AI137: =IF(OR(AG137=0,AG137="",AH137=0,AH137=""),"",SUM(AG137:AH137)) ->  | AQ137: ='Construction Materials'!D59 -> Aluminium - General
M138: =(IF(OR(M137=$AQ$73,M137=$AQ$86,M137=$AQ$87,M137=$AQ$88,M137=$AQ$89,M137=$AQ$90,M137=$AQ$91,M137=$AQ$92,M137=$AQ$93,M137=$AQ$94,M137=$AQ$95,M137=$AQ$96,M137=$AQ$97),"DOUBLE COUNTING - see 'Information' worksheet","")) -> 
F139: Formwork | G139: Area (m2) based on 30% concrete volume | H139: Type | J139: Reuse (state no. of times) BLANK if none | K139: Density (kg/m2*20mm timber, 8mm others) | L139: Tonnage (t) | T139: User value input tCO2/t formwork | U139: Embodied tCO2/t formwork | V139: Total tCO2/t Formwork | AQ139: Backfill
F140: Timber | G140: =IF($G$137="","",($G$137*0.3)) ->  | H140: Timber - General | K140: =IF(H140="","",VLOOKUP(H140,'Construction Materials'!$D$67:$J$73,7,FALSE)) -> 25 | L140: =IF(OR(G140="",H140=""),"",(IF(J140="",((G140*K140)/1000),((G140*K140/(J140+1))/1000)))) ->  | U140: =IF(H140="","",VLOOKUP(H140,'Construction Materials'!$D$67:$E$73,2,FALSE)) -> 0.00046 | V140: =IF(OR(G140="",H140=""),"",(IF(T140="",U140,T140))) ->  | W140: Telehandler - General | X140: =IF(OR(G140=0,G140=""),"",1) ->  | Y140: =IF(OR(G140=0,G140=""),"",($Y$137*0.2)) ->  | Z140: =IF(OR(W140="",X140="",Y140=""),"",VLOOKUP(W140,'Construction Materials'!$B$196:$E$221,3,FALSE)) ->  | AA140: Cradle to site | AG140: =IF(OR(G140="",V140="",Z140=""),"",((L140*V140)+(X140*Y140*Z140))) ->  | AI140: =IF(AG140="","",AG140) ->  | AQ140: Sand
F141: Other | K141: =IF(H141="","",VLOOKUP(H141,'Construction Materials'!$D$72:$J$73,7,FALSE)) ->  | L141: =IF(OR(G141="",H141=""),"",(IF(J141="",((G141*K141)/1000),((G141*K141/(J141+1))/1000)))) ->  | U141: =IF(H141="","",VLOOKUP(H141,'Construction Materials'!$D$72:$E$73,2,FALSE)) ->  | V141: =IF(OR(G141="",H141=""),"",(IF(T141="",U141,T141))) ->  | W141: Telehandler - General | X141: =IF(OR(G141=0,G141=""),"",1) ->  | Y141: =IF(OR(G141=0,G141=""),"",($Y$137*0.2)) ->  | Z141: =IF(OR(W141="",X141="",Y141=""),"",VLOOKUP(W141,'Construction Materials'!$B$196:$E$221,3,FALSE)) ->  | AA141: Freight - Diesel (Average) Van/LCV [≤3.5t] | AB141: =IF(OR(G141="",AA141=""),"",MAX(2,ROUND(L141/20,2))) ->  | AC141: Local supplier | AD141: =IF(AC141="National supplier","250","50") -> 50 | AE141: =IF(AA141="","",VLOOKUP(AA141,'Construction Materials'!$B$136:$E$194,3,FALSE)) -> 0.00027347 | AG141: =IF(OR(G141="",V141="",Z141=""),"",((140*V141)+(X141*Y141*Z141))) ->  | AH141: =IF(OR(AA141="",AB141="",AD141=""),"",(AB141*AD141*AE141)) ->  | AI141: =IF(OR(AG141=0,AG141="",AH141=0,AH141=""),"",SUM(AG141:AH141)) ->  | AQ141: Soil
AQ142: Stone: General
E143: Miscellaneous | G143: Number (assume spaced at 30m) | H143: Type | U143: Embodied tCO2/t per unit | V143: Total tCO2/t per Lighting unit | AQ143: Stone: Gravel /Chippings
F144: Lighting | G144: =IF(OR($F$13="",$F$14=""),"",2*ROUNDUP((F13/30),0)) ->  | H144: Steel column | U144: =IF(H144="","",VLOOKUP(H144,'Construction Materials'!$C$117:$J$118,3,FALSE)) -> 0.66 | V144: =IF(G144="","",(U144)) ->  | W144: Telehandler - General | X144: =IF(OR(G144=0,G144=""),"",1) ->  | Y144: =IF(OR(G144=0,G144=""),"",($Y$26*0.3)/6) ->  | Z144: =IF(OR(W144="",X144="",Y144=""),"",VLOOKUP(W144,'Construction Materials'!$B$196:$E$221,3,FALSE)) ->  | AA144: Freight - Diesel HGV (All Rigids) 53% (UK Average) | AB144: =IF(OR(G144="",AA144=""),"",2) ->  | AC144: Local supplier | AD144: =IF(AC144="National supplier","250","50") -> 50 | AE144: =IF(AA144="","",VLOOKUP(AA144,'Construction Materials'!$B$136:$E$194,3,FALSE)) -> 0.0008021 | AG144: =IF(OR(G144="",V144="",Z144=""),"",((G144*V144)+(X144*Y144*Z144))) ->  | AH144: =IF(OR(AA144="",AB144="",AD144=""),"",(AB144*AD144*AE144)) ->  | AI144: =IF(OR(AG144=0,AG144="",AH144=0,AH144=""),"",SUM(AG144:AH144)) ->  | AQ144: Lighting columns
AQ145: ='Construction Materials'!C117 -> Steel column
G146: Volume (m3) assumes 100mm thick | H146: Type | I146: Density (t/m3) | U146: Embodied tCO2/t Asphalt | V146: Total tCO2/t Asphalt | AQ146: ='Construction Materials'!C118 -> Aluminium column
F147: Surfacing | G147: =IF(OR($F$13="",$F$14=""),"",($F$13*$F$14)*0.1) ->  | H147: ='Construction Materials'!$C$112 -> Asphalt | I147: ='Construction Materials'!$H$112 -> 1.7 | U147: ='Construction Materials'!$E$112 -> 0.045 | V147: =IF(G147="","",(U147)) ->  | W147: Telehandler - General | X147: =IF(OR(G147=0,G147=""),"",1) ->  | Y147: =IF(OR(G147=0,G147=""),"",(($Y$26*0.3)/6)) ->  | Z147: =IF(OR(W147="",X147="",Y147=""),"",VLOOKUP(W147,'Construction Materials'!$B$196:$E$221,3,FALSE)) ->  | AA147: Freight - Diesel HGV (All Rigids) 53% (UK Average) | AB147: =IF(OR(G147="",AA147=""),"",2) ->  | AC147: Local supplier | AD147: =IF(AC147="National supplier","250","50") -> 50 | AE147: =IF(AA147="","",VLOOKUP(AA147,'Construction Materials'!$B$136:$E$194,3,FALSE)) -> 0.0008021 | AG147: =IF(OR(G147="",V147="",Z147=""),"",((G147*I147*V147)+(X147*Y147*Z147))) ->  | AH147: =IF(OR(AA147="",AB147="",AD147=""),"",(AB147*AD147*AE147)) ->  | AI147: =IF(OR(AG147=0,AG147="",AH147=0,AH147=""),"",SUM(AG147:AH147)) ->  | AQ147: Kerbs
AQ148: Precast concrete
G149: Area (m2) | H149: Type | I149: Density (t/m2) | U149: Embodied tCO2/t Damp proof course membane | V149: Total tCO2/t Damp Proof Course Membrane | AQ149: Beany blocks
F150: Waterproofing | G150: =IF(OR($F$13="",$F$14=""),"",($F$13*$F$14)) ->  | H150: ='Construction Materials'!C113 -> Damp proof course membrane | I150: ='Construction Materials'!H113 -> 0.0033 | U150: ='Construction Materials'!$E$113 -> 4.2 | V150: =IF(G150="","",U150) ->  | W150: Telehandler - General | X150: =IF(OR(G150=0,G150=""),"",1) ->  | Y150: =IF(OR(G150=0,G150=""),"",(($Y$26*0.3)/6)) ->  | Z150: =IF(OR(W150="",X150="",Y150=""),"",VLOOKUP(W150,'Construction Materials'!$B$196:$E$221,3,FALSE)) ->  | AA150: Freight - Diesel (Average) Van/LCV [≤3.5t] | AB150: =IF(OR(G150="",AA150=""),"",2) ->  | AC150: National supplier | AD150: =IF(AC150="National supplier","250","50") -> 250 | AE150: =IF(AA150="","",VLOOKUP(AA150,'Construction Materials'!$B$136:$E$194,3,FALSE)) -> 0.00027347 | AG150: =IF(OR(G150="",V150="",Z150=""),"",((G150*I150*V150)+(X150*Y150*Z150))) ->  | AH150: =IF(OR(AA150="",AB150="",AD150=""),"",(AB150*AD150*AE150)) ->  | AI150: =IF(OR(AG150=0,AG150="",AH150=0,AH150=""),"",SUM(AG150:AH150)) ->  | AQ150: Drainage/ducting
AQ151: HDPE Pipe
G152: Volume (m3) (assume 0.016m2) | H152: Type | I152: Density (t/m3) | U152: Embodied tCO2/t Precast concrete | V152: Total tCO2/t Precast Concrete | AQ152: PVC Pipe
F153: Kerbs | G153: =IF(($F$13=""),"",($F$13*2)*0.016) ->  | H153: ='Construction Materials'!C120 -> Precast Concrete | I153: 2.4 | U153: ='Construction Materials'!$E$120 -> 0.215 | V153: =IF(G153="","",U153) ->  | W153: Telehandler - General | X153: =IF(OR(G153=0,G153=""),"",1) ->  | Y153: =IF(OR(G153=0,G153=""),"",(($Y$26*0.3)/6)) ->  | Z153: =IF(OR(W153="",X153="",Y153=""),"",VLOOKUP(W153,'Construction Materials'!$B$196:$E$221,3,FALSE)) ->  | AA153: Freight - Diesel HGV (All Rigids) 53% (UK Average) | AB153: =IF(OR(G153="",AA153=""),"",2) ->  | AC153: Local supplier | AD153: =IF(AC153="National supplier","250","50") -> 50 | AE153: =IF(AA153="","",VLOOKUP(AA153,'Construction Materials'!$B$136:$E$194,3,FALSE)) -> 0.0008021 | AG153: =IF(OR(G153="",V153="",Z153=""),"",((G153*I153*V153))+(X153*Y153*Z153)) ->  | AH153: =IF(OR(AA153="",AB153="",AD153=""),"",(AB153*AD153*AE153)) ->  | AI153: =IF(OR(AG153=0,AG153="",AH153=0,AH153=""),"",SUM(AG153:AH153)) ->  | AQ153: Plant
AQ154: =Information!D124 -> Dumper - Small Dump Truck Less than 10t
G155: Volume (m3) (Default length, 100mm dia, 3mm thickness) | H155: Type | I155: Density (t/m3) | U155: Embodied tCO2/t Plastic pipe | V155: Total tCO2/t Plastic pipe | AQ155: =Information!D125 -> Dumper - Articulated Dump Truck 10-20t
F156: Drainage / ducting | G156: =IF($F$13="","",(($F$13*2)*(PI()*0.1)*0.003)) ->  | H156: PVC Pipe | I156: =IF(H156="","",(VLOOKUP(H156,'Construction Materials'!$D$121:$H$122,5,FALSE))) -> 1.4 | U156: =IF(H156="","",(VLOOKUP(H156,'Construction Materials'!$D$121:$H$122,2,FALSE))) -> 2.5 | V156: =IF(G156="","",U156) ->  | W156: Telehandler - General | X156: =IF(OR(G156=0,G156=""),"",1) ->  | Y156: =IF(OR(G156=0,G156=""),"",(($Y$26*0.3)/6)) ->  | Z156: =IF(OR(W156="",X156="",Y156=""),"",VLOOKUP(W156,'Construction Materials'!$B$196:$E$221,3,FALSE)) ->  | AA156: Freight - Diesel HGV (All Rigids) 53% (UK Average) | AB156: =IF(OR(G156="",AA156=""),"",2) ->  | AC156: Local supplier | AD156: =IF(AC156="National supplier","250","50") -> 50 | AE156: =IF(AA156="","",VLOOKUP(AA156,'Construction Materials'!$B$136:$E$194,3,FALSE)) -> 0.0008021 | AG156: =IF(OR(G156="",V156="",Z156=""),"",((G156*I156*V156)+(X156*Y156*Z156))) ->  | AH156: =IF(OR(AA156="",AB156="",AD156=""),"",(AB156*AD156*AE156)) ->  | AI156: =IF(OR(AG156=0,AG156="",AH156=0,AH156=""),"",SUM(AG156:AH156)) ->  | AQ156: =Information!D126 -> Dumper - Articulated Dump Truck 20-30t
AQ157: =Information!D127 -> Dumper - Articulated Dump Truck Above 30t
E158: Waste material | G158: Volume (m3) Default 5% of bridge deck area | H158: Density (t/m3) | I158: Tonnage (t) | V158: Total tCO2/t Waste | AQ158: =Information!D128 -> Dumper - Off Highway less than 20t
F159: Inert waste | G159: =IF(OR($F$13="",$F$14=""),"",($F$13*$F$14*0.05)) ->  | H159: =IF(G159="","",'Construction Materials'!$H$106) ->  | I159: =IF(G159="","",($G$159*$H$159)) ->  | J159: ='Construction Materials'!$B$107 -> Waste Disposal Includes for transport, sorting , EfW, landfill impacts etc | V159: =IF(G159="","",'Construction Materials'!$E$106) ->  | W159: Excavator - Small 6 - 10 tonnes | X159: =IF(OR(G159=0,G159=""),"",1) ->  | Y159: =IF(OR(G159=0,G159=""),"",(($Y$26*0.1))) ->  | Z159: =IF(OR(W159="",X159="",Y159=""),"",VLOOKUP(W159,'Construction Materials'!$B$196:$E$221,3,FALSE)) ->  | AA159: =J159 -> Waste Disposal Includes for transport, sorting , EfW, landfill impacts etc | AG159: =IF(OR(G159="",V159="",Z159=""),"",((I159*V159)+(X159*Y159*Z159))) ->  | AI159: =IF(AG159="","",AG159) ->  | AQ159: =Information!D129 -> Dumper - Off Highway 20-40t
F160: Note: cannot be used as aggregate | AH160: Sum | AI160: =IF(AND(AI96="",AI97="",AI100="",AI103="",AI106="",AI107="",AI110="",AI111="",AI112="",AI113="",AI114="",AI117="",AI118="",AI119="",AI120="",AI121="",AI124="",AI127="",AI130="",AI131="",AI134="",AI137="",AI140="",AI141="",AI144="",AI147="",AI150="",AI153="",AI156="",AI159=""),"",SUM(AI96:AI159)) ->  | AQ160: =Information!D130 -> Dumper - Off Highway Above 40-60t
AQ161: =Information!D131 -> Dumper - Off Highway Above 60-80t
AQ162: =Information!D132 -> Dumper - Off Highway Above 80t
B163: Maintenance | C163: Maintenance Activity | E163: Maintenance | AG163: Maintenance | AQ163: =Information!D133 -> Excavator - Mini <5 tonnes
E164: Activity | G164: Inspection and maintenance of structure | T164: Construction Material CO2 Emissions | W164: Plant & equipment | AA164: Transport of Materials | AG164: CO2 Footprint | AQ164: =Information!D134 -> Excavator - Small 6 - 10 tonnes
AQ165: =Information!D135 -> Excavator - Medium 11-15 tonnes
C166: Inspections | G166: Frequency (in years) | H166: Total number of activities in 120 years | W166: Plant / tools | X166: No. on site | Y166: No. of hours in use | Z166: tCO2/hr | AA166: Transport of Materials and staff for inspection | AB166: Frequency of visit (per week) | AC166: Local or national supplier | AD166: Distance (50km local, 250km national) | AE166: CO2/t per km | AG166: Embodied | AH166: Transport | AI166: Sum | AQ166: =Information!D136 -> Excavator - Large 16-25 tonnes
E167: Principal inspections | G167: 6 | H167: =120/G167-1 -> 19 | W167: =AQ178 -> Telehandler - General | X167: =IF(OR(G167=0,G167=""),"",1) -> 1 | Y167: =IF(OR(G167=0,G167=""),"",15) -> 15 | Z167: =IF(OR(W167="",X167="",Y167=""),"",VLOOKUP(W167,'Construction Materials'!$B$196:$E$221,3,FALSE)) -> 0.01933424437 | AA167: ='Construction Materials'!$B$226 -> Average Car (unknown fuel) | AB167: =IF(OR(G167="",AA167=""),"",2) -> 2 | AC167: Local supplier | AD167: =IF(AC167="National supplier","250","50") -> 50 | AE167: =IF(AA167="","",VLOOKUP(AA167,'Construction Materials'!$B$226:$E$226,4,FALSE))/1000 -> 0.00020487 | AG167: =IF(OR(G167="",H167="",Z167=""),"",(H167*(X167*Y167*Z167))) -> 5.510259645 | AH167: =IF(OR(AA167="",AB167="",AD167=""),"",(AB167*AD167*AE167)) -> 0.020487 | AI167: =IF(OR(AG167=0,AG167="",AH167=0,AH167=""),"",SUM(AG167:AH167)) -> 5.530746645 | AQ167: =Information!D137 -> Excavator - Very Large >25 tonnes
E168: Interim inspections | G168: 2 | H168: =120/G168-H167 -> 41 | W168: =AQ178 -> Telehandler - General | X168: =IF(OR(G168=0,G168=""),"",1) -> 1 | Y168: =IF(OR(G168=0,G168=""),"",15) -> 15 | Z168: =IF(OR(W168="",X168="",Y168=""),"",VLOOKUP(W168,'Construction Materials'!$B$196:$E$221,3,FALSE)) -> 0.01933424437 | AA168: ='Construction Materials'!$B$226 -> Average Car (unknown fuel) | AB168: =IF(OR(G168="",AA168=""),"",2) -> 2 | AC168: Local supplier | AD168: =IF(AC168="National supplier","250","50") -> 50 | AE168: =IF(AA168="","",VLOOKUP(AA168,'Construction Materials'!$B$226:$E$226,4,FALSE))/1000 -> 0.00020487 | AG168: =IF(OR(G168="",H168="",Z168=""),"",(H168*(X168*Y168*Z168))) -> 11.89056029 | AH168: =IF(OR(AA168="",AB168="",AD168=""),"",(AB168*AD168*AE168)) -> 0.020487 | AI168: =IF(OR(AG168=0,AG168="",AH168=0,AH168=""),"",SUM(AG168:AH168)) -> 11.91104729 | AQ168: =Information!D138 -> Loader - Backhoe
E169: Note: Principal and Interim inspections are not done at the same time - this is allowed for by reducing the number of interim inspections by the number of principal inspections | AQ169: =Information!D139 -> Loader - Mid Wheeled Loaders (<3 m3)
AQ170: =Information!D140 -> Loader - Large Wheeled Loaders (>3 m3)
AQ171: =Information!D141 -> Compactor - Compactor <10 tonnes
C172: Routine Maintenance | G172: Painted area (m2) | U172: Embodied tCO2/m2 Paint Double Coat | V172: Total tCO2/sqm Paint | W172: Plant / tools | X172: No. on site | Y172: No. of hours in use | Z172: tCO2/hr | AA172: Transport of Materials | AB172: No of deliveries (Concrete based on 6m3 per wagon, other materials on 20tonnes per truck, discrete materials default 2 deliveries) | AC172: Local or national supplier | AD172: Distance (50km local, 250km national) | AE172: CO2/t per km | AQ172: =Information!D142 -> Compactor - Compactor >10 tonnes
E173: Re-painting of steel | G173: =IF(SUMMARY!G35="","",(SUM(M110:M114))) ->  | U173: =IF(G173="","",('Construction Materials'!$G$119)) ->  | V173: =IF(G173="","",(U173)) ->  | W173: Telehandler - General | X173: =IF(OR(G173=0,G173=""),"",1) ->  | Y173: =IF(OR(G173=0,G173=""),"",40) ->  | Z173: =IF(OR(W173="",X173="",Y173=""),"",VLOOKUP(W173,'Construction Materials'!$B$196:$E$221,3,FALSE)) ->  | AA173: Freight - Diesel (Average) Van/LCV [≤3.5t] | AB173: =IF(OR(G173="",AA173=""),"",2) ->  | AC173: Local supplier | AD173: =IF(AC173="National supplier","250","50") -> 50 | AE173: =IF(AA173="","",VLOOKUP(AA173,'Construction Materials'!$B$136:$E$194,3,FALSE)) -> 0.00027347 | AG173: =IF(OR(G173="",V173="",Z173=""),"",(((G173*V173)+(X173*Y173*Z173))*MAX($L$226:$L$228))) ->  | AH173: =IF(OR(AA173="",AB173="",AD173=""),"",(AB173*AD173*AE173)) ->  | AI173: =IF(OR(AG173=0,AG173="",AH173=0,AH173=""),"",SUM(AG173:AH173)) ->  | AQ173: =Information!D143 -> Tractor - General
AQ174: =Information!D144 -> Crusher -General
G175: Number | H175: Volume per bearing (m3) (Default 0.01% of deck area) | J175: Density (t/m3) | K175: Painted area (m2) (default 0.1% of deck area) | L175: Tonnage per bearing (t) | T175: Embodied tCO2 per bearing | U175: Embodied tCO2/m2 Paint Double Coat | V175: Total tCO2 per Bearing | AQ175: =Information!D145 -> Screener - General
E176: Bearings replacement | F176: Mechanical | G176: =IF(G96="","",G96) ->  | H176: =IF(OR($F$13="",$F$14=""),"",($F$13*$F$14*0.01%)) ->  | J176: ='Construction Materials'!$J$114 -> 8 | K176: =IF(H176="","",(H176*10)) ->  | L176: =IF(OR(G176="",H176=""),"",((H176*J176))) ->  | T176: =IF(G176="","",(VLOOKUP(F176,'Construction Materials'!$C$114:$J$115,3,FALSE)*L176)) ->  | U176: =IF(K176="","",('Construction Materials'!$G$119)) ->  | V176: =IF(OR(T176="",U176=""),"",(T176+(U176*K176))) ->  | W176: Telehandler - General | X176: =IF(OR(G176=0,G176=""),"",1) ->  | Y176: =IF(OR(G176=0,G176=""),"",100) ->  | Z176: =IF(OR(W176="",X176="",Y176=""),"",VLOOKUP(W176,'Construction Materials'!$B$196:$E$221,3,FALSE)) ->  | AA176: Freight - Diesel HGV (All Rigids) 53% (UK Average) | AB176: =IF(OR(G176="",AA176=""),"",2) ->  | AC176: National supplier | AD176: =IF(AC176="National supplier","250","50") -> 250 | AE176: =IF(AA176="","",VLOOKUP(AA176,'Construction Materials'!$B$136:$E$194,3,FALSE)) -> 0.0008021 | AG176: =IF(OR(G176="",V176="",Z176=""),"",(((G176*V176)+(X176*Y176*Z176))*MAX($L$230:$L$232))) ->  | AH176: =IF(OR(AA176="",AB176="",AD176=""),"",(AB176*AD176*AE176)) ->  | AI176: =IF(OR(AG176=0,AG176="",AH176=0,AH176=""),"",SUM(AG176:AH176)) ->  | AQ176: =Information!D146 -> Crane - General
F177: Elastomeric | G177: =IF(G97="","",G97) ->  | H177: =IF(OR($F$13="",$F$14=""),"",($F$13*$F$14*0.01%)) ->  | J177: ='Construction Materials'!$J$115 -> 1.5 | L177: =IF(OR(G177="",H177=""),"",((H177*J177))) ->  | T177: =IF(G177="","",(VLOOKUP(F177,'Construction Materials'!$C$114:$J$115,3,FALSE)*L177)) ->  | V177: =IF(OR(T177="",L177=""),"",T177) ->  | W177: Telehandler - General | X177: =IF(OR(G177=0,G177=""),"",1) ->  | Y177: =IF(OR(G177=0,G177=""),"",100) ->  | Z177: =IF(OR(W177="",X177="",Y177=""),"",VLOOKUP(W177,'Construction Materials'!$B$196:$E$221,3,FALSE)) ->  | AA177: Cradle to site | AG177: =IF(OR(G177="",V177="",Z177=""),"",(((G177*V177)+(X177*Y177*Z177))*MAX($L$230:$L$232))) ->  | AI177: =IF(AG177="","",AG177) ->  | AQ177: =Information!D147 -> Screener/Crusher Bucket - General
E178: Note: Bearing Replacement assumes no strengthening is required | AQ178: =Information!D148 -> Telehandler - General
G179: Volume (m3) (Default is volume of bearing plinth) | H179: Concrete Grade | I179: Exposure class | J179: Min Grade for exposure class | K179: Min Cement for exposure class (kg/m3) | L179: Cement for concrete grade (kg/m3) | M179: Cement type (default OPC): | N179: Aggregate source % recycled (Default 0%) | O179: Concrete Density (tonnes/m3) | P179: Steel Source (Default WSA): | Q179: Steel Density (tonnes/m3) | R179: Reinforcement % by steel volume | S179: Density of aggregate (t/m3 of concrete) | T179: Embodied tCO2/t cement | U179: Embodied tCO2/t aggregate | V179: Embodied tCO2/t steel | AQ179: =Information!D149 -> Piling rigg
F180: Reinforced concrete | G180: =IF(G103="","",G103) ->  | H180: C40/50 | I180: XC3 | J180: =IF(I180="","",VLOOKUP($I180,'Construction Materials'!$H$7:$K$24,3,FALSE)) -> C30/37 | K180: =IF(I180="","",VLOOKUP($I180,'Construction Materials'!$H$7:$K$24,4,FALSE)) -> 280 | L180: =IF(H180="","",VLOOKUP($H180,'Construction Materials'!$B$38:$F$45,2,FALSE)) -> 380 | M180: CEM I Portland Cement | N180: 0 | O180: =IF(H180=0,"",VLOOKUP(H180,'Construction Materials'!$B$24:$F$45,5,FALSE)) -> 2.4 | P180: WSA - Bar & Rod | Q180: =IF(P180="","",(VLOOKUP(P180,'Construction Materials'!$D$49:$J$58,7,FALSE))) -> 7.85 | R180: 2.5 | S180: =IF(OR(G180="",K180="",L180="",N180=""),"",(VLOOKUP(N180,'Construction Materials'!$H$28:$O$32,8,FALSE))) ->  | T180: =IF(OR(G180="",K180="",L180="",N180=""),"",(VLOOKUP(M180,'Construction Materials'!$B$6:$F$34,5,FALSE))) ->  | U180: =IF(OR(G180="",K180="",L180="",N180=""),"",(VLOOKUP(N180,'Construction Materials'!$H$28:$M$32,5,FALSE))) ->  | V180: =IF(OR(G180="",P180="",Q180=""),"",(VLOOKUP(P180,'Construction Materials'!$D$49:$J$58,4,FALSE))) ->  | W180: Dumper - Articulated Dump Truck 10-20t | X180: =IF(OR(G180=0,G180=""),"",1) ->  | Y180: =IF(OR(G180=0,G180=""),"",40) ->  | Z180: =IF(OR(W180="",X180="",Y180=""),"",VLOOKUP(W180,'Construction Materials'!$B$196:$E$221,3,FALSE)) ->  | AA180: Freight - Diesel HGV (All Rigids) 53% (UK Average) | AB180: =IF(OR(G180="",AA180=""),"",G180/6) ->  | AC180: Local supplier | AD180: =IF(AC180="National supplier","250","50") -> 50 | AE180: =IF(AA180="","",VLOOKUP(AA180,'Construction Materials'!$B$136:$E$194,3,FALSE)) -> 0.0008021 | AG180: =IF(OR(G180="",V180="",Z180=""),"",((MAX(K180,L180)/1000*G180*(1-(R180/100))*T180)+(S180*G180*(1-(R180/100))*U180)+(Q180*G180*(R180/100)*V180)+(X180*Y180*Z180))) ->  | AH180: =IF(OR(AA180="",AB180="",AD180=""),"",(AB180*AD180*AE180)) ->  | AI180: =IF(OR(AG180=0,AG180="",AH180=0,AH180=""),"",SUM(AG180:AH180)) ->  | AQ180: Parapets
M181: =(IF(OR(M180=$AQ$73,M180=$AQ$86,M180=$AQ$87,M180=$AQ$88,M180=$AQ$89,M180=$AQ$90,M180=$AQ$91,M180=$AQ$92,M180=$AQ$93,M180=$AQ$94,M180=$AQ$95,M180=$AQ$96,M180=$AQ$97),"DOUBLE COUNTING - see 'Information' worksheet","")) ->  | AQ181: ='Construction Materials'!D101 -> Steel based parapet system
F182: Formwork | G182: Area (m2) based on 30% concrete volume | H182: Type | J182: Reuse (state no. of times) BLANK if none | K182: Density (kg/m2*20mm timber, 8mm others) | L182: Tonnage (t) | T182: User value input tCO2/t formwork | U182: Embodied tCO2/t formwork | V182: Total tCO2/t Formwork | AQ182: Backfill
F183: Timber | G183: =IF($G$180="","",($G$180*0.3)) ->  | H183: Timber - General | K183: =IF(H183="","",VLOOKUP(H183,'Construction Materials'!$D$67:$J$73,7,FALSE)) -> 25 | L183: =IF(OR(G183="",H183=""),"",(IF(J183="",((G183*K183)/1000),((G183*K183/(J183+1))/1000)))) ->  | U183: =IF(H183="","",VLOOKUP(H183,'Construction Materials'!$D$67:$E$73,2,FALSE)) -> 0.00046 | V183: =IF(OR(G183="",H183=""),"",(IF(T183="",U183,T183))) ->  | W183: Telehandler - General | X183: =IF(OR(G183=0,G183=""),"",1) ->  | Y183: =IF(OR(G183=0,G183=""),"",10) ->  | Z183: =IF(OR(W183="",X183="",Y183=""),"",VLOOKUP(W183,'Construction Materials'!$B$196:$E$221,3,FALSE)) ->  | AA183: Cradle to site | AG183: =IF(OR(G183="",V183="",Z183=""),"",((L183*V183)+(X183*Y183*Z183))*MAX($L$230:$L$232)) ->  | AI183: =IF(AG183="","",AG183) ->  | AQ183: Sand
F184: Other | K184: =IF(H184="","",VLOOKUP(H184,'Construction Materials'!$D$72:$J$73,7,FALSE)) ->  | L184: =IF(OR(G184="",H184=""),"",(IF(J184="",((G184*K184)/1000),((G184*K184/(J184+1))/1000)))) ->  | U184: =IF(H184="","",VLOOKUP(H184,'Construction Materials'!$D$72:$E$73,2,FALSE)) ->  | V184: =IF(OR(G184="",H184=""),"",(IF(T184="",U184,T184))) ->  | W184: Telehandler - General | X184: =IF(OR(G184=0,G184=""),"",1) ->  | Y184: =IF(OR(G184=0,G184=""),"",10) ->  | Z184: =IF(OR(W184="",X184="",Y184=""),"",VLOOKUP(W184,'Construction Materials'!$B$196:$E$221,3,FALSE)) ->  | AA184: Freight - Diesel (Average) Van/LCV [≤3.5t] | AB184: =IF(OR(G184="",AA184=""),"",2) ->  | AC184: Local supplier | AD184: =IF(AC184="National supplier","250","50") -> 50 | AE184: =IF(AA184="","",VLOOKUP(AA184,'Construction Materials'!$B$136:$E$194,3,FALSE)) -> 0.00027347 | AG184: =IF(OR(G184="",V184="",Z184=""),"",((L184*V184)+(X184*Y184*Z184))*MAX($L$230:$L$232)) ->  | AH184: =IF(OR(AA184="",AB184="",AD184=""),"",(AB184*AD184*AE184)) ->  | AI184: =IF(OR(AG184=0,AG184="",AH184=0,AH184=""),"",SUM(AG184:AH184)) ->  | AQ184: Soil
AQ185: Stone: General
G186: Length (m) | H186: Volume (m3) (600x125mm area) | I186: Density | J186: Tonnage | U186: Embodied tCO2/t rubber expansion joints | V186: Total tCO2/t Rubber expansion joints | AQ186: Stone: Gravel /Chippings
E187: Expansion Joints | F187: Rubber | G187: =IF(G100="","",G100) ->  | H187: =IF(G187="","",G187*0.075) ->  | I187: =VLOOKUP(F187,'Construction Materials'!$C$112:$J$120,6,FALSE) -> 1.5 | J187: =IF(OR(H187="",I187=""),"",(H187*I187)) ->  | U187: =IF(F187="","",('Construction Materials'!E116)) -> 1.63 | V187: =IF(J187="","",(U187)) ->  | W187: Telehandler - General | X187: =IF(OR(G187=0,G187=""),"",1) ->  | Y187: =IF(OR(G187=0,G187=""),"",100) ->  | Z187: =IF(OR(W187="",X187="",Y187=""),"",VLOOKUP(W187,'Construction Materials'!$B$196:$E$221,3,FALSE)) ->  | AA187: Cradle to site | AG187: =IF(OR(G187="",V187="",Z187=""),"",(((V187*J187)+(X187*Y187*Z187))*MAX($L$234:$L$236))) ->  | AI187: =IF(AG187="","",AG187) ->  | AQ187: Lighting columns
AQ188: Steel Column
E189: Road Restraint System Replacement | AQ189: Aluminium Column
G190: Length (m) | H190: Type | U190: Embodied tCO2/1m | V190: Total tCO2/m length of parapet | AQ190: Closure type
F191: Steel | G191: =IF(G134="","",G134) ->  | H191: Steel based parapet system | U191: =IF(H191="","",VLOOKUP(H191,'Construction Materials'!$D$101:$G$101,4,FALSE)) -> 0.05126 | V191: =IF(G191="","",(U191)) ->  | W191: Telehandler - General | X191: =IF(OR(G191=0,G191=""),"",1) ->  | Y191: =IF(OR(G191=0,G191=""),"",40) ->  | Z191: =IF(OR(W191="",X191="",Y191=""),"",VLOOKUP(W191,'Construction Materials'!$B$196:$E$221,3,FALSE)) ->  | AA191: Freight - Diesel (Average) Van/LCV [≤3.5t] | AB191: =IF(OR(G191="",AA191=""),"",2) ->  | AC191: National supplier | AD191: =IF(AC191="National supplier","250","50") -> 250 | AE191: =IF(AA191="","",VLOOKUP(AA191,'Construction Materials'!$B$136:$E$194,3,FALSE)) -> 0.00027347 | AG191: =IF(OR(G191="",V191="",Z191=""),"",(((G191*V191)+(X191*Y191*Z191))*MAX($M$238:$M$240))) ->  | AH191: =IF(OR(AA191="",AB191="",AD191=""),"",(AB191*AD191*AE191)) ->  | AI191: =IF(OR(AG191=0,AG191="",AH191=0,AH191=""),"",SUM(AG191:AH191)) ->  | AQ191: ='Construction Materials'!B243 -> Lane - Night -
AQ192: ='Construction Materials'!B244 -> Lane - Weekend -
G193: Volume (m3) | H193: Concrete Grade | I193: Exposure class | J193: Min Grade for exposure class | K193: Min Cement for exposure class (kg/m3) | L193: Cement for concrete grade (kg/m3) | M193: Cement type (default OPC): | N193: Aggregate source % recycled (Default 0%) | O193: Concrete Density (tonnes/m3) | P193: Steel Source (Default WSA): | Q193: Steel Density (tonnes/m3) | R193: Reinforcement % by steel volume | S193: Density of aggregate (t/m3 of concrete) | T193: Embodied tCO2/t cement | U193: Embodied tCO2/t aggregate | V193: Embodied tCO2/t steel | AQ193: ='Construction Materials'!B245 -> Lane - 24 hours -
F194: Reinforced concrete | H194: C40/50 | I194: XC3 | J194: =IF(I194="","",VLOOKUP($I194,'Construction Materials'!$H$7:$K$24,3,FALSE)) -> C30/37 | K194: =IF(I194="","",VLOOKUP($I194,'Construction Materials'!$H$7:$K$24,4,FALSE)) -> 280 | L194: =IF(H194="","",VLOOKUP($H194,'Construction Materials'!$B$38:$F$45,2,FALSE)) -> 380 | M194: CEM I Portland Cement | N194: 0 | O194: =IF(H194=0,"",VLOOKUP(H194,'Construction Materials'!$B$24:$F$45,5,FALSE)) -> 2.4 | P194: WSA - Bar & Rod | Q194: =IF(P194="","",(VLOOKUP(P194,'Construction Materials'!$D$49:$J$58,7,FALSE))) -> 7.85 | R194: 2.5 | S194: =IF(OR(G194="",K194="",L194="",N194=""),"",(VLOOKUP(N194,'Construction Materials'!$H$28:$O$32,8,FALSE))) ->  | T194: =IF(OR(G194="",K194="",L194="",N194=""),"",(VLOOKUP(M194,'Construction Materials'!$B$6:$F$34,5,FALSE))) ->  | U194: =IF(OR(G194="",K194="",L194="",N194=""),"",(VLOOKUP(N194,'Construction Materials'!$H$28:$M$32,5,FALSE))) ->  | V194: =IF(OR(G194="",P194="",Q194=""),"",(VLOOKUP(P194,'Construction Materials'!$D$49:$J$58,4,FALSE))) ->  | W194: Dumper - Articulated Dump Truck 10-20t | X194: =IF(OR(G194=0,G194=""),"",1) ->  | Y194: =IF(OR(G194=0,G194=""),"",40) ->  | Z194: =IF(OR(W194="",X194="",Y194=""),"",VLOOKUP(W194,'Construction Materials'!$B$196:$E$221,3,FALSE)) ->  | AA194: Freight - Diesel HGV (All Rigids) 53% (UK Average) | AB194: =IF(OR(G194="",AA194=""),"",G194/6) ->  | AC194: Local supplier | AD194: =IF(AC194="National supplier","250","50") -> 50 | AE194: =IF(AA194="","",VLOOKUP(AA194,'Construction Materials'!$B$136:$E$194,3,FALSE)) -> 0.0008021 | AG194: =IF(OR(G194="",V194="",Z194=""),"",((MAX(K194,L194)/1000*G194*(1-(R194/100))*T194)+(S194*G194*(1-(R194/100))*U194)+(Q194*G194*(R194/100)*V194)+(X194*Y194*Z194))) ->  | AH194: =IF(OR(AA194="",AB194="",AD194=""),"",(AB194*AD194*AE194)) ->  | AI194: =IF(OR(AG194=0,AG194="",AH194=0,AH194=""),"",SUM(AG194:AH194)) ->  | AQ194: ='Construction Materials'!B246 -> Road - Night -
M195: =(IF(OR(M194=$AQ$73,M194=$AQ$86,M194=$AQ$87,M194=$AQ$88,M194=$AQ$89,M194=$AQ$90,M194=$AQ$91,M194=$AQ$92,M194=$AQ$93,M194=$AQ$94,M194=$AQ$95,M194=$AQ$96,M194=$AQ$97),"DOUBLE COUNTING - see 'Information' worksheet","")) ->  | AQ195: ='Construction Materials'!B247 -> Road - Weekend -
F196: Formwork | G196: Area (m2) based on 30% concrete volume | H196: Type | J196: Reuse (state no. of times) BLANK if none | K196: Density (kg/m2*20mm timber, 8mm others) | L196: Tonnage (t) | T196: User value input tCO2/t formwork | U196: Embodied tCO2/t formwork | V196: Total tCO2/t formwork | AQ196: ='Construction Materials'!B248 -> Road - 24 hours -
F197: Timber | G197: =IF($G$194="","",($G$194*0.3)) ->  | H197: Timber - General | K197: =IF(H197="","",VLOOKUP(H197,'Construction Materials'!$D$67:$J$73,7,FALSE)) -> 25 | L197: =IF(OR(G197="",H197=""),"",(IF(J197="",((G197*K197)/1000),((G197*K197/(J197+1))/1000)))) ->  | U197: =IF(H197="","",VLOOKUP(H197,'Construction Materials'!$D$67:$E$73,2,FALSE)) -> 0.00046 | V197: =IF(OR(G197="",H197=""),"",(IF(T197="",U197,T197))) ->  | W197: Telehandler - General | X197: =IF(OR(G197=0,G197=""),"",1) ->  | Y197: =IF(OR(G197=0,G197=""),"",10) ->  | Z197: =IF(OR(W197="",X197="",Y197=""),"",VLOOKUP(W197,'Construction Materials'!$B$196:$E$221,3,FALSE)) ->  | AA197: Cradle to site | AG197: =IF(OR(G197="",V197="",Z197=""),"",(((L197*V197)+(X197*Y197*Z197))*MAX($M$238:$M$240))) ->  | AI197: =IF(AG197="","",AG197) ->  | AQ197: ='Construction Materials'!B249 -> None -
F198: Other | K198: =IF(H198="","",VLOOKUP(H198,'Construction Materials'!$D$72:$J$73,7,FALSE)) ->  | L198: =IF(OR(G198="",H198=""),"",(IF(J198="",((G198*K198)/1000),((G198*K198/(J198+1))/1000)))) ->  | U198: =IF(H198="","",VLOOKUP(H198,'Construction Materials'!$D$72:$E$73,2,FALSE)) ->  | V198: =IF(OR(G198="",H198=""),"",(IF(T198="",U198,T198))) ->  | W198: Telehandler - General | X198: =IF(OR(G198=0,G198=""),"",1) ->  | Y198: =IF(OR(G198=0,G198=""),"",10) ->  | Z198: =IF(OR(W198="",X198="",Y198=""),"",VLOOKUP(W198,'Construction Materials'!$B$196:$E$221,3,FALSE)) ->  | AA198: Freight - Diesel (Average) Van/LCV [≤3.5t] | AB198: =IF(OR(G198="",AA198=""),"",2) ->  | AC198: Local supplier | AD198: =IF(AC198="National supplier","250","50") -> 50 | AE198: =IF(AA198="","",VLOOKUP(AA198,'Construction Materials'!$B$136:$E$194,3,FALSE)) -> 0.00027347 | AG198: =IF(OR(G198="",V198="",Z198=""),"",(((L198*V198)+(X198*Y198*Z198))*MAX($M$238:$M$240))) ->  | AH198: =IF(OR(AA198="",AB198="",AD198=""),"",(AB198*AD198*AE198)) ->  | AI198: =IF(OR(AG198=0,AG198="",AH198=0,AH198=""),"",SUM(AG198:AH198)) ->  | AQ198: Question
M199: =(IF(OR(M198=$AQ$73,M198=$AQ$86,M198=$AQ$87,M198=$AQ$88,M198=$AQ$89,M198=$AQ$90,M198=$AQ$91,M198=$AQ$92,M198=$AQ$93,M198=$AQ$94,M198=$AQ$95,M198=$AQ$96,M198=$AQ$97),"DOUBLE COUNTING - see 'Information' worksheet","")) ->  | AQ199: Yes
AQ200: No
G201: Volume (m3) (Default 10% deck concrete volume) | H201: Concrete Grade | I201: Exposure class | J201: Min Grade for exposure class | K201: Min Cement for exposure class (kg/m3) | L201: Cement for concrete grade (kg/m3) | M201: Cement type (default OPC): | N201: Aggregate source % recycled (Default 0%) | O201: Concrete Density (tonnes/m3) | P201: Steel Source (Default WSA): | Q201: Steel Density (tonnes/m3) | R201: Reinforcement % by steel volume | S201: Density of aggregate (t/m3 of concrete) | T201: Embodied tCO2/t cement | U201: Embodied tCO2/t aggregate | V201: Embodied tCO2/t steel
... 28 more rows

Sheet Traffic Data
B2: Effects of traffic management
B5: Traffic Delay carbon costs will be calculated based on additional CO2 caused by the traffic due to the delay
C6: =D104 -> Motorway | G6: =H104 -> Rural_A | K6: =L104 -> Urban_A | O6: =P104 -> Rural_Minor | S6: =T104 -> Urban_Minor
B7: Speed
B8: Default speed limit | C8: 70 | D8: MPh | E8: =C8*1.609344 -> 112.65408 | F8: km/hr | G8: 50 | H8: MPh | I8: =G8*1.609344 -> 80.4672 | J8: km/hr | K8: 40 | L8: MPh | M8: =K8*1.609344 -> 64.37376 | N8: km/hr | O8: 50 | P8: MPh | Q8: =O8*1.609344 -> 80.4672 | R8: km/hr | S8: 30 | T8: MPh | U8: =S8*1.609344 -> 48.28032 | V8: km/hr
B9: Override Speed | D9: MPh | E9: =C9*1.609344 -> 0 | F9: km/hr | H9: MPh | I9: =G9*1.609344 -> 0 | J9: km/hr | L9: MPh | M9: =K9*1.609344 -> 0 | N9: km/hr | P9: MPh | Q9: =O9*1.609344 -> 0 | R9: km/hr | T9: MPh | U9: =S9*1.609344 -> 0 | V9: km/hr
B10: Speed Used for Spreadsheet | C10: =IF(C9="",C8,C9) -> 70 | D10: MPh | E10: =C10*1.609344 -> 112.65408 | F10: km/hr | G10: =IF(G9="",G8,G9) -> 50 | H10: MPh | I10: =G10*1.609344 -> 80.4672 | J10: km/hr | K10: =IF(K9="",K8,K9) -> 40 | L10: MPh | M10: =K10*1.609344 -> 64.37376 | N10: km/hr | O10: =IF(O9="",O8,O9) -> 50 | P10: MPh | Q10: =O10*1.609344 -> 80.4672 | R10: km/hr | S10: =IF(S9="",S8,S9) -> 30 | T10: MPh | U10: =S10*1.609344 -> 48.28032 | V10: km/hr
B11: Percentage Slowdown of Speed due to lane closures
B12: Default percentage | C12: 30 | D12: % | G12: 30 | H12: % | K12: 30 | L12: % | O12: 30 | P12: % | S12: 50 | T12: %
B13: Override percentage | D13: % | H13: % | L13: % | P13: % | T13: %
B14: Percentage Used for Spreadsheet | C14: =IF(C13="",C12,C13) -> 30 | D14: % | G14: =IF(G13="",G12,G13) -> 30 | H14: % | K14: =IF(K13="",K12,K13) -> 30 | L14: % | O14: =IF(O13="",O12,O13) -> 30 | P14: % | S14: =IF(S13="",S12,S13) -> 50 | T14: %
B15: Distance over which traffic is affected
B16: Default length | C16: 5 | D16: miles | E16: =C16*1.609344 -> 8.04672 | F16: km | G16: 5 | H16: miles | I16: =G16*1.609344 -> 8.04672 | J16: km | K16: 5 | L16: miles | M16: =K16*1.609344 -> 8.04672 | N16: km | O16: 2 | P16: miles | Q16: =O16*1.609344 -> 3.218688 | R16: km | S16: 2 | T16: miles | U16: =S16*1.609344 -> 3.218688 | V16: km
B17: Override Length | D17: miles | E17: =C17*1.609344 -> 0 | F17: km | H17: miles | I17: =G17*1.609344 -> 0 | J17: km | L17: miles | M17: =K17*1.609344 -> 0 | N17: km | P17: miles | Q17: =O17*1.609344 -> 0 | R17: km | T17: miles | U17: =S17*1.609344 -> 0 | V17: km
B18: Length Used | C18: =IF(C17="",C16,C17) -> 5 | D18: miles | E18: =C18*1.609344 -> 8.04672 | F18: km | G18: =IF(G17="",G16,G17) -> 5 | H18: miles | I18: =G18*1.609344 -> 8.04672 | J18: km | K18: =IF(K17="",K16,K17) -> 5 | L18: miles | M18: =K18*1.609344 -> 8.04672 | N18: km | O18: =IF(O17="",O16,O17) -> 2 | P18: miles | Q18: =O18*1.609344 -> 3.218688 | R18: km | S18: =IF(S17="",S16,S17) -> 2 | T18: miles | U18: =S18*1.609344 -> 3.218688 | V18: km
B19: Speed due to closure | C19: =(100-C14)*(C10)/100 -> 49 | D19: MPh | E19: =C19*1.609344 -> 78.857856 | F19: km/hr | G19: =(100-G14)*(G10)/100 -> 35 | H19: MPh | I19: =G19*1.609344 -> 56.32704 | J19: km/hr | K19: =(100-K14)*(K10)/100 -> 28 | L19: MPh | M19: =K19*1.609344 -> 45.061632 | N19: km/hr | O19: =(100-O14)*(O10)/100 -> 35 | P19: MPh | Q19: =O19*1.609344 -> 56.32704 | R19: km/hr | S19: =(100-S14)*(S10)/100 -> 15 | T19: MPh | U19: =S19*1.609344 -> 24.14016 | V19: km/hr
B20: Allow for traffic build-up/stoppage (cannot input a value less than 6.2MPh)
B21: Default length | C21: 1 | D21: miles | E21: =C21*1.609344 -> 1.609344 | F21: km | G21: 1 | H21: miles | I21: =G21*1.609344 -> 1.609344 | J21: km | K21: 1 | L21: miles | M21: =K21*1.609344 -> 1.609344 | N21: km | O21: 1 | P21: miles | Q21: =O21*1.609344 -> 1.609344 | R21: km | S21: 1 | T21: miles | U21: =S21*1.609344 -> 1.609344 | V21: km
B22: Override Length | D22: miles | E22: =C22*1.609344 -> 0 | F22: km | H22: miles | I22: =G22*1.609344 -> 0 | J22: km | L22: miles | M22: =K22*1.609344 -> 0 | N22: km | P22: miles | Q22: =O22*1.609344 -> 0 | R22: km | T22: miles | U22: =S22*1.609344 -> 0 | V22: km
